Workbook

Sheet Classements
B1: Pilotes | C1: NAT | D1: INT | E1: SCRATCH | H1: Passagers | I1: Nat | J1: Inter | K1: Scratch
A2: 1 | B2: MANZANO Pascal | C2: 8113 | D2: 12303 | E2: 20416 | G2: 1 | H2: GOUGEUL Sophie | I2: 7483 | J2: 12303 | K2: 19786
A3: 2 | B3: STRYPSTEIN Nicolas | C3: 200 | D3: 2570 | E3: 2770 | G3: 2 | H3: PONT Patricia | I3: 10021 | J3: 0 | K3: 10021
A4: 3 | B4: VANBELLINGEN Jean-Claude | C4: 4150 | D4: 2203 | E4: 6353 | G4: 3 | H4: LEROY Laure | I4: 3321 | J4: 2203 | K4: 5524
A5: 4 | B5: BRUNEAU Denis-Claude | C5: 200 | D5: 1342 | E5: 1542 | G5: 4 | H5: MISEUR Carine | I5: 5164 | J5: 0 | K5: 5164
A6: 5 | B6: DESCAMPS Geoffrey | C6: 200 | D6: 1250 | E6: 1450 | G6: 5 | H6: DEL FABBRO Laurence | I6: 200 | J6: 1342 | K6: 1542
A7: 6 | B7: FAVRESSSE René | C7: 4499 | D7: 1222 | E7: 5721 | G7: 6 | H7: LAMIROY Anne | I7: 0 | J7: 1056 | K7: 1056
A8: 7 | B8: DONY Marc | C8: 360 | D8: 1220 | E8: 1580 | G8: 7 | H8: DEFAUX Michèle | I8: 884 | J8: 0 | K8: 884
A9: 8 | B9: URBAIN Philippe | C9: 0 | D9: 1194 | E9: 1194 | G9: 8 | H9: LAMBILLON Anne | I9: 360 | J9: 0 | K9: 360
A10: 9 | B10: JAMOTTE Jean | C10: 15472 | D10: 1156 | E10: 16628 | G10: 9 | H10: BRIATTE Joëlle | I10: 0 | J10: 0 | K10: 0
A11: 10 | B11: BALLION Pierre | C11: 360 | D11: 1124 | E11: 1484 | G11: 10 | H11: FIEVET Nathalie | I11: 0 | J11: 0 | K11: 0
A12: 11 | B12: DAVIN Philippe | C12: 2533 | D12: 1076 | E12: 3609 | G12: 11 | H12: GOFFIN Guillaume | I12: 0 | J12: 0 | K12: 0
A13: 12 | B13: MILET Benoit | C13: 504 | D13: 1056 | E13: 1560 | G13: 12 | H13: GREGORICS Kathy | I13: 0 | J13: 0 | K13: 0
A14: 13 | B14: DESMAREE Francis | C14: 20260 | D14: 0 | E14: 20260 | G14: 13 | H14: MALLIEN Emelyne | I14: 0 | J14: 0 | K14: 0
A15: 14 | B15: LESCAL Thierry | C15: 10370 | D15: 0 | E15: 10370 | G15: 14 | H15: PIERARD Anne-Sophie | I15: 0 | J15: 0 | K15: 0
A16: 15 | B16: VAN DER BEETEN Pascal | C16: 10166 | D16: 0 | E16: 10166 | G16: 15 | H16: ARENZANA Jennifer | I16: 0 | J16: 0 | K16: 0
A17: 16 | B17: WOUTERS Olivier | C17: 7563 | D17: 0 | E17: 7563 | G17: 16 | H17: 0 | I17: 0 | J17: 0 | K17: 0
A18: 17 | B18: NIHOUL Dany | C18: 6312 | D18: 0 | E18: 6312 | G18: 17 | H18: 0 | I18: 0 | J18: 0 | K18: 0
A19: 18 | B19: VANDY Rudi | C19: 5164 | D19: 0 | E19: 5164 | G19: 18 | H19: 0 | I19: 0 | J19: 0 | K19: 0
A20: 19 | B20: RAMEAU Didier | C20: 3956 | D20: 0 | E20: 3956 | G20: 19 | H20: 0 | I20: 0 | J20: 0 | K20: 0
A21: 20 | B21: HINYOT Thierry | C21: 3197 | D21: 0 | E21: 3197 | G21: 20 | H21: 0 | I21: 0 | J21: 0 | K21: 0
A22: 21 | B22: MARIEL Didier | C22: 1859 | D22: 0 | E22: 1859 | G22: 21 | H22: 0 | I22: 0 | J22: 0 | K22: 0
A23: 22 | B23: DEWAERSEGHERS Francis | C23: 1543 | D23: 0 | E23: 1543 | G23: 22 | H23: 0 | I23: 0 | J23: 0 | K23: 0
A24: 23 | B24: PARMENTIER Dominique | C24: 728 | D24: 0 | E24: 728 | G24: 23 | H24: 0 | I24: 0 | J24: 0 | K24: 0
A25: 24 | B25: MALLIEN Philippe | C25: 360 | D25: 0 | E25: 360 | G25: 24 | H25: 0 | I25: 0 | J25: 0 | K25: 0
A26: 25 | B26: VANSTEYVOORT André | C26: 200 | D26: 0 | E26: 200 | G26: 25 | H26: 0 | I26: 0 | J26: 0 | K26: 0
A27: 26 | B27: SMEETS Carine | C27: 160 | D27: 0 | E27: 160 | G27: 26 | H27: 0 | I27: 0 | J27: 0 | K27: 0
A28: 27 | B28: BENET Jean-Pol | C28: 0 | D28: 0 | E28: 0 | G28: 27 | H28: 0 | I28: 0 | J28: 0 | K28: 0
A29: 28 | B29: BERDOYES Yannick | C29: 0 | D29: 0 | E29: 0 | G29: 28 | H29: 0 | I29: 0 | J29: 0 | K29: 0
A30: 29 | B30: DHONDT Jerry | C30: 0 | D30: 0 | E30: 0 | G30: 29 | H30: 0 | I30: 0 | J30: 0 | K30: 0
A31: 30 | B31: GOFFIN Amaury | C31: 0 | D31: 0 | E31: 0 | I31: =SUM(K2:K30) -> 44337 | J31: =SUM(J2:J30) -> 16904 | K31: =SUM(I31:J31) -> 61241
A32: 31 | B32: LAMBOTTE Didier | C32: 0 | D32: 0 | E32: 0 | I32: =SUM(I31/K31) -> 0.7239757679 | J32: =SUM(J31/K31) -> 0.2760242321
A33: 32 | B33: THIRIFAYS Vincent | C33: 0 | D33: 0 | E33: 0 | I33: NAT | J33: INT
A34: 33 | B34: LEFRANT Sébastien | C34: 0 | D34: 0 | E34: 0
A35: 34 | B35: 0 | C35: 0 | D35: 0 | E35: 0
A36: 35 | B36: 0 | C36: 0 | D36: 0 | E36: 0
A37: 36 | B37: 0 | C37: 0 | D37: 0 | E37: 0
A38: 37 | B38: 0 | C38: 0 | D38: 0 | E38: 0
A39: 38 | B39: 0 | C39: 0 | D39: 0 | E39: 0
A40: 39 | B40: 0 | C40: 0 | D40: 0 | E40: 0
A41: 40 | B41: 0 | C41: 0 | D41: 0 | E41: 0
A42: 41 | B42: 0 | C42: 0 | D42: 0 | E42: 0
A43: 42 | B43: 0 | C43: 0 | D43: 0 | E43: 0
A44: 43 | B44: 0 | C44: 0 | D44: 0 | E44: 0
A45: 44 | B45: 0 | C45: 0 | D45: 0 | E45: 0
A46: 45 | B46: 0 | C46: 0 | D46: 0 | E46: 0
A47: 46 | B47: 0 | C47: 0 | D47: 0 | E47: 0
C49: =SUM(C2:C48) -> 108429 | D49: =SUM(D2:D48) -> 27716 | E49: =SUM(E2:E48) -> 136145
C50: =SUM(C49/E49) -> 0.7964229314 | D50: =SUM(D49/E49) -> 0.2035770686
C51: NAT | D51: INT

Sheet Classements non-confirmé
B1: Pilotes | C1: NAT | D1: INT | E1: SCRATCH | H1: Passagers | I1: Nat | J1: Inter | K1: Scratch
A2: 1 | B2: DESMAREE Francis | C2: 20260 | D2: 0 | E2: 20260 | G2: 1 | H2: GOUGEUL Sophie | I2: 7483 | J2: 12303 | K2: 19786
A3: 2 | B3: JAMOTTE Jean | C3: 15472 | D3: 1156 | E3: 16628 | G3: 2 | H3: PONT Patricia | I3: 10021 | J3: 0 | K3: 10021
A4: 3 | B4: LESCAL Thierry | C4: 10370 | D4: 0 | E4: 10370 | G4: 3 | H4: LEROY Laure | I4: 3321 | J4: 2203 | K4: 5524
A5: 4 | B5: VAN DER BEETEN Pascal | C5: 10166 | D5: 0 | E5: 10166 | G5: 4 | H5: MISEUR Carine | I5: 5164 | J5: 0 | K5: 5164
A6: 5 | B6: MANZANO Pascal | C6: 8433 | D6: 12303 | E6: 20736 | G6: 5 | H6: DEL FABBRO Laurence | I6: 200 | J6: 1342 | K6: 1542
A7: 6 | B7: WOUTERS Olivier | C7: 7563 | D7: 0 | E7: 7563 | G7: 6 | H7: LAMIROY Anne | I7: 0 | J7: 1056 | K7: 1056
A8: 7 | B8: NIHOUL Dany | C8: 6312 | D8: 0 | E8: 6312 | G8: 7 | H8: DEFAUX Michèle | I8: 884 | J8: 0 | K8: 884
A9: 8 | B9: VANSTEYVOORT André | C9: 5598 | D9: 4000 | E9: 9598 | G9: 8 | H9: GREGORICS Kathy | I9: 360 | J9: 0 | K9: 360
A10: 9 | B10: VANDY Rudi | C10: 5164 | D10: 0 | E10: 5164 | G10: 9 | H10: LAMBILLON Anne | I10: 360 | J10: 0 | K10: 360
A11: 10 | B11: DONY Marc | C11: 4923 | D11: 1220 | E11: 6143 | G11: 10 | H11: BRIATTE Joëlle | I11: 0 | J11: 0 | K11: 0
A12: 11 | B12: FAVRESSSE René | C12: 4499 | D12: 1222 | E12: 5721 | G12: 11 | H12: FIEVET Nathalie | I12: 0 | J12: 0 | K12: 0
A13: 12 | B13: VANBELLINGEN Jean-Claude | C13: 4150 | D13: 2203 | E13: 6353 | G13: 12 | H13: GOFFIN Guillaume | I13: 0 | J13: 0 | K13: 0
A14: 13 | B14: RAMEAU Didier | C14: 3956 | D14: 0 | E14: 3956 | G14: 13 | H14: MALLIEN Emelyne | I14: 0 | J14: 0 | K14: 0
A15: 14 | B15: HINYOT Thierry | C15: 3197 | D15: 0 | E15: 3197 | G15: 14 | H15: PIERARD Anne-Sophie | I15: 0 | J15: 0 | K15: 0
A16: 15 | B16: DAVIN Philippe | C16: 2533 | D16: 1076 | E16: 3609 | G16: 15 | H16: ARENZANA Jennifer | I16: 0 | J16: 0 | K16: 0
A17: 16 | B17: MARIEL Didier | C17: 1859 | D17: 0 | E17: 1859 | G17: 16 | H17: 0 | I17: 0 | J17: 0 | K17: 0
A18: 17 | B18: DEWAERSEGHERS Francis | C18: 1831 | D18: 0 | E18: 1831 | G18: 17 | H18: 0 | I18: 0 | J18: 0 | K18: 0
A19: 18 | B19: LEFRANT Sébastien | C19: 1457 | D19: 0 | E19: 1457 | G19: 18 | H19: 0 | I19: 0 | J19: 0 | K19: 0
A20: 19 | B20: DHONDT Jerry | C20: 1429 | D20: 0 | E20: 1429 | G20: 19 | H20: 0 | I20: 0 | J20: 0 | K20: 0
A21: 20 | B21: BALLION Pierre | C21: 745 | D21: 1124 | E21: 1869 | G21: 20 | H21: 0 | I21: 0 | J21: 0 | K21: 0
A22: 21 | B22: PARMENTIER Dominique | C22: 728 | D22: 0 | E22: 728 | G22: 21 | H22: 0 | I22: 0 | J22: 0 | K22: 0
A23: 22 | B23: MALLIEN Philippe | C23: 624 | D23: 0 | E23: 624 | G23: 22 | H23: 0 | I23: 0 | J23: 0 | K23: 0
A24: 23 | B24: BENET Jean-Pol | C24: 520 | D24: 0 | E24: 520 | G24: 23 | H24: 0 | I24: 0 | J24: 0 | K24: 0
A25: 24 | B25: MILET Benoit | C25: 504 | D25: 1056 | E25: 1560 | G25: 24 | H25: 0 | I25: 0 | J25: 0 | K25: 0
A26: 25 | B26: BERDOYES Yannick | C26: 385 | D26: 0 | E26: 385 | G26: 25 | H26: 0 | I26: 0 | J26: 0 | K26: 0
A27: 26 | B27: THIRIFAYS Vincent | C27: 385 | D27: 0 | E27: 385 | G27: 26 | H27: 0 | I27: 0 | J27: 0 | K27: 0
A28: 27 | B28: BRUNEAU Denis-Claude | C28: 200 | D28: 1342 | E28: 1542 | G28: 27 | H28: 0 | I28: 0 | J28: 0 | K28: 0
A29: 28 | B29: DESCAMPS Geoffrey | C29: 200 | D29: 1250 | E29: 1450 | G29: 28 | H29: 0 | I29: 0 | J29: 0 | K29: 0
A30: 29 | B30: STRYPSTEIN Nicolas | C30: 200 | D30: 2570 | E30: 2770 | G30: 29 | H30: 0 | I30: 0 | J30: 0 | K30: 0
A31: 30 | B31: SMEETS Carine | C31: 160 | D31: 0 | E31: 160 | I31: =SUM(K2:K30) -> 44697 | J31: =SUM(J2:J30) -> 16904 | K31: =SUM(I31:J31) -> 61601
A32: 31 | B32: GOFFIN Amaury | C32: 0 | D32: 0 | E32: 0 | I32: =SUM(I31/K31) -> 0.7255888703 | J32: =SUM(J31/K31) -> 0.2744111297
A33: 32 | B33: LAMBOTTE Didier | C33: 0 | D33: 0 | E33: 0 | I33: NAT | J33: INT
A34: 33 | B34: URBAIN Philippe | C34: 0 | D34: 1194 | E34: 1194
A35: 34 | B35: 0 | C35: 0 | D35: 0 | E35: 0
A36: 35 | B36: 0 | C36: 0 | D36: 0 | E36: 0
A37: 36 | B37: 0 | C37: 0 | D37: 0 | E37: 0
A38: 37 | B38: 0 | C38: 0 | D38: 0 | E38: 0
A39: 38 | B39: 0 | C39: 0 | D39: 0 | E39: 0
A40: 39 | B40: 0 | C40: 0 | D40: 0 | E40: 0
A41: 40 | B41: 0 | C41: 0 | D41: 0 | E41: 0
A42: 41 | B42: 0 | C42: 0 | D42: 0 | E42: 0
A43: 42 | B43: 0 | C43: 0 | D43: 0 | E43: 0
A44: 43 | B44: 0 | C44: 0 | D44: 0 | E44: 0
A45: 44 | B45: 0 | C45: 0 | D45: 0 | E45: 0
A46: 45 | B46: 0 | C46: 0 | D46: 0 | E46: 0
A47: 46 | B47: 0 | C47: 0 | D47: 0 | E47: 0
C49: =SUM(C2:C48) -> 123823 | D49: =SUM(D2:D48) -> 31716 | E49: =SUM(E2:E48) -> 155539
C50: =SUM(C49/E49) -> 0.7960897267 | D50: =SUM(D49/E49) -> 0.2039102733
C51: NAT | D51: INT

Sheet Résumé Pilotes
D1: PILOTES
B4: Aller-Retour | L4: Aller-Retour
B5: Ronde | D5: NATIONAL | G5: INTERNATIONAL | J5: SCRATCH | L5: Ronde | O5: Confirmé | U5: Non-confirmé
E6: TOTAL | H6: TOTAL | K6: TOTAL
A7: 1 | B7: =VLOOKUP(A7,'Numéro licences'!$H$4:$I$47,2) -> BALLION Pierre | C7: Aller-Retour | D7: Km renseignés | E7: =SUM('Pilotes Nat'!CL8) -> 745 | G7: Km renseignés | H7: =SUM('Pilotes Inter'!CX7) -> 1124 | J7: Km renseignés | K7: =SUM(E7+H7) -> 1869 | N7: Colonne1 | O7: Pilotes | P7: NAT | Q7: INT | R7: SCRATCH | U7: Pilotes | V7: NAT | W7: INT | X7: SCRATCH
C8: Ronde | D8: Km confirmés | E8: =SUM('Pilotes Nat'!CL9) -> 360 | G8: Km confirmés | H8: =SUM('Pilotes Inter'!CX8) -> 1124 | J8: Km confirmés | K8: =SUM(E8+H8) -> 1484 | N8: 1 | O8: =VLOOKUP(N8,'Numéro licences'!$H$4:$I$47,2) -> BALLION Pierre | P8: =SUM(E8) -> 360 | Q8: =SUM(H8) -> 1124 | R8: =SUM(P8:Q8) -> 1484 | T8: 1 | U8: =VLOOKUP(T8,'Numéro licences'!$H$4:$I$47,2) -> BALLION Pierre | V8: =SUM(E7) -> 745 | W8: =SUM(H7) -> 1124 | X8: =SUM(V8:W8) -> 1869
D9: Rondes confirmées | E9: =SUM('Pilotes Nat'!CL10) -> 2 | G9: Rondes confirmées | H9: =SUM('Pilotes Inter'!CX9) -> 1 | J9: Rondes confirmées | K9: 3 | N9: 2 | O9: =VLOOKUP(N9,'Numéro licences'!$H$4:$I$47,2) -> BENET Jean-Pol | P9: =SUM(E12) -> 0 | Q9: =SUM(H12) -> 0 | R9: 0 | T9: 2 | U9: =VLOOKUP(T9,'Numéro licences'!$H$4:$I$47,2) -> BENET Jean-Pol | V9: =SUM(E11) -> 520 | W9: =SUM(H11) -> 0 | X9: =SUM(V9:W9) -> 520
D10: Rondes effectuées | E10: =SUM('Pilotes Nat'!CL11) -> 1 | G10: Rondes effectuées | H10: =SUM('Pilotes Inter'!CX10) -> 1 | J10: Rondes effectuées | K10: 2 | N10: 3 | O10: =VLOOKUP(N10,'Numéro licences'!$H$4:$I$47,2) -> BERDOYES Yannick | P10: =SUM(E16) -> 0 | Q10: =SUM(H16) -> 0 | R10: 0 | T10: 3 | U10: =VLOOKUP(T10,'Numéro licences'!$H$4:$I$47,2) -> BERDOYES Yannick | V10: =SUM(E15) -> 385 | W10: =SUM(H15) -> 0 | X10: 385
A11: 2 | B11: =VLOOKUP(A11,'Numéro licences'!$H$4:$I$47,2) -> BENET Jean-Pol | C11: Aller-Retour | D11: Km renseignés | E11: =SUM('Pilotes Nat'!CL12) -> 520 | G11: Km renseignés | H11: =SUM('Pilotes Inter'!CX11) -> 0 | J11: Km renseignés | K11: 520 | N11: 4 | O11: =VLOOKUP(N11,'Numéro licences'!$H$4:$I$47,2) -> BRUNEAU Denis-Claude | P11: =SUM(E20) -> 200 | Q11: =SUM(H20) -> 1342 | R11: 1542 | T11: 4 | U11: =VLOOKUP(T11,'Numéro licences'!$H$4:$I$47,2) -> BRUNEAU Denis-Claude | V11: =SUM(E19) -> 200 | W11: =SUM(H19) -> 1342 | X11: 1542
C12: Ronde | D12: Km confirmés | E12: =SUM('Pilotes Nat'!CL13) -> 0 | G12: Km confirmés | H12: =SUM('Pilotes Inter'!CX12) -> 0 | J12: Km confirmés | K12: 0 | N12: 5 | O12: =VLOOKUP(N12,'Numéro licences'!$H$4:$I$47,2) -> DAVIN Philippe | P12: =SUM(E24) -> 2533 | Q12: =SUM(H24) -> 1076 | R12: 3609 | T12: 5 | U12: =VLOOKUP(T12,'Numéro licences'!$H$4:$I$47,2) -> DAVIN Philippe | V12: =SUM(E23) -> 2533 | W12: =SUM(H23) -> 1076 | X12: 3609
D13: Rondes confirmées | E13: =SUM('Pilotes Nat'!CL14) -> 0 | G13: Rondes confirmées | H13: =SUM('Pilotes Inter'!CX13) -> 0 | J13: Rondes confirmées | K13: 0 | N13: 6 | O13: =VLOOKUP(N13,'Numéro licences'!$H$4:$I$47,2) -> DESCAMPS Geoffrey | P13: =SUM(E28) -> 200 | Q13: =SUM(H28) -> 1250 | R13: 1450 | T13: 6 | U13: =VLOOKUP(T13,'Numéro licences'!$H$4:$I$47,2) -> DESCAMPS Geoffrey | V13: =SUM(E27) -> 200 | W13: =SUM(H27) -> 1250 | X13: 1450
D14: Rondes effectuées | E14: =SUM('Pilotes Nat'!CL15) -> 2 | G14: Rondes effectuées | H14: =SUM('Pilotes Inter'!CX14) -> 0 | J14: Rondes effectuées | K14: 2 | N14: 7 | O14: =VLOOKUP(N14,'Numéro licences'!$H$4:$I$47,2) -> DESMAREE Francis | P14: =SUM(E32) -> 20260 | Q14: =SUM(H32) -> 0 | R14: 20260 | T14: 7 | U14: =VLOOKUP(T14,'Numéro licences'!$H$4:$I$47,2) -> DESMAREE Francis | V14: =SUM(E31) -> 20260 | W14: =SUM(H31) -> 0 | X14: 20260
A15: 3 | B15: =VLOOKUP(A15,'Numéro licences'!$H$4:$I$47,2) -> BERDOYES Yannick | C15: Aller-Retour | D15: Km renseignés | E15: =SUM('Pilotes Nat'!CL16) -> 385 | G15: Km renseignés | H15: =SUM('Pilotes Inter'!CX15) -> 0 | J15: Km renseignés | K15: 385 | N15: 8 | O15: =VLOOKUP(N15,'Numéro licences'!$H$4:$I$47,2) -> DEWAERSEGHERS Francis | P15: =SUM(E36) -> 1543 | Q15: =SUM(H36) -> 0 | R15: 1543 | T15: 8 | U15: =VLOOKUP(T15,'Numéro licences'!$H$4:$I$47,2) -> DEWAERSEGHERS Francis | V15: =SUM(E35) -> 1831 | W15: =SUM(H35) -> 0 | X15: 1831
C16: Ronde | D16: Km confirmés | E16: =SUM('Pilotes Nat'!CL17) -> 0 | G16: Km confirmés | H16: =SUM('Pilotes Inter'!CX16) -> 0 | J16: Km confirmés | K16: 0 | N16: 9 | O16: =VLOOKUP(N16,'Numéro licences'!$H$4:$I$47,2) -> DHONDT Jerry | P16: =SUM(E40) -> 0 | Q16: =SUM(H40) -> 0 | R16: 0 | T16: 9 | U16: =VLOOKUP(T16,'Numéro licences'!$H$4:$I$47,2) -> DHONDT Jerry | V16: =SUM(E39) -> 1429 | W16: =SUM(H39) -> 0 | X16: 1429
D17: Rondes confirmées | E17: =SUM('Pilotes Nat'!CL18) -> 0 | G17: Rondes confirmées | H17: =SUM('Pilotes Inter'!CX17) -> 0 | J17: Rondes confirmées | K17: 0 | N17: 10 | O17: =VLOOKUP(N17,'Numéro licences'!$H$4:$I$47,2) -> DONY Marc | P17: =SUM(E44) -> 360 | Q17: =SUM(H44) -> 1220 | R17: 1580 | T17: 10 | U17: =VLOOKUP(T17,'Numéro licences'!$H$4:$I$47,2) -> DONY Marc | V17: =SUM(E43) -> 4923 | W17: =SUM(H43) -> 1220 | X17: 6143
D18: Rondes effectuées | E18: =SUM('Pilotes Nat'!CL19) -> 1 | G18: Rondes effectuées | H18: =SUM('Pilotes Inter'!CX18) -> 0 | J18: Rondes effectuées | K18: 1 | N18: 11 | O18: =VLOOKUP(N18,'Numéro licences'!$H$4:$I$47,2) -> FAVRESSSE René | P18: =SUM(E48) -> 4499 | Q18: =SUM(H48) -> 1222 | R18: 5721 | T18: 11 | U18: =VLOOKUP(T18,'Numéro licences'!$H$4:$I$47,2) -> FAVRESSSE René | V18: =SUM(E47) -> 4499 | W18: =SUM(H47) -> 1222 | X18: 5721
A19: 4 | B19: =VLOOKUP(A19,'Numéro licences'!$H$4:$I$47,2) -> BRUNEAU Denis-Claude | C19: Aller-Retour | D19: Km renseignés | E19: =SUM('Pilotes Nat'!CL20) -> 200 | G19: Km renseignés | H19: =SUM('Pilotes Inter'!CX19) -> 1342 | J19: Km renseignés | K19: 1542 | N19: 12 | O19: =VLOOKUP(N19,'Numéro licences'!$H$4:$I$47,2) -> GOFFIN Amaury | P19: =SUM(E52) -> 0 | Q19: =SUM(H52) -> 0 | R19: 0 | T19: 12 | U19: =VLOOKUP(T19,'Numéro licences'!$H$4:$I$47,2) -> GOFFIN Amaury | V19: =SUM(E51) -> 0 | W19: =SUM(H51) -> 0 | X19: 0
C20: Ronde | D20: Km confirmés | E20: =SUM('Pilotes Nat'!CL21) -> 200 | G20: Km confirmés | H20: =SUM('Pilotes Inter'!CX20) -> 1342 | J20: Km confirmés | K20: 1542 | N20: 13 | O20: =VLOOKUP(N20,'Numéro licences'!$H$4:$I$47,2) -> HINYOT Thierry | P20: =SUM(E56) -> 3197 | Q20: =SUM(H56) -> 0 | R20: 3197 | T20: 13 | U20: =VLOOKUP(T20,'Numéro licences'!$H$4:$I$47,2) -> HINYOT Thierry | V20: =SUM(E55) -> 3197 | W20: =SUM(H55) -> 0 | X20: 3197
D21: Rondes confirmées | E21: =SUM('Pilotes Nat'!CL22) -> 1 | G21: Rondes confirmées | H21: =SUM('Pilotes Inter'!CX21) -> 1 | J21: Rondes confirmées | K21: 2 | N21: 14 | O21: =VLOOKUP(N21,'Numéro licences'!$H$4:$I$47,2) -> JAMOTTE Jean | P21: =SUM(E60) -> 15472 | Q21: =SUM(H60) -> 1156 | R21: 16628 | T21: 14 | U21: =VLOOKUP(T21,'Numéro licences'!$H$4:$I$47,2) -> JAMOTTE Jean | V21: =SUM(E59) -> 15472 | W21: =SUM(H59) -> 1156 | X21: 16628
D22: Rondes effectuées | E22: =SUM('Pilotes Nat'!CL23) -> 0 | G22: Rondes effectuées | H22: =SUM('Pilotes Inter'!CX22) -> 1 | J22: Rondes effectuées | K22: 1 | N22: 15 | O22: =VLOOKUP(N22,'Numéro licences'!$H$4:$I$47,2) -> LAMBOTTE Didier | P22: =SUM(E64) -> 0 | Q22: =SUM(H64) -> 0 | R22: 0 | T22: 15 | U22: =VLOOKUP(T22,'Numéro licences'!$H$4:$I$47,2) -> LAMBOTTE Didier | V22: =SUM(E63) -> 0 | W22: =SUM(H63) -> 0 | X22: 0
A23: 5 | B23: =VLOOKUP(A23,'Numéro licences'!$H$4:$I$47,2) -> DAVIN Philippe | C23: Aller-Retour | D23: Km renseignés | E23: =SUM('Pilotes Nat'!CL24) -> 2533 | G23: Km renseignés | H23: =SUM('Pilotes Inter'!CX23) -> 1076 | J23: Km renseignés | K23: 3609 | N23: 16 | O23: =VLOOKUP(N23,'Numéro licences'!$H$4:$I$47,2) -> LESCAL Thierry | P23: =SUM(E68) -> 10370 | Q23: =SUM(H68) -> 0 | R23: 10370 | T23: 16 | U23: =VLOOKUP(T23,'Numéro licences'!$H$4:$I$47,2) -> LESCAL Thierry | V23: =SUM(E67) -> 10370 | W23: =SUM(H67) -> 0 | X23: 10370
C24: Ronde | D24: Km confirmés | E24: =SUM('Pilotes Nat'!CL25) -> 2533 | G24: Km confirmés | H24: =SUM('Pilotes Inter'!CX24) -> 1076 | J24: Km confirmés | K24: 3609 | N24: 17 | O24: =VLOOKUP(N24,'Numéro licences'!$H$4:$I$47,2) -> MALLIEN Philippe | P24: =SUM(E72) -> 360 | Q24: =SUM(H72) -> 0 | R24: 360 | T24: 17 | U24: =VLOOKUP(T24,'Numéro licences'!$H$4:$I$47,2) -> MALLIEN Philippe | V24: =SUM(E71) -> 624 | W24: =SUM(H71) -> 0 | X24: 624
D25: Rondes confirmées | E25: =SUM('Pilotes Nat'!CL26) -> 11 | G25: Rondes confirmées | H25: =SUM('Pilotes Inter'!CX25) -> 1 | J25: Rondes confirmées | K25: 12 | N25: 18 | O25: =VLOOKUP(N25,'Numéro licences'!$H$4:$I$47,2) -> MANZANO Pascal | P25: =SUM(E76) -> 8113 | Q25: =SUM(H76) -> 12303 | R25: 20416 | T25: 18 | U25: =VLOOKUP(T25,'Numéro licences'!$H$4:$I$47,2) -> MANZANO Pascal | V25: =SUM(E75) -> 8433 | W25: =SUM(H75) -> 12303 | X25: 20736
D26: Rondes effectuées | E26: =SUM('Pilotes Nat'!CL27) -> 9 | G26: Rondes effectuées | H26: =SUM('Pilotes Inter'!CX26) -> 1 | J26: Rondes effectuées | K26: 10 | N26: 19 | O26: =VLOOKUP(N26,'Numéro licences'!$H$4:$I$47,2) -> MARIEL Didier | P26: =SUM(E80) -> 1859 | Q26: =SUM(H80) -> 0 | R26: 1859 | T26: 19 | U26: =VLOOKUP(T26,'Numéro licences'!$H$4:$I$47,2) -> MARIEL Didier | V26: =SUM(E79) -> 1859 | W26: =SUM(H79) -> 0 | X26: 1859
A27: 6 | B27: =VLOOKUP(A27,'Numéro licences'!$H$4:$I$47,2) -> DESCAMPS Geoffrey | C27: Aller-Retour | D27: Km renseignés | E27: =SUM('Pilotes Nat'!CL28) -> 200 | G27: Km renseignés | H27: =SUM('Pilotes Inter'!CX27) -> 1250 | J27: Km renseignés | K27: 1450 | N27: 20 | O27: =VLOOKUP(N27,'Numéro licences'!$H$4:$I$47,2) -> MILET Benoit | P27: =SUM(E84) -> 504 | Q27: =SUM(H84) -> 1056 | R27: 1560 | T27: 20 | U27: =VLOOKUP(T27,'Numéro licences'!$H$4:$I$47,2) -> MILET Benoit | V27: =SUM(E83) -> 504 | W27: =SUM(H83) -> 1056 | X27: 1560
C28: Ronde | D28: Km confirmés | E28: =SUM('Pilotes Nat'!CL29) -> 200 | G28: Km confirmés | H28: =SUM('Pilotes Inter'!CX28) -> 1250 | J28: Km confirmés | K28: 1450 | N28: 21 | O28: =VLOOKUP(N28,'Numéro licences'!$H$4:$I$47,2) -> NIHOUL Dany | P28: =SUM(E88) -> 6312 | Q28: =SUM(H88) -> 0 | R28: 6312 | T28: 21 | U28: =VLOOKUP(T28,'Numéro licences'!$H$4:$I$47,2) -> NIHOUL Dany | V28: =SUM(E87) -> 6312 | W28: =SUM(H87) -> 0 | X28: 6312
D29: Rondes confirmées | E29: =SUM('Pilotes Nat'!CL30) -> 1 | G29: Rondes confirmées | H29: =SUM('Pilotes Inter'!CX29) -> 1 | J29: Rondes confirmées | K29: 2 | N29: 22 | O29: =VLOOKUP(N29,'Numéro licences'!$H$4:$I$47,2) -> PARMENTIER Dominique | P29: =SUM(E92) -> 728 | Q29: =SUM(H92) -> 0 | R29: 728 | T29: 22 | U29: =VLOOKUP(T29,'Numéro licences'!$H$4:$I$47,2) -> PARMENTIER Dominique | V29: =SUM(E91) -> 728 | W29: =SUM(H91) -> 0 | X29: 728
D30: Rondes effectuées | E30: =SUM('Pilotes Nat'!CL31) -> 0 | G30: Rondes effectuées | H30: =SUM('Pilotes Inter'!CX30) -> 1 | J30: Rondes effectuées | K30: 1 | N30: 23 | O30: =VLOOKUP(N30,'Numéro licences'!$H$4:$I$47,2) -> RAMEAU Didier | P30: =SUM(E96) -> 3956 | Q30: =SUM(H96) -> 0 | R30: 3956 | T30: 23 | U30: =VLOOKUP(T30,'Numéro licences'!$H$4:$I$47,2) -> RAMEAU Didier | V30: =SUM(E95) -> 3956 | W30: =SUM(H95) -> 0 | X30: 3956
A31: 7 | B31: =VLOOKUP(A31,'Numéro licences'!$H$4:$I$47,2) -> DESMAREE Francis | C31: Aller-Retour | D31: Km renseignés | E31: =SUM('Pilotes Nat'!CL32) -> 20260 | G31: Km renseignés | H31: =SUM('Pilotes Inter'!CX31) -> 0 | J31: Km renseignés | K31: 20260 | N31: 24 | O31: =VLOOKUP(N31,'Numéro licences'!$H$4:$I$47,2) -> SMEETS Carine | P31: =SUM(E100) -> 160 | Q31: =SUM(H100) -> 0 | R31: 160 | T31: 24 | U31: =VLOOKUP(T31,'Numéro licences'!$H$4:$I$47,2) -> SMEETS Carine | V31: =SUM(E99) -> 160 | W31: =SUM(H99) -> 0 | X31: 160
C32: Ronde | D32: Km confirmés | E32: =SUM('Pilotes Nat'!CL33) -> 20260 | G32: Km confirmés | H32: =SUM('Pilotes Inter'!CX32) -> 0 | J32: Km confirmés | K32: 20260 | N32: 25 | O32: =VLOOKUP(N32,'Numéro licences'!$H$4:$I$47,2) -> STRYPSTEIN Nicolas | P32: =SUM(E104) -> 200 | Q32: =SUM(H104) -> 2570 | R32: 2770 | T32: 25 | U32: =VLOOKUP(T32,'Numéro licences'!$H$4:$I$47,2) -> STRYPSTEIN Nicolas | V32: =SUM(E103) -> 200 | W32: =SUM(H103) -> 2570 | X32: 2770
D33: Rondes confirmées | E33: =SUM('Pilotes Nat'!CL34) -> 56 | G33: Rondes confirmées | H33: =SUM('Pilotes Inter'!CX33) -> 0 | J33: Rondes confirmées | K33: 56 | N33: 26 | O33: =VLOOKUP(N33,'Numéro licences'!$H$4:$I$47,2) -> URBAIN Philippe | P33: =SUM(E108) -> 0 | Q33: =SUM(H108) -> 1194 | R33: 1194 | T33: 26 | U33: =VLOOKUP(T33,'Numéro licences'!$H$4:$I$47,2) -> URBAIN Philippe | V33: =SUM(E107) -> 0 | W33: =SUM(H107) -> 1194 | X33: 1194
D34: Rondes effectuées | E34: =SUM('Pilotes Nat'!CL35) -> 54 | G34: Rondes effectuées | H34: =SUM('Pilotes Inter'!CX34) -> 0 | J34: Rondes effectuées | K34: 54 | N34: 27 | O34: =VLOOKUP(N34,'Numéro licences'!$H$4:$I$47,2) -> VANBELLINGEN Jean-Claude | P34: =SUM(E112) -> 4150 | Q34: =SUM(H112) -> 2203 | R34: 6353 | T34: 27 | U34: =VLOOKUP(T34,'Numéro licences'!$H$4:$I$47,2) -> VANBELLINGEN Jean-Claude | V34: =SUM(E111) -> 4150 | W34: =SUM(H111) -> 2203 | X34: 6353
A35: 8 | B35: =VLOOKUP(A35,'Numéro licences'!$H$4:$I$47,2) -> DEWAERSEGHERS Francis | C35: Aller-Retour | D35: Km renseignés | E35: =SUM('Pilotes Nat'!CL36) -> 1831 | G35: Km renseignés | H35: =SUM('Pilotes Inter'!CX35) -> 0 | J35: Km renseignés | K35: 1831 | N35: 28 | O35: =VLOOKUP(N35,'Numéro licences'!$H$4:$I$47,2) -> VAN DER BEETEN Pascal | P35: =SUM(E116) -> 10166 | Q35: =SUM(H116) -> 0 | R35: 10166 | T35: 28 | U35: =VLOOKUP(T35,'Numéro licences'!$H$4:$I$47,2) -> VAN DER BEETEN Pascal | V35: =SUM(E115) -> 10166 | W35: =SUM(H115) -> 0 | X35: 10166
C36: Ronde | D36: Km confirmés | E36: =SUM('Pilotes Nat'!CL37) -> 1543 | G36: Km confirmés | H36: =SUM('Pilotes Inter'!CX36) -> 0 | J36: Km confirmés | K36: 1543 | N36: 29 | O36: =VLOOKUP(N36,'Numéro licences'!$H$4:$I$47,2) -> VANSTEYVOORT André | P36: =SUM(E120) -> 200 | Q36: =SUM(H120) -> 0 | R36: 200 | T36: 29 | U36: =VLOOKUP(T36,'Numéro licences'!$H$4:$I$47,2) -> VANSTEYVOORT André | V36: =SUM(E119) -> 5598 | W36: =SUM(H119) -> 4000 | X36: 9598
D37: Rondes confirmées | E37: =SUM('Pilotes Nat'!CL38) -> 5 | G37: Rondes confirmées | H37: =SUM('Pilotes Inter'!CX37) -> 0 | J37: Rondes confirmées | K37: 5 | N37: 30 | O37: =VLOOKUP(N37,'Numéro licences'!$H$4:$I$47,2) -> WOUTERS Olivier | P37: =SUM(E124) -> 7563 | Q37: =SUM(H124) -> 0 | R37: 7563 | T37: 30 | U37: =VLOOKUP(T37,'Numéro licences'!$H$4:$I$47,2) -> WOUTERS Olivier | V37: =SUM(E123) -> 7563 | W37: =SUM(H123) -> 0 | X37: 7563
D38: Rondes effectuées | E38: =SUM('Pilotes Nat'!CL39) -> 6 | G38: Rondes effectuées | H38: =SUM('Pilotes Inter'!CX38) -> 0 | J38: Rondes effectuées | K38: 6 | N38: 31 | O38: =VLOOKUP(N38,'Numéro licences'!$H$4:$I$47,2) -> THIRIFAYS Vincent | P38: =SUM(E128) -> 0 | Q38: =SUM(H128) -> 0 | R38: 0 | T38: 31 | U38: =VLOOKUP(T38,'Numéro licences'!$H$4:$I$47,2) -> THIRIFAYS Vincent | V38: =SUM(E127) -> 385 | W38: =SUM(H127) -> 0 | X38: 385
A39: 9 | B39: =VLOOKUP(A39,'Numéro licences'!$H$4:$I$47,2) -> DHONDT Jerry | C39: Aller-Retour | D39: Km renseignés | E39: =SUM('Pilotes Nat'!CL40) -> 1429 | G39: Km renseignés | H39: =SUM('Pilotes Inter'!CX39) -> 0 | J39: Km renseignés | K39: 1429 | N39: 32 | O39: =VLOOKUP(N39,'Numéro licences'!$H$4:$I$47,2) -> VANDY Rudi | P39: =SUM(E132) -> 5164 | Q39: =SUM(H132) -> 0 | R39: 5164 | T39: 32 | U39: =VLOOKUP(T39,'Numéro licences'!$H$4:$I$47,2) -> VANDY Rudi | V39: =SUM(E131) -> 5164 | W39: =SUM(H131) -> 0 | X39: 5164
C40: Ronde | D40: Km confirmés | E40: =SUM('Pilotes Nat'!CL41) -> 0 | G40: Km confirmés | H40: =SUM('Pilotes Inter'!CX40) -> 0 | J40: Km confirmés | K40: 0 | N40: 33 | O40: =VLOOKUP(N40,'Numéro licences'!$H$4:$I$47,2) -> LEFRANT Sébastien | P40: =SUM(E136) -> 0 | Q40: =SUM(H136) -> 0 | R40: 0 | T40: 33 | U40: =VLOOKUP(T40,'Numéro licences'!$H$4:$I$47,2) -> LEFRANT Sébastien | V40: =SUM(E135) -> 1457 | W40: =SUM(H135) -> 0 | X40: 1457
D41: Rondes confirmées | E41: =SUM('Pilotes Nat'!CL42) -> 0 | G41: Rondes confirmées | H41: =SUM('Pilotes Inter'!CX41) -> 0 | J41: Rondes confirmées | K41: 0 | N41: 34 | O41: =VLOOKUP(N41,'Numéro licences'!$H$4:$I$47,2) -> 0 | P41: =SUM(E140) -> 0 | Q41: =SUM(H140) -> 0 | R41: 0 | T41: 34 | U41: =VLOOKUP(T41,'Numéro licences'!$H$4:$I$47,2) -> 0 | V41: =SUM(E139) -> 0 | W41: =SUM(H139) -> 0 | X41: 0
D42: Rondes effectuées | E42: =SUM('Pilotes Nat'!CL43) -> 5 | G42: Rondes effectuées | H42: =SUM('Pilotes Inter'!CX42) -> 0 | J42: Rondes effectuées | K42: 5 | N42: 35 | O42: =VLOOKUP(N42,'Numéro licences'!$H$4:$I$47,2) -> 0 | P42: =SUM(E144) -> 0 | Q42: =SUM(H144) -> 0 | R42: 0 | T42: 35 | U42: =VLOOKUP(T42,'Numéro licences'!$H$4:$I$47,2) -> 0 | V42: =SUM(E143) -> 0 | W42: =SUM(H143) -> 0 | X42: 0
A43: 10 | B43: =VLOOKUP(A43,'Numéro licences'!$H$4:$I$47,2) -> DONY Marc | C43: Aller-Retour | D43: Km renseignés | E43: =SUM('Pilotes Nat'!CL44) -> 4923 | G43: Km renseignés | H43: =SUM('Pilotes Inter'!CX43) -> 1220 | J43: Km renseignés | K43: 6143 | N43: 36 | O43: =VLOOKUP(N43,'Numéro licences'!$H$4:$I$47,2) -> 0 | P43: =SUM(E148) -> 0 | Q43: =SUM(H148) -> 0 | R43: 0 | T43: 36 | U43: =VLOOKUP(T43,'Numéro licences'!$H$4:$I$47,2) -> 0 | V43: =SUM(E147) -> 0 | W43: =SUM(H147) -> 0 | X43: 0
C44: Ronde | D44: Km confirmés | E44: =SUM('Pilotes Nat'!CL45) -> 360 | G44: Km confirmés | H44: =SUM('Pilotes Inter'!CX44) -> 1220 | J44: Km confirmés | K44: 1580 | N44: 37 | O44: =VLOOKUP(N44,'Numéro licences'!$H$4:$I$47,2) -> 0 | P44: =SUM(E152) -> 0 | Q44: =SUM(H152) -> 0 | R44: 0 | T44: 37 | U44: =VLOOKUP(T44,'Numéro licences'!$H$4:$I$47,2) -> 0 | V44: =SUM(E151) -> 0 | W44: =SUM(H151) -> 0 | X44: 0
D45: Rondes confirmées | E45: =SUM('Pilotes Nat'!CL46) -> 2 | G45: Rondes confirmées | H45: =SUM('Pilotes Inter'!CX45) -> 1 | J45: Rondes confirmées | K45: 3 | N45: 38 | O45: =VLOOKUP(N45,'Numéro licences'!$H$4:$I$47,2) -> 0 | P45: =SUM(E156) -> 0 | Q45: =SUM(H156) -> 0 | R45: 0 | T45: 38 | U45: =VLOOKUP(T45,'Numéro licences'!$H$4:$I$47,2) -> 0 | V45: =SUM(E155) -> 0 | W45: =SUM(H155) -> 0 | X45: 0
D46: Rondes effectuées | E46: =SUM('Pilotes Nat'!CL47) -> 15 | G46: Rondes effectuées | H46: =SUM('Pilotes Inter'!CX46) -> 1 | J46: Rondes effectuées | K46: 16 | N46: 39 | O46: =VLOOKUP(N46,'Numéro licences'!$H$4:$I$47,2) -> 0 | P46: =SUM(E160) -> 0 | Q46: =SUM(H160) -> 0 | R46: 0 | T46: 39 | U46: =VLOOKUP(T46,'Numéro licences'!$H$4:$I$47,2) -> 0 | V46: =SUM(E159) -> 0 | W46: =SUM(H159) -> 0 | X46: 0
A47: 11 | B47: =VLOOKUP(A47,'Numéro licences'!$H$4:$I$47,2) -> FAVRESSSE René | C47: Aller-Retour | D47: Km renseignés | E47: =SUM('Pilotes Nat'!CL48) -> 4499 | G47: Km renseignés | H47: =SUM('Pilotes Inter'!CX47) -> 1222 | J47: Km renseignés | K47: 5721 | N47: 40 | O47: =VLOOKUP(N47,'Numéro licences'!$H$4:$I$47,2) -> 0 | P47: =SUM(E164) -> 0 | Q47: =SUM(H164) -> 0 | R47: 0 | T47: 40 | U47: =VLOOKUP(T47,'Numéro licences'!$H$4:$I$47,2) -> 0 | V47: =SUM(E163) -> 0 | W47: =SUM(H163) -> 0 | X47: 0
C48: Ronde | D48: Km confirmés | E48: =SUM('Pilotes Nat'!CL49) -> 4499 | G48: Km confirmés | H48: =SUM('Pilotes Inter'!CX48) -> 1222 | J48: Km confirmés | K48: 5721 | N48: 41 | O48: =VLOOKUP(N48,'Numéro licences'!$H$4:$I$47,2) -> 0 | P48: =SUM(E168) -> 0 | Q48: =SUM(H168) -> 0 | R48: 0 | T48: 41 | U48: =VLOOKUP(T48,'Numéro licences'!$H$4:$I$47,2) -> 0 | V48: =SUM(E167) -> 0 | W48: =SUM(H167) -> 0 | X48: 0
D49: Rondes confirmées | E49: =SUM('Pilotes Nat'!CL50) -> 15 | G49: Rondes confirmées | H49: =SUM('Pilotes Inter'!CX49) -> 1 | J49: Rondes confirmées | K49: 16 | N49: 42 | O49: =VLOOKUP(N49,'Numéro licences'!$H$4:$I$47,2) -> 0 | P49: =SUM(E172) -> 0 | Q49: =SUM(H172) -> 0 | R49: 0 | T49: 42 | U49: =VLOOKUP(T49,'Numéro licences'!$H$4:$I$47,2) -> 0 | V49: =SUM(E171) -> 0 | W49: =SUM(H171) -> 0 | X49: 0
D50: Rondes effectuées | E50: =SUM('Pilotes Nat'!CL51) -> 13 | G50: Rondes effectuées | H50: =SUM('Pilotes Inter'!CX50) -> 1 | J50: Rondes effectuées | K50: 14 | N50: 43 | O50: =VLOOKUP(N50,'Numéro licences'!$H$4:$I$47,2) -> 0 | P50: =SUM(E176) -> 0 | Q50: =SUM(H176) -> 0 | R50: 0 | T50: 43 | U50: =VLOOKUP(T50,'Numéro licences'!$H$4:$I$47,2) -> 0 | V50: =SUM(E175) -> 0 | W50: =SUM(H175) -> 0 | X50: 0
A51: 12 | B51: =VLOOKUP(A51,'Numéro licences'!$H$4:$I$47,2) -> GOFFIN Amaury | C51: Aller-Retour | D51: Km renseignés | E51: =SUM('Pilotes Nat'!CL52) -> 0 | G51: Km renseignés | H51: =SUM('Pilotes Inter'!CX51) -> 0 | J51: Km renseignés | K51: 0 | N51: 44 | O51: =VLOOKUP(N51,'Numéro licences'!$H$4:$I$47,2) -> 0 | P51: =SUM(E180) -> 0 | Q51: =SUM(H180) -> 0 | R51: 0 | T51: 44 | U51: =VLOOKUP(T51,'Numéro licences'!$H$4:$I$47,2) -> 0 | V51: =SUM(E179) -> 0 | W51: =SUM(H179) -> 0 | X51: 0
C52: Ronde | D52: Km confirmés | E52: =SUM('Pilotes Nat'!CL53) -> 0 | G52: Km confirmés | H52: =SUM('Pilotes Inter'!CX52) -> 0 | J52: Km confirmés | K52: 0 | N52: 45 | O52: =VLOOKUP(N52,'Numéro licences'!$H$4:$I$47,2) -> 0 | P52: =SUM(E184) -> 0 | Q52: =SUM(H184) -> 0 | R52: 0 | T52: 45 | U52: =VLOOKUP(T52,'Numéro licences'!$H$4:$I$47,2) -> 0 | V52: =SUM(E183) -> 0 | W52: =SUM(H183) -> 0 | X52: 0
D53: Rondes confirmées | E53: =SUM('Pilotes Nat'!CL54) -> 0 | G53: Rondes confirmées | H53: =SUM('Pilotes Inter'!CX53) -> 0 | J53: Rondes confirmées | K53: 0 | N53: 46 | O53: =VLOOKUP(N53,'Numéro licences'!$H$4:$I$47,2) -> 0 | P53: =SUM(E188) -> 0 | Q53: =SUM(H188) -> 0 | R53: 0 | T53: 46 | U53: =VLOOKUP(T53,'Numéro licences'!$H$4:$I$47,2) -> 0 | V53: =SUM(E187) -> 0 | W53: =SUM(H187) -> 0 | X53: 0
D54: Rondes effectuées | E54: =SUM('Pilotes Nat'!CL55) -> 0 | G54: Rondes effectuées | H54: =SUM('Pilotes Inter'!CX54) -> 0 | J54: Rondes effectuées | K54: 0
A55: 13 | B55: =VLOOKUP(A55,'Numéro licences'!$H$4:$I$47,2) -> HINYOT Thierry | C55: Aller-Retour | D55: Km renseignés | E55: =SUM('Pilotes Nat'!CL56) -> 3197 | G55: Km renseignés | H55: =SUM('Pilotes Inter'!CX55) -> 0 | J55: Km renseignés | K55: 3197
C56: Ronde | D56: Km confirmés | E56: =SUM('Pilotes Nat'!CL57) -> 3197 | G56: Km confirmés | H56: =SUM('Pilotes Inter'!CX56) -> 0 | J56: Km confirmés | K56: 3197
D57: Rondes confirmées | E57: =SUM('Pilotes Nat'!CL58) -> 12 | G57: Rondes confirmées | H57: =SUM('Pilotes Inter'!CX57) -> 0 | J57: Rondes confirmées | K57: 12
D58: Rondes effectuées | E58: =SUM('Pilotes Nat'!CL59) -> 11 | G58: Rondes effectuées | H58: =SUM('Pilotes Inter'!CX58) -> 0 | J58: Rondes effectuées | K58: 11
A59: 14 | B59: =VLOOKUP(A59,'Numéro licences'!$H$4:$I$47,2) -> JAMOTTE Jean | C59: Aller-Retour | D59: Km renseignés | E59: =SUM('Pilotes Nat'!CL60) -> 15472 | G59: Km renseignés | H59: =SUM('Pilotes Inter'!CX59) -> 1156 | J59: Km renseignés | K59: 16628 | P59: =SUM(P8:P53) -> 108429 | Q59: =SUM(Q8:Q53) -> 27716 | R59: =SUM(P59:Q59) -> 136145 | V59: =SUM(V8:V53) -> 123823 | W59: =SUM(W8:W53) -> 31716 | X59: =SUM(V59:W59) -> 155539
C60: Ronde | D60: Km confirmés | E60: =SUM('Pilotes Nat'!CL61) -> 15472 | G60: Km confirmés | H60: =SUM('Pilotes Inter'!CX60) -> 1156 | J60: Km confirmés | K60: 16628 | P60: =SUM(P59/R59) -> 0.7964229314 | Q60: =SUM(Q59/R59) -> 0.2035770686 | V60: =SUM(V59/X59) -> 0.7960897267 | W60: =SUM(W59/X59) -> 0.2039102733
D61: Rondes confirmées | E61: =SUM('Pilotes Nat'!CL62) -> 43 | G61: Rondes confirmées | H61: =SUM('Pilotes Inter'!CX61) -> 1 | J61: Rondes confirmées | K61: 44 | P61: NAT | Q61: INT | V61: NAT | W61: INT
D62: Rondes effectuées | E62: =SUM('Pilotes Nat'!CL63) -> 41 | G62: Rondes effectuées | H62: =SUM('Pilotes Inter'!CX62) -> 1 | J62: Rondes effectuées | K62: 42
A63: 15 | B63: =VLOOKUP(A63,'Numéro licences'!$H$4:$I$47,2) -> LAMBOTTE Didier | C63: Aller-Retour | D63: Km renseignés | E63: =SUM('Pilotes Nat'!CL64) -> 0 | G63: Km renseignés | H63: =SUM('Pilotes Inter'!CX63) -> 0 | J63: Km renseignés | K63: 0
C64: Ronde | D64: Km confirmés | E64: =SUM('Pilotes Nat'!CL65) -> 0 | G64: Km confirmés | H64: =SUM('Pilotes Inter'!CX64) -> 0 | J64: Km confirmés | K64: 0
D65: Rondes confirmées | E65: =SUM('Pilotes Nat'!CL66) -> 0 | G65: Rondes confirmées | H65: =SUM('Pilotes Inter'!CX65) -> 0 | J65: Rondes confirmées | K65: 0
D66: Rondes effectuées | E66: =SUM('Pilotes Nat'!CL67) -> 0 | G66: Rondes effectuées | H66: =SUM('Pilotes Inter'!CX66) -> 0 | J66: Rondes effectuées | K66: 0
A67: 16 | B67: =VLOOKUP(A67,'Numéro licences'!$H$4:$I$47,2) -> LESCAL Thierry | C67: Aller-Retour | D67: Km renseignés | E67: =SUM('Pilotes Nat'!CL68) -> 10370 | G67: Km renseignés | H67: =SUM('Pilotes Inter'!CX67) -> 0 | J67: Km renseignés | K67: 10370
C68: Ronde | D68: Km confirmés | E68: =SUM('Pilotes Nat'!CL69) -> 10370 | G68: Km confirmés | H68: =SUM('Pilotes Inter'!CX68) -> 0 | J68: Km confirmés | K68: 10370
D69: Rondes confirmées | E69: =SUM('Pilotes Nat'!CL70) -> 34 | G69: Rondes confirmées | H69: =SUM('Pilotes Inter'!CX69) -> 0 | J69: Rondes confirmées | K69: 34
D70: Rondes effectuées | E70: =SUM('Pilotes Nat'!CL71) -> 32 | G70: Rondes effectuées | H70: =SUM('Pilotes Inter'!CX70) -> 0 | J70: Rondes effectuées | K70: 32
A71: 17 | B71: =VLOOKUP(A71,'Numéro licences'!$H$4:$I$47,2) -> MALLIEN Philippe | C71: Aller-Retour | D71: Km renseignés | E71: =SUM('Pilotes Nat'!CL72) -> 624 | G71: Km renseignés | H71: =SUM('Pilotes Inter'!CX71) -> 0 | J71: Km renseignés | K71: 624
C72: Ronde | D72: Km confirmés | E72: =SUM('Pilotes Nat'!CL73) -> 360 | G72: Km confirmés | H72: =SUM('Pilotes Inter'!CX72) -> 0 | J72: Km confirmés | K72: =SUM(E72+H72) -> 360
D73: Rondes confirmées | E73: =SUM('Pilotes Nat'!CL74) -> 2 | G73: Rondes confirmées | H73: =SUM('Pilotes Inter'!CX73) -> 0 | J73: Rondes confirmées | K73: 2
D74: Rondes effectuées | E74: =SUM('Pilotes Nat'!CL75) -> 1 | G74: Rondes effectuées | H74: =SUM('Pilotes Inter'!CX74) -> 0 | J74: Rondes effectuées | K74: 1
A75: 18 | B75: =VLOOKUP(A75,'Numéro licences'!$H$4:$I$47,2) -> MANZANO Pascal | C75: Aller-Retour | D75: Km renseignés | E75: =SUM('Pilotes Nat'!CL76) -> 8433 | G75: Km renseignés | H75: =SUM('Pilotes Inter'!CX75) -> 12303 | J75: Km renseignés | K75: 20736
C76: Ronde | D76: Km confirmés | E76: =SUM('Pilotes Nat'!CL77) -> 8113 | G76: Km confirmés | H76: =SUM('Pilotes Inter'!CX76) -> 12303 | J76: Km confirmés | K76: 20416
D77: Rondes confirmées | E77: =SUM('Pilotes Nat'!CL78) -> 26 | G77: Rondes confirmées | H77: =SUM('Pilotes Inter'!CX77) -> 8 | J77: Rondes confirmées | K77: 34
D78: Rondes effectuées | E78: =SUM('Pilotes Nat'!CL79) -> 25 | G78: Rondes effectuées | H78: =SUM('Pilotes Inter'!CX78) -> 8 | J78: Rondes effectuées | K78: 33
A79: 19 | B79: =VLOOKUP(A79,'Numéro licences'!$H$4:$I$47,2) -> MARIEL Didier | C79: Aller-Retour | D79: Km renseignés | E79: =SUM('Pilotes Nat'!CL80) -> 1859 | G79: Km renseignés | H79: =SUM('Pilotes Inter'!CX79) -> 0 | J79: Km renseignés | K79: 1859
C80: Ronde | D80: Km confirmés | E80: =SUM('Pilotes Nat'!CL81) -> 1859 | G80: Km confirmés | H80: =SUM('Pilotes Inter'!CX80) -> 0 | J80: Km confirmés | K80: 1859
D81: Rondes confirmées | E81: =SUM('Pilotes Nat'!CL82) -> 9 | G81: Rondes confirmées | H81: =SUM('Pilotes Inter'!CX81) -> 0 | J81: Rondes confirmées | K81: 9
D82: Rondes effectuées | E82: =SUM('Pilotes Nat'!CL83) -> 9 | G82: Rondes effectuées | H82: =SUM('Pilotes Inter'!CX82) -> 0 | J82: Rondes effectuées | K82: 9
A83: 20 | B83: =VLOOKUP(A83,'Numéro licences'!$H$4:$I$47,2) -> MILET Benoit | C83: Aller-Retour | D83: Km renseignés | E83: =SUM('Pilotes Nat'!CL84) -> 504 | G83: Km renseignés | H83: =SUM('Pilotes Inter'!CX83) -> 1056 | J83: Km renseignés | K83: 1560
C84: Ronde | D84: Km confirmés | E84: =SUM('Pilotes Nat'!CL85) -> 504 | G84: Km confirmés | H84: =SUM('Pilotes Inter'!CX84) -> 1056 | J84: Km confirmés | K84: 1560
D85: Rondes confirmées | E85: =SUM('Pilotes Nat'!CL86) -> 3 | G85: Rondes confirmées | H85: =SUM('Pilotes Inter'!CX85) -> 1 | J85: Rondes confirmées | K85: 4
D86: Rondes effectuées | E86: =SUM('Pilotes Nat'!CL87) -> 1 | G86: Rondes effectuées | H86: =SUM('Pilotes Inter'!CX86) -> 1 | J86: Rondes effectuées | K86: 2
A87: 21 | B87: =VLOOKUP(A87,'Numéro licences'!$H$4:$I$47,2) -> NIHOUL Dany | C87: Aller-Retour | D87: Km renseignés | E87: =SUM('Pilotes Nat'!CL88) -> 6312 | G87: Km renseignés | H87: =SUM('Pilotes Inter'!CX87) -> 0 | J87: Km renseignés | K87: 6312
C88: Ronde | D88: Km confirmés | E88: =SUM('Pilotes Nat'!CL89) -> 6312 | G88: Km confirmés | H88: =SUM('Pilotes Inter'!CX88) -> 0 | J88: Km confirmés | K88: 6312
D89: Rondes confirmées | E89: =SUM('Pilotes Nat'!CL90) -> 19 | G89: Rondes confirmées | H89: =SUM('Pilotes Inter'!CX89) -> 0 | J89: Rondes confirmées | K89: 19
D90: Rondes effectuées | E90: =SUM('Pilotes Nat'!CL91) -> 17 | G90: Rondes effectuées | H90: =SUM('Pilotes Inter'!CX90) -> 0 | J90: Rondes effectuées | K90: 17
A91: 22 | B91: =VLOOKUP(A91,'Numéro licences'!$H$4:$I$47,2) -> PARMENTIER Dominique | C91: Aller-Retour | D91: Km renseignés | E91: =SUM('Pilotes Nat'!CL92) -> 728 | G91: Km renseignés | H91: =SUM('Pilotes Inter'!CX91) -> 0 | J91: Km renseignés | K91: 728
C92: Ronde | D92: Km confirmés | E92: =SUM('Pilotes Nat'!CL93) -> 728 | G92: Km confirmés | H92: =SUM('Pilotes Inter'!CX92) -> 0 | J92: Km confirmés | K92: 728
D93: Rondes confirmées | E93: =SUM('Pilotes Nat'!CL94) -> 5 | G93: Rondes confirmées | H93: =SUM('Pilotes Inter'!CX93) -> 0 | J93: Rondes confirmées | K93: 5
D94: Rondes effectuées | E94: =SUM('Pilotes Nat'!CL95) -> 3 | G94: Rondes effectuées | H94: =SUM('Pilotes Inter'!CX94) -> 0 | J94: Rondes effectuées | K94: 3
A95: 23 | B95: =VLOOKUP(A95,'Numéro licences'!$H$4:$I$47,2) -> RAMEAU Didier | C95: Aller-Retour | D95: Km renseignés | E95: =SUM('Pilotes Nat'!CL96) -> 3956 | G95: Km renseignés | H95: =SUM('Pilotes Inter'!CX95) -> 0 | J95: Km renseignés | K95: 3956
C96: Ronde | D96: Km confirmés | E96: =SUM('Pilotes Nat'!CL97) -> 3956 | G96: Km confirmés | H96: =SUM('Pilotes Inter'!CX96) -> 0 | J96: Km confirmés | K96: 3956
D97: Rondes confirmées | E97: =SUM('Pilotes Nat'!CL98) -> 13 | G97: Rondes confirmées | H97: =SUM('Pilotes Inter'!CX97) -> 0 | J97: Rondes confirmées | K97: 13
D98: Rondes effectuées | E98: =SUM('Pilotes Nat'!CL99) -> 12 | G98: Rondes effectuées | H98: =SUM('Pilotes Inter'!CX98) -> 0 | J98: Rondes effectuées | K98: 12
A99: 24 | B99: =VLOOKUP(A99,'Numéro licences'!$H$4:$I$47,2) -> SMEETS Carine | C99: Aller-Retour | D99: Km renseignés | E99: =SUM('Pilotes Nat'!CL100) -> 160 | G99: Km renseignés | H99: =SUM('Pilotes Inter'!CX99) -> 0 | J99: Km renseignés | K99: 160
C100: Ronde | D100: Km confirmés | E100: =SUM('Pilotes Nat'!CL101) -> 160 | G100: Km confirmés | H100: =SUM('Pilotes Inter'!CX100) -> 0 | J100: Km confirmés | K100: 160
D101: Rondes confirmées | E101: =SUM('Pilotes Nat'!CL102) -> 1 | G101: Rondes confirmées | H101: =SUM('Pilotes Inter'!CX101) -> 0 | J101: Rondes confirmées | K101: 1
D102: Rondes effectuées | E102: =SUM('Pilotes Nat'!CL103) -> 0 | G102: Rondes effectuées | H102: =SUM('Pilotes Inter'!CX102) -> 0 | J102: Rondes effectuées | K102: 0
A103: 25 | B103: =VLOOKUP(A103,'Numéro licences'!$H$4:$I$47,2) -> STRYPSTEIN Nicolas | C103: Aller-Retour | D103: Km renseignés | E103: =SUM('Pilotes Nat'!CL104) -> 200 | G103: Km renseignés | H103: =SUM('Pilotes Inter'!CX103) -> 2570 | J103: Km renseignés | K103: 2770
C104: Ronde | D104: Km confirmés | E104: =SUM('Pilotes Nat'!CL105) -> 200 | G104: Km confirmés | H104: =SUM('Pilotes Inter'!CX104) -> 2570 | J104: Km confirmés | K104: 2770
D105: Rondes confirmées | E105: =SUM('Pilotes Nat'!CL106) -> 1 | G105: Rondes confirmées | H105: =SUM('Pilotes Inter'!CX105) -> 1 | J105: Rondes confirmées | K105: 2
D106: Rondes effectuées | E106: =SUM('Pilotes Nat'!CL107) -> 0 | G106: Rondes effectuées | H106: =SUM('Pilotes Inter'!CX106) -> 1 | J106: Rondes effectuées | K106: 1
A107: 26 | B107: =VLOOKUP(A107,'Numéro licences'!$H$4:$I$47,2) -> URBAIN Philippe | C107: Aller-Retour | D107: Km renseignés | E107: =SUM('Pilotes Nat'!CL108) -> 0 | G107: Km renseignés | H107: =SUM('Pilotes Inter'!CX107) -> 1194 | J107: Km renseignés | K107: 1194
C108: Ronde | D108: Km confirmés | E108: =SUM('Pilotes Nat'!CL109) -> 0 | G108: Km confirmés | H108: =SUM('Pilotes Inter'!CX108) -> 1194 | J108: Km confirmés | K108: 1194
D109: Rondes confirmées | E109: =SUM('Pilotes Nat'!CL110) -> 0 | G109: Rondes confirmées | H109: =SUM('Pilotes Inter'!CX109) -> 1 | J109: Rondes confirmées | K109: 1
D110: Rondes effectuées | E110: =SUM('Pilotes Nat'!CL111) -> 0 | G110: Rondes effectuées | H110: =SUM('Pilotes Inter'!CX110) -> 1 | J110: Rondes effectuées | K110: 1
A111: 27 | B111: =VLOOKUP(A111,'Numéro licences'!$H$4:$I$47,2) -> VANBELLINGEN Jean-Claude | C111: Aller-Retour | D111: Km renseignés | E111: =SUM('Pilotes Nat'!CL112) -> 4150 | G111: Km renseignés | H111: =SUM('Pilotes Inter'!CX111) -> 2203 | J111: Km renseignés | K111: 6353
C112: Ronde | D112: Km confirmés | E112: =SUM('Pilotes Nat'!CL113) -> 4150 | G112: Km confirmés | H112: =SUM('Pilotes Inter'!CX112) -> 2203 | J112: Km confirmés | K112: 6353
D113: Rondes confirmées | E113: =SUM('Pilotes Nat'!CL114) -> 10 | G113: Rondes confirmées | H113: =SUM('Pilotes Inter'!CX113) -> 1 | J113: Rondes confirmées | K113: 11
D114: Rondes effectuées | E114: =SUM('Pilotes Nat'!CL115) -> 9 | G114: Rondes effectuées | H114: =SUM('Pilotes Inter'!CX114) -> 1 | J114: Rondes effectuées | K114: 10
A115: 28 | B115: =VLOOKUP(A115,'Numéro licences'!$H$4:$I$47,2) -> VAN DER BEETEN Pascal | C115: Aller-Retour | D115: Km renseignés | E115: =SUM('Pilotes Nat'!CL116) -> 10166 | G115: Km renseignés | H115: =SUM('Pilotes Inter'!CX115) -> 0 | J115: Km renseignés | K115: 10166
C116: Ronde | D116: Km confirmés | E116: =SUM('Pilotes Nat'!CL117) -> 10166 | G116: Km confirmés | H116: =SUM('Pilotes Inter'!CX116) -> 0 | J116: Km confirmés | K116: 10166
D117: Rondes confirmées | E117: =SUM('Pilotes Nat'!CL118) -> 33 | G117: Rondes confirmées | H117: =SUM('Pilotes Inter'!CX117) -> 0 | J117: Rondes confirmées | K117: 33
D118: Rondes effectuées | E118: =SUM('Pilotes Nat'!CL119) -> 32 | G118: Rondes effectuées | H118: =SUM('Pilotes Inter'!CX118) -> 0 | J118: Rondes effectuées | K118: 32
A119: 29 | B119: =VLOOKUP(A119,'Numéro licences'!$H$4:$I$47,2) -> VANSTEYVOORT André | C119: Aller-Retour | D119: Km renseignés | E119: =SUM('Pilotes Nat'!CL120) -> 5598 | G119: Km renseignés | H119: =SUM('Pilotes Inter'!CX119) -> 4000 | J119: Km renseignés | K119: 9598
C120: Ronde | D120: Km confirmés | E120: =SUM('Pilotes Nat'!CL121) -> 200 | G120: Km confirmés | H120: =SUM('Pilotes Inter'!CX120) -> 0 | J120: Km confirmés | K120: 200
D121: Rondes confirmées | E121: =SUM('Pilotes Nat'!CL122) -> 1 | G121: Rondes confirmées | H121: =SUM('Pilotes Inter'!CX121) -> 0 | J121: Rondes confirmées | K121: 1
D122: Rondes effectuées | E122: =SUM('Pilotes Nat'!CL123) -> 16 | G122: Rondes effectuées | H122: =SUM('Pilotes Inter'!CX122) -> 2 | J122: Rondes effectuées | K122: 18
A123: 30 | B123: =VLOOKUP(A123,'Numéro licences'!$H$4:$I$47,2) -> WOUTERS Olivier | C123: Aller-Retour | D123: Km renseignés | E123: =SUM('Pilotes Nat'!CL124) -> 7563 | G123: Km renseignés | H123: =SUM('Pilotes Inter'!CX123) -> 0 | J123: Km renseignés | K123: 7563
C124: Ronde | D124: Km confirmés | E124: =SUM('Pilotes Nat'!CL125) -> 7563 | G124: Km confirmés | H124: =SUM('Pilotes Inter'!CX124) -> 0 | J124: Km confirmés | K124: 7563
D125: Rondes confirmées | E125: =SUM('Pilotes Nat'!CL126) -> 22 | G125: Rondes confirmées | H125: =SUM('Pilotes Inter'!CX125) -> 0 | J125: Rondes confirmées | K125: 22
D126: Rondes effectuées | E126: =SUM('Pilotes Nat'!CL127) -> 21 | G126: Rondes effectuées | H126: =SUM('Pilotes Inter'!CX126) -> 0 | J126: Rondes effectuées | K126: 21
A127: 31 | B127: =VLOOKUP(A127,'Numéro licences'!$H$4:$I$47,2) -> THIRIFAYS Vincent | C127: Aller-Retour | D127: Km renseignés | E127: =SUM('Pilotes Nat'!CL128) -> 385 | G127: Km renseignés | H127: =SUM('Pilotes Inter'!CX127) -> 0 | J127: Km renseignés | K127: 385
C128: Ronde | D128: Km confirmés | E128: =SUM('Pilotes Nat'!CL129) -> 0 | G128: Km confirmés | H128: =SUM('Pilotes Inter'!CX128) -> 0 | J128: Km confirmés | K128: 0
D129: Rondes confirmées | E129: =SUM('Pilotes Nat'!CL130) -> 0 | G129: Rondes confirmées | H129: =SUM('Pilotes Inter'!CX129) -> 0 | J129: Rondes confirmées | K129: 0
D130: Rondes effectuées | E130: =SUM('Pilotes Nat'!CL131) -> 1 | G130: Rondes effectuées | H130: =SUM('Pilotes Inter'!CX130) -> 0 | J130: Rondes effectuées | K130: 1
A131: 32 | B131: =VLOOKUP(A131,'Numéro licences'!$H$4:$I$47,2) -> VANDY Rudi | C131: Aller-Retour | D131: Km renseignés | E131: =SUM('Pilotes Nat'!CL132) -> 5164 | G131: Km renseignés | H131: =SUM('Pilotes Inter'!CX131) -> 0 | J131: Km renseignés | K131: 5164
C132: Ronde | D132: Km confirmés | E132: =SUM('Pilotes Nat'!CL133) -> 5164 | G132: Km confirmés | H132: =SUM('Pilotes Inter'!CX132) -> 0 | J132: Km confirmés | K132: 5164
D133: Rondes confirmées | E133: =SUM('Pilotes Nat'!CL134) -> 16 | G133: Rondes confirmées | H133: =SUM('Pilotes Inter'!CX133) -> 0 | J133: Rondes confirmées | K133: 16
D134: Rondes effectuées | E134: =SUM('Pilotes Nat'!CL135) -> 16 | G134: Rondes effectuées | H134: =SUM('Pilotes Inter'!CX134) -> 0 | J134: Rondes effectuées | K134: 16
A135: 33 | B135: =VLOOKUP(A135,'Numéro licences'!$H$4:$I$47,2) -> LEFRANT Sébastien | C135: Aller-Retour | D135: Km renseignés | E135: =SUM('Pilotes Nat'!CL136) -> 1457 | G135: Km renseignés | H135: =SUM('Pilotes Inter'!CX135) -> 0 | J135: Km renseignés | K135: 1457
C136: Ronde | D136: Km confirmés | E136: =SUM('Pilotes Nat'!CL137) -> 0 | G136: Km confirmés | H136: =SUM('Pilotes Inter'!CX136) -> 0 | J136: Km confirmés | K136: =SUM(E136+H136) -> 0
D137: Rondes confirmées | E137: =SUM('Pilotes Nat'!CL138) -> 0 | G137: Rondes confirmées | H137: =SUM('Pilotes Inter'!CX137) -> 0 | J137: Rondes confirmées | K137: 0
D138: Rondes effectuées | E138: =SUM('Pilotes Nat'!CL139) -> 5 | G138: Rondes effectuées | H138: =SUM('Pilotes Inter'!CX138) -> 0 | J138: Rondes effectuées | K138: 5
A139: 34 | B139: =VLOOKUP(A139,'Numéro licences'!$H$4:$I$47,2) -> 0 | C139: Aller-Retour | D139: Km renseignés | E139: =SUM('Pilotes Nat'!CL140) -> 0 | G139: Km renseignés | H139: =SUM('Pilotes Inter'!CX139) -> 0 | J139: Km renseignés | K139: 0
C140: Ronde | D140: Km confirmés | E140: =SUM('Pilotes Nat'!CL141) -> 0 | G140: Km confirmés | H140: =SUM('Pilotes Inter'!CX140) -> 0 | J140: Km confirmés | K140: 0
D141: Rondes confirmées | E141: =SUM('Pilotes Nat'!CL142) -> 0 | G141: Rondes confirmées | H141: =SUM('Pilotes Inter'!CX141) -> 0 | J141: Rondes confirmées | K141: 0
D142: Rondes effectuées | E142: =SUM('Pilotes Nat'!CL143) -> 0 | G142: Rondes effectuées | H142: =SUM('Pilotes Inter'!CX142) -> 0 | J142: Rondes effectuées | K142: 0
A143: 35 | B143: =VLOOKUP(A143,'Numéro licences'!$H$4:$I$47,2) -> 0 | C143: Aller-Retour | D143: Km renseignés | E143: =SUM('Pilotes Nat'!CL144) -> 0 | G143: Km renseignés | H143: =SUM('Pilotes Inter'!CX143) -> 0 | J143: Km renseignés | K143: 0
C144: Ronde | D144: Km confirmés | E144: =SUM('Pilotes Nat'!CL145) -> 0 | G144: Km confirmés | H144: =SUM('Pilotes Inter'!CX144) -> 0 | J144: Km confirmés | K144: 0
D145: Rondes confirmées | E145: =SUM('Pilotes Nat'!CL146) -> 0 | G145: Rondes confirmées | H145: =SUM('Pilotes Inter'!CX145) -> 0 | J145: Rondes confirmées | K145: 0
D146: Rondes effectuées | E146: =SUM('Pilotes Nat'!CL147) -> 0 | G146: Rondes effectuées | H146: =SUM('Pilotes Inter'!CX146) -> 0 | J146: Rondes effectuées | K146: 0
A147: 36 | B147: =VLOOKUP(A147,'Numéro licences'!$H$4:$I$47,2) -> 0 | C147: Aller-Retour | D147: Km renseignés | E147: =SUM('Pilotes Nat'!CL148) -> 0 | G147: Km renseignés | H147: =SUM('Pilotes Inter'!CX147) -> 0 | J147: Km renseignés | K147: 0
C148: Ronde | D148: Km confirmés | E148: =SUM('Pilotes Nat'!CL149) -> 0 | G148: Km confirmés | H148: =SUM('Pilotes Inter'!CX148) -> 0 | J148: Km confirmés | K148: 0
D149: Rondes confirmées | E149: =SUM('Pilotes Nat'!CL150) -> 0 | G149: Rondes confirmées | H149: =SUM('Pilotes Inter'!CX149) -> 0 | J149: Rondes confirmées | K149: 0
D150: Rondes effectuées | E150: =SUM('Pilotes Nat'!CL151) -> 0 | G150: Rondes effectuées | H150: =SUM('Pilotes Inter'!CX150) -> 0 | J150: Rondes effectuées | K150: 0
A151: 37 | B151: =VLOOKUP(A151,'Numéro licences'!$H$4:$I$47,2) -> 0 | C151: Aller-Retour | D151: Km renseignés | E151: =SUM('Pilotes Nat'!CL152) -> 0 | G151: Km renseignés | H151: =SUM('Pilotes Inter'!CX151) -> 0 | J151: Km renseignés | K151: 0
C152: Ronde | D152: Km confirmés | E152: =SUM('Pilotes Nat'!CL153) -> 0 | G152: Km confirmés | H152: =SUM('Pilotes Inter'!CX152) -> 0 | J152: Km confirmés | K152: 0
D153: Rondes confirmées | E153: =SUM('Pilotes Nat'!CL154) -> 0 | G153: Rondes confirmées | H153: =SUM('Pilotes Inter'!CX153) -> 0 | J153: Rondes confirmées | K153: 0
D154: Rondes effectuées | E154: =SUM('Pilotes Nat'!CL155) -> 0 | G154: Rondes effectuées | H154: =SUM('Pilotes Inter'!CX154) -> 0 | J154: Rondes effectuées | K154: 0
A155: 38 | B155: =VLOOKUP(A155,'Numéro licences'!$H$4:$I$47,2) -> 0 | C155: Aller-Retour | D155: Km renseignés | E155: =SUM('Pilotes Nat'!CL156) -> 0 | G155: Km renseignés | H155: =SUM('Pilotes Inter'!CX155) -> 0 | J155: Km renseignés | K155: 0
C156: Ronde | D156: Km confirmés | E156: =SUM('Pilotes Nat'!CL157) -> 0 | G156: Km confirmés | H156: =SUM('Pilotes Inter'!CX156) -> 0 | J156: Km confirmés | K156: 0
D157: Rondes confirmées | E157: =SUM('Pilotes Nat'!CL158) -> 0 | G157: Rondes confirmées | H157: =SUM('Pilotes Inter'!CX157) -> 0 | J157: Rondes confirmées | K157: 0
D158: Rondes effectuées | E158: =SUM('Pilotes Nat'!CL159) -> 0 | G158: Rondes effectuées | H158: =SUM('Pilotes Inter'!CX158) -> 0 | J158: Rondes effectuées | K158: 0
A159: 39 | B159: =VLOOKUP(A159,'Numéro licences'!$H$4:$I$47,2) -> 0 | C159: Aller-Retour | D159: Km renseignés | E159: =SUM('Pilotes Nat'!CL160) -> 0 | G159: Km renseignés | H159: =SUM('Pilotes Inter'!CX159) -> 0 | J159: Km renseignés | K159: 0
C160: Ronde | D160: Km confirmés | E160: =SUM('Pilotes Nat'!CL161) -> 0 | G160: Km confirmés | H160: =SUM('Pilotes Inter'!CX160) -> 0 | J160: Km confirmés | K160: 0
D161: Rondes confirmées | E161: =SUM('Pilotes Nat'!CL162) -> 0 | G161: Rondes confirmées | H161: =SUM('Pilotes Inter'!CX161) -> 0 | J161: Rondes confirmées | K161: 0
D162: Rondes effectuées | E162: =SUM('Pilotes Nat'!CL163) -> 0 | G162: Rondes effectuées | H162: =SUM('Pilotes Inter'!CX162) -> 0 | J162: Rondes effectuées | K162: 0
A163: 40 | B163: =VLOOKUP(A163,'Numéro licences'!$H$4:$I$47,2) -> 0 | C163: Aller-Retour | D163: Km renseignés | E163: =SUM('Pilotes Nat'!CL164) -> 0 | G163: Km renseignés | H163: =SUM('Pilotes Inter'!CX163) -> 0 | J163: Km renseignés | K163: 0
C164: Ronde | D164: Km confirmés | E164: =SUM('Pilotes Nat'!CL165) -> 0 | G164: Km confirmés | H164: =SUM('Pilotes Inter'!CX164) -> 0 | J164: Km confirmés | K164: 0
D165: Rondes confirmées | E165: =SUM('Pilotes Nat'!CL166) -> 0 | G165: Rondes confirmées | H165: =SUM('Pilotes Inter'!CX165) -> 0 | J165: Rondes confirmées | K165: 0
D166: Rondes effectuées | E166: =SUM('Pilotes Nat'!CL167) -> 0 | G166: Rondes effectuées | H166: =SUM('Pilotes Inter'!CX166) -> 0 | J166: Rondes effectuées | K166: 0
A167: 41 | B167: =VLOOKUP(A167,'Numéro licences'!$H$4:$I$47,2) -> 0 | C167: Aller-Retour | D167: Km renseignés | E167: =SUM('Pilotes Nat'!CL168) -> 0 | G167: Km renseignés | H167: =SUM('Pilotes Inter'!CX167) -> 0 | J167: Km renseignés | K167: 0
C168: Ronde | D168: Km confirmés | E168: =SUM('Pilotes Nat'!CL169) -> 0 | G168: Km confirmés | H168: =SUM('Pilotes Inter'!CX168) -> 0 | J168: Km confirmés | K168: 0
D169: Rondes confirmées | E169: =SUM('Pilotes Nat'!CL170) -> 0 | G169: Rondes confirmées | H169: =SUM('Pilotes Inter'!CX169) -> 0 | J169: Rondes confirmées | K169: 0
D170: Rondes effectuées | E170: =SUM('Pilotes Nat'!CL171) -> 0 | G170: Rondes effectuées | H170: =SUM('Pilotes Inter'!CX170) -> 0 | J170: Rondes effectuées | K170: 0
A171: 42 | B171: =VLOOKUP(A171,'Numéro licences'!$H$4:$I$47,2) -> 0 | C171: Aller-Retour | D171: Km renseignés | E171: =SUM('Pilotes Nat'!CL172) -> 0 | G171: Km renseignés | H171: =SUM('Pilotes Inter'!CX171) -> 0 | J171: Km renseignés | K171: 0
C172: Ronde | D172: Km confirmés | E172: =SUM('Pilotes Nat'!CL173) -> 0 | G172: Km confirmés | H172: =SUM('Pilotes Inter'!CX172) -> 0 | J172: Km confirmés | K172: 0
D173: Rondes confirmées | E173: =SUM('Pilotes Nat'!CL174) -> 0 | G173: Rondes confirmées | H173: =SUM('Pilotes Inter'!CX173) -> 0 | J173: Rondes confirmées | K173: 0
D174: Rondes effectuées | E174: =SUM('Pilotes Nat'!CL175) -> 0 | G174: Rondes effectuées | H174: =SUM('Pilotes Inter'!CX174) -> 0 | J174: Rondes effectuées | K174: 0
A175: 43 | B175: =VLOOKUP(A175,'Numéro licences'!$H$4:$I$47,2) -> 0 | C175: Aller-Retour | D175: Km renseignés | E175: =SUM('Pilotes Nat'!CL176) -> 0 | G175: Km renseignés | H175: =SUM('Pilotes Inter'!CX175) -> 0 | J175: Km renseignés | K175: 0
C176: Ronde | D176: Km confirmés | E176: =SUM('Pilotes Nat'!CL177) -> 0 | G176: Km confirmés | H176: =SUM('Pilotes Inter'!CX176) -> 0 | J176: Km confirmés | K176: 0
D177: Rondes confirmées | E177: =SUM('Pilotes Nat'!CL178) -> 0 | G177: Rondes confirmées | H177: =SUM('Pilotes Inter'!CX177) -> 0 | J177: Rondes confirmées | K177: 0
D178: Rondes effectuées | E178: =SUM('Pilotes Nat'!CL179) -> 0 | G178: Rondes effectuées | H178: =SUM('Pilotes Inter'!CX178) -> 0 | J178: Rondes effectuées | K178: 0
A179: 44 | B179: =VLOOKUP(A179,'Numéro licences'!$H$4:$I$47,2) -> 0 | C179: Aller-Retour | D179: Km renseignés | E179: =SUM('Pilotes Nat'!CL180) -> 0 | G179: Km renseignés | H179: =SUM('Pilotes Inter'!CX179) -> 0 | J179: Km renseignés | K179: 0
C180: Ronde | D180: Km confirmés | E180: =SUM('Pilotes Nat'!CL181) -> 0 | G180: Km confirmés | H180: =SUM('Pilotes Inter'!CX180) -> 0 | J180: Km confirmés | K180: 0
D181: Rondes confirmées | E181: =SUM('Pilotes Nat'!CL182) -> 0 | G181: Rondes confirmées | H181: =SUM('Pilotes Inter'!CX181) -> 0 | J181: Rondes confirmées | K181: 0
D182: Rondes effectuées | E182: =SUM('Pilotes Nat'!CL183) -> 0 | G182: Rondes effectuées | H182: =SUM('Pilotes Inter'!CX182) -> 0 | J182: Rondes effectuées | K182: 0
A183: 45 | B183: =VLOOKUP(A183,'Numéro licences'!$H$4:$I$47,2) -> 0 | C183: Aller-Retour | D183: Km renseignés | E183: =SUM('Pilotes Nat'!CL184) -> 0 | G183: Km renseignés | H183: =SUM('Pilotes Inter'!CX183) -> 0 | J183: Km renseignés | K183: 0
C184: Ronde | D184: Km confirmés | E184: =SUM('Pilotes Nat'!CL185) -> 0 | G184: Km confirmés | H184: =SUM('Pilotes Inter'!CX184) -> 0 | J184: Km confirmés | K184: 0
D185: Rondes confirmées | E185: =SUM('Pilotes Nat'!CL186) -> 0 | G185: Rondes confirmées | H185: =SUM('Pilotes Inter'!CX185) -> 0 | J185: Rondes confirmées | K185: 0
D186: Rondes effectuées | E186: =SUM('Pilotes Nat'!CL187) -> 0 | G186: Rondes effectuées | H186: =SUM('Pilotes Inter'!CX186) -> 0 | J186: Rondes effectuées | K186: 0
A187: 46 | B187: =VLOOKUP(A187,'Numéro licences'!$H$4:$I$47,2) -> 0 | C187: Aller-Retour | D187: Km renseignés | E187: =SUM('Pilotes Nat'!CL188) -> 0 | G187: Km renseignés | H187: =SUM('Pilotes Inter'!CX187) -> 0 | J187: Km renseignés | K187: 0
C188: Ronde | D188: Km confirmés | E188: =SUM('Pilotes Nat'!CL189) -> 0 | G188: Km confirmés | H188: =SUM('Pilotes Inter'!CX188) -> 0 | J188: Km confirmés | K188: 0
D189: Rondes confirmées | E189: =SUM('Pilotes Nat'!CL190) -> 0 | G189: Rondes confirmées | H189: =SUM('Pilotes Inter'!CX189) -> 0 | J189: Rondes confirmées | K189: 0
D190: Rondes effectuées | E190: =SUM('Pilotes Nat'!CL191) -> 0 | G190: Rondes effectuées | H190: =SUM('Pilotes Inter'!CX190) -> 0 | J190: Rondes effectuées | K190: 0
D193: Rondes confirmées | E193: =SUM(E9+E13+E17+E21+E25+E29+E33+E37+E41+E45+E49+E53+E57+E61+E65+E69+E73+E77+E81+E85+E89+E93+E97+E101+E105+E109+E113+E117+E121+E125+E129+E133+E137+E141+E145+E149+E153+E157+E161+E165+E169+E173+E177+E181+E185+E189) -> 343 | G193: Rondes confirmées | H193: =SUM(H9+H13+H17+H21+H25+H29+H33+H37+H41+H45+H49+H53+H57+H61+H65+H69+H73+H77+H81+H85+H89+H93+H97+H101+H105+H109+H113+H117+H121+H125+H129+H133+H137+H141+H145+H149+H153+H157+H161+H165+H169+H173+H177+H181+H185+H189) -> 19 | J193: Rondes confirmées | K193: =SUM(K9+K13+K17+K21+K25+K29+K33+K37+K41+K45+K49+K53+K57+K61+K65+K69+K73+K77+K81+K85+K89+K93+K97+K101+K105+K109+K113+K117+K121+K125+K129+K133+K137+K141+K145+K149+K153+K157+K161+K165+K169+K173+K177+K181+K185+K189) -> 362
D194: Rondes effectuées | E194: =SUM(E10+E14+E18+E22+E26+E30+E34+E38+E42+E46+E50+E54+E58+E62+E66+E70+E74+E78+E82+E86+E90+E94+E98+E102+E106+E110+E114+E118+E122+E126+E130+E134+E138+E142+E146+E150+E154+E158+E162+E166+E170+E174+E178+E182+E186+E190) -> 358 | G194: Rondes effectuées | H194: =SUM(H10+H14+H18+H22+H26+H30+H34+H38+H42+H46+H50+H54+H58+H62+H66+H70+H74+H78+H82+H86+H90+H94+H98+H102+H106+H110+H114+H118+H122+H126+H130+H134+H138+H142+H146+H150+H154+H158+H162+H166+H170+H174+H178+H182+H186+H190) -> 21 | J194: Rondes effectuées | K194: =SUM(K10+K14+K18+K22+K26+K30+K34+K38+K42+K46+K50+K54+K58+K62+K66+K70+K74+K78+K82+K86+K90+K94+K98+K102+K106+K110+K114+K118+K122+K126+K130+K134+K138+K142+K146+K150+K154+K158+K162+K166+K170+K174+K178+K182+K186+K190) -> 379
B200: Colonne1
A201: 1 | B201: BALLION Pierre
A202: =SUM(A201+1) -> 2 | B202: BERDOYES Yannick
A203: 3 | B203: CLAISSE Jean-Luc
A204: 4 | B204: DAVIN Philippe
A205: 5 | B205: DE BONDT Philippe
A206: 6 | B206: DE SCHEPPERS Jean-Claude
A207: 7 | B207: DECELLE Hubert
A208: 8 | B208: DEHAUT Didier
A209: 9 | B209: DELFORGE Patrice
... 37 more rows

Sheet Résumé Passagers
D1: PASSAGERS
O3: Confirmé | U3: Non-confirmé
B4: Aller-Retour
B5: Ronde | D5: NATIONAL | G5: INTERNATIONAL | J5: SCRATCH | O5: Passager | P5: National | Q5: International | R5: Total | U5: Passager | V5: National | W5: International | X5: Total
E6: TOTAL | H6: TOTAL | K6: TOTAL | N6: 1 | O6: =VLOOKUP(N6,'Numéro licences'!$A$4:$B$32,2) -> BRIATTE Joëlle | P6: =SUM(E8) -> 0 | Q6: =SUM(H8) -> 0 | R6: =SUM(P6:Q6) -> 0 | T6: 1 | U6: =VLOOKUP(T6,'Numéro licences'!$A$4:$B$32,2) -> BRIATTE Joëlle | V6: =SUM(E7) -> 0 | W6: =SUM(H7) -> 0 | X6: =SUM(V6:W6) -> 0
A7: 1 | B7: =VLOOKUP(A7,'Numéro licences'!$A$4:$B$32,2) -> BRIATTE Joëlle | C7: Aller-Retour | D7: Km renseignés | E7: =SUM('Passagers Nat'!CL8) -> 0 | G7: Km renseignés | H7: =SUM('Passagers Inter'!CX7) -> 0 | J7: Km renseignés | K7: =SUM(E7+H7) -> 0 | N7: 2 | O7: =VLOOKUP(N7,'Numéro licences'!$A$4:$B$32,2) -> DEFAUX Michèle | P7: =SUM(E12) -> 884 | Q7: =SUM(H12) -> 0 | R7: =SUM(P7:Q7) -> 884 | T7: 2 | U7: =VLOOKUP(T7,'Numéro licences'!$A$4:$B$32,2) -> DEFAUX Michèle | V7: =SUM(E11) -> 884 | W7: =SUM(H11) -> 0 | X7: 884
C8: Ronde | D8: Km confirmés | E8: =SUM('Passagers Nat'!CL9) -> 0 | G8: Km confirmés | H8: =SUM('Passagers Inter'!CX8) -> 0 | J8: Km confirmés | K8: =SUM(E8+H8) -> 0 | N8: 3 | O8: =VLOOKUP(N8,'Numéro licences'!$A$4:$B$32,2) -> DEL FABBRO Laurence | P8: =SUM(E16) -> 200 | Q8: =SUM(H16) -> 1342 | R8: 1542 | T8: 3 | U8: =VLOOKUP(T8,'Numéro licences'!$A$4:$B$32,2) -> DEL FABBRO Laurence | V8: =SUM(E15) -> 200 | W8: =SUM(H15) -> 1342 | X8: 1542
D9: Rondes confirmées | E9: =SUM('Passagers Nat'!CL10) -> 0 | G9: Rondes confirmées | H9: =SUM('Passagers Inter'!CX9) -> 0 | J9: Rondes confirmées | K9: 0 | N9: 4 | O9: =VLOOKUP(N9,'Numéro licences'!$A$4:$B$32,2) -> FIEVET Nathalie | P9: =SUM(E20) -> 0 | Q9: =SUM(H20) -> 0 | R9: 0 | T9: 4 | U9: =VLOOKUP(T9,'Numéro licences'!$A$4:$B$32,2) -> FIEVET Nathalie | V9: =SUM(E19) -> 0 | W9: =SUM(H19) -> 0 | X9: 0
D10: Rondes effectuées | E10: =SUM('Passagers Nat'!CL11) -> 0 | G10: Rondes effectuées | H10: =SUM('Passagers Inter'!CX10) -> 0 | J10: Rondes effectuées | K10: 0 | N10: 5 | O10: =VLOOKUP(N10,'Numéro licences'!$A$4:$B$32,2) -> GOFFIN Guillaume | P10: =SUM(E24) -> 0 | Q10: =SUM(H24) -> 0 | R10: 0 | T10: 5 | U10: =VLOOKUP(T10,'Numéro licences'!$A$4:$B$32,2) -> GOFFIN Guillaume | V10: =SUM(E23) -> 0 | W10: =SUM(H23) -> 0 | X10: 0
A11: 2 | B11: =VLOOKUP(A11,'Numéro licences'!$A$4:$B$32,2) -> DEFAUX Michèle | C11: Aller-Retour | D11: Km renseignés | E11: =SUM('Passagers Nat'!CL12) -> 884 | G11: Km renseignés | H11: =SUM('Passagers Inter'!CX11) -> 0 | J11: Km renseignés | K11: 884 | N11: 6 | O11: =VLOOKUP(N11,'Numéro licences'!$A$4:$B$32,2) -> GOUGEUL Sophie | P11: =SUM(E28) -> 7483 | Q11: =SUM(H28) -> 12303 | R11: 19786 | T11: 6 | U11: =VLOOKUP(T11,'Numéro licences'!$A$4:$B$32,2) -> GOUGEUL Sophie | V11: =SUM(E27) -> 7483 | W11: =SUM(H27) -> 12303 | X11: 19786
C12: Ronde | D12: Km confirmés | E12: =SUM('Passagers Nat'!CL13) -> 884 | G12: Km confirmés | H12: =SUM('Passagers Inter'!CX12) -> 0 | J12: Km confirmés | K12: 884 | N12: 7 | O12: =VLOOKUP(N12,'Numéro licences'!$A$4:$B$32,2) -> GREGORICS Kathy | P12: =SUM(E32) -> 0 | Q12: =SUM(H32) -> 0 | R12: 0 | T12: 7 | U12: =VLOOKUP(T12,'Numéro licences'!$A$4:$B$32,2) -> GREGORICS Kathy | V12: =SUM(E31) -> 360 | W12: =SUM(H31) -> 0 | X12: 360
D13: Rondes confirmées | E13: =SUM('Passagers Nat'!CL14) -> 4 | G13: Rondes confirmées | H13: =SUM('Passagers Inter'!CX13) -> 0 | J13: Rondes confirmées | K13: 4 | N13: 8 | O13: =VLOOKUP(N13,'Numéro licences'!$A$4:$B$32,2) -> LAMBILLON Anne | P13: =SUM(E36) -> 360 | Q13: =SUM(H36) -> 0 | R13: 360 | T13: 8 | U13: =VLOOKUP(T13,'Numéro licences'!$A$4:$B$32,2) -> LAMBILLON Anne | V13: =SUM(E35) -> 360 | W13: =SUM(H35) -> 0 | X13: 360
D14: Rondes effectuées | E14: =SUM('Passagers Nat'!CL15) -> 4 | G14: Rondes effectuées | H14: =SUM('Passagers Inter'!CX14) -> 0 | J14: Rondes effectuées | K14: 4 | N14: 9 | O14: =VLOOKUP(N14,'Numéro licences'!$A$4:$B$32,2) -> LAMIROY Anne | P14: =SUM(E40) -> 0 | Q14: =SUM(H40) -> 1056 | R14: 1056 | T14: 9 | U14: =VLOOKUP(T14,'Numéro licences'!$A$4:$B$32,2) -> LAMIROY Anne | V14: =SUM(E39) -> 0 | W14: =SUM(H39) -> 1056 | X14: 1056
A15: 3 | B15: =VLOOKUP(A15,'Numéro licences'!$A$4:$B$32,2) -> DEL FABBRO Laurence | C15: Aller-Retour | D15: Km renseignés | E15: =SUM('Passagers Nat'!CL16) -> 200 | G15: Km renseignés | H15: =SUM('Passagers Inter'!CX15) -> 1342 | J15: Km renseignés | K15: 1542 | N15: 10 | O15: =VLOOKUP(N15,'Numéro licences'!$A$4:$B$32,2) -> LEROY Laure | P15: =SUM(E44) -> 3321 | Q15: =SUM(H44) -> 2203 | R15: 5524 | T15: 10 | U15: =VLOOKUP(T15,'Numéro licences'!$A$4:$B$32,2) -> LEROY Laure | V15: =SUM(E43) -> 3321 | W15: =SUM(H43) -> 2203 | X15: 5524
C16: Ronde | D16: Km confirmés | E16: =SUM('Passagers Nat'!CL17) -> 200 | G16: Km confirmés | H16: =SUM('Passagers Inter'!CX16) -> 1342 | J16: Km confirmés | K16: 1542 | N16: 11 | O16: =VLOOKUP(N16,'Numéro licences'!$A$4:$B$32,2) -> MALLIEN Emelyne | P16: =SUM(E48) -> 0 | Q16: =SUM(H48) -> 0 | R16: 0 | T16: 11 | U16: =VLOOKUP(T16,'Numéro licences'!$A$4:$B$32,2) -> MALLIEN Emelyne | V16: =SUM(E47) -> 0 | W16: =SUM(H47) -> 0 | X16: 0
D17: Rondes confirmées | E17: =SUM('Passagers Nat'!CL18) -> 1 | G17: Rondes confirmées | H17: =SUM('Passagers Inter'!CX17) -> 1 | J17: Rondes confirmées | K17: 2 | N17: 12 | O17: =VLOOKUP(N17,'Numéro licences'!$A$4:$B$32,2) -> PIERARD Anne-Sophie | P17: =SUM(E52) -> 0 | Q17: =SUM(H52) -> 0 | R17: 0 | T17: 12 | U17: =VLOOKUP(T17,'Numéro licences'!$A$4:$B$32,2) -> PIERARD Anne-Sophie | V17: =SUM(E51) -> 0 | W17: =SUM(H51) -> 0 | X17: 0
D18: Rondes effectuées | E18: =SUM('Passagers Nat'!CL19) -> 0 | G18: Rondes effectuées | H18: =SUM('Passagers Inter'!CX18) -> 1 | J18: Rondes effectuées | K18: 1 | N18: 13 | O18: =VLOOKUP(N18,'Numéro licences'!$A$4:$B$32,2) -> PONT Patricia | P18: =SUM(E56) -> 10021 | Q18: =SUM(H56) -> 0 | R18: 10021 | T18: 13 | U18: =VLOOKUP(T18,'Numéro licences'!$A$4:$B$32,2) -> PONT Patricia | V18: =SUM(E55) -> 10021 | W18: =SUM(H55) -> 0 | X18: 10021
A19: 4 | B19: =VLOOKUP(A19,'Numéro licences'!$A$4:$B$32,2) -> FIEVET Nathalie | C19: Aller-Retour | D19: Km renseignés | E19: =SUM('Passagers Nat'!CL20) -> 0 | G19: Km renseignés | H19: =SUM('Passagers Inter'!CX19) -> 0 | J19: Km renseignés | K19: 0 | N19: 14 | O19: =VLOOKUP(N19,'Numéro licences'!$A$4:$B$32,2) -> MISEUR Carine | P19: =SUM(E60) -> 5164 | Q19: =SUM(H60) -> 0 | R19: 5164 | T19: 14 | U19: =VLOOKUP(T19,'Numéro licences'!$A$4:$B$32,2) -> MISEUR Carine | V19: =SUM(E59) -> 5164 | W19: =SUM(H59) -> 0 | X19: 5164
C20: Ronde | D20: Km confirmés | E20: =SUM('Passagers Nat'!CL21) -> 0 | G20: Km confirmés | H20: =SUM('Passagers Inter'!CX20) -> 0 | J20: Km confirmés | K20: 0 | N20: 15 | O20: =VLOOKUP(N20,'Numéro licences'!$A$4:$B$32,2) -> ARENZANA Jennifer | P20: =SUM(E64) -> 0 | Q20: =SUM(H64) -> 0 | R20: 0 | T20: 15 | U20: =VLOOKUP(T20,'Numéro licences'!$A$4:$B$32,2) -> ARENZANA Jennifer | V20: =SUM(E78) -> 0 | W20: =SUM(H78) -> 0 | X20: 0
D21: Rondes confirmées | E21: =SUM('Passagers Nat'!CL22) -> 0 | G21: Rondes confirmées | H21: =SUM('Passagers Inter'!CX21) -> 0 | J21: Rondes confirmées | K21: 0 | N21: 16 | O21: =VLOOKUP(N21,'Numéro licences'!$A$4:$B$32,2) -> 0 | P21: =SUM(E68) -> 0 | Q21: =SUM(H68) -> 0 | R21: 0 | T21: 16 | U21: =VLOOKUP(T21,'Numéro licences'!$A$4:$B$32,2) -> 0 | V21: =SUM(E64) -> 0 | W21: =SUM(H64) -> 0 | X21: 0
D22: Rondes effectuées | E22: =SUM('Passagers Nat'!CL23) -> 0 | G22: Rondes effectuées | H22: =SUM('Passagers Inter'!CX22) -> 0 | J22: Rondes effectuées | K22: 0 | N22: 17 | O22: =VLOOKUP(N22,'Numéro licences'!$A$4:$B$32,2) -> 0 | P22: =SUM(E72) -> 0 | Q22: =SUM(H72) -> 0 | R22: 0 | T22: 17 | U22: =VLOOKUP(T22,'Numéro licences'!$A$4:$B$32,2) -> 0 | V22: =SUM(E68) -> 0 | W22: =SUM(H68) -> 0 | X22: 0
A23: 5 | B23: =VLOOKUP(A23,'Numéro licences'!$A$4:$B$32,2) -> GOFFIN Guillaume | C23: Aller-Retour | D23: Km renseignés | E23: =SUM('Passagers Nat'!CL24) -> 0 | G23: Km renseignés | H23: =SUM('Passagers Inter'!CX23) -> 0 | J23: Km renseignés | K23: 0 | N23: 18 | O23: =VLOOKUP(N23,'Numéro licences'!$A$4:$B$32,2) -> 0 | P23: =SUM(E76) -> 0 | Q23: =SUM(H76) -> 0 | R23: 0 | T23: 18 | U23: =VLOOKUP(T23,'Numéro licences'!$A$4:$B$32,2) -> 0 | V23: =SUM(E72) -> 0 | W23: =SUM(H72) -> 0 | X23: 0
C24: Ronde | D24: Km confirmés | E24: =SUM('Passagers Nat'!CL25) -> 0 | G24: Km confirmés | H24: =SUM('Passagers Inter'!CX24) -> 0 | J24: Km confirmés | K24: 0 | N24: 19 | O24: =VLOOKUP(N24,'Numéro licences'!$A$4:$B$32,2) -> 0 | P24: =SUM(E80) -> 0 | Q24: =SUM(H80) -> 0 | R24: 0 | T24: 19 | U24: =VLOOKUP(T24,'Numéro licences'!$A$4:$B$32,2) -> 0 | V24: =SUM(E76) -> 0 | W24: =SUM(H76) -> 0 | X24: 0
D25: Rondes confirmées | E25: =SUM('Passagers Nat'!CL26) -> 0 | G25: Rondes confirmées | H25: =SUM('Passagers Inter'!CX25) -> 0 | J25: Rondes confirmées | K25: 0 | N25: 20 | O25: =VLOOKUP(N25,'Numéro licences'!$A$4:$B$32,2) -> 0 | P25: =SUM(E84) -> 0 | Q25: =SUM(H84) -> 0 | R25: 0 | T25: 20 | U25: =VLOOKUP(T25,'Numéro licences'!$A$4:$B$32,2) -> 0 | V25: =SUM(E80) -> 0 | W25: =SUM(H80) -> 0 | X25: 0
D26: Rondes effectuées | E26: =SUM('Passagers Nat'!CL27) -> 0 | G26: Rondes effectuées | H26: =SUM('Passagers Inter'!CX26) -> 0 | J26: Rondes effectuées | K26: 0 | N26: 21 | O26: =VLOOKUP(N26,'Numéro licences'!$A$4:$B$32,2) -> 0 | P26: =SUM(E88) -> 0 | Q26: =SUM(H88) -> 0 | R26: 0 | T26: 21 | U26: =VLOOKUP(T26,'Numéro licences'!$A$4:$B$32,2) -> 0 | V26: =SUM(E87) -> 0 | W26: =SUM(H87) -> 0 | X26: 0
A27: 6 | B27: =VLOOKUP(A27,'Numéro licences'!$A$4:$B$32,2) -> GOUGEUL Sophie | C27: Aller-Retour | D27: Km renseignés | E27: =SUM('Passagers Nat'!CL28) -> 7483 | G27: Km renseignés | H27: =SUM('Passagers Inter'!CX27) -> 12303 | J27: Km renseignés | K27: 19786 | N27: 22 | O27: =VLOOKUP(N27,'Numéro licences'!$A$4:$B$32,2) -> 0 | P27: =SUM(E92) -> 0 | Q27: =SUM(H92) -> 0 | R27: 0 | T27: 22 | U27: =VLOOKUP(T27,'Numéro licences'!$A$4:$B$32,2) -> 0 | V27: =SUM(E91) -> 0 | W27: =SUM(H91) -> 0 | X27: 0
C28: Ronde | D28: Km confirmés | E28: =SUM('Passagers Nat'!CL29) -> 7483 | G28: Km confirmés | H28: =SUM('Passagers Inter'!CX28) -> 12303 | J28: Km confirmés | K28: 19786 | N28: 23 | O28: =VLOOKUP(N28,'Numéro licences'!$A$4:$B$32,2) -> 0 | P28: =SUM(E96) -> 0 | Q28: =SUM(H96) -> 0 | R28: 0 | T28: 23 | U28: =VLOOKUP(T28,'Numéro licences'!$A$4:$B$32,2) -> 0 | V28: =SUM(E95) -> 0 | W28: =SUM(H95) -> 0 | X28: 0
D29: Rondes confirmées | E29: =SUM('Passagers Nat'!CL30) -> 24 | G29: Rondes confirmées | H29: =SUM('Passagers Inter'!CX29) -> 8 | J29: Rondes confirmées | K29: 32 | N29: 24 | O29: =VLOOKUP(N29,'Numéro licences'!$A$4:$B$32,2) -> 0 | P29: =SUM(E100) -> 0 | Q29: =SUM(H100) -> 0 | R29: 0 | T29: 24 | U29: =VLOOKUP(T29,'Numéro licences'!$A$4:$B$32,2) -> 0 | V29: =SUM(E99) -> 0 | W29: =SUM(H99) -> 0 | X29: 0
D30: Rondes effectuées | E30: =SUM('Passagers Nat'!CL31) -> 22 | G30: Rondes effectuées | H30: =SUM('Passagers Inter'!CX30) -> 8 | J30: Rondes effectuées | K30: 30 | N30: 25 | O30: =VLOOKUP(N30,'Numéro licences'!$A$4:$B$32,2) -> 0 | P30: =SUM(E104) -> 0 | Q30: =SUM(H104) -> 0 | R30: 0 | T30: 25 | U30: =VLOOKUP(T30,'Numéro licences'!$A$4:$B$32,2) -> 0 | V30: =SUM(E103) -> 0 | W30: =SUM(H103) -> 0 | X30: 0
A31: 7 | B31: =VLOOKUP(A31,'Numéro licences'!$A$4:$B$32,2) -> GREGORICS Kathy | C31: Aller-Retour | D31: Km renseignés | E31: =SUM('Passagers Nat'!CL32) -> 360 | G31: Km renseignés | H31: =SUM('Passagers Inter'!CX31) -> 0 | J31: Km renseignés | K31: 360 | N31: 26 | O31: =VLOOKUP(N31,'Numéro licences'!$A$4:$B$32,2) -> 0 | P31: =SUM(E108) -> 0 | Q31: =SUM(H108) -> 0 | R31: 0 | T31: 26 | U31: =VLOOKUP(T31,'Numéro licences'!$A$4:$B$32,2) -> 0 | V31: =SUM(E107) -> 0 | W31: =SUM(H107) -> 0 | X31: 0
C32: Ronde | D32: Km confirmés | E32: =SUM('Passagers Nat'!CL33) -> 0 | G32: Km confirmés | H32: =SUM('Passagers Inter'!CX32) -> 0 | J32: Km confirmés | K32: 0 | N32: 27 | O32: =VLOOKUP(N32,'Numéro licences'!$A$4:$B$32,2) -> 0 | P32: =SUM(E112) -> 0 | Q32: =SUM(H112) -> 0 | R32: 0 | T32: 27 | U32: =VLOOKUP(T32,'Numéro licences'!$A$4:$B$32,2) -> 0 | V32: =SUM(E111) -> 0 | W32: =SUM(H111) -> 0 | X32: 0
D33: Rondes confirmées | E33: =SUM('Passagers Nat'!CL34) -> 0 | G33: Rondes confirmées | H33: =SUM('Passagers Inter'!CX33) -> 0 | J33: Rondes confirmées | K33: 0 | N33: 28 | O33: =VLOOKUP(N33,'Numéro licences'!$A$4:$B$32,2) -> 0 | P33: =SUM(E116) -> 0 | Q33: =SUM(H116) -> 0 | R33: 0 | T33: 28 | U33: =VLOOKUP(T33,'Numéro licences'!$A$4:$B$32,2) -> 0 | V33: =SUM(E115) -> 0 | W33: =SUM(H115) -> 0 | X33: 0
D34: Rondes effectuées | E34: =SUM('Passagers Nat'!CL35) -> 0 | G34: Rondes effectuées | H34: =SUM('Passagers Inter'!CX34) -> 0 | J34: Rondes effectuées | K34: 0 | N34: 29 | O34: =VLOOKUP(N34,'Numéro licences'!$A$4:$B$32,2) -> 0 | P34: =SUM(E120) -> 0 | Q34: =SUM(H120) -> 0 | R34: 0 | T34: 29 | U34: =VLOOKUP(T34,'Numéro licences'!$A$4:$B$32,2) -> 0 | V34: =SUM(E119) -> 0 | W34: =SUM(H119) -> 0 | X34: 0
A35: 8 | B35: =VLOOKUP(A35,'Numéro licences'!$A$4:$B$32,2) -> LAMBILLON Anne | C35: Aller-Retour | D35: Km renseignés | E35: =SUM('Passagers Nat'!CL36) -> 360 | G35: Km renseignés | H35: =SUM('Passagers Inter'!CX35) -> 0 | J35: Km renseignés | K35: 360 | P35: =SUM(R6:R34) -> 44337 | Q35: =SUM(Q6:Q34) -> 16904 | R35: =SUM(P35:Q35) -> 61241
C36: Ronde | D36: Km confirmés | E36: =SUM('Passagers Nat'!CL37) -> 360 | G36: Km confirmés | H36: =SUM('Passagers Inter'!CX36) -> 0 | J36: Km confirmés | K36: 360 | P36: =SUM(P35/R35) -> 0.7239757679 | Q36: =SUM(Q35/R35) -> 0.2760242321
D37: Rondes confirmées | E37: =SUM('Passagers Nat'!CL38) -> 2 | G37: Rondes confirmées | H37: =SUM('Passagers Inter'!CX37) -> 0 | J37: Rondes confirmées | K37: 2
D38: Rondes effectuées | E38: =SUM('Passagers Nat'!CL39) -> 0 | G38: Rondes effectuées | H38: =SUM('Passagers Inter'!CX38) -> 0 | J38: Rondes effectuées | K38: 0 | V38: =SUM(V6:V37) -> 27793 | W38: =SUM(W6:W37) -> 16904 | X38: =SUM(V38:W38) -> 44697
A39: 9 | B39: =VLOOKUP(A39,'Numéro licences'!$A$4:$B$32,2) -> LAMIROY Anne | C39: Aller-Retour | D39: Km renseignés | E39: =SUM('Passagers Nat'!CL40) -> 0 | G39: Km renseignés | H39: =SUM('Passagers Inter'!CX39) -> 1056 | J39: Km renseignés | K39: 1056 | V39: =SUM(V38/X38) -> 0.62180907 | W39: =SUM(W38/X38) -> 0.37819093
C40: Ronde | D40: Km confirmés | E40: =SUM('Passagers Nat'!CL41) -> 0 | G40: Km confirmés | H40: =SUM('Passagers Inter'!CX40) -> 1056 | J40: Km confirmés | K40: 1056 | V40: NAT | W40: INT
D41: Rondes confirmées | E41: =SUM('Passagers Nat'!CL42) -> 0 | G41: Rondes confirmées | H41: =SUM('Passagers Inter'!CX41) -> 1 | J41: Rondes confirmées | K41: 1
D42: Rondes effectuées | E42: =SUM('Passagers Nat'!CL43) -> 0 | G42: Rondes effectuées | H42: =SUM('Passagers Inter'!CX42) -> 1 | J42: Rondes effectuées | K42: 1
A43: 10 | B43: =VLOOKUP(A43,'Numéro licences'!$A$4:$B$32,2) -> LEROY Laure | C43: Aller-Retour | D43: Km renseignés | E43: =SUM('Passagers Nat'!CL44) -> 3321 | G43: Km renseignés | H43: =SUM('Passagers Inter'!CX43) -> 2203 | J43: Km renseignés | K43: 5524
C44: Ronde | D44: Km confirmés | E44: =SUM('Passagers Nat'!CL45) -> 3321 | G44: Km confirmés | H44: =SUM('Passagers Inter'!CX44) -> 2203 | J44: Km confirmés | K44: 5524
D45: Rondes confirmées | E45: =SUM('Passagers Nat'!CL46) -> 9 | G45: Rondes confirmées | H45: =SUM('Passagers Inter'!CX45) -> 1 | J45: Rondes confirmées | K45: 10
D46: Rondes effectuées | E46: =SUM('Passagers Nat'!CL47) -> 8 | G46: Rondes effectuées | H46: =SUM('Passagers Inter'!CX46) -> 1 | J46: Rondes effectuées | K46: 9
A47: 11 | B47: =VLOOKUP(A47,'Numéro licences'!$A$4:$B$32,2) -> MALLIEN Emelyne | C47: Aller-Retour | D47: Km renseignés | E47: =SUM('Passagers Nat'!CL48) -> 0 | G47: Km renseignés | H47: =SUM('Passagers Inter'!CX47) -> 0 | J47: Km renseignés | K47: 0
C48: Ronde | D48: Km confirmés | E48: =SUM('Passagers Nat'!CL49) -> 0 | G48: Km confirmés | H48: =SUM('Passagers Inter'!CX48) -> 0 | J48: Km confirmés | K48: 0
D49: Rondes confirmées | E49: =SUM('Passagers Nat'!CL50) -> 0 | G49: Rondes confirmées | H49: =SUM('Passagers Inter'!CX49) -> 0 | J49: Rondes confirmées | K49: 0
D50: Rondes effectuées | E50: =SUM('Passagers Nat'!CL51) -> 0 | G50: Rondes effectuées | H50: =SUM('Passagers Inter'!CX50) -> 0 | J50: Rondes effectuées | K50: 0
A51: 12 | B51: =VLOOKUP(A51,'Numéro licences'!$A$4:$B$32,2) -> PIERARD Anne-Sophie | C51: Aller-Retour | D51: Km renseignés | E51: =SUM('Passagers Nat'!CL52) -> 0 | G51: Km renseignés | H51: =SUM('Passagers Inter'!CX51) -> 0 | J51: Km renseignés | K51: 0
C52: Ronde | D52: Km confirmés | E52: =SUM('Passagers Nat'!CL53) -> 0 | G52: Km confirmés | H52: =SUM('Passagers Inter'!CX52) -> 0 | J52: Km confirmés | K52: 0
D53: Rondes confirmées | E53: =SUM('Passagers Nat'!CL54) -> 0 | G53: Rondes confirmées | H53: =SUM('Passagers Inter'!CX53) -> 0 | J53: Rondes confirmées | K53: 0
D54: Rondes effectuées | E54: =SUM('Passagers Nat'!CL55) -> 0 | G54: Rondes effectuées | H54: =SUM('Passagers Inter'!CX54) -> 0 | J54: Rondes effectuées | K54: 0
A55: 13 | B55: =VLOOKUP(A55,'Numéro licences'!$A$4:$B$32,2) -> PONT Patricia | C55: Aller-Retour | D55: Km renseignés | E55: =SUM('Passagers Nat'!CL56) -> 10021 | G55: Km renseignés | H55: =SUM('Passagers Inter'!CX55) -> 0 | J55: Km renseignés | K55: 10021
C56: Ronde | D56: Km confirmés | E56: =SUM('Passagers Nat'!CL57) -> 10021 | G56: Km confirmés | H56: =SUM('Passagers Inter'!CX56) -> 0 | J56: Km confirmés | K56: 10021
D57: Rondes confirmées | E57: =SUM('Passagers Nat'!CL58) -> 33 | G57: Rondes confirmées | H57: =SUM('Passagers Inter'!CX57) -> 0 | J57: Rondes confirmées | K57: 33
D58: Rondes effectuées | E58: =SUM('Passagers Nat'!CL59) -> 31 | G58: Rondes effectuées | H58: =SUM('Passagers Inter'!CX58) -> 0 | J58: Rondes effectuées | K58: 31
A59: 14 | B59: =VLOOKUP(A59,'Numéro licences'!$A$4:$B$32,2) -> MISEUR Carine | C59: Aller-Retour | D59: Km renseignés | E59: =SUM('Passagers Nat'!CL60) -> 5164 | G59: Km renseignés | H59: =SUM('Passagers Inter'!CX59) -> 0 | J59: Km renseignés | K59: 5164
C60: Ronde | D60: Km confirmés | E60: =SUM('Passagers Nat'!CL61) -> 5164 | G60: Km confirmés | H60: =SUM('Passagers Inter'!CX60) -> 0 | J60: Km confirmés | K60: 5164
D61: Rondes confirmées | E61: =SUM('Passagers Nat'!CL62) -> 16 | G61: Rondes confirmées | H61: =SUM('Passagers Inter'!CX61) -> 0 | J61: Rondes confirmées | K61: 16
D62: Rondes effectuées | E62: =SUM('Passagers Nat'!CL63) -> 16 | G62: Rondes effectuées | H62: =SUM('Passagers Inter'!CX62) -> 0 | J62: Rondes effectuées | K62: 16
A63: 15 | B63: =VLOOKUP(A63,'Numéro licences'!$A$4:$B$32,2) -> ARENZANA Jennifer | C63: Aller-Retour | D63: Km renseignés | E63: =SUM('Passagers Nat'!CL64) -> 779 | G63: Km renseignés | H63: =SUM('Passagers Inter'!CX63) -> 0 | J63: Km renseignés | K63: 779
C64: Ronde | D64: Km confirmés | E64: =SUM('Passagers Nat'!CL65) -> 0 | G64: Km confirmés | H64: =SUM('Passagers Inter'!CX64) -> 0 | J64: Km confirmés | K64: 0
D65: Rondes confirmées | E65: =SUM('Passagers Nat'!CL66) -> 0 | G65: Rondes confirmées | H65: =SUM('Passagers Inter'!CX65) -> 0 | J65: Rondes confirmées | K65: 0
D66: Rondes effectuées | E66: =SUM('Passagers Nat'!CL67) -> 3 | G66: Rondes effectuées | H66: =SUM('Passagers Inter'!CX66) -> 0 | J66: Rondes effectuées | K66: 3
A67: 16 | B67: =VLOOKUP(A67,'Numéro licences'!$A$4:$B$32,2) -> 0 | C67: Aller-Retour | D67: Km renseignés | E67: =SUM('Passagers Nat'!CL68) -> 0 | G67: Km renseignés | H67: =SUM('Passagers Inter'!CX67) -> 0 | J67: Km renseignés | K67: 0
C68: Ronde | D68: Km confirmés | E68: =SUM('Passagers Nat'!CL69) -> 0 | G68: Km confirmés | H68: =SUM('Passagers Inter'!CX68) -> 0 | J68: Km confirmés | K68: 0
D69: Rondes confirmées | E69: =SUM('Passagers Nat'!CL70) -> 0 | G69: Rondes confirmées | H69: =SUM('Passagers Inter'!CX69) -> 0 | J69: Rondes confirmées | K69: 0
D70: Rondes effectuées | E70: =SUM('Passagers Nat'!CL71) -> 0 | G70: Rondes effectuées | H70: =SUM('Passagers Inter'!CX70) -> 0 | J70: Rondes effectuées | K70: 0
A71: 17 | B71: =VLOOKUP(A71,'Numéro licences'!$A$4:$B$32,2) -> 0 | C71: Aller-Retour | D71: Km renseignés | E71: =SUM('Passagers Nat'!CL72) -> 0 | G71: Km renseignés | H71: =SUM('Passagers Inter'!CX71) -> 0 | J71: Km renseignés | K71: 0
C72: Ronde | D72: Km confirmés | E72: =SUM('Passagers Nat'!CL73) -> 0 | G72: Km confirmés | H72: =SUM('Passagers Inter'!CX72) -> 0 | J72: Km confirmés | K72: =SUM(E72+H72) -> 0
D73: Rondes confirmées | E73: =SUM('Passagers Nat'!CL74) -> 0 | G73: Rondes confirmées | H73: =SUM('Passagers Inter'!CX73) -> 0 | J73: Rondes confirmées | K73: 0
D74: Rondes effectuées | E74: =SUM('Passagers Nat'!CL75) -> 0 | G74: Rondes effectuées | H74: =SUM('Passagers Inter'!CX74) -> 0 | J74: Rondes effectuées | K74: 0
A75: 18 | B75: =VLOOKUP(A75,'Numéro licences'!$A$4:$B$32,2) -> 0 | C75: Aller-Retour | D75: Km renseignés | E75: =SUM('Passagers Nat'!CL76) -> 0 | G75: Km renseignés | H75: =SUM('Passagers Inter'!CX75) -> 0 | J75: Km renseignés | K75: 0
C76: Ronde | D76: Km confirmés | E76: =SUM('Passagers Nat'!CL77) -> 0 | G76: Km confirmés | H76: =SUM('Passagers Inter'!CX76) -> 0 | J76: Km confirmés | K76: 0
D77: Rondes confirmées | E77: =SUM('Passagers Nat'!CL78) -> 0 | G77: Rondes confirmées | H77: =SUM('Passagers Inter'!CX77) -> 0 | J77: Rondes confirmées | K77: 0
D78: Rondes effectuées | E78: =SUM('Passagers Nat'!CL79) -> 0 | G78: Rondes effectuées | H78: =SUM('Passagers Inter'!CX78) -> 0 | J78: Rondes effectuées | K78: 0
A79: 19 | B79: =VLOOKUP(A79,'Numéro licences'!$A$4:$B$32,2) -> 0 | C79: Aller-Retour | D79: Km renseignés | E79: =SUM('Passagers Nat'!CL80) -> 0 | G79: Km renseignés | H79: =SUM('Passagers Inter'!CX79) -> 0 | J79: Km renseignés | K79: 0
C80: Ronde | D80: Km confirmés | E80: =SUM('Passagers Nat'!CL81) -> 0 | G80: Km confirmés | H80: =SUM('Passagers Inter'!CX80) -> 0 | J80: Km confirmés | K80: 0
D81: Rondes confirmées | E81: =SUM('Passagers Nat'!CL82) -> 0 | G81: Rondes confirmées | H81: =SUM('Passagers Inter'!CX81) -> 0 | J81: Rondes confirmées | K81: 0
D82: Rondes effectuées | E82: =SUM('Passagers Nat'!CL83) -> 0 | G82: Rondes effectuées | H82: =SUM('Passagers Inter'!CX82) -> 0 | J82: Rondes effectuées | K82: 0
A83: 20 | B83: =VLOOKUP(A83,'Numéro licences'!$A$4:$B$32,2) -> 0 | C83: Aller-Retour | D83: Km renseignés | E83: =SUM('Passagers Nat'!CL84) -> 0 | G83: Km renseignés | H83: =SUM('Passagers Inter'!CX83) -> 0 | J83: Km renseignés | K83: 0
C84: Ronde | D84: Km confirmés | E84: =SUM('Passagers Nat'!CL85) -> 0 | G84: Km confirmés | H84: =SUM('Passagers Inter'!CX84) -> 0 | J84: Km confirmés | K84: 0
D85: Rondes confirmées | E85: =SUM('Passagers Nat'!CL86) -> 0 | G85: Rondes confirmées | H85: =SUM('Passagers Inter'!CX85) -> 0 | J85: Rondes confirmées | K85: 0
D86: Rondes effectuées | E86: =SUM('Passagers Nat'!CL87) -> 0 | G86: Rondes effectuées | H86: =SUM('Passagers Inter'!CX86) -> 0 | J86: Rondes effectuées | K86: 0
A87: 21 | B87: =VLOOKUP(A87,'Numéro licences'!$A$4:$B$32,2) -> 0 | C87: Aller-Retour | D87: Km renseignés | E87: =SUM('Passagers Nat'!CL88) -> 0 | G87: Km renseignés | H87: =SUM('Passagers Inter'!CX87) -> 0 | J87: Km renseignés | K87: 0
C88: Ronde | D88: Km confirmés | E88: =SUM('Passagers Nat'!CL89) -> 0 | G88: Km confirmés | H88: =SUM('Passagers Inter'!CX88) -> 0 | J88: Km confirmés | K88: 0
D89: Rondes confirmées | E89: =SUM('Passagers Nat'!CL90) -> 0 | G89: Rondes confirmées | H89: =SUM('Passagers Inter'!CX89) -> 0 | J89: Rondes confirmées | K89: 0
D90: Rondes effectuées | E90: =SUM('Passagers Nat'!CL91) -> 0 | G90: Rondes effectuées | H90: =SUM('Passagers Inter'!CX90) -> 0 | J90: Rondes effectuées | K90: 0
A91: 22 | B91: =VLOOKUP(A91,'Numéro licences'!$A$4:$B$32,2) -> 0 | C91: Aller-Retour | D91: Km renseignés | E91: =SUM('Passagers Nat'!CL92) -> 0 | G91: Km renseignés | H91: =SUM('Passagers Inter'!CX91) -> 0 | J91: Km renseignés | K91: 0
C92: Ronde | D92: Km confirmés | E92: =SUM('Passagers Nat'!CL93) -> 0 | G92: Km confirmés | H92: =SUM('Passagers Inter'!CX92) -> 0 | J92: Km confirmés | K92: 0
D93: Rondes confirmées | E93: =SUM('Passagers Nat'!CL94) -> 0 | G93: Rondes confirmées | H93: =SUM('Passagers Inter'!CX93) -> 0 | J93: Rondes confirmées | K93: 0
D94: Rondes effectuées | E94: =SUM('Passagers Nat'!CL95) -> 0 | G94: Rondes effectuées | H94: =SUM('Passagers Inter'!CX94) -> 0 | J94: Rondes effectuées | K94: 0
A95: 23 | B95: =VLOOKUP(A95,'Numéro licences'!$A$4:$B$32,2) -> 0 | C95: Aller-Retour | D95: Km renseignés | E95: =SUM('Passagers Nat'!CL96) -> 0 | G95: Km renseignés | H95: =SUM('Passagers Inter'!CX95) -> 0 | J95: Km renseignés | K95: 0
C96: Ronde | D96: Km confirmés | E96: =SUM('Passagers Nat'!CL97) -> 0 | G96: Km confirmés | H96: =SUM('Passagers Inter'!CX96) -> 0 | J96: Km confirmés | K96: 0
D97: Rondes confirmées | E97: =SUM('Passagers Nat'!CL98) -> 0 | G97: Rondes confirmées | H97: =SUM('Passagers Inter'!CX97) -> 0 | J97: Rondes confirmées | K97: 0
D98: Rondes effectuées | E98: =SUM('Passagers Nat'!CL99) -> 0 | G98: Rondes effectuées | H98: =SUM('Passagers Inter'!CX98) -> 0 | J98: Rondes effectuées | K98: 0
A99: 24 | B99: =VLOOKUP(A99,'Numéro licences'!$A$4:$B$32,2) -> 0 | C99: Aller-Retour | D99: Km renseignés | E99: =SUM('Passagers Nat'!CL100) -> 0 | G99: Km renseignés | H99: =SUM('Passagers Inter'!CX99) -> 0 | J99: Km renseignés | K99: 0
C100: Ronde | D100: Km confirmés | E100: =SUM('Passagers Nat'!CL101) -> 0 | G100: Km confirmés | H100: =SUM('Passagers Inter'!CX100) -> 0 | J100: Km confirmés | K100: 0
D101: Rondes confirmées | E101: =SUM('Passagers Nat'!CL102) -> 0 | G101: Rondes confirmées | H101: =SUM('Passagers Inter'!CX101) -> 0 | J101: Rondes confirmées | K101: 0
D102: Rondes effectuées | E102: =SUM('Passagers Nat'!CL103) -> 0 | G102: Rondes effectuées | H102: =SUM('Passagers Inter'!CX102) -> 0 | J102: Rondes effectuées | K102: 0
A103: 25 | B103: =VLOOKUP(A103,'Numéro licences'!$A$4:$B$32,2) -> 0 | C103: Aller-Retour | D103: Km renseignés | E103: =SUM('Passagers Nat'!CL104) -> 0 | G103: Km renseignés | H103: =SUM('Passagers Inter'!CX103) -> 0 | J103: Km renseignés | K103: 0
C104: Ronde | D104: Km confirmés | E104: =SUM('Passagers Nat'!CL105) -> 0 | G104: Km confirmés | H104: =SUM('Passagers Inter'!CX104) -> 0 | J104: Km confirmés | K104: 0
D105: Rondes confirmées | E105: =SUM('Passagers Nat'!CL106) -> 0 | G105: Rondes confirmées | H105: =SUM('Passagers Inter'!CX105) -> 0 | J105: Rondes confirmées | K105: 0
D106: Rondes effectuées | E106: =SUM('Passagers Nat'!CL107) -> 0 | G106: Rondes effectuées | H106: =SUM('Passagers Inter'!CX106) -> 0 | J106: Rondes effectuées | K106: 0
A107: 26 | B107: =VLOOKUP(A107,'Numéro licences'!$A$4:$B$32,2) -> 0 | C107: Aller-Retour | D107: Km renseignés | E107: =SUM('Passagers Nat'!CL108) -> 0 | G107: Km renseignés | H107: =SUM('Passagers Inter'!CX107) -> 0 | J107: Km renseignés | K107: 0
C108: Ronde | D108: Km confirmés | E108: =SUM('Passagers Nat'!CL109) -> 0 | G108: Km confirmés | H108: =SUM('Passagers Inter'!CX108) -> 0 | J108: Km confirmés | K108: 0
D109: Rondes confirmées | E109: =SUM('Passagers Nat'!CL110) -> 0 | G109: Rondes confirmées | H109: =SUM('Passagers Inter'!CX109) -> 0 | J109: Rondes confirmées | K109: 0
D110: Rondes effectuées | E110: =SUM('Passagers Nat'!CL111) -> 0 | G110: Rondes effectuées | H110: =SUM('Passagers Inter'!CX110) -> 0 | J110: Rondes effectuées | K110: 0
A111: 27 | B111: =VLOOKUP(A111,'Numéro licences'!$A$4:$B$32,2) -> 0 | C111: Aller-Retour | D111: Km renseignés | E111: =SUM('Passagers Nat'!CL112) -> 0 | G111: Km renseignés | H111: =SUM('Passagers Inter'!CX111) -> 0 | J111: Km renseignés | K111: 0
C112: Ronde | D112: Km confirmés | E112: =SUM('Passagers Nat'!CL113) -> 0 | G112: Km confirmés | H112: =SUM('Passagers Inter'!CX112) -> 0 | J112: Km confirmés | K112: 0
D113: Rondes confirmées | E113: =SUM('Passagers Nat'!CL114) -> 0 | G113: Rondes confirmées | H113: =SUM('Passagers Inter'!CX113) -> 0 | J113: Rondes confirmées | K113: 0
D114: Rondes effectuées | E114: =SUM('Passagers Nat'!CL115) -> 0 | G114: Rondes effectuées | H114: =SUM('Passagers Inter'!CX114) -> 0 | J114: Rondes effectuées | K114: 0
A115: 28 | B115: =VLOOKUP(A115,'Numéro licences'!$A$4:$B$32,2) -> 0 | C115: Aller-Retour | D115: Km renseignés | E115: =SUM('Passagers Nat'!CL116) -> 0 | G115: Km renseignés | H115: =SUM('Passagers Inter'!CX115) -> 0 | J115: Km renseignés | K115: 0
C116: Ronde | D116: Km confirmés | E116: =SUM('Passagers Nat'!CL117) -> 0 | G116: Km confirmés | H116: =SUM('Passagers Inter'!CX116) -> 0 | J116: Km confirmés | K116: 0
D117: Rondes confirmées | E117: =SUM('Passagers Nat'!CL118) -> 0 | G117: Rondes confirmées | H117: =SUM('Passagers Inter'!CX117) -> 0 | J117: Rondes confirmées | K117: 0
D118: Rondes effectuées | E118: =SUM('Passagers Nat'!CL119) -> 0 | G118: Rondes effectuées | H118: =SUM('Passagers Inter'!CX118) -> 0 | J118: Rondes effectuées | K118: 0
A119: 29 | B119: =VLOOKUP(A119,'Numéro licences'!$A$4:$B$32,2) -> 0 | C119: Aller-Retour | D119: Km renseignés | E119: =SUM('Passagers Nat'!CL120) -> 0 | G119: Km renseignés | H119: =SUM('Passagers Inter'!CX119) -> 0 | J119: Km renseignés | K119: 0
C120: Ronde | D120: Km confirmés | E120: =SUM('Passagers Nat'!CL121) -> 0 | G120: Km confirmés | H120: =SUM('Passagers Inter'!CX120) -> 0 | J120: Km confirmés | K120: 0
D121: Rondes confirmées | E121: =SUM('Passagers Nat'!CL122) -> 0 | G121: Rondes confirmées | H121: =SUM('Passagers Inter'!CX121) -> 0 | J121: Rondes confirmées | K121: 0
D122: Rondes effectuées | E122: =SUM('Passagers Nat'!CL123) -> 0 | G122: Rondes effectuées | H122: =SUM('Passagers Inter'!CX122) -> 0 | J122: Rondes effectuées | K122: 0
D125: Rondes confirmées | E125: =SUM(E9+E13+E17+E21+E25+E29+E33+E37+E41+E45+E49+E53+E57+E61+E65+E69+E73+E77+E81+E85+E89+E93+E97+E101+E105+E109+E113+E117+E121) -> 89 | G125: Rondes confirmées | H125: =SUM(H9+H13+H17+H21+H25+H29+H33+H37+H41+H45+H49+H53+H57+H61+H65+H69+H73+H77+H81+H85+H89+H93+H97+H101+H105+H109+H113+H117+H121) -> 11 | J125: Rondes confirmées | K125: =SUM(K9+K13+K17+K21+K25+K29+K33+K37+K41+K45+K49+K53+K57+K61+K65+K69+K73+K77+K81+K85+K89+K93+K97+K101+K105+K109+K113+K117+K121) -> 100
D126: Rondes effectuées | E126: =SUM(E10+E14+E18+E22+E26+E30+E34+E38+E42+E46+E50+E54+E58+E62+E66+E70+E74+E78+E82+E86+E90+E94+E98+E102+E106+E110+E114+E118+E122) -> 84 | G126: Rondes effectuées | H126: =SUM(H10+H14+H18+H22+H26+H30+H34+H38+H42+H46+H50+H54+H58+H62+H66+H70+H74+H78+H82+H86+H90+H94+H98+H102+H106+H110+H114+H118+H122) -> 11 | J126: Rondes effectuées | K126: =SUM(K10+K14+K18+K22+K26+K30+K34+K38+K42+K46+K50+K54+K58+K62+K66+K70+K74+K78+K82+K86+K90+K94+K98+K102+K106+K110+K114+K118+K122) -> 95
B132: Colonne1
A133: 1 | B133: ALAIMO Rosa
A134: =SUM(A133+1) -> 2 | B134: BRIDOUX Jacqueline
A135: =SUM(A134+1) -> 3 | B135: COSYNS Carine
A136: 4 | B136: DEHAUT Stéphane
A137: 5 | B137: GREGORICS Kathy
A138: 6 | B138: INGELS Chantal
A139: 7 | B139: LAMBILLON Anne
A140: 8 | B140: LAMIROY Anne
A141: 9 | B141: LEQUEUX Anne
A142: 10 | B142: LEROY Laure
A143: 11 | B143: PIROTTE Daisy
A144: 12 | B144: THOMAS Isabelle
A145: 13
A146: 14
A147: 15
A148: 16
A149: 17
A150: 18
A151: 19
A152: 20
A153: 21
A154: 22
A155: 23
A156: 24
A157: 25
A158: 26
A159: 27
A160: 28
A161: 29
A162: 30
A163: 31
A164: 32
A165: 33
A166: 34
A167: 35
A168: 36
A169: 37
A170: 38
A171: 39
A172: 40
A173: 41
A174: 42
A175: 43
A176: =SUM(A175+1) -> 44
A177: 45
A178: 46

Sheet Pilotes Nat
D1: 1 | E1: =SUM(D1+1) -> 2 | F1: =SUM(E1+1) -> 3 | G1: 4 | H1: 5 | I1: 6 | J1: 7 | K1: 8 | L1: 9 | M1: 10 | N1: 11 | O1: 12 | P1: 13 | Q1: 14 | R1: 15 | S1: 16 | T1: 17 | U1: 18 | V1: 19 | W1: 20 | X1: 21 | Y1: 22 | Z1: 23 | AA1: 24 | AB1: 25 | AC1: 26 | AD1: 27 | AE1: 28 | AF1: 29 | AG1: 30 | AH1: 31 | AI1: 32 | AJ1: 33 | AK1: 34 | AL1: 35 | AM1: 36 | AN1: 37 | AO1: 38 | AP1: 39 | AQ1: 40 | AR1: 41 | AS1: 42 | AT1: 43 | AU1: 44 | AV1: 45 | AW1: 46 | AX1: 47 | AY1: 48 | AZ1: 49 | BA1: 50 | BB1: 51 | BC1: 52 | BD1: 53 | BE1: 54 | BF1: 55 | BG1: 56 | BH1: 57 | BI1: 58 | BJ1: =SUM(BI1+1) -> 59 | BK1: =SUM(BJ1+1) -> 60 | BL1: =SUM(BK1+1) -> 61 | BM1: 62 | BR1: Hors FMB
D2: 902 | E2: 531 | F2: 516 | G2: 103 | H2: 904 | I2: 713 | J2: 912 | K2: 426 | L2: 721 | M2: 730 | N2: 726 | O2: 614 | P2: 716 | Q2: 533 | R2: 549 | S2: 427 | T2: 126 | U2: 419 | V2: 516 | W2: 721 | X2: 729 | Y2: 0 | Z2: 312 | AA2: 713 | AB2: 508 | AC2: 137 | AD2: 705 | AE2: 516 | AF2: 818 | AG2: 703 | AH2: 531 | AI2: 903 | AJ2: 427 | AK2: 710 | AL2: 726 | AM2: 921 | AN2: 103 | AO2: 549 | AP2: 818 | AQ2: 1000 | AR2: 406 | AS2: 902 | AT2: 730 | AU2: 426 | AV2: 703 | AW2: 908 | AX2: 705 | AY2: 136 | AZ2: 531 | BA2: 912 | BB2: 126 | BC2: 406 | BD2: 622 | BE2: 1000 | BF2: 332 | BG2: 508 | BH2: 332 | BI2: 710 | BJ2: 1000 | BK2: 1000 | BL2: 1000 | BM2: 1000
D3: 2023-02-12 | E3: 2023-02-26 | F3: 2023-03-05 | G3: 2023-03-12 | H3: 2023-03-18 | I3: 2023-03-19 | J3: 2023-03-26 | K3: 2023-04-02 | L3: 2023-04-09 | M3: 2023-04-10 | N3: 2023-04-16 | O3: 2023-04-22 | P3: 2023-04-23 | Q3: 2023-04-30 | R3: 2023-05-01 | S3: 2023-05-07 | T3: 2023-05-07 | U3: 2023-05-13 | V3: 2023-05-17 | W3: 2023-05-28 | X3: 2023-05-29 | Z3: 2023-06-10 | AA3: 2023-06-18 | AB3: 2023-06-18 | AC3: 2023-06-24 | AD3: 2023-06-25 | AE3: 2023-07-01 | AF3: 2023-07-01 | AG3: 2023-07-02 | AH3: 2023-07-08 | AI3: 2023-07-15 | AJ3: 2023-07-16 | AK3: 2023-07-21 | AL3: 2023-07-23 | AM3: 2023-07-29 | AN3: 2023-08-06 | AO3: 2023-08-06 | AP3: 2023-08-12 | AR3: 2023-08-20 | AS3: 2023-08-26 | AT3: 2023-08-27 | AU3: 2023-09-02 | AV3: 2023-09-03 | AW3: 2023-09-09 | AX3: 2023-09-10 | AY3: 2023-09-16 | AZ3: 2023-09-24 | BA3: 2023-09-24 | BB3: 2023-09-30 | BC3: 2023-10-08 | BD3: 2023-10-14 | BF3: 2023-10-29 | BG3: 2023-11-01 | BH3: 2023-11-05 | BI3: 2023-11-11 | BQ3: 2023-03-26 | BR3: 2023-03-25 | BS3: 2023-05-21
D4: =VLOOKUP(D2,'Kilomètre AR'!$A$1:$B$56,2) -> AMC GIJVERINKHOVE | E4: =VLOOKUP(E2,'Kilomètre AR'!$A$1:$B$56,2) -> MC HOESELT | F4: =VLOOKUP(F2,'Kilomètre AR'!$A$1:$B$56,2) -> MC LOTUS | G4: =VLOOKUP(G2,'Kilomètre AR'!$A$1:$B$56,2) -> KAMC HERENTALS | H4: =VLOOKUP(H2,'Kilomètre AR'!$A$1:$B$56,2) -> KAMC MENEN | I4: =VLOOKUP(I2,'Kilomètre AR'!$A$1:$B$56,2) -> MC ST SERVAIS | J4: =VLOOKUP(J2,'Kilomètre AR'!$A$1:$B$56,2) -> MTC ZEDELGEM | K4: =VLOOKUP(K2,'Kilomètre AR'!$A$1:$B$56,2) -> MTC WELKENRAEDT | L4: =VLOOKUP(L2,'Kilomètre AR'!$A$1:$B$56,2) -> MC LES PETITS GRIS Warisoulx | M4: =VLOOKUP(M2,'Kilomètre AR'!$A$1:$B$56,2) -> MC LES 4 & CO Assesse | N4: =VLOOKUP(N2,'Kilomètre AR'!$A$1:$B$56,2) -> MC BIKE AND TRIKE BELGIUM Dhuy | O4: =VLOOKUP(O2,'Kilomètre AR'!$A$1:$B$56,2) -> MC CHEVY RACING Libramont-Chevigny | P4: =VLOOKUP(P2,'Kilomètre AR'!$A$1:$B$56,2) -> AMC FLOREFFE | Q4: =VLOOKUP(Q2,'Kilomètre AR'!$A$1:$B$56,2) -> MTC 13 Leopoldsburg | R4: =VLOOKUP(R2,'Kilomètre AR'!$A$1:$B$56,2) -> MTC WELLEN | S4: =VLOOKUP(S2,'Kilomètre AR'!$A$1:$B$56,2) -> MC ZEBUS | T4: =VLOOKUP(T2,'Kilomètre AR'!$A$1:$B$56,2) -> MTC TOERVRIENDEN Berendrecht | U4: =VLOOKUP(U2,'Kilomètre AR'!$A$1:$B$56,2) -> AMC ST VITH | V4: =VLOOKUP(V2,'Kilomètre AR'!$A$1:$B$56,2) -> MC LOTUS | W4: =VLOOKUP(W2,'Kilomètre AR'!$A$1:$B$56,2) -> MC LES PETITS GRIS Warisoulx | X4: =VLOOKUP(X2,'Kilomètre AR'!$A$1:$B$56,2) -> VIROINVAL MOTOR SPORT Dourbes | Y4: =VLOOKUP(Y2,'Kilomètre AR'!$A$1:$B$56,2) -> RONDE FMB | Z4: =VLOOKUP(Z2,'Kilomètre AR'!$A$1:$B$56,2) -> MC RESSAIX | AA4: =VLOOKUP(AA2,'Kilomètre AR'!$A$1:$B$56,2) -> MC ST SERVAIS | AB4: =VLOOKUP(AB2,'Kilomètre AR'!$A$1:$B$56,2) -> AMC KOERSEL | AC4: =VLOOKUP(AC2,'Kilomètre AR'!$A$1:$B$56,2) -> MTC YELLS ARMY Berchem | AD4: =VLOOKUP(AD2,'Kilomètre AR'!$A$1:$B$56,2) -> MC DINANT | AE4: =VLOOKUP(AE2,'Kilomètre AR'!$A$1:$B$56,2) -> MC LOTUS | AF4: =VLOOKUP(AF2,'Kilomètre AR'!$A$1:$B$56,2) -> MOTORSPORT Aalst | AG4: =VLOOKUP(AG2,'Kilomètre AR'!$A$1:$B$56,2) -> R CINEY MC | AH4: =VLOOKUP(AH2,'Kilomètre AR'!$A$1:$B$56,2) -> MC HOESELT | AI4: =VLOOKUP(AI2,'Kilomètre AR'!$A$1:$B$56,2) -> AMSC LEIELAND Wervik | AJ4: =VLOOKUP(AJ2,'Kilomètre AR'!$A$1:$B$56,2) -> MC ZEBUS | AK4: =VLOOKUP(AK2,'Kilomètre AR'!$A$1:$B$56,2) -> MC MOLIGNARD | AL4: =VLOOKUP(AL2,'Kilomètre AR'!$A$1:$B$56,2) -> MC BIKE AND TRIKE BELGIUM Dhuy | AM4: =VLOOKUP(AM2,'Kilomètre AR'!$A$1:$B$56,2) -> MTC VRIJBOS Houthulst | AN4: =VLOOKUP(AN2,'Kilomètre AR'!$A$1:$B$56,2) -> KAMC HERENTALS | AO4: =VLOOKUP(AO2,'Kilomètre AR'!$A$1:$B$56,2) -> MTC WELLEN | AP4: =VLOOKUP(AP2,'Kilomètre AR'!$A$1:$B$56,2) -> MOTORSPORT Aalst | AQ4: =VLOOKUP(AQ2,'Kilomètre AR'!$A$1:$B$56,2) -> FREE | AR4: =VLOOKUP(AR2,'Kilomètre AR'!$A$1:$B$56,2) -> RAMC EUPEN | AS4: =VLOOKUP(AS2,'Kilomètre AR'!$A$1:$B$56,2) -> AMC GIJVERINKHOVE | AT4: =VLOOKUP(AT2,'Kilomètre AR'!$A$1:$B$56,2) -> MC LES 4 & CO Assesse | AU4: =VLOOKUP(AU2,'Kilomètre AR'!$A$1:$B$56,2) -> MTC WELKENRAEDT | AV4: =VLOOKUP(AV2,'Kilomètre AR'!$A$1:$B$56,2) -> R CINEY MC | AW4: =VLOOKUP(AW2,'Kilomètre AR'!$A$1:$B$56,2) -> AMC POPERINGE | AX4: =VLOOKUP(AX2,'Kilomètre AR'!$A$1:$B$56,2) -> MC DINANT | AY4: =VLOOKUP(AY2,'Kilomètre AR'!$A$1:$B$56,2) -> MTC AMIGO'S Schoten | AZ4: =VLOOKUP(AZ2,'Kilomètre AR'!$A$1:$B$56,2) -> MC HOESELT | BA4: =VLOOKUP(BA2,'Kilomètre AR'!$A$1:$B$56,2) -> MTC ZEDELGEM | BB4: =VLOOKUP(BB2,'Kilomètre AR'!$A$1:$B$56,2) -> MTC TOERVRIENDEN Berendrecht | BC4: =VLOOKUP(BC2,'Kilomètre AR'!$A$1:$B$56,2) -> RAMC EUPEN | BD4: =VLOOKUP(BD2,'Kilomètre AR'!$A$1:$B$56,2) -> MC DÜREN | BE4: =VLOOKUP(BE2,'Kilomètre AR'!$A$1:$B$56,2) -> FREE | BF4: =VLOOKUP(BF2,'Kilomètre AR'!$A$1:$B$56,2) -> MC BUTZ BIKERS 95 Ecaussinnes | BG4: =VLOOKUP(BG2,'Kilomètre AR'!$A$1:$B$56,2) -> AMC KOERSEL | BH4: =VLOOKUP(BH2,'Kilomètre AR'!$A$1:$B$56,2) -> MC BUTZ BIKERS 95 Ecaussinnes | BI4: =VLOOKUP(BI2,'Kilomètre AR'!$A$1:$B$56,2) -> MC MOLIGNARD | BJ4: =VLOOKUP(BJ2,'Kilomètre AR'!$A$1:$B$56,2) -> FREE | BK4: =VLOOKUP(BK2,'Kilomètre AR'!$A$1:$B$56,2) -> FREE | BL4: =VLOOKUP(BL2,'Kilomètre AR'!$A$1:$B$56,2) -> FREE | BM4: =VLOOKUP(BM2,'Kilomètre AR'!$A$1:$B$56,2) -> FREE | BQ4: Offrez-moi la lune | BR4: MTC WALLONIE | BS4: MC Les Spectres
B5: Aller-Retour | D5: =VLOOKUP(D2,'Kilomètre AR'!$A$1:$D$56,4) -> 394 | E5: =VLOOKUP(E2,'Kilomètre AR'!$A$1:$D$56,4) -> 186 | F5: =VLOOKUP(F2,'Kilomètre AR'!$A$1:$D$56,4) -> 160 | G5: =VLOOKUP(G2,'Kilomètre AR'!$A$1:$D$56,4) -> 266 | H5: =VLOOKUP(H2,'Kilomètre AR'!$A$1:$D$56,4) -> 310 | I5: =VLOOKUP(I2,'Kilomètre AR'!$A$1:$D$56,4) -> 0 | J5: =VLOOKUP(J2,'Kilomètre AR'!$A$1:$D$56,4) -> 338 | K5: =VLOOKUP(K2,'Kilomètre AR'!$A$1:$D$56,4) -> 204 | L5: =VLOOKUP(L2,'Kilomètre AR'!$A$1:$D$56,4) -> 20 | M5: =VLOOKUP(M2,'Kilomètre AR'!$A$1:$D$56,4) -> 44 | N5: =VLOOKUP(N2,'Kilomètre AR'!$A$1:$D$56,4) -> 34 | O5: =VLOOKUP(O2,'Kilomètre AR'!$A$1:$D$56,4) -> 174 | P5: =VLOOKUP(P2,'Kilomètre AR'!$A$1:$D$56,4) -> 18 | Q5: =VLOOKUP(Q2,'Kilomètre AR'!$A$1:$D$56,4) -> 268 | R5: =VLOOKUP(R2,'Kilomètre AR'!$A$1:$D$56,4) -> 156 | S5: =VLOOKUP(S2,'Kilomètre AR'!$A$1:$D$56,4) -> 118 | T5: =VLOOKUP(T2,'Kilomètre AR'!$A$1:$D$56,4) -> 254 | U5: =VLOOKUP(U2,'Kilomètre AR'!$A$1:$D$56,4) -> 284 | V5: 1462 | W5: =VLOOKUP(W2,'Kilomètre AR'!$A$1:$D$56,4) -> 20 | X5: =VLOOKUP(X2,'Kilomètre AR'!$A$1:$D$56,4) -> 164 | Y5: 38 | Z5: =VLOOKUP(Z2,'Kilomètre AR'!$A$1:$D$56,4) -> 132 | AA5: =VLOOKUP(AA2,'Kilomètre AR'!$A$1:$D$56,4) -> 0 | AB5: =VLOOKUP(AB2,'Kilomètre AR'!$A$1:$D$56,4) -> 260 | AC5: =VLOOKUP(AC2,'Kilomètre AR'!$A$1:$D$56,4) -> 204 | AD5: =VLOOKUP(AD2,'Kilomètre AR'!$A$1:$D$56,4) -> 86 | AE5: =VLOOKUP(AE2,'Kilomètre AR'!$A$1:$D$56,4) -> 160 | AF5: =VLOOKUP(AF2,'Kilomètre AR'!$A$1:$D$56,4) -> 204 | AG5: =VLOOKUP(AG2,'Kilomètre AR'!$A$1:$D$56,4) -> 68 | AH5: =VLOOKUP(AH2,'Kilomètre AR'!$A$1:$D$56,4) -> 186 | AI5: =VLOOKUP(AI2,'Kilomètre AR'!$A$1:$D$56,4) -> 332 | AJ5: =VLOOKUP(AJ2,'Kilomètre AR'!$A$1:$D$56,4) -> 118 | AK5: =VLOOKUP(AK2,'Kilomètre AR'!$A$1:$D$56,4) -> 18 | AL5: =VLOOKUP(AL2,'Kilomètre AR'!$A$1:$D$56,4) -> 34 | AM5: =VLOOKUP(AM2,'Kilomètre AR'!$A$1:$D$56,4) -> 374 | AN5: =VLOOKUP(AN2,'Kilomètre AR'!$A$1:$D$56,4) -> 266 | AO5: =VLOOKUP(AO2,'Kilomètre AR'!$A$1:$D$56,4) -> 156 | AP5: =VLOOKUP(AP2,'Kilomètre AR'!$A$1:$D$56,4) -> 204 | AQ5: =VLOOKUP(AQ2,'Kilomètre AR'!$A$1:$D$56,4) -> 0 | AR5: =VLOOKUP(AR2,'Kilomètre AR'!$A$1:$D$56,4) -> 210 | AS5: =VLOOKUP(AS2,'Kilomètre AR'!$A$1:$D$56,4) -> 394 | AT5: =VLOOKUP(AT2,'Kilomètre AR'!$A$1:$D$56,4) -> 44 | AU5: =VLOOKUP(AU2,'Kilomètre AR'!$A$1:$D$56,4) -> 204 | AV5: =VLOOKUP(AV2,'Kilomètre AR'!$A$1:$D$56,4) -> 68 | AW5: =VLOOKUP(AW2,'Kilomètre AR'!$A$1:$D$56,4) -> 376 | AX5: =VLOOKUP(AX2,'Kilomètre AR'!$A$1:$D$56,4) -> 86 | AY5: =VLOOKUP(AY2,'Kilomètre AR'!$A$1:$D$56,4) -> 224 | AZ5: =VLOOKUP(AZ2,'Kilomètre AR'!$A$1:$D$56,4) -> 186 | BA5: =VLOOKUP(BA2,'Kilomètre AR'!$A$1:$D$56,4) -> 338 | BB5: =VLOOKUP(BB2,'Kilomètre AR'!$A$1:$D$56,4) -> 254 | BC5: =VLOOKUP(BC2,'Kilomètre AR'!$A$1:$D$56,4) -> 210 | BD5: =VLOOKUP(BD2,'Kilomètre AR'!$A$1:$D$56,4) -> 280 | BE5: =VLOOKUP(BE2,'Kilomètre AR'!$A$1:$D$56,4) -> 0 | BF5: =VLOOKUP(BF2,'Kilomètre AR'!$A$1:$D$56,4) -> 118 | BG5: 164 | BH5: =VLOOKUP(BH2,'Kilomètre AR'!$A$1:$D$56,4) -> 118 | BI5: =VLOOKUP(BI2,'Kilomètre AR'!$A$1:$D$56,4) -> 18 | BJ5: =VLOOKUP(BJ2,'Kilomètre AR'!$A$1:$D$56,4) -> 0 | BK5: =VLOOKUP(BK2,'Kilomètre AR'!$A$1:$D$56,4) -> 0 | BL5: =VLOOKUP(BL2,'Kilomètre AR'!$A$1:$D$56,4) -> 0 | BM5: =VLOOKUP(BM2,'Kilomètre AR'!$A$1:$D$56,4) -> 0 | BQ5: 35 | BR5: 110 | BS5: 154 | BW5: -1 | BX5: -1 | BY5: -1 | BZ5: -1 | CA5: -1 | CB5: -1 | CC5: -1 | CD5: -1 | CE5: -1 | CF5: -1 | CG5: -1
B6: Ronde | D6: 130 | E6: 150 | F6: 140 | G6: 130 | H6: 120 | I6: 160 | J6: 150 | K6: 134 | L6: 173 | M6: 160 | N6: 160 | O6: 175 | P6: 180 | Q6: 179 | R6: 146 | S6: 170 | T6: 270 | U6: 190 | V6: 212 | W6: 200 | X6: 221 | Y6: 803 | Z6: 175 | AA6: 200 | AB6: 160 | AC6: 150 | AD6: 216 | AE6: 175 | AF6: 285 | AG6: 196 | AH6: 180 | AI6: 160 | AJ6: 160 | AK6: 195 | AL6: 167 | AM6: 300 | AN6: 150 | AO6: 185 | AP6: 250 | AR6: 200 | AS6: 220 | AT6: 240 | AU6: 200 | AV6: 220 | AW6: 153 | AX6: 188 | AY6: 180 | AZ6: 150 | BA6: 130 | BB6: 160 | BC6: 160 | BD6: 160 | BF6: 160 | BG6: 130 | BH6: 155 | BI6: 126 | BQ6: 270 | BR6: 200 | BS6: 180 | BW6: -1 | BX6: -1 | BY6: -1 | BZ6: -1 | CA6: -1 | CB6: -1 | CC6: -1 | CD6: -1 | CE6: -1 | CF6: -1 | CG6: -1
V7: Randonnée de l'amitié Holzgau / AU | BF7: 160 km au lieu de 118 km Départ de Villerot | BN7: Sous-Total FMB | BP7: Total FMB | CH7: Sous-Totaux Pirates | CJ7: Total Pirates | CL7: TOTAL | CP7: FMB | CQ7: Hors FMB | CR7: Total
A8: 1 | B8: =VLOOKUP(A8,'Numéro licences'!$H$4:$I$47,2) -> BALLION Pierre | C8: Aller-Retour | X8: 164 | AA8: 0 | BN8: =SUM(D8:BM8) -> 164 | BO8: Km renseignés | BP8: =SUM(BN8+BN9) -> 745 | CH8: =SUM(BQ8:CG8) -> 0 | CI8: Km renseignés | CJ8: =SUM(CH8+CH9) -> 0 | CK8: Km renseignés | CL8: =SUM(BP8+CJ8) -> 745 | CN8: 1 | CO8: =VLOOKUP(CN8,A8:B188,2) -> BALLION Pierre | CP8: =SUM(BP8) -> 745 | CQ8: =SUM(CJ8) -> 0 | CR8: =SUM(CP8+CQ8) -> 745
C9: Ronde | I9: 160 | X9: 221 | AA9: 200 | BN9: =SUM(D9:BM9) -> 581 | BO9: Km confirmés | BP9: =SUM(D11:BM11) -> 360 | CH9: =SUM(BQ9:CG9) -> 0 | CI9: Km confirmés | CJ9: =SUM(BQ11:CG11) -> 0 | CK9: Km confirmés | CL9: =SUM(CJ9+BP9) -> 360 | CN9: 2 | CO9: =VLOOKUP(CN9,A8:B188,2) -> BENET Jean-Pol | CP9: =SUM(BP12) -> 520 | CQ9: =SUM(CJ12) -> 0 | CR9: =SUM(CP9+CQ9) -> 520
D10: 0 | E10: 0 | F10: 0 | G10: 0 | H10: 0 | I10: 1 | J10: 0 | K10: 0 | L10: 0 | M10: 0 | N10: 0 | O10: 0 | P10: 0 | Q10: 0 | R10: 0 | S10: 0 | T10: 0 | U10: 0 | V10: 0 | W10: 0 | X10: 0 | Y10: 0 | Z10: 0 | AA10: 1 | AB10: 0 | AC10: 0 | AD10: 0 | AE10: 0 | AF10: 0 | AG10: 0 | AH10: 0 | AI10: 0 | AJ10: 0 | AK10: 0 | AL10: 0 | AM10: 0 | AN10: 0 | AO10: 0 | AP10: 0 | AQ10: 0 | AR10: 0 | AS10: 0 | AT10: 0 | AU10: 0 | AV10: 0 | AW10: 0 | AX10: 0 | AY10: 0 | AZ10: 0 | BA10: 0 | BB10: 0 | BC10: 0 | BD10: 0 | BE10: 0 | BF10: 0 | BG10: 0 | BH10: 0 | BI10: 0 | BJ10: 0 | BK10: 0 | BL10: 0 | BM10: 0 | BO10: Rondes confirmées | BP10: =SUM(C10:BM10) -> 2 | BQ10: 0 | BR10: 0 | BS10: 0 | BT10: 0 | BU10: 0 | BV10: 0 | BW10: 0 | BX10: 0 | BY10: 0 | BZ10: 0 | CA10: 0 | CB10: 0 | CC10: 0 | CD10: 0 | CE10: 0 | CF10: 0 | CG10: 0 | CI10: Rondes confirmées | CJ10: =SUM(BQ10:CH10) -> 0 | CK10: Rondes confirmées | CL10: =SUM(CJ10+BP10) -> 2 | CN10: 3 | CO10: =VLOOKUP(CN10,A8:B188,2) -> BERDOYES Yannick | CP10: =SUM(BP16) -> 385 | CQ10: =SUM(CJ16) -> 0 | CR10: =SUM(CP10+CQ10) -> 385
D11: =SUM((D8+D9)*D10) -> 0 | E11: 0 | F11: 0 | G11: 0 | H11: 0 | I11: 160 | J11: 0 | K11: 0 | L11: 0 | M11: 0 | N11: 0 | O11: 0 | P11: 0 | Q11: 0 | R11: 0 | S11: 0 | T11: 0 | U11: 0 | V11: 0 | W11: 0 | X11: 0 | Y11: 0 | Z11: 0 | AA11: 200 | AB11: 0 | AC11: 0 | AD11: 0 | AE11: 0 | AF11: 0 | AG11: 0 | AH11: 0 | AI11: 0 | AJ11: 0 | AK11: 0 | AL11: 0 | AM11: 0 | AN11: 0 | AO11: 0 | AP11: 0 | AQ11: 0 | AR11: 0 | AS11: 0 | AT11: 0 | AU11: 0 | AV11: 0 | AW11: 0 | AX11: 0 | AY11: 0 | AZ11: 0 | BA11: 0 | BB11: 0 | BC11: 0 | BD11: 0 | BE11: 0 | BF11: 0 | BG11: 0 | BH11: 0 | BI11: 0 | BJ11: =SUM((BJ8+BJ9)*BJ10) -> 0 | BK11: =SUM((BK8+BK9)*BK10) -> 0 | BL11: =SUM((BL8+BL9)*BL10) -> 0 | BM11: =SUM((BM8+BM9)*BM10) -> 0 | BO11: Rondes effectuées | BP11: =COUNTIF(D8:BM8,">0") -> 1 | BQ11: =SUM((BQ8+BQ9)*BQ10) -> 0 | BR11: 0 | BS11: 0 | BT11: 0 | BU11: 0 | BV11: 0 | BW11: 0 | BX11: 0 | BY11: 0 | BZ11: 0 | CA11: 0 | CB11: 0 | CC11: 0 | CD11: 0 | CE11: 0 | CF11: 0 | CG11: 0 | CI11: Rondes Effectuées | CJ11: =COUNTIF(BQ8:CG8,">0") -> 0 | CK11: Rondes effectuées | CL11: =SUM(CJ11+BP11) -> 1 | CN11: 4 | CO11: =VLOOKUP(CN11,A8:B188,2) -> BRUNEAU Denis-Claude | CP11: =SUM(BP20) -> 200 | CQ11: =SUM(CJ20) -> 0 | CR11: 200
A12: 2 | B12: =VLOOKUP(A12,'Numéro licences'!$H$4:$I$47,2) -> BENET Jean-Pol | C12: Aller-Retour | F12: 160 | W12: 20 | BN12: =SUM(D12:BM12) -> 180 | BO12: Km renseignés | BP12: =SUM(BN12+BN13) -> 520 | CH12: =SUM(BQ12:CG12) -> 0 | CI12: Km renseignés | CJ12: =SUM(CH12+CH13) -> 0 | CK12: Km renseignés | CL12: =SUM(BP12+CJ12) -> 520 | CN12: 5 | CO12: =VLOOKUP(CN12,A8:B188,2) -> DAVIN Philippe | CP12: =SUM(BP24) -> 2533 | CQ12: =SUM(CJ24) -> 0 | CR12: 2533
C13: Ronde | F13: 140 | W13: 200 | BN13: =SUM(D13:BM13) -> 340 | BO13: Km confirmés | BP13: =SUM(D15:BM15) -> 0 | CH13: =SUM(BQ13:CG13) -> 0 | CI13: Km confirmés | CJ13: =SUM(BQ15:CG15) -> 0 | CK13: Km confirmés | CL13: =SUM(CJ13+BP13) -> 0 | CN13: 6 | CO13: =VLOOKUP(CN13,A8:B188,2) -> DESCAMPS Geoffrey | CP13: =SUM(BP28) -> 200 | CQ13: =SUM(CJ28) -> 0 | CR13: 200
D14: 0 | E14: 0 | F14: 0 | G14: 0 | H14: 0 | I14: 0 | J14: 0 | K14: 0 | L14: 0 | M14: 0 | N14: 0 | O14: 0 | P14: 0 | Q14: 0 | R14: 0 | S14: 0 | T14: 0 | U14: 0 | V14: 0 | W14: 0 | X14: 0 | Y14: 0 | Z14: 0 | AA14: 0 | AB14: 0 | AC14: 0 | AD14: 0 | AE14: 0 | AF14: 0 | AG14: 0 | AH14: 0 | AI14: 0 | AJ14: 0 | AK14: 0 | AL14: 0 | AM14: 0 | AN14: 0 | AO14: 0 | AP14: 0 | AQ14: 0 | AR14: 0 | AS14: 0 | AT14: 0 | AU14: 0 | AV14: 0 | AW14: 0 | AX14: 0 | AY14: 0 | AZ14: 0 | BA14: 0 | BB14: 0 | BC14: 0 | BD14: 0 | BE14: 0 | BF14: 0 | BG14: 0 | BH14: 0 | BI14: 0 | BJ14: 0 | BK14: 0 | BL14: 0 | BM14: 0 | BO14: Rondes confirmées | BP14: =SUM(C14:BM14) -> 0 | BQ14: 0 | BR14: 0 | BS14: 0 | BT14: 0 | BU14: 0 | BV14: 0 | BW14: 0 | BX14: 0 | BY14: 0 | BZ14: 0 | CA14: 0 | CB14: 0 | CC14: 0 | CD14: 0 | CE14: 0 | CF14: 0 | CG14: 0 | CI14: Rondes confirmées | CJ14: =SUM(BQ14:CH14) -> 0 | CK14: Rondes confirmées | CL14: =SUM(CJ14+BP14) -> 0 | CN14: 7 | CO14: =VLOOKUP(CN14,A8:B188,2) -> DESMAREE Francis | CP14: =SUM(BP32) -> 20260 | CQ14: =SUM(CJ32) -> 0 | CR14: 20260
D15: =SUM((D12+D13)*D14) -> 0 | E15: 0 | F15: 0 | G15: 0 | H15: 0 | I15: 0 | J15: 0 | K15: 0 | L15: 0 | M15: 0 | N15: 0 | O15: 0 | P15: 0 | Q15: 0 | R15: 0 | S15: 0 | T15: 0 | U15: 0 | V15: 0 | W15: 0 | X15: 0 | Y15: 0 | Z15: 0 | AA15: 0 | AB15: 0 | AC15: 0 | AD15: 0 | AE15: 0 | AF15: 0 | AG15: 0 | AH15: 0 | AI15: 0 | AJ15: 0 | AK15: 0 | AL15: 0 | AM15: 0 | AN15: 0 | AO15: 0 | AP15: 0 | AQ15: 0 | AR15: 0 | AS15: 0 | AT15: 0 | AU15: 0 | AV15: 0 | AW15: 0 | AX15: 0 | AY15: 0 | AZ15: 0 | BA15: 0 | BB15: 0 | BC15: 0 | BD15: 0 | BE15: 0 | BF15: 0 | BG15: 0 | BH15: 0 | BI15: 0 | BJ15: =SUM((BJ12+BJ13)*BJ14) -> 0 | BK15: =SUM((BK12+BK13)*BK14) -> 0 | BL15: =SUM((BL12+BL13)*BL14) -> 0 | BM15: =SUM((BM12+BM13)*BM14) -> 0 | BO15: Rondes effectuées | BP15: =COUNTIF(D12:BM12,">0") -> 2 | BQ15: =SUM((BQ12+BQ13)*BQ14) -> 0 | BR15: 0 | BS15: 0 | BT15: 0 | BU15: 0 | BV15: 0 | BW15: 0 | BX15: 0 | BY15: 0 | BZ15: 0 | CA15: 0 | CB15: 0 | CC15: 0 | CD15: 0 | CE15: 0 | CF15: 0 | CG15: 0 | CI15: Rondes Effectuées | CJ15: =COUNTIF(BQ12:CG12,">0") -> 0 | CK15: Rondes effectuées | CL15: =SUM(CJ15+BP15) -> 2 | CN15: 8 | CO15: =VLOOKUP(CN15,A8:B188,2) -> DEWAERSEGHERS Francis | CP15: =SUM(BP36) -> 1831 | CQ15: =SUM(CJ36) -> 0 | CR15: 1831
A16: 3 | B16: =VLOOKUP(A16,'Numéro licences'!$H$4:$I$47,2) -> BERDOYES Yannick | C16: Aller-Retour | X16: 164 | BN16: =SUM(D16:BM16) -> 164 | BO16: Km renseignés | BP16: =SUM(BN16+BN17) -> 385 | CH16: =SUM(BQ16:CG16) -> 0 | CI16: Km renseignés | CJ16: =SUM(CH16+CH17) -> 0 | CK16: Km renseignés | CL16: =SUM(BP16+CJ16) -> 385 | CN16: 9 | CO16: =VLOOKUP(CN16,A8:B188,2) -> DHONDT Jerry | CP16: =SUM(BP40) -> 1429 | CQ16: =SUM(CJ40) -> 0 | CR16: 1429
C17: Ronde | X17: 221 | BN17: =SUM(D17:BM17) -> 221 | BO17: Km confirmés | BP17: =SUM(D19:BM19) -> 0 | CH17: =SUM(BQ17:CG17) -> 0 | CI17: Km confirmés | CJ17: =SUM(BQ19:CG19) -> 0 | CK17: Km confirmés | CL17: =SUM(CJ17+BP17) -> 0 | CN17: 10 | CO17: =VLOOKUP(CN17,A8:B188,2) -> DONY Marc | CP17: =SUM(BP44) -> 4923 | CQ17: =SUM(CJ44) -> 0 | CR17: 4923
D18: 0 | E18: 0 | F18: 0 | G18: 0 | H18: 0 | I18: 0 | J18: 0 | K18: 0 | L18: 0 | M18: 0 | N18: 0 | O18: 0 | P18: 0 | Q18: 0 | R18: 0 | S18: 0 | T18: 0 | U18: 0 | V18: 0 | W18: 0 | X18: 0 | Y18: 0 | Z18: 0 | AA18: 0 | AB18: 0 | AC18: 0 | AD18: 0 | AE18: 0 | AF18: 0 | AG18: 0 | AH18: 0 | AI18: 0 | AJ18: 0 | AK18: 0 | AL18: 0 | AM18: 0 | AN18: 0 | AO18: 0 | AP18: 0 | AQ18: 0 | AR18: 0 | AS18: 0 | AT18: 0 | AU18: 0 | AV18: 0 | AW18: 0 | AX18: 0 | AY18: 0 | AZ18: 0 | BA18: 0 | BB18: 0 | BC18: 0 | BD18: 0 | BE18: 0 | BF18: 0 | BG18: 0 | BH18: 0 | BI18: 0 | BJ18: 0 | BK18: 0 | BL18: 0 | BM18: 0 | BO18: Rondes confirmées | BP18: =SUM(C18:BM18) -> 0 | BQ18: 0 | BR18: 0 | BS18: 0 | BT18: 0 | BU18: 0 | BV18: 0 | BW18: 0 | BX18: 0 | BY18: 0 | BZ18: 0 | CA18: 0 | CB18: 0 | CC18: 0 | CD18: 0 | CE18: 0 | CF18: 0 | CG18: 0 | CI18: Rondes confirmées | CJ18: =SUM(BQ18:CH18) -> 0 | CK18: Rondes confirmées | CL18: =SUM(CJ18+BP18) -> 0 | CN18: 11 | CO18: =VLOOKUP(CN18,A8:B188,2) -> FAVRESSSE René | CP18: =SUM(BP48) -> 4194 | CQ18: =SUM(CJ48) -> 305 | CR18: 4499
D19: =SUM((D16+D17)*D18) -> 0 | E19: 0 | F19: 0 | G19: 0 | H19: 0 | I19: 0 | J19: 0 | K19: 0 | L19: 0 | M19: 0 | N19: 0 | O19: 0 | P19: 0 | Q19: 0 | R19: 0 | S19: 0 | T19: 0 | U19: 0 | V19: 0 | W19: 0 | X19: 0 | Y19: 0 | Z19: 0 | AA19: 0 | AB19: 0 | AC19: 0 | AD19: 0 | AE19: 0 | AF19: 0 | AG19: 0 | AH19: 0 | AI19: 0 | AJ19: 0 | AK19: 0 | AL19: 0 | AM19: 0 | AN19: 0 | AO19: 0 | AP19: 0 | AQ19: 0 | AR19: 0 | AS19: 0 | AT19: 0 | AU19: 0 | AV19: 0 | AW19: 0 | AX19: 0 | AY19: 0 | AZ19: 0 | BA19: 0 | BB19: 0 | BC19: 0 | BD19: 0 | BE19: 0 | BF19: 0 | BG19: 0 | BH19: 0 | BI19: 0 | BJ19: =SUM((BJ16+BJ17)*BJ18) -> 0 | BK19: =SUM((BK16+BK17)*BK18) -> 0 | BL19: =SUM((BL16+BL17)*BL18) -> 0 | BM19: =SUM((BM16+BM17)*BM18) -> 0 | BO19: Rondes effectuées | BP19: =COUNTIF(D16:BM16,">0") -> 1 | BQ19: =SUM((BQ16+BQ17)*BQ18) -> 0 | BR19: 0 | BS19: 0 | BT19: 0 | BU19: 0 | BV19: 0 | BW19: 0 | BX19: 0 | BY19: 0 | BZ19: 0 | CA19: 0 | CB19: 0 | CC19: 0 | CD19: 0 | CE19: 0 | CF19: 0 | CG19: 0 | CI19: Rondes Effectuées | CJ19: =COUNTIF(BQ16:CG16,">0") -> 0 | CK19: Rondes effectuées | CL19: =SUM(CJ19+BP19) -> 1 | CN19: 12 | CO19: =VLOOKUP(CN19,A8:B188,2) -> GOFFIN Amaury | CP19: =SUM(BP52) -> 0 | CQ19: =SUM(CJ52) -> 0 | CR19: 0
A20: 4 | B20: =VLOOKUP(A20,'Numéro licences'!$H$4:$I$47,2) -> BRUNEAU Denis-Claude | C20: Aller-Retour | AA20: 0 | BN20: =SUM(D20:BM20) -> 0 | BO20: Km renseignés | BP20: =SUM(BN20:BN21) -> 200 | CH20: =SUM(BQ20:CG20) -> 0 | CI20: Km renseignés | CJ20: =SUM(CH20+CH21) -> 0 | CK20: Km renseignés | CL20: =SUM(BP20+CJ20) -> 200 | CN20: 13 | CO20: =VLOOKUP(CN20,A8:B188,2) -> HINYOT Thierry | CP20: =SUM(BP56) -> 3197 | CQ20: =SUM(CJ56) -> 0 | CR20: 3197
C21: Ronde | AA21: 200 | BN21: =SUM(D21:BM21) -> 200 | BO21: Km confirmés | BP21: =SUM(D23:BM23) -> 200 | CH21: =SUM(BQ21:CG21) -> 0 | CI21: Km confirmés | CJ21: =SUM(BQ23:CG23) -> 0 | CK21: Km confirmés | CL21: =SUM(CJ21+BP21) -> 200 | CN21: 14 | CO21: =VLOOKUP(CN21,A8:B188,2) -> JAMOTTE Jean | CP21: =SUM(BP60) -> 15472 | CQ21: =SUM(CJ60) -> 0 | CR21: 15472
D22: 0 | E22: 0 | F22: 0 | G22: 0 | H22: 0 | I22: 0 | J22: 0 | K22: 0 | L22: 0 | M22: 0 | N22: 0 | O22: 0 | P22: 0 | Q22: 0 | R22: 0 | S22: 0 | T22: 0 | U22: 0 | V22: 0 | W22: 0 | X22: 0 | Y22: 0 | Z22: 0 | AA22: 1 | AB22: 0 | AC22: 0 | AD22: 0 | AE22: 0 | AF22: 0 | AG22: 0 | AH22: 0 | AI22: 0 | AJ22: 0 | AK22: 0 | AL22: 0 | AM22: 0 | AN22: 0 | AO22: 0 | AP22: 0 | AQ22: 0 | AR22: 0 | AS22: 0 | AT22: 0 | AU22: 0 | AV22: 0 | AW22: 0 | AX22: 0 | AY22: 0 | AZ22: 0 | BA22: 0 | BB22: 0 | BC22: 0 | BD22: 0 | BE22: 0 | BF22: 0 | BG22: 0 | BH22: 0 | BI22: 0 | BJ22: 0 | BK22: 0 | BL22: 0 | BM22: 0 | BO22: Rondes confirmées | BP22: =SUM(C22:BM22) -> 1 | BQ22: 0 | BR22: 0 | BS22: 0 | BT22: 0 | BU22: 0 | BV22: 0 | BW22: 0 | BX22: 0 | BY22: 0 | BZ22: 0 | CA22: 0 | CB22: 0 | CC22: 0 | CD22: 0 | CE22: 0 | CF22: 0 | CG22: 0 | CI22: Rondes confirmées | CJ22: =SUM(BQ22:CH22) -> 0 | CK22: Rondes confirmées | CL22: =SUM(CJ22+BP22) -> 1 | CN22: 15 | CO22: =VLOOKUP(CN22,A8:B188,2) -> LAMBOTTE Didier | CP22: =SUM(BP64) -> 0 | CQ22: =SUM(CJ64) -> 0 | CR22: 0
D23: =SUM((D20+D21)*D22) -> 0 | E23: 0 | F23: 0 | G23: 0 | H23: 0 | I23: 0 | J23: 0 | K23: 0 | L23: 0 | M23: 0 | N23: 0 | O23: 0 | P23: 0 | Q23: 0 | R23: 0 | S23: 0 | T23: 0 | U23: 0 | V23: 0 | W23: 0 | X23: 0 | Y23: 0 | Z23: 0 | AA23: 200 | AB23: 0 | AC23: 0 | AD23: 0 | AE23: 0 | AF23: 0 | AG23: 0 | AH23: 0 | AI23: 0 | AJ23: 0 | AK23: 0 | AL23: 0 | AM23: 0 | AN23: 0 | AO23: 0 | AP23: 0 | AQ23: 0 | AR23: 0 | AS23: 0 | AT23: 0 | AU23: 0 | AV23: 0 | AW23: 0 | AX23: 0 | AY23: 0 | AZ23: 0 | BA23: 0 | BB23: 0 | BC23: 0 | BD23: 0 | BE23: 0 | BF23: 0 | BG23: 0 | BH23: 0 | BI23: 0 | BJ23: =SUM((BJ20+BJ21)*BJ22) -> 0 | BK23: =SUM((BK20+BK21)*BK22) -> 0 | BL23: =SUM((BL20+BL21)*BL22) -> 0 | BM23: =SUM((BM20+BM21)*BM22) -> 0 | BO23: Rondes effectuées | BP23: =COUNTIF(D20:BM20,">0") -> 0 | BQ23: =SUM((BQ20+BQ21)*BQ22) -> 0 | BR23: 0 | BS23: 0 | BT23: 0 | BU23: 0 | BV23: 0 | BW23: 0 | BX23: 0 | BY23: 0 | BZ23: 0 | CA23: 0 | CB23: 0 | CC23: 0 | CD23: 0 | CE23: 0 | CF23: 0 | CG23: 0 | CI23: Rondes Effectuées | CJ23: =COUNTIF(BQ20:CG20,">0") -> 0 | CK23: Rondes effectuées | CL23: =SUM(CJ23+BP23) -> 0 | CN23: 16 | CO23: =VLOOKUP(CN23,A8:B188,2) -> LESCAL Thierry | CP23: =SUM(BP68) -> 10370 | CQ23: =SUM(CJ68) -> 0 | CR23: 10370
A24: 5 | B24: =VLOOKUP(A24,'Numéro licences'!$H$4:$I$47,2) -> DAVIN Philippe | C24: Aller-Retour | L24: 20 | M24: 44 | O24: 174 | U24: 284 | AA24: 0 | AR24: 210 | AT24: 44 | AV24: 68 | BD24: 280 | BI24: 18 | BN24: =SUM(D24:BM24) -> 1142 | BO24: Km renseignés | BP24: =SUM(BN24:BN25) -> 2533 | CH24: =SUM(BQ24:CG24) -> 0 | CI24: Km renseignés | CJ24: =SUM(CH24+CH25) -> 0 | CK24: Km renseignés | CL24: =SUM(BP24+CJ24) -> 2533 | CN24: 17 | CO24: =VLOOKUP(CN24,A8:B188,2) -> MALLIEN Philippe | CP24: =SUM(BP72) -> 624 | CQ24: =SUM(CJ72) -> 0 | CR24: 624
C25: Ronde | I25: 160 | L25: 0 | M25: 160 | O25: 175 | U25: 190 | AA25: 200 | AR25: 0 | AT25: 0 | AV25: 220 | BD25: 160 | BI25: 126 | BN25: =SUM(D25:BM25) -> 1391 | BO25: Km confirmés | BP25: =SUM(D27:BM27) -> 2533 | CH25: =SUM(BQ25:CG25) -> 0 | CI25: Km confirmés | CJ25: =SUM(BQ27:CG27) -> 0 | CK25: Km confirmés | CL25: =SUM(CJ25+BP25) -> 2533 | CN25: 18 | CO25: =VLOOKUP(CN25,A8:B188,2) -> MANZANO Pascal | CP25: =SUM(BP76) -> 8123 | CQ25: =SUM(CJ76) -> 310 | CR25: 8433
D26: 0 | E26: 0 | F26: 0 | G26: 0 | H26: 0 | I26: 1 | J26: 0 | K26: 0 | L26: 1 | M26: 1 | N26: 0 | O26: 1 | P26: 0 | Q26: 0 | R26: 0 | S26: 0 | T26: 0 | U26: 1 | V26: 0 | W26: 0 | X26: 0 | Y26: 0 | Z26: 0 | AA26: 1 | AB26: 0 | AC26: 0 | AD26: 0 | AE26: 0 | AF26: 0 | AG26: 0 | AH26: 0 | AI26: 0 | AJ26: 0 | AK26: 0 | AL26: 0 | AM26: 0 | AN26: 0 | AO26: 0 | AP26: 0 | AQ26: 0 | AR26: 1 | AS26: 0 | AT26: 1 | AU26: 0 | AV26: 1 | AW26: 0 | AX26: 0 | AY26: 0 | AZ26: 0 | BA26: 0 | BB26: 0 | BC26: 0 | BD26: 1 | BE26: 0 | BF26: 0 | BG26: 0 | BH26: 0 | BI26: 1 | BJ26: 0 | BK26: 0 | BL26: 0 | BM26: 0 | BO26: Rondes confirmées | BP26: =SUM(C26:BM26) -> 11 | BQ26: 0 | BR26: 0 | BS26: 0 | BT26: 0 | BU26: 0 | BV26: 0 | BW26: 0 | BX26: 0 | BY26: 0 | BZ26: 0 | CA26: 0 | CB26: 0 | CC26: 0 | CD26: 0 | CE26: 0 | CF26: 0 | CG26: 0 | CI26: Rondes confirmées | CJ26: =SUM(BQ26:CH26) -> 0 | CK26: Rondes confirmées | CL26: =SUM(CJ26+BP26) -> 11 | CN26: 19 | CO26: =VLOOKUP(CN26,A8:B188,2) -> MARIEL Didier | CP26: =SUM(BP80) -> 1859 | CQ26: =SUM(CJ80) -> 0 | CR26: 1859
D27: =SUM((D24+D25)*D26) -> 0 | E27: 0 | F27: 0 | G27: 0 | H27: 0 | I27: 160 | J27: 0 | K27: 0 | L27: 20 | M27: 204 | N27: 0 | O27: 349 | P27: 0 | Q27: 0 | R27: 0 | S27: 0 | T27: 0 | U27: 474 | V27: 0 | W27: 0 | X27: 0 | Y27: 0 | Z27: 0 | AA27: 200 | AB27: 0 | AC27: 0 | AD27: 0 | AE27: 0 | AF27: 0 | AG27: 0 | AH27: 0 | AI27: 0 | AJ27: 0 | AK27: 0 | AL27: 0 | AM27: 0 | AN27: 0 | AO27: 0 | AP27: 0 | AQ27: 0 | AR27: 210 | AS27: 0 | AT27: 44 | AU27: 0 | AV27: 288 | AW27: 0 | AX27: 0 | AY27: 0 | AZ27: 0 | BA27: 0 | BB27: 0 | BC27: 0 | BD27: 440 | BE27: 0 | BF27: 0 | BG27: 0 | BH27: 0 | BI27: 144 | BJ27: =SUM((BJ24+BJ25)*BJ26) -> 0 | BK27: =SUM((BK24+BK25)*BK26) -> 0 | BL27: =SUM((BL24+BL25)*BL26) -> 0 | BM27: =SUM((BM24+BM25)*BM26) -> 0 | BO27: Rondes effectuées | BP27: =COUNTIF(D24:BM24,">0") -> 9 | BQ27: =SUM((BQ24+BQ25)*BQ26) -> 0 | BR27: 0 | BS27: 0 | BT27: 0 | BU27: 0 | BV27: 0 | BW27: 0 | BX27: 0 | BY27: 0 | BZ27: 0 | CA27: 0 | CB27: 0 | CC27: 0 | CD27: 0 | CE27: 0 | CF27: 0 | CG27: 0 | CI27: Rondes Effectuées | CJ27: =COUNTIF(BQ24:CG24,">0") -> 0 | CK27: Rondes effectuées | CL27: =SUM(CJ27+BP27) -> 9 | CN27: 20 | CO27: =VLOOKUP(CN27,A8:B188,2) -> MILET Benoit | CP27: =SUM(BP84) -> 504 | CQ27: =SUM(CJ84) -> 0 | CR27: 504
A28: 6 | B28: =VLOOKUP(A28,'Numéro licences'!$H$4:$I$47,2) -> DESCAMPS Geoffrey | C28: Aller-Retour | AA28: 0 | BN28: =SUM(D28:BM28) -> 0 | BO28: Km renseignés | BP28: =SUM(BN28:BN29) -> 200 | CH28: =SUM(BQ28:CG28) -> 0 | CI28: Km renseignés | CJ28: =SUM(CH28+CH29) -> 0 | CK28: Km renseignés | CL28: =SUM(BP28+CJ28) -> 200 | CN28: 21 | CO28: =VLOOKUP(CN28,A8:B188,2) -> NIHOUL Dany | CP28: =SUM(BP88) -> 6312 | CQ28: =SUM(CJ88) -> 0 | CR28: 6312
C29: Ronde | AA29: 200 | BN29: =SUM(D29:BM29) -> 200 | BO29: Km confirmés | BP29: =SUM(D31:BM31) -> 200 | CH29: =SUM(BQ29:CG29) -> 0 | CI29: Km confirmés | CJ29: =SUM(BQ31:CG31) -> 0 | CK29: Km confirmés | CL29: =SUM(CJ29+BP29) -> 200 | CN29: 22 | CO29: =VLOOKUP(CN29,A8:B188,2) -> PARMENTIER Dominique | CP29: =SUM(BP92) -> 728 | CQ29: =SUM(CJ92) -> 0 | CR29: 728
D30: 0 | E30: 0 | F30: 0 | G30: 0 | H30: 0 | I30: 0 | J30: 0 | K30: 0 | L30: 0 | M30: 0 | N30: 0 | O30: 0 | P30: 0 | Q30: 0 | R30: 0 | S30: 0 | T30: 0 | U30: 0 | V30: 0 | W30: 0 | X30: 0 | Y30: 0 | Z30: 0 | AA30: 1 | AB30: 0 | AC30: 0 | AD30: 0 | AE30: 0 | AF30: 0 | AG30: 0 | AH30: 0 | AI30: 0 | AJ30: 0 | AK30: 0 | AL30: 0 | AM30: 0 | AN30: 0 | AO30: 0 | AP30: 0 | AQ30: 0 | AR30: 0 | AS30: 0 | AT30: 0 | AU30: 0 | AV30: 0 | AW30: 0 | AX30: 0 | AY30: 0 | AZ30: 0 | BA30: 0 | BB30: 0 | BC30: 0 | BD30: 0 | BE30: 0 | BF30: 0 | BG30: 0 | BH30: 0 | BI30: 0 | BJ30: 0 | BK30: 0 | BL30: 0 | BM30: 0 | BO30: Rondes confirmées | BP30: =SUM(C30:BM30) -> 1 | BQ30: 0 | BR30: 0 | BS30: 0 | BT30: 0 | BU30: 0 | BV30: 0 | BW30: 0 | BX30: 0 | BY30: 0 | BZ30: 0 | CA30: 0 | CB30: 0 | CC30: 0 | CD30: 0 | CE30: 0 | CF30: 0 | CG30: 0 | CI30: Rondes confirmées | CJ30: =SUM(BQ30:CH30) -> 0 | CK30: Rondes confirmées | CL30: =SUM(CJ30+BP30) -> 1 | CN30: 23 | CO30: =VLOOKUP(CN30,A8:B188,2) -> RAMEAU Didier | CP30: =SUM(BP96) -> 3956 | CQ30: =SUM(CJ96) -> 0 | CR30: 3956
D31: =SUM((D28+D29)*D30) -> 0 | E31: 0 | F31: 0 | G31: 0 | H31: 0 | I31: 0 | J31: 0 | K31: 0 | L31: 0 | M31: 0 | N31: 0 | O31: 0 | P31: 0 | Q31: 0 | R31: 0 | S31: 0 | T31: 0 | U31: 0 | V31: 0 | W31: 0 | X31: 0 | Y31: 0 | Z31: 0 | AA31: 200 | AB31: 0 | AC31: 0 | AD31: 0 | AE31: 0 | AF31: 0 | AG31: 0 | AH31: 0 | AI31: 0 | AJ31: 0 | AK31: 0 | AL31: 0 | AM31: 0 | AN31: 0 | AO31: 0 | AP31: 0 | AQ31: 0 | AR31: 0 | AS31: 0 | AT31: 0 | AU31: 0 | AV31: 0 | AW31: 0 | AX31: 0 | AY31: 0 | AZ31: 0 | BA31: 0 | BB31: 0 | BC31: 0 | BD31: 0 | BE31: 0 | BF31: 0 | BG31: 0 | BH31: 0 | BI31: 0 | BJ31: =SUM((BJ28+BJ29)*BJ30) -> 0 | BK31: =SUM((BK28+BK29)*BK30) -> 0 | BL31: =SUM((BL28+BL29)*BL30) -> 0 | BM31: =SUM((BM28+BM29)*BM30) -> 0 | BO31: Rondes effectuées | BP31: =COUNTIF(D28:BM28,">0") -> 0 | BQ31: =SUM((BQ28+BQ29)*BQ30) -> 0 | BR31: 0 | BS31: 0 | BT31: 0 | BU31: 0 | BV31: 0 | BW31: 0 | BX31: 0 | BY31: 0 | BZ31: 0 | CA31: 0 | CB31: 0 | CC31: 0 | CD31: 0 | CE31: 0 | CF31: 0 | CG31: 0 | CI31: Rondes Effectuées | CJ31: =COUNTIF(BQ28:CG28,">0") -> 0 | CK31: Rondes effectuées | CL31: =SUM(CJ31+BP31) -> 0 | CN31: 24 | CO31: =VLOOKUP(CN31,A8:B188,2) -> SMEETS Carine | CP31: =SUM(BP100) -> 160 | CQ31: =SUM(CJ100) -> 0 | CR31: 160
A32: 7 | B32: =VLOOKUP(A32,'Numéro licences'!$H$4:$I$47,2) -> DESMAREE Francis | C32: Aller-Retour | D32: 394 | E32: 186 | F32: 160 | G32: 266 | H32: 310 | J32: 338 | K32: 204 | L32: 20 | M32: 44 | N32: 34 | O32: 174 | P32: 18 | Q32: 268 | R32: 156 | S32: 118 | T32: 254 | U32: 284 | V32: 1467 | W32: 20 | X32: 164 | Y32: 38 | Z32: 132 | AA32: 0 | AB32: 260 | AC32: 204 | AD32: 86 | AE32: 160 | AF32: 204 | AG32: 68 | AH32: 186 | AI32: 332 | AJ32: 118 | AK32: 18 | AL32: 34 | AM32: 374 | AN32: 266 | AO32: 156 | AP32: 204 | AR32: 210 | AS32: 394 | AT32: 44 | AU32: 204 | AV32: 68 | AW32: 376 | AX32: 86 | AY32: 224 | AZ32: 186 | BA32: 338 | BB32: 254 | BC32: 210 | BD32: 280 | BF32: 160 | BG32: 164 | BH32: 118 | BI32: 18 | BN32: =SUM(D32:BM32) -> 11053 | BO32: Km renseignés | BP32: =SUM(BN32:BN33) -> 20260 | CH32: =SUM(BQ32:CG32) -> 0 | CI32: Km renseignés | CJ32: =SUM(CH32+CH33) -> 0 | CK32: Km renseignés | CL32: =SUM(BP32+CJ32) -> 20260 | CN32: 25 | CO32: =VLOOKUP(CN32,A8:B188,2) -> STRYPSTEIN Nicolas | CP32: =SUM(BP104) -> 200 | CQ32: =SUM(CJ104) -> 0 | CR32: 200
C33: Ronde | D33: 130 | E33: 150 | F33: 140 | G33: 130 | H33: 0 | I33: 160 | J33: 150 | K33: 134 | L33: 173 | M33: 160 | N33: 160 | O33: 175 | P33: 180 | Q33: 179 | R33: 146 | S33: 170 | T33: 0 | U33: 190 | V33: 0 | W33: 200 | X33: 221 | Y33: 803 | Z33: 175 | AA33: 200 | AB33: 0 | AC33: 150 | AD33: 216 | AE33: 175 | AF33: 0 | AG33: 196 | AH33: 180 | AI33: 160 | AJ33: 160 | AK33: 195 | AL33: 167 | AM33: 300 | AN33: 150 | AO33: 0 | AP33: 250 | AR33: 200 | AS33: 220 | AT33: 240 | AU33: 200 | AV33: 220 | AW33: 153 | AX33: 188 | AY33: 180 | AZ33: 0 | BA33: 130 | BB33: 160 | BC33: 160 | BD33: 160 | BF33: 160 | BG33: 130 | BH33: 155 | BI33: 126 | BN33: =SUM(D33:BM33) -> 9207 | BO33: Km confirmés | BP33: =SUM(D35:BM35) -> 20260 | CH33: =SUM(BQ33:CG33) -> 0 | CI33: Km confirmés | CJ33: =SUM(BQ35:CG35) -> 0 | CK33: Km confirmés | CL33: =SUM(CJ33+BP33) -> 20260 | CN33: 26 | CO33: =VLOOKUP(CN33,A8:B188,2) -> URBAIN Philippe | CP33: =SUM(BP108) -> 0 | CQ33: =SUM(CJ108) -> 0 | CR33: 0
D34: 1 | E34: 1 | F34: 1 | G34: 1 | H34: 1 | I34: 1 | J34: 1 | K34: 1 | L34: 1 | M34: 1 | N34: 1 | O34: 1 | P34: 1 | Q34: 1 | R34: 1 | S34: 1 | T34: 1 | U34: 1 | V34: 1 | W34: 1 | X34: 1 | Y34: 1 | Z34: 1 | AA34: 1 | AB34: 1 | AC34: 1 | AD34: 1 | AE34: 1 | AF34: 1 | AG34: 1 | AH34: 1 | AI34: 1 | AJ34: 1 | AK34: 1 | AL34: 1 | AM34: 1 | AN34: 1 | AO34: 1 | AP34: 1 | AQ34: 0 | AR34: 1 | AS34: 1 | AT34: 1 | AU34: 1 | AV34: 1 | AW34: 1 | AX34: 1 | AY34: 1 | AZ34: 1 | BA34: 1 | BB34: 1 | BC34: 1 | BD34: 1 | BE34: 0 | BF34: 1 | BG34: 1 | BH34: 1 | BI34: 1 | BJ34: 0 | BK34: 0 | BL34: 0 | BM34: 0 | BO34: Rondes confirmées | BP34: =SUM(C34:BM34) -> 56 | BQ34: 0 | BR34: 0 | BS34: 0 | BT34: 0 | BU34: 0 | BV34: 0 | BW34: 0 | BX34: 0 | BY34: 0 | BZ34: 0 | CA34: 0 | CB34: 0 | CC34: 0 | CD34: 0 | CE34: 0 | CF34: 0 | CG34: 0 | CI34: Rondes confirmées | CJ34: =SUM(BQ34:CH34) -> 0 | CK34: Rondes confirmées | CL34: =SUM(CJ34+BP34) -> 56 | CN34: 27 | CO34: =VLOOKUP(CN34,A8:B188,2) -> VANBELLINGEN Jean-Claude | CP34: =SUM(BP112) -> 4150 | CQ34: =SUM(CJ112) -> 0 | CR34: 4150
D35: =SUM((D32+D33)*D34) -> 524 | E35: 336 | F35: 300 | G35: 396 | H35: 310 | I35: 160 | J35: 488 | K35: 338 | L35: 193 | M35: 204 | N35: 194 | O35: 349 | P35: 198 | Q35: 447 | R35: 302 | S35: 288 | T35: 254 | U35: 474 | V35: 1467 | W35: 220 | X35: 385 | Y35: 841 | Z35: 307 | AA35: 200 | AB35: 260 | AC35: 354 | AD35: 302 | AE35: 335 | AF35: 204 | AG35: 264 | AH35: 366 | AI35: 492 | AJ35: 278 | AK35: 213 | AL35: 201 | AM35: 674 | AN35: 416 | AO35: 156 | AP35: 454 | AQ35: 0 | AR35: 410 | AS35: 614 | AT35: 284 | AU35: 404 | AV35: 288 | AW35: 529 | AX35: 274 | AY35: 404 | AZ35: 186 | BA35: 468 | BB35: 414 | BC35: 370 | BD35: 440 | BE35: 0 | BF35: 320 | BG35: 294 | BH35: 273 | BI35: 144 | BJ35: =SUM((BJ32+BJ33)*BJ34) -> 0 | BK35: =SUM((BK32+BK33)*BK34) -> 0 | BL35: =SUM((BL32+BL33)*BL34) -> 0 | BM35: =SUM((BM32+BM33)*BM34) -> 0 | BO35: Rondes effectuées | BP35: =COUNTIF(D32:BM32,">0") -> 54 | BQ35: =SUM((BQ32+BQ33)*BQ34) -> 0 | BR35: 0 | BS35: 0 | BT35: 0 | BU35: 0 | BV35: 0 | BW35: 0 | BX35: 0 | BY35: 0 | BZ35: 0 | CA35: 0 | CB35: 0 | CC35: 0 | CD35: 0 | CE35: 0 | CF35: 0 | CG35: 0 | CI35: Rondes Effectuées | CJ35: =COUNTIF(BQ32:CG32,">0") -> 0 | CK35: Rondes effectuées | CL35: =SUM(CJ35+BP35) -> 54 | CN35: 28 | CO35: =VLOOKUP(CN35,A8:B188,2) -> VAN DER BEETEN Pascal | CP35: =SUM(BP116) -> 9522 | CQ35: =SUM(CJ116) -> 644 | CR35: 10166
A36: 8 | B36: =VLOOKUP(A36,'Numéro licences'!$H$4:$I$47,2) -> DEWAERSEGHERS Francis | C36: Aller-Retour | X36: 164 | Y36: 38 | AD36: 86 | AG36: 68 | AJ36: 118 | AV36: 68 | BN36: =SUM(D36:BM36) -> 542 | BO36: Km renseignés | BP36: =SUM(BN36:BN37) -> 1831 | CH36: =SUM(BQ36:CG36) -> 0 | CI36: Km renseignés | CJ36: =SUM(CH36+CH37) -> 0 | CK36: Km renseignés | CL36: =SUM(BP36+CJ36) -> 1831 | CN36: 29 | CO36: =VLOOKUP(CN36,A8:B188,2) -> VANSTEYVOORT André | CP36: =SUM(BP120) -> 5598 | CQ36: =SUM(CJ120) -> 0 | CR36: 5598
C37: Ronde | X37: 221 | Y37: 492 | AD37: 0 | AG37: 196 | AJ37: 160 | AV37: 220 | BN37: =SUM(D37:BM37) -> 1289 | BO37: Km confirmés | BP37: =SUM(D39:BM39) -> 1543 | CH37: =SUM(BQ37:CG37) -> 0 | CI37: Km confirmés | CJ37: =SUM(BQ39:CG39) -> 0 | CK37: Km confirmés | CL37: =SUM(CJ37+BP37) -> 1543 | CN37: 30 | CO37: =VLOOKUP(CN37,A8:B188,2) -> WOUTERS Olivier | CP37: =SUM(BP124) -> 7563 | CQ37: =SUM(CJ124) -> 0 | CR37: 7563
D38: 0 | E38: 0 | F38: 0 | G38: 0 | H38: 0 | I38: 0 | J38: 0 | K38: 0 | L38: 0 | M38: 0 | N38: 0 | O38: 0 | P38: 0 | Q38: 0 | R38: 0 | S38: 0 | T38: 0 | U38: 0 | V38: 0 | W38: 0 | X38: 1 | Y38: 1 | Z38: 0 | AA38: 0 | AB38: 0 | AC38: 0 | AD38: 1 | AE38: 0 | AF38: 0 | AG38: 1 | AH38: 0 | AI38: 0 | AJ38: 1 | AK38: 0 | AL38: 0 | AM38: 0 | AN38: 0 | AO38: 0 | AP38: 0 | AQ38: 0 | AR38: 0 | AS38: 0 | AT38: 0 | AU38: 0 | AV38: 0 | AW38: 0 | AX38: 0 | AY38: 0 | AZ38: 0 | BA38: 0 | BB38: 0 | BC38: 0 | BD38: 0 | BE38: 0 | BF38: 0 | BG38: 0 | BH38: 0 | BI38: 0 | BJ38: 0 | BK38: 0 | BL38: 0 | BM38: 0 | BO38: Rondes confirmées | BP38: =SUM(C38:BM38) -> 5 | BQ38: 0 | BR38: 0 | BS38: 0 | BT38: 0 | BU38: 0 | BV38: 0 | BW38: 0 | BX38: 0 | BY38: 0 | BZ38: 0 | CA38: 0 | CB38: 0 | CC38: 0 | CD38: 0 | CE38: 0 | CF38: 0 | CG38: 0 | CI38: Rondes confirmées | CJ38: =SUM(BQ38:CH38) -> 0 | CK38: Rondes confirmées | CL38: =SUM(CJ38+BP38) -> 5 | CN38: 31 | CO38: =VLOOKUP(CN38,A8:B188,2) -> THIRIFAYS Vincent | CP38: =SUM(BP128) -> 385 | CQ38: =SUM(CJ128) -> 0 | CR38: 385
D39: =SUM((D36+D37)*D38) -> 0 | E39: 0 | F39: 0 | G39: 0 | H39: 0 | I39: 0 | J39: 0 | K39: 0 | L39: 0 | M39: 0 | N39: 0 | O39: 0 | P39: 0 | Q39: 0 | R39: 0 | S39: 0 | T39: 0 | U39: 0 | V39: 0 | W39: 0 | X39: 385 | Y39: 530 | Z39: 0 | AA39: 0 | AB39: 0 | AC39: 0 | AD39: 86 | AE39: 0 | AF39: 0 | AG39: 264 | AH39: 0 | AI39: 0 | AJ39: 278 | AK39: 0 | AL39: 0 | AM39: 0 | AN39: 0 | AO39: 0 | AP39: 0 | AQ39: 0 | AR39: 0 | AS39: 0 | AT39: 0 | AU39: 0 | AV39: 0 | AW39: 0 | AX39: 0 | AY39: 0 | AZ39: 0 | BA39: 0 | BB39: 0 | BC39: 0 | BD39: 0 | BE39: 0 | BF39: 0 | BG39: 0 | BH39: 0 | BI39: 0 | BJ39: =SUM((BJ36+BJ37)*BJ38) -> 0 | BK39: =SUM((BK36+BK37)*BK38) -> 0 | BL39: =SUM((BL36+BL37)*BL38) -> 0 | BM39: =SUM((BM36+BM37)*BM38) -> 0 | BO39: Rondes effectuées | BP39: =COUNTIF(D36:BM36,">0") -> 6 | BQ39: =SUM((BQ36+BQ37)*BQ38) -> 0 | BR39: 0 | BS39: 0 | BT39: 0 | BU39: 0 | BV39: 0 | BW39: 0 | BX39: 0 | BY39: 0 | BZ39: 0 | CA39: 0 | CB39: 0 | CC39: 0 | CD39: 0 | CE39: 0 | CF39: 0 | CG39: 0 | CI39: Rondes Effectuées | CJ39: =COUNTIF(BQ36:CG36,">0") -> 0 | CK39: Rondes effectuées | CL39: =SUM(CJ39+BP39) -> 6 | CN39: 32 | CO39: =VLOOKUP(CN39,A8:B188,2) -> VANDY Rudi | CP39: =SUM(BP132) -> 5164 | CQ39: =SUM(CJ132) -> 0 | CR39: 5164
A40: 9 | B40: =VLOOKUP(A40,'Numéro licences'!$H$4:$I$47,2) -> DHONDT Jerry | C40: Aller-Retour | K40: 204 | M40: 44 | Z40: 132 | AD40: 86 | AJ40: 118 | BN40: =SUM(D40:BM40) -> 584 | BO40: Km renseignés | BP40: =SUM(BN40:BN41) -> 1429 | CH40: =SUM(BQ40:CG40) -> 0 | CI40: Km renseignés | CJ40: =SUM(CH40+CH41) -> 0 | CK40: Km renseignés | CL40: =SUM(BP40+CJ40) -> 1429 | CN40: 33 | CO40: =VLOOKUP(CN40,A8:B188,2) -> LEFRANT Sébastien | CP40: =SUM(BP136) -> 1457 | CQ40: =SUM(CJ136) -> 0 | CR40: 1457
C41: Ronde | K41: 134 | M41: 160 | Z41: 175 | AD41: 216 | AJ41: 160 | BN41: =SUM(D41:BM41) -> 845 | BO41: Km confirmés | BP41: =SUM(D43:BM43) -> 0 | CH41: =SUM(BQ41:CG41) -> 0 | CI41: Km confirmés | CJ41: =SUM(BQ43:CG43) -> 0 | CK41: Km confirmés | CL41: =SUM(CJ41+BP41) -> 0 | CN41: 34 | CO41: =VLOOKUP(CN41,A8:B188,2) -> 0 | CP41: =SUM(BP140) -> 0 | CQ41: =SUM(CJ140) -> 0 | CR41: 0
D42: 0 | E42: 0 | F42: 0 | G42: 0 | H42: 0 | I42: 0 | J42: 0 | K42: 0 | L42: 0 | M42: 0 | N42: 0 | O42: 0 | P42: 0 | Q42: 0 | R42: 0 | S42: 0 | T42: 0 | U42: 0 | V42: 0 | W42: 0 | X42: 0 | Y42: 0 | Z42: 0 | AA42: 0 | AB42: 0 | AC42: 0 | AD42: 0 | AE42: 0 | AF42: 0 | AG42: 0 | AH42: 0 | AI42: 0 | AJ42: 0 | AK42: 0 | AL42: 0 | AM42: 0 | AN42: 0 | AO42: 0 | AP42: 0 | AQ42: 0 | AR42: 0 | AS42: 0 | AT42: 0 | AU42: 0 | AV42: 0 | AW42: 0 | AX42: 0 | AY42: 0 | AZ42: 0 | BA42: 0 | BB42: 0 | BC42: 0 | BD42: 0 | BE42: 0 | BF42: 0 | BG42: 0 | BH42: 0 | BI42: 0 | BJ42: 0 | BK42: 0 | BL42: 0 | BM42: 0 | BO42: Rondes confirmées | BP42: =SUM(C42:BM42) -> 0 | BQ42: 0 | BR42: 0 | BS42: 0 | BT42: 0 | BU42: 0 | BV42: 0 | BW42: 0 | BX42: 0 | BY42: 0 | BZ42: 0 | CA42: 0 | CB42: 0 | CC42: 0 | CD42: 0 | CE42: 0 | CF42: 0 | CG42: 0 | CI42: Rondes confirmées | CJ42: =SUM(BQ42:CH42) -> 0 | CK42: Rondes confirmées | CL42: =SUM(CJ42+BP42) -> 0 | CN42: 35 | CO42: =VLOOKUP(CN42,A8:B188,2) -> 0 | CP42: =SUM(BP144) -> 0 | CQ42: =SUM(CJ144) -> 0 | CR42: 0
D43: =SUM((D40+D41)*D42) -> 0 | E43: 0 | F43: 0 | G43: 0 | H43: 0 | I43: 0 | J43: 0 | K43: 0 | L43: 0 | M43: 0 | N43: 0 | O43: 0 | P43: 0 | Q43: 0 | R43: 0 | S43: 0 | T43: 0 | U43: 0 | V43: 0 | W43: 0 | X43: 0 | Y43: 0 | Z43: 0 | AA43: 0 | AB43: 0 | AC43: 0 | AD43: 0 | AE43: 0 | AF43: 0 | AG43: 0 | AH43: 0 | AI43: 0 | AJ43: 0 | AK43: 0 | AL43: 0 | AM43: 0 | AN43: 0 | AO43: 0 | AP43: 0 | AQ43: 0 | AR43: 0 | AS43: 0 | AT43: 0 | AU43: 0 | AV43: 0 | AW43: 0 | AX43: 0 | AY43: 0 | AZ43: 0 | BA43: 0 | BB43: 0 | BC43: 0 | BD43: 0 | BE43: 0 | BF43: 0 | BG43: 0 | BH43: 0 | BI43: 0 | BJ43: =SUM((BJ40+BJ41)*BJ42) -> 0 | BK43: =SUM((BK40+BK41)*BK42) -> 0 | BL43: =SUM((BL40+BL41)*BL42) -> 0 | BM43: =SUM((BM40+BM41)*BM42) -> 0 | BO43: Rondes effectuées | BP43: =COUNTIF(D40:BM40,">0") -> 5 | BQ43: =SUM((BQ40+BQ41)*BQ42) -> 0 | BR43: 0 | BS43: 0 | BT43: 0 | BU43: 0 | BV43: 0 | BW43: 0 | BX43: 0 | BY43: 0 | BZ43: 0 | CA43: 0 | CB43: 0 | CC43: 0 | CD43: 0 | CE43: 0 | CF43: 0 | CG43: 0 | CI43: Rondes Effectuées | CJ43: =COUNTIF(BQ40:CG40,">0") -> 0 | CK43: Rondes effectuées | CL43: =SUM(CJ43+BP43) -> 5 | CN43: 36 | CO43: =VLOOKUP(CN43,A8:B188,2) -> 0 | CP43: =SUM(BP148) -> 0 | CQ43: =SUM(CJ148) -> 0 | CR43: 0
A44: 10 | B44: =VLOOKUP(A44,'Numéro licences'!$H$4:$I$47,2) -> DONY Marc | C44: Aller-Retour | K44: 204 | L44: 20 | N44: 34 | Q44: 268 | U44: 284 | Z44: 132 | AA44: 0 | AD44: 86 | AG44: 68 | AH44: 186 | AJ44: 118 | AR44: 210 | AU44: 204 | AV44: 68 | BC44: 210 | BI44: 18 | BN44: =SUM(D44:BM44) -> 2110 | BO44: Km renseignés | BP44: =SUM(BN44:BN45) -> 4923 | CH44: =SUM(BQ44:CG44) -> 0 | CI44: Km renseignés | CJ44: =SUM(CH44+CH45) -> 0 | CK44: Km renseignés | CL44: =SUM(BP44+CJ44) -> 4923 | CN44: 37 | CO44: =VLOOKUP(CN44,A8:B188,2) -> 0 | CP44: =SUM(BP152) -> 0 | CQ44: =SUM(CJ152) -> 0 | CR44: 0
C45: Ronde | I45: 160 | K45: 134 | L45: 173 | N45: 160 | Q45: 179 | U45: 190 | Z45: 175 | AA45: 200 | AD45: 0 | AG45: 196 | AH45: 180 | AJ45: 160 | AR45: 200 | AU45: 200 | AV45: 220 | BC45: 160 | BI45: 126 | BN45: =SUM(D45:BM45) -> 2813 | BO45: Km confirmés | BP45: =SUM(D47:BM47) -> 360 | CH45: =SUM(BQ45:CG45) -> 0 | CI45: Km confirmés | CJ45: =SUM(BQ47:CG47) -> 0 | CK45: Km confirmés | CL45: =SUM(CJ45+BP45) -> 360 | CN45: 38 | CO45: =VLOOKUP(CN45,A8:B188,2) -> 0 | CP45: =SUM(BP156) -> 0 | CQ45: =SUM(CJ156) -> 0 | CR45: 0
D46: 0 | E46: 0 | F46: 0 | G46: 0 | H46: 0 | I46: 1 | J46: 0 | K46: 0 | L46: 0 | M46: 0 | N46: 0 | O46: 0 | P46: 0 | Q46: 0 | R46: 0 | S46: 0 | T46: 0 | U46: 0 | V46: 0 | W46: 0 | X46: 0 | Y46: 0 | Z46: 0 | AA46: 1 | AB46: 0 | AC46: 0 | AD46: 0 | AE46: 0 | AF46: 0 | AG46: 0 | AH46: 0 | AI46: 0 | AJ46: 0 | AK46: 0 | AL46: 0 | AM46: 0 | AN46: 0 | AO46: 0 | AP46: 0 | AQ46: 0 | AR46: 0 | AS46: 0 | AT46: 0 | AU46: 0 | AV46: 0 | AW46: 0 | AX46: 0 | AY46: 0 | AZ46: 0 | BA46: 0 | BB46: 0 | BC46: 0 | BD46: 0 | BE46: 0 | BF46: 0 | BG46: 0 | BH46: 0 | BI46: 0 | BJ46: 0 | BK46: 0 | BL46: 0 | BM46: 0 | BO46: Rondes confirmées | BP46: =SUM(C46:BM46) -> 2 | BQ46: 0 | BR46: 0 | BS46: 0 | BT46: 0 | BU46: 0 | BV46: 0 | BW46: 0 | BX46: 0 | BY46: 0 | BZ46: 0 | CA46: 0 | CB46: 0 | CC46: 0 | CD46: 0 | CE46: 0 | CF46: 0 | CG46: 0 | CI46: Rondes confirmées | CJ46: =SUM(BQ46:CH46) -> 0 | CK46: Rondes confirmées | CL46: =SUM(CJ46+BP46) -> 2 | CN46: 39 | CO46: =VLOOKUP(CN46,A8:B188,2) -> 0 | CP46: =SUM(BP160) -> 0 | CQ46: =SUM(CJ160) -> 0 | CR46: 0
D47: =SUM((D44+D45)*D46) -> 0 | E47: 0 | F47: 0 | G47: 0 | H47: 0 | I47: 160 | J47: 0 | K47: 0 | L47: 0 | M47: 0 | N47: 0 | O47: 0 | P47: 0 | Q47: 0 | R47: 0 | S47: 0 | T47: 0 | U47: 0 | V47: 0 | W47: 0 | X47: 0 | Y47: 0 | Z47: 0 | AA47: 200 | AB47: 0 | AC47: 0 | AD47: 0 | AE47: 0 | AF47: 0 | AG47: 0 | AH47: 0 | AI47: 0 | AJ47: 0 | AK47: 0 | AL47: 0 | AM47: 0 | AN47: 0 | AO47: 0 | AP47: 0 | AQ47: 0 | AR47: 0 | AS47: 0 | AT47: 0 | AU47: 0 | AV47: 0 | AW47: 0 | AX47: 0 | AY47: 0 | AZ47: 0 | BA47: 0 | BB47: 0 | BC47: 0 | BD47: 0 | BE47: 0 | BF47: 0 | BG47: 0 | BH47: 0 | BI47: 0 | BJ47: =SUM((BJ44+BJ45)*BJ46) -> 0 | BK47: =SUM((BK44+BK45)*BK46) -> 0 | BL47: =SUM((BL44+BL45)*BL46) -> 0 | BM47: =SUM((BM44+BM45)*BM46) -> 0 | BO47: Rondes effectuées | BP47: =COUNTIF(D44:BM44,">0") -> 15 | BQ47: =SUM((BQ44+BQ45)*BQ46) -> 0 | BR47: 0 | BS47: 0 | BT47: 0 | BU47: 0 | BV47: 0 | BW47: 0 | BX47: 0 | BY47: 0 | BZ47: 0 | CA47: 0 | CB47: 0 | CC47: 0 | CD47: 0 | CE47: 0 | CF47: 0 | CG47: 0 | CI47: Rondes Effectuées | CJ47: =COUNTIF(BQ44:CG44,">0") -> 0 | CK47: Rondes effectuées | CL47: =SUM(CJ47+BP47) -> 15 | CN47: 40 | CO47: =VLOOKUP(CN47,A8:B188,2) -> 0 | CP47: =SUM(BP164) -> 0 | CQ47: =SUM(CJ164) -> 0 | CR47: 0
A48: 11 | B48: =VLOOKUP(A48,'Numéro licences'!$H$4:$I$47,2) -> FAVRESSSE René | C48: Aller-Retour | L48: 20 | M48: 44 | O48: 174 | P48: 18 | Q48: 268 | W48: 20 | Y48: 38 | AA48: 0 | AD48: 86 | AR48: 210 | AZ48: 186 | BC48: 210 | BI48: 18 | BN48: =SUM(D48:BM48) -> 1292 | BO48: Km renseignés | BP48: =SUM(BN48:BN49) -> 4194 | BQ48: 35 | CH48: =SUM(BQ48:CG48) -> 35 | CI48: Km renseignés | CJ48: =SUM(CH48+CH49) -> 305 | CK48: Km renseignés | CL48: =SUM(BP48+CJ48) -> 4499 | CN48: 41 | CO48: =VLOOKUP(CN48,A8:B188,2) -> 0 | CP48: =SUM(BP168) -> 0 | CQ48: =SUM(CJ168) -> 0 | CR48: 0
C49: Ronde | I49: 160 | L49: 173 | M49: 160 | O49: 175 | P49: 0 | Q49: 179 | W49: 200 | Y49: 803 | AA49: 200 | AD49: 216 | AR49: 200 | AZ49: 150 | BC49: 160 | BI49: 126 | BN49: =SUM(D49:BM49) -> 2902 | BO49: Km confirmés | BP49: =SUM(D51:BM51) -> 4194 | BQ49: 270 | CH49: =SUM(BQ49:CG49) -> 270 | CI49: Km confirmés | CJ49: =SUM(BQ51:CG51) -> 305 | CK49: Km confirmés | CL49: =SUM(CJ49+BP49) -> 4499 | CN49: 42 | CO49: =VLOOKUP(CN49,A8:B188,2) -> 0 | CP49: =SUM(BP172) -> 0 | CQ49: =SUM(CJ172) -> 0 | CR49: 0
D50: 0 | E50: 0 | F50: 0 | G50: 0 | H50: 0 | I50: 1 | J50: 0 | K50: 0 | L50: 1 | M50: 1 | N50: 0 | O50: 1 | P50: 1 | Q50: 1 | R50: 0 | S50: 0 | T50: 0 | U50: 0 | V50: 0 | W50: 1 | X50: 0 | Y50: 1 | Z50: 0 | AA50: 1 | AB50: 0 | AC50: 0 | AD50: 1 | AE50: 0 | AF50: 0 | AG50: 0 | AH50: 0 | AI50: 0 | AJ50: 0 | AK50: 0 | AL50: 0 | AM50: 0 | AN50: 0 | AO50: 0 | AP50: 0 | AQ50: 0 | AR50: 1 | AS50: 0 | AT50: 0 | AU50: 0 | AV50: 0 | AW50: 0 | AX50: 0 | AY50: 0 | AZ50: 1 | BA50: 0 | BB50: 0 | BC50: 1 | BD50: 0 | BE50: 0 | BF50: 0 | BG50: 0 | BH50: 0 | BI50: 1 | BJ50: 0 | BK50: 0 | BL50: 0 | BM50: 0 | BO50: Rondes confirmées | BP50: =SUM(C50:BM50) -> 14 | BQ50: 1 | BR50: 0 | BS50: 0 | BT50: 0 | BU50: 0 | BV50: 0 | BW50: 0 | BX50: 0 | BY50: 0 | BZ50: 0 | CA50: 0 | CB50: 0 | CC50: 0 | CD50: 0 | CE50: 0 | CF50: 0 | CG50: 0 | CI50: Rondes confirmées | CJ50: =SUM(BQ50:CH50) -> 1 | CK50: Rondes confirmées | CL50: =SUM(CJ50+BP50) -> 15 | CN50: 43 | CO50: =VLOOKUP(CN50,A8:B188,2) -> 0 | CP50: =SUM(BP176) -> 0 | CQ50: =SUM(CJ176) -> 0 | CR50: 0
D51: =SUM((D48+D49)*D50) -> 0 | E51: 0 | F51: 0 | G51: 0 | H51: 0 | I51: 160 | J51: 0 | K51: 0 | L51: 193 | M51: 204 | N51: 0 | O51: 349 | P51: 18 | Q51: 447 | R51: 0 | S51: 0 | T51: 0 | U51: 0 | V51: 0 | W51: 220 | X51: 0 | Y51: 841 | Z51: 0 | AA51: 200 | AB51: 0 | AC51: 0 | AD51: 302 | AE51: 0 | AF51: 0 | AG51: 0 | AH51: 0 | AI51: 0 | AJ51: 0 | AK51: 0 | AL51: 0 | AM51: 0 | AN51: 0 | AO51: 0 | AP51: 0 | AQ51: 0 | AR51: 410 | AS51: 0 | AT51: 0 | AU51: 0 | AV51: 0 | AW51: 0 | AX51: 0 | AY51: 0 | AZ51: 336 | BA51: 0 | BB51: 0 | BC51: 370 | BD51: 0 | BE51: 0 | BF51: 0 | BG51: 0 | BH51: 0 | BI51: 144 | BJ51: =SUM((BJ48+BJ49)*BJ50) -> 0 | BK51: =SUM((BK48+BK49)*BK50) -> 0 | BL51: =SUM((BL48+BL49)*BL50) -> 0 | BM51: =SUM((BM48+BM49)*BM50) -> 0 | BO51: Rondes effectuées | BP51: =COUNTIF(D48:BM48,">0") -> 12 | BQ51: =SUM((BQ48+BQ49)*BQ50) -> 305 | BR51: 0 | BS51: 0 | BT51: 0 | BU51: 0 | BV51: 0 | BW51: 0 | BX51: 0 | BY51: 0 | BZ51: 0 | CA51: 0 | CB51: 0 | CC51: 0 | CD51: 0 | CE51: 0 | CF51: 0 | CG51: 0 | CI51: Rondes Effectuées | CJ51: =COUNTIF(BQ48:CG48,">0") -> 1 | CK51: Rondes effectuées | CL51: =SUM(CJ51+BP51) -> 13 | CN51: 44 | CO51: =VLOOKUP(CN51,A8:B188,2) -> 0 | CP51: =SUM(BP180) -> 0 | CQ51: =SUM(CJ180) -> 0 | CR51: 0
A52: 12 | B52: =VLOOKUP(A52,'Numéro licences'!$H$4:$I$47,2) -> GOFFIN Amaury | C52: Aller-Retour | BN52: =SUM(D52:BM52) -> 0 | BO52: Km renseignés | BP52: =SUM(BN52:BN53) -> 0 | CH52: =SUM(BQ52:CG52) -> 0 | CI52: Km renseignés | CJ52: =SUM(CH52+CH53) -> 0 | CK52: Km renseignés | CL52: =SUM(BP52+CJ52) -> 0 | CN52: 45 | CO52: =VLOOKUP(CN52,A8:B188,2) -> 0 | CP52: =SUM(BP184) -> 0 | CQ52: =SUM(CJ184) -> 0 | CR52: 0
C53: Ronde | BN53: =SUM(D53:BM53) -> 0 | BO53: Km confirmés | BP53: =SUM(D55:BM55) -> 0 | CH53: =SUM(BQ53:CG53) -> 0 | CI53: Km confirmés | CJ53: =SUM(BQ55:CG55) -> 0 | CK53: Km confirmés | CL53: =SUM(CJ53+BP53) -> 0 | CN53: 46 | CO53: =VLOOKUP(CN53,A8:B188,2) -> 0 | CP53: =SUM(BP188) -> 0 | CQ53: =SUM(CJ188) -> 0 | CR53: 0
D54: 0 | E54: 0 | F54: 0 | G54: 0 | H54: 0 | I54: 0 | J54: 0 | K54: 0 | L54: 0 | M54: 0 | N54: 0 | O54: 0 | P54: 0 | Q54: 0 | R54: 0 | S54: 0 | T54: 0 | U54: 0 | V54: 0 | W54: 0 | X54: 0 | Y54: 0 | Z54: 0 | AA54: 0 | AB54: 0 | AC54: 0 | AD54: 0 | AE54: 0 | AF54: 0 | AG54: 0 | AH54: 0 | AI54: 0 | AJ54: 0 | AK54: 0 | AL54: 0 | AM54: 0 | AN54: 0 | AO54: 0 | AP54: 0 | AQ54: 0 | AR54: 0 | AS54: 0 | AT54: 0 | AU54: 0 | AV54: 0 | AW54: 0 | AX54: 0 | AY54: 0 | AZ54: 0 | BA54: 0 | BB54: 0 | BC54: 0 | BD54: 0 | BE54: 0 | BF54: 0 | BG54: 0 | BH54: 0 | BI54: 0 | BJ54: 0 | BK54: 0 | BL54: 0 | BM54: 0 | BO54: Rondes confirmées | BP54: =SUM(C54:BM54) -> 0 | BQ54: 0 | BR54: 0 | BS54: 0 | BT54: 0 | BU54: 0 | BV54: 0 | BW54: 0 | BX54: 0 | BY54: 0 | BZ54: 0 | CA54: 0 | CB54: 0 | CC54: 0 | CD54: 0 | CE54: 0 | CF54: 0 | CG54: 0 | CI54: Rondes confirmées | CJ54: =SUM(BQ54:CH54) -> 0 | CK54: Rondes confirmées | CL54: =SUM(CJ54+BP54) -> 0
D55: =SUM((D52+D53)*D54) -> 0 | E55: 0 | F55: 0 | G55: 0 | H55: 0 | I55: 0 | J55: 0 | K55: 0 | L55: 0 | M55: 0 | N55: 0 | O55: 0 | P55: 0 | Q55: 0 | R55: 0 | S55: 0 | T55: 0 | U55: 0 | V55: 0 | W55: 0 | X55: 0 | Y55: 0 | Z55: 0 | AA55: 0 | AB55: 0 | AC55: 0 | AD55: 0 | AE55: 0 | AF55: 0 | AG55: 0 | AH55: 0 | AI55: 0 | AJ55: 0 | AK55: 0 | AL55: 0 | AM55: 0 | AN55: 0 | AO55: 0 | AP55: 0 | AQ55: 0 | AR55: 0 | AS55: 0 | AT55: 0 | AU55: 0 | AV55: 0 | AW55: 0 | AX55: 0 | AY55: 0 | AZ55: 0 | BA55: 0 | BB55: 0 | BC55: 0 | BD55: 0 | BE55: 0 | BF55: 0 | BG55: 0 | BH55: 0 | BI55: 0 | BJ55: =SUM((BJ52+BJ53)*BJ54) -> 0 | BK55: =SUM((BK52+BK53)*BK54) -> 0 | BL55: =SUM((BL52+BL53)*BL54) -> 0 | BM55: =SUM((BM52+BM53)*BM54) -> 0 | BO55: Rondes effectuées | BP55: =COUNTIF(D52:BM52,">0") -> 0 | BQ55: =SUM((BQ52+BQ53)*BQ54) -> 0 | BR55: 0 | BS55: 0 | BT55: 0 | BU55: 0 | BV55: 0 | BW55: 0 | BX55: 0 | BY55: 0 | BZ55: 0 | CA55: 0 | CB55: 0 | CC55: 0 | CD55: 0 | CE55: 0 | CF55: 0 | CG55: 0 | CI55: Rondes Effectuées | CJ55: =COUNTIF(BQ52:CG52,">0") -> 0 | CK55: Rondes effectuées | CL55: =SUM(CJ55+BP55) -> 0
A56: 13 | B56: =VLOOKUP(A56,'Numéro licences'!$H$4:$I$47,2) -> HINYOT Thierry | C56: Aller-Retour | L56: 20 | M56: 44 | N56: 34 | R56: 156 | X56: 164 | AJ56: 118 | AK56: 18 | AR56: 210 | AX56: 86 | BD56: 280 | BI56: 18 | BN56: =SUM(D56:BM56) -> 1148 | BO56: Km renseignés | BP56: =SUM(BN56:BN57) -> 3197 | CH56: =SUM(BQ56:CG56) -> 0 | CI56: Km renseignés | CJ56: =SUM(CH56+CH57) -> 0 | CK56: Km renseignés | CL56: =SUM(BP56+CJ56) -> 3197
C57: Ronde | I57: 160 | L57: 173 | M57: 160 | N57: 160 | R57: 146 | X57: 221 | AJ57: 160 | AK57: 195 | AR57: 200 | AX57: 188 | BD57: 160 | BI57: 126 | BN57: =SUM(D57:BM57) -> 2049 | BO57: Km confirmés | BP57: =SUM(D59:BM59) -> 3197 | CH57: =SUM(BQ57:CG57) -> 0 | CI57: Km confirmés | CJ57: =SUM(BQ59:CG59) -> 0 | CK57: Km confirmés | CL57: =SUM(CJ57+BP57) -> 3197
D58: 0 | E58: 0 | F58: 0 | G58: 0 | H58: 0 | I58: 1 | J58: 0 | K58: 0 | L58: 1 | M58: 1 | N58: 1 | O58: 0 | P58: 0 | Q58: 0 | R58: 1 | S58: 0 | T58: 0 | U58: 0 | V58: 0 | W58: 0 | X58: 1 | Y58: 0 | Z58: 0 | AA58: 0 | AB58: 0 | AC58: 0 | AD58: 0 | AE58: 0 | AF58: 0 | AG58: 0 | AH58: 0 | AI58: 0 | AJ58: 1 | AK58: 1 | AL58: 0 | AM58: 0 | AN58: 0 | AO58: 0 | AP58: 0 | AQ58: 0 | AR58: 1 | AS58: 0 | AT58: 0 | AU58: 0 | AV58: 0 | AW58: 0 | AX58: 1 | AY58: 0 | AZ58: 0 | BA58: 0 | BB58: 0 | BC58: 0 | BD58: 1 | BE58: 0 | BF58: 0 | BG58: 0 | BH58: 0 | BI58: 1 | BJ58: 0 | BK58: 0 | BL58: 0 | BM58: 0 | BO58: Rondes confirmées | BP58: =SUM(C58:BM58) -> 12 | BQ58: 0 | BR58: 0 | BS58: 0 | BT58: 0 | BU58: 0 | BV58: 0 | BW58: 0 | BX58: 0 | BY58: 0 | BZ58: 0 | CA58: 0 | CB58: 0 | CC58: 0 | CD58: 0 | CE58: 0 | CF58: 0 | CG58: 0 | CI58: Rondes confirmées | CJ58: =SUM(BQ58:CH58) -> 0 | CK58: Rondes confirmées | CL58: =SUM(CJ58+BP58) -> 12
D59: =SUM((D56+D57)*D58) -> 0 | E59: 0 | F59: 0 | G59: 0 | H59: 0 | I59: 160 | J59: 0 | K59: 0 | L59: 193 | M59: 204 | N59: 194 | O59: 0 | P59: 0 | Q59: 0 | R59: 302 | S59: 0 | T59: 0 | U59: 0 | V59: 0 | W59: 0 | X59: 385 | Y59: 0 | Z59: 0 | AA59: 0 | AB59: 0 | AC59: 0 | AD59: 0 | AE59: 0 | AF59: 0 | AG59: 0 | AH59: 0 | AI59: 0 | AJ59: 278 | AK59: 213 | AL59: 0 | AM59: 0 | AN59: 0 | AO59: 0 | AP59: 0 | AQ59: 0 | AR59: 410 | AS59: 0 | AT59: 0 | AU59: 0 | AV59: 0 | AW59: 0 | AX59: 274 | AY59: 0 | AZ59: 0 | BA59: 0 | BB59: 0 | BC59: 0 | BD59: 440 | BE59: 0 | BF59: 0 | BG59: 0 | BH59: 0 | BI59: 144 | BJ59: =SUM((BJ56+BJ57)*BJ58) -> 0 | BK59: =SUM((BK56+BK57)*BK58) -> 0 | BL59: =SUM((BL56+BL57)*BL58) -> 0 | BM59: =SUM((BM56+BM57)*BM58) -> 0 | BO59: Rondes effectuées | BP59: =COUNTIF(D56:BM56,">0") -> 11 | BQ59: =SUM((BQ56+BQ57)*BQ58) -> 0 | BR59: 0 | BS59: 0 | BT59: 0 | BU59: 0 | BV59: 0 | BW59: 0 | BX59: 0 | BY59: 0 | BZ59: 0 | CA59: 0 | CB59: 0 | CC59: 0 | CD59: 0 | CE59: 0 | CF59: 0 | CG59: 0 | CI59: Rondes Effectuées | CJ59: =COUNTIF(BQ56:CG56,">0") -> 0 | CK59: Rondes effectuées | CL59: =SUM(CJ59+BP59) -> 11 | CP59: =SUM(CP9:CP53) -> 121819 | CQ59: =SUM(CQ9:CQ53) -> 1259 | CR59: =SUM(CR8:CR53) -> 123823
A60: 14 | B60: =VLOOKUP(A60,'Numéro licences'!$H$4:$I$47,2) -> JAMOTTE Jean | C60: Aller-Retour | D60: 394 | E60: 186 | F60: 160 | G60: 266 | J60: 338 | K60: 204 | L60: 20 | M60: 44 | N60: 34 | O60: 174 | P60: 18 | Q60: 268 | R60: 156 | S60: 118 | U60: 284 | V60: 1455 | W60: 20 | X60: 164 | Y60: 38 | Z60: 132 | AA60: 0 | AC60: 204 | AD60: 86 | AG60: 68 | AH60: 186 | AJ60: 118 | AK60: 18 | AL60: 34 | AN60: 266 | AP60: 204 | AR60: 210 | AU60: 204 | AV60: 68 | AY60: 224 | BA60: 338 | BB60: 254 | BC60: 210 | BD60: 280 | BF60: 160 | BG60: 164 | BH60: 118 | BI60: 18 | BN60: =SUM(D60:BM60) -> 7905 | BO60: Km renseignés | BP60: =SUM(BN60:BN61) -> 15472 | CH60: 0 | CI60: Km renseignés | CJ60: =SUM(CH60+CH61) -> 0 | CK60: Km renseignés | CL60: =SUM(BP60+CJ60) -> 15472 | CP60: =SUM(CP59/CR59) -> 0.9838156078 | CQ60: =SUM(CQ59/CR59) -> 0.01016773943
C61: Ronde | D61: 130 | E61: 150 | F61: 140 | G61: 130 | I61: 160 | J61: 150 | K61: 134 | L61: 173 | M61: 160 | N61: 160 | O61: 175 | P61: 180 | Q61: 179 | R61: 146 | S61: 170 | U61: 190 | V61: 212 | W61: 0 | X61: 221 | Y61: 803 | Z61: 175 | AA61: 200 | AC61: 150 | AD61: 0 | AG61: 196 | AH61: 180 | AJ61: 160 | AK61: 195 | AL61: 167 | AN61: 150 | AP61: 250 | AR61: 200 | AU61: 200 | AV61: 220 | AY61: 180 | BA61: 130 | BB61: 160 | BC61: 160 | BD61: 160 | BF61: 160 | BG61: 130 | BH61: 155 | BI61: 126 | BN61: =SUM(D61:BM61) -> 7567 | BO61: Km confirmés | BP61: =SUM(D63:BM63) -> 15472 | CH61: 0 | CI61: Km confirmés | CJ61: =SUM(BQ63:CG63) -> 0 | CK61: Km confirmés | CL61: =SUM(CJ61+BP61) -> 15472 | CP61: FMB | CQ61: Hors FMB
D62: 1 | E62: 1 | F62: 1 | G62: 1 | H62: 0 | I62: 1 | J62: 1 | K62: 1 | L62: 1 | M62: 1 | N62: 1 | O62: 1 | P62: 1 | Q62: 1 | R62: 1 | S62: 1 | T62: 0 | U62: 1 | V62: 1 | W62: 1 | X62: 1 | Y62: 1 | Z62: 1 | AA62: 1 | AB62: 0 | AC62: 1 | AD62: 1 | AE62: 0 | AF62: 0 | AG62: 1 | AH62: 1 | AI62: 0 | AJ62: 1 | AK62: 1 | AL62: 1 | AM62: 0 | AN62: 1 | AO62: 0 | AP62: 1 | AQ62: 0 | AR62: 1 | AS62: 0 | AT62: 0 | AU62: 1 | AV62: 1 | AW62: 0 | AX62: 0 | AY62: 1 | AZ62: 0 | BA62: 1 | BB62: 1 | BC62: 1 | BD62: 1 | BE62: 0 | BF62: 1 | BG62: 1 | BH62: 1 | BI62: 1 | BJ62: 0 | BK62: 0 | BL62: 0 | BM62: 0 | BO62: Rondes confirmées | BP62: =SUM(C62:BM62) -> 43 | BQ62: 0 | BR62: 0 | BS62: 0 | BT62: 0 | BU62: 0 | BV62: 0 | BW62: 0 | BX62: 0 | BY62: 0 | BZ62: 0 | CA62: 0 | CB62: 0 | CC62: 0 | CD62: 0 | CE62: 0 | CF62: 0 | CG62: 0 | CI62: Rondes confirmées | CJ62: =SUM(BQ62:CH62) -> 0 | CK62: Rondes confirmées | CL62: =SUM(CJ62+BP62) -> 43
D63: =SUM((D60+D61)*D62) -> 524 | E63: 336 | F63: 300 | G63: 396 | H63: 0 | I63: 160 | J63: 488 | K63: 338 | L63: 193 | M63: 204 | N63: 194 | O63: 349 | P63: 198 | Q63: 447 | R63: 302 | S63: 288 | T63: 0 | U63: 474 | V63: 1667 | W63: 20 | X63: 385 | Y63: 841 | Z63: 307 | AA63: 200 | AB63: 0 | AC63: 354 | AD63: 86 | AE63: 0 | AF63: 0 | AG63: 264 | AH63: 366 | AI63: 0 | AJ63: 278 | AK63: 213 | AL63: 201 | AM63: 0 | AN63: 416 | AO63: 0 | AP63: 454 | AQ63: 0 | AR63: 410 | AS63: 0 | AT63: 0 | AU63: 404 | AV63: 288 | AW63: 0 | AX63: 0 | AY63: 404 | AZ63: 0 | BA63: 468 | BB63: 414 | BC63: 370 | BD63: 440 | BE63: 0 | BF63: 320 | BG63: 294 | BH63: 273 | BI63: 144 | BJ63: =SUM((BJ60+BJ61)*BJ62) -> 0 | BK63: =SUM((BK60+BK61)*BK62) -> 0 | BL63: =SUM((BL60+BL61)*BL62) -> 0 | BM63: =SUM((BM60+BM61)*BM62) -> 0 | BO63: Rondes effectuées | BP63: =COUNTIF(D60:BM60,">0") -> 41 | BQ63: =SUM((BQ60+BQ61)*BQ62) -> 0 | BR63: 0 | BS63: 0 | BT63: 0 | BU63: 0 | BV63: 0 | BW63: 0 | BX63: 0 | BY63: 0 | BZ63: 0 | CA63: 0 | CB63: 0 | CC63: 0 | CD63: 0 | CE63: 0 | CF63: 0 | CG63: 0 | CI63: Rondes Effectuées | CJ63: =COUNTIF(BQ60:CG60,">0") -> 0 | CK63: Rondes effectuées | CL63: =SUM(CJ63+BP63) -> 41
A64: 15 | B64: =VLOOKUP(A64,'Numéro licences'!$H$4:$I$47,2) -> LAMBOTTE Didier | C64: Aller-Retour | BN64: =SUM(D64:BM64) -> 0 | BO64: Km renseignés | BP64: =SUM(BN64:BN65) -> 0 | CH64: =SUM(BQ64:CG64) -> 0 | CI64: Km renseignés | CJ64: =SUM(CH64+CH65) -> 0 | CK64: Km renseignés | CL64: =SUM(BP64+CJ64) -> 0
C65: Ronde | BN65: =SUM(D65:BM65) -> 0 | BO65: Km confirmés | BP65: =SUM(D67:BM67) -> 0 | CH65: =SUM(BQ65:CG65) -> 0 | CI65: Km confirmés | CJ65: =SUM(BQ67:CG67) -> 0 | CK65: Km confirmés | CL65: =SUM(CJ65+BP65) -> 0
D66: 0 | E66: 0 | F66: 0 | G66: 0 | H66: 0 | I66: 0 | J66: 0 | K66: 0 | L66: 0 | M66: 0 | N66: 0 | O66: 0 | P66: 0 | Q66: 0 | R66: 0 | S66: 0 | T66: 0 | U66: 0 | V66: 0 | W66: 0 | X66: 0 | Y66: 0 | Z66: 0 | AA66: 0 | AB66: 0 | AC66: 0 | AD66: 0 | AE66: 0 | AF66: 0 | AG66: 0 | AH66: 0 | AI66: 0 | AJ66: 0 | AK66: 0 | AL66: 0 | AM66: 0 | AN66: 0 | AO66: 0 | AP66: 0 | AQ66: 0 | AR66: 0 | AS66: 0 | AT66: 0 | AU66: 0 | AV66: 0 | AW66: 0 | AX66: 0 | AY66: 0 | AZ66: 0 | BA66: 0 | BB66: 0 | BC66: 0 | BD66: 0 | BE66: 0 | BF66: 0 | BG66: 0 | BH66: 0 | BI66: 0 | BJ66: 0 | BK66: 0 | BL66: 0 | BM66: 0 | BO66: Rondes confirmées | BP66: =SUM(C66:BM66) -> 0 | BQ66: 0 | BR66: 0 | BS66: 0 | BT66: 0 | BU66: 0 | BV66: 0 | BW66: 0 | BX66: 0 | BY66: 0 | BZ66: 0 | CA66: 0 | CB66: 0 | CC66: 0 | CD66: 0 | CE66: 0 | CF66: 0 | CG66: 0 | CI66: Rondes confirmées | CJ66: =SUM(BQ66:CH66) -> 0 | CK66: Rondes confirmées | CL66: =SUM(CJ66+BP66) -> 0
D67: =SUM((D64+D65)*D66) -> 0 | E67: 0 | F67: 0 | G67: 0 | H67: 0 | I67: 0 | J67: 0 | K67: 0 | L67: 0 | M67: 0 | N67: 0 | O67: 0 | P67: 0 | Q67: 0 | R67: 0 | S67: 0 | T67: 0 | U67: 0 | V67: 0 | W67: 0 | X67: 0 | Y67: 0 | Z67: 0 | AA67: 0 | AB67: 0 | AC67: 0 | AD67: 0 | AE67: 0 | AF67: 0 | AG67: 0 | AH67: 0 | AI67: 0 | AJ67: 0 | AK67: 0 | AL67: 0 | AM67: 0 | AN67: 0 | AO67: 0 | AP67: 0 | AQ67: 0 | AR67: 0 | AS67: 0 | AT67: 0 | AU67: 0 | AV67: 0 | AW67: 0 | AX67: 0 | AY67: 0 | AZ67: 0 | BA67: 0 | BB67: 0 | BC67: 0 | BD67: 0 | BE67: 0 | BF67: 0 | BG67: 0 | BH67: 0 | BI67: 0 | BJ67: =SUM((BJ64+BJ65)*BJ66) -> 0 | BK67: =SUM((BK64+BK65)*BK66) -> 0 | BL67: =SUM((BL64+BL65)*BL66) -> 0 | BM67: =SUM((BM64+BM65)*BM66) -> 0 | BO67: Rondes effectuées | BP67: =COUNTIF(D64:BM64,">0") -> 0 | BQ67: =SUM((BQ64+BQ65)*BQ66) -> 0 | BR67: 0 | BS67: 0 | BT67: 0 | BU67: 0 | BV67: 0 | BW67: 0 | BX67: 0 | BY67: 0 | BZ67: 0 | CA67: 0 | CB67: 0 | CC67: 0 | CD67: 0 | CE67: 0 | CF67: 0 | CG67: 0 | CI67: Rondes Effectuées | CJ67: =COUNTIF(BQ64:CG64,">0") -> 0 | CK67: Rondes effectuées | CL67: =SUM(CJ67+BP67) -> 0
A68: 16 | B68: =VLOOKUP(A68,'Numéro licences'!$H$4:$I$47,2) -> LESCAL Thierry | C68: Aller-Retour | G68: 266 | J68: 338 | K68: 204 | L68: 20 | M68: 44 | N68: 34 | O68: 174 | P68: 18 | Q68: 268 | R68: 156 | S68: 118 | U68: 284 | W68: 20 | X68: 164 | Z68: 132 | AA68: 0 | AD68: 86 | AG68: 68 | AJ68: 118 | AK68: 18 | AL68: 34 | AR68: 210 | AT68: 44 | AU68: 204 | AV68: 68 | AX68: 86 | BA68: 338 | BC68: 210 | BD68: 280 | BF68: 160 | BG68: 164 | BH68: 118 | BI68: 18 | BN68: =SUM(D68:BM68) -> 4464 | BO68: Km renseignés | BP68: =SUM(BN68:BN69) -> 10370 | CH68: =SUM(BQ68:CG68) -> 0 | CI68: Km renseignés | CJ68: =SUM(CH68+CH69) -> 0 | CK68: Km renseignés | CL68: =SUM(BP68+CJ68) -> 10370
C69: Ronde | G69: 130 | I69: 160 | J69: 150 | K69: 134 | L69: 173 | M69: 160 | N69: 160 | O69: 175 | P69: 180 | Q69: 179 | R69: 146 | S69: 170 | U69: 190 | W69: 200 | X69: 221 | Z69: 175 | AA69: 200 | AD69: 216 | AG69: 196 | AJ69: 160 | AK69: 195 | AL69: 167 | AR69: 200 | AT69: 240 | AU69: 200 | AV69: 220 | AX69: 188 | BA69: 130 | BC69: 160 | BD69: 160 | BF69: 160 | BG69: 130 | BH69: 155 | BI69: 126 | BN69: =SUM(D69:BM69) -> 5906 | BO69: Km confirmés | BP69: =SUM(D71:BM71) -> 10370 | CH69: =SUM(BQ69:CG69) -> 0 | CI69: Km confirmés | CJ69: =SUM(BQ71:CG71) -> 0 | CK69: Km confirmés | CL69: =SUM(CJ69+BP69) -> 10370
D70: 0 | E70: 0 | F70: 0 | G70: 1 | H70: 0 | I70: 1 | J70: 1 | K70: 1 | L70: 1 | M70: 1 | N70: 1 | O70: 1 | P70: 1 | Q70: 1 | R70: 1 | S70: 1 | T70: 0 | U70: 1 | V70: 0 | W70: 1 | X70: 1 | Y70: 0 | Z70: 1 | AA70: 1 | AB70: 0 | AC70: 0 | AD70: 1 | AE70: 0 | AF70: 0 | AG70: 1 | AH70: 0 | AI70: 0 | AJ70: 1 | AK70: 1 | AL70: 1 | AM70: 0 | AN70: 0 | AO70: 0 | AP70: 0 | AQ70: 0 | AR70: 1 | AS70: 0 | AT70: 1 | AU70: 1 | AV70: 1 | AW70: 0 | AX70: 1 | AY70: 0 | AZ70: 0 | BA70: 1 | BB70: 0 | BC70: 1 | BD70: 1 | BE70: 0 | BF70: 1 | BG70: 1 | BH70: 1 | BI70: 1 | BJ70: 0 | BK70: 0 | BL70: 0 | BM70: 0 | BO70: Rondes confirmées | BP70: =SUM(C70:BM70) -> 34 | BQ70: 0 | BR70: 0 | BS70: 0 | BT70: 0 | BU70: 0 | BV70: 0 | BW70: 0 | BX70: 0 | BY70: 0 | BZ70: 0 | CA70: 0 | CB70: 0 | CC70: 0 | CD70: 0 | CE70: 0 | CF70: 0 | CG70: 0 | CI70: Rondes confirmées | CJ70: =SUM(BQ70:CH70) -> 0 | CK70: Rondes confirmées | CL70: =SUM(CJ70+BP70) -> 34
D71: =SUM((D68+D69)*D70) -> 0 | E71: 0 | F71: 0 | G71: 396 | H71: 0 | I71: 160 | J71: 488 | K71: 338 | L71: 193 | M71: 204 | N71: 194 | O71: 349 | P71: 198 | Q71: 447 | R71: 302 | S71: 288 | T71: 0 | U71: 474 | V71: 0 | W71: 220 | X71: 385 | Y71: 0 | Z71: 307 | AA71: 200 | AB71: 0 | AC71: 0 | AD71: 302 | AE71: 0 | AF71: 0 | AG71: 264 | AH71: 0 | AI71: 0 | AJ71: 278 | AK71: 213 | AL71: 201 | AM71: 0 | AN71: 0 | AO71: 0 | AP71: 0 | AQ71: 0 | AR71: 410 | AS71: 0 | AT71: 284 | AU71: 404 | AV71: 288 | AW71: 0 | AX71: 274 | AY71: 0 | AZ71: 0 | BA71: 468 | BB71: 0 | BC71: 370 | BD71: 440 | BE71: 0 | BF71: 320 | BG71: 294 | BH71: 273 | BI71: 144 | BJ71: =SUM((BJ68+BJ69)*BJ70) -> 0 | BK71: =SUM((BK68+BK69)*BK70) -> 0 | BL71: =SUM((BL68+BL69)*BL70) -> 0 | BM71: =SUM((BM68+BM69)*BM70) -> 0 | BO71: Rondes effectuées | BP71: =COUNTIF(D68:BM68,">0") -> 32 | BQ71: =SUM((BQ68+BQ69)*BQ70) -> 0 | BR71: 0 | BS71: 0 | BT71: 0 | BU71: 0 | BV71: 0 | BW71: 0 | BX71: 0 | BY71: 0 | BZ71: 0 | CA71: 0 | CB71: 0 | CC71: 0 | CD71: 0 | CE71: 0 | CF71: 0 | CG71: 0 | CI71: Rondes Effectuées | CJ71: =COUNTIF(BQ68:CG68,">0") -> 0 | CK71: Rondes effectuées | CL71: =SUM(CJ71+BP71) -> 32
A72: 17 | B72: =VLOOKUP(A72,'Numéro licences'!$H$4:$I$47,2) -> MALLIEN Philippe | C72: Aller-Retour | AA72: 0 | AG72: 68 | BN72: =SUM(D72:BM72) -> 68 | BO72: Km renseignés | BP72: =SUM(BN72:BN73) -> 624 | CH72: =SUM(BQ72:CG72) -> 0 | CI72: Km renseignés | CJ72: =SUM(CH72+CH73) -> 0 | CK72: Km renseignés | CL72: =SUM(BP72+CJ72) -> 624
C73: Ronde | I73: 160 | AA73: 200 | AG73: 196 | BN73: =SUM(D73:BM73) -> 556 | BO73: Km confirmés | BP73: =SUM(D75:BM75) -> 360 | CH73: =SUM(BQ73:CG73) -> 0 | CI73: Km confirmés | CJ73: =SUM(BQ75:CG75) -> 0 | CK73: Km confirmés | CL73: =SUM(CJ73+BP73) -> 360
D74: 0 | E74: 0 | F74: 0 | G74: 0 | H74: 0 | I74: 1 | J74: 0 | K74: 0 | L74: 0 | M74: 0 | N74: 0 | O74: 0 | P74: 0 | Q74: 0 | R74: 0 | S74: 0 | T74: 0 | U74: 0 | V74: 0 | W74: 0 | X74: 0 | Y74: 0 | Z74: 0 | AA74: 1 | AB74: 0 | AC74: 0 | AD74: 0 | AE74: 0 | AF74: 0 | AG74: 0 | AH74: 0 | AI74: 0 | AJ74: 0 | AK74: 0 | AL74: 0 | AM74: 0 | AN74: 0 | AO74: 0 | AP74: 0 | AQ74: 0 | AR74: 0 | AS74: 0 | AT74: 0 | AU74: 0 | AV74: 0 | AW74: 0 | AX74: 0 | AY74: 0 | AZ74: 0 | BA74: 0 | BB74: 0 | BC74: 0 | BD74: 0 | BE74: 0 | BF74: 0 | BG74: 0 | BH74: 0 | BI74: 0 | BJ74: 0 | BK74: 0 | BL74: 0 | BM74: 0 | BO74: Rondes confirmées | BP74: =SUM(C74:BM74) -> 2 | BQ74: 0 | BR74: 0 | BS74: 0 | BT74: 0 | BU74: 0 | BV74: 0 | BW74: 0 | BX74: 0 | BY74: 0 | BZ74: 0 | CA74: 0 | CB74: 0 | CC74: 0 | CD74: 0 | CE74: 0 | CF74: 0 | CG74: 0 | CI74: Rondes confirmées | CJ74: =SUM(BQ74:CH74) -> 0 | CK74: Rondes confirmées | CL74: =SUM(CJ74+BP74) -> 2
D75: =SUM((D72+D73)*D74) -> 0 | E75: 0 | F75: 0 | G75: 0 | H75: 0 | I75: 160 | J75: 0 | K75: 0 | L75: 0 | M75: 0 | N75: 0 | O75: 0 | P75: 0 | Q75: 0 | R75: 0 | S75: 0 | T75: 0 | U75: 0 | V75: 0 | W75: 0 | X75: 0 | Y75: 0 | Z75: 0 | AA75: 200 | AB75: 0 | AC75: 0 | AD75: 0 | AE75: 0 | AF75: 0 | AG75: 0 | AH75: 0 | AI75: 0 | AJ75: 0 | AK75: 0 | AL75: 0 | AM75: 0 | AN75: 0 | AO75: 0 | AP75: 0 | AQ75: 0 | AR75: 0 | AS75: 0 | AT75: 0 | AU75: 0 | AV75: 0 | AW75: 0 | AX75: 0 | AY75: 0 | AZ75: 0 | BA75: 0 | BB75: 0 | BC75: 0 | BD75: 0 | BE75: 0 | BF75: 0 | BG75: 0 | BH75: 0 | BI75: 0 | BJ75: =SUM((BJ72+BJ73)*BJ74) -> 0 | BK75: =SUM((BK72+BK73)*BK74) -> 0 | BL75: =SUM((BL72+BL73)*BL74) -> 0 | BM75: =SUM((BM72+BM73)*BM74) -> 0 | BO75: Rondes effectuées | BP75: =COUNTIF(D72:BM72,">0") -> 1 | BQ75: =SUM((BQ72+BQ73)*BQ74) -> 0 | BR75: 0 | BS75: 0 | BT75: 0 | BU75: 0 | BV75: 0 | BW75: 0 | BX75: 0 | BY75: 0 | BZ75: 0 | CA75: 0 | CB75: 0 | CC75: 0 | CD75: 0 | CE75: 0 | CF75: 0 | CG75: 0 | CI75: Rondes Effectuées | CJ75: =COUNTIF(BQ72:CG72,">0") -> 0 | CK75: Rondes effectuées | CL75: =SUM(CJ75+BP75) -> 1
A76: 18 | B76: =VLOOKUP(A76,'Numéro licences'!$H$4:$I$47,2) -> MANZANO Pascal | C76: Aller-Retour | D76: 394 | E76: 186 | F76: 160 | G76: 266 | K76: 204 | L76: 20 | M76: 44 | N76: 34 | R76: 156 | T76: 254 | U76: 284 | W76: 20 | X76: 164 | Z76: 132 | AA76: 0 | AH76: 186 | AJ76: 118 | AK76: 18 | AR76: 210 | AU76: 204 | AV76: 68 | BC76: 210 | BF76: 160 | BH76: 118 | BI76: 18 | BN76: =SUM(D76:BM76) -> 3628 | BO76: Km renseignés | BP76: =SUM(BN76:BN77) -> 8123 | BR76: 110 | CH76: =SUM(BQ76:CG76) -> 110 | CI76: Km renseignés | CJ76: =SUM(CH76+CH77) -> 310 | CK76: Km renseignés | CL76: =SUM(BP76+CJ76) -> 8433
C77: Ronde | D77: 130 | E77: 150 | F77: 140 | G77: 130 | I77: 160 | K77: 134 | L77: 173 | M77: 160 | N77: 160 | R77: 146 | T77: 270 | U77: 190 | W77: 200 | X77: 221 | Z77: 175 | AA77: 200 | AH77: 180 | AJ77: 160 | AK77: 195 | AR77: 200 | AU77: 200 | AV77: 220 | BC77: 160 | BF77: 160 | BH77: 155 | BI77: 126 | BN77: =SUM(D77:BM77) -> 4495 | BO77: Km confirmés | BP77: =SUM(D79:BM79) -> 7803 | BR77: 200 | CH77: =SUM(BQ77:CG77) -> 200 | CI77: Km confirmés | CJ77: =SUM(BQ79:CG79) -> 310 | CK77: Km confirmés | CL77: =SUM(CJ77+BP77) -> 8113
D78: 1 | E78: 1 | F78: 1 | G78: 1 | H78: 0 | I78: 1 | J78: 0 | K78: 1 | L78: 1 | M78: 1 | N78: 1 | O78: 0 | P78: 0 | Q78: 0 | R78: 1 | S78: 0 | T78: 1 | U78: 1 | V78: 0 | W78: 1 | X78: 1 | Y78: 0 | Z78: 1 | AA78: 1 | AB78: 0 | AC78: 0 | AD78: 0 | AE78: 0 | AF78: 0 | AG78: 0 | AH78: 1 | AI78: 0 | AJ78: 1 | AK78: 1 | AL78: 0 | AM78: 0 | AN78: 0 | AO78: 0 | AP78: 0 | AQ78: 0 | AR78: 1 | AS78: 0 | AT78: 0 | AU78: 1 | AV78: 1 | AW78: 0 | AX78: 0 | AY78: 0 | AZ78: 0 | BA78: 0 | BB78: 0 | BC78: 1 | BD78: 0 | BE78: 0 | BF78: 0 | BG78: 0 | BH78: 1 | BI78: 1 | BJ78: 0 | BK78: 0 | BL78: 0 | BM78: 0 | BO78: Rondes confirmées | BP78: =SUM(C78:BM78) -> 25 | BQ78: 0 | BR78: 1 | BS78: 0 | BT78: 0 | BU78: 0 | BV78: 0 | BW78: 0 | BX78: 0 | BY78: 0 | BZ78: 0 | CA78: 0 | CB78: 0 | CC78: 0 | CD78: 0 | CE78: 0 | CF78: 0 | CG78: 0 | CI78: Rondes confirmées | CJ78: =SUM(BQ78:CH78) -> 1 | CK78: Rondes confirmées | CL78: =SUM(CJ78+BP78) -> 26
D79: =SUM((D76+D77)*D78) -> 524 | E79: 336 | F79: 300 | G79: 396 | H79: 0 | I79: 160 | J79: 0 | K79: 338 | L79: 193 | M79: 204 | N79: 194 | O79: 0 | P79: 0 | Q79: 0 | R79: 302 | S79: 0 | T79: 524 | U79: 474 | V79: 0 | W79: 220 | X79: 385 | Y79: 0 | Z79: 307 | AA79: 200 | AB79: 0 | AC79: 0 | AD79: 0 | AE79: 0 | AF79: 0 | AG79: 0 | AH79: 366 | AI79: 0 | AJ79: 278 | AK79: 213 | AL79: 0 | AM79: 0 | AN79: 0 | AO79: 0 | AP79: 0 | AQ79: 0 | AR79: 410 | AS79: 0 | AT79: 0 | AU79: 404 | AV79: 288 | AW79: 0 | AX79: 0 | AY79: 0 | AZ79: 0 | BA79: 0 | BB79: 0 | BC79: 370 | BD79: 0 | BE79: 0 | BF79: 0 | BG79: 0 | BH79: 273 | BI79: 144 | BJ79: =SUM((BJ76+BJ77)*BJ78) -> 0 | BK79: =SUM((BK76+BK77)*BK78) -> 0 | BL79: =SUM((BL76+BL77)*BL78) -> 0 | BM79: =SUM((BM76+BM77)*BM78) -> 0 | BO79: Rondes effectuées | BP79: =COUNTIF(D76:BM76,">0") -> 24 | BQ79: =SUM((BQ76+BQ77)*BQ78) -> 0 | BR79: 310 | BS79: 0 | BT79: 0 | BU79: 0 | BV79: 0 | BW79: 0 | BX79: 0 | BY79: 0 | BZ79: 0 | CA79: 0 | CB79: 0 | CC79: 0 | CD79: 0 | CE79: 0 | CF79: 0 | CG79: 0 | CI79: Rondes Effectuées | CJ79: =COUNTIF(BQ76:CG76,">0") -> 1 | CK79: Rondes effectuées | CL79: =SUM(CJ79+BP79) -> 25
A80: 19 | B80: =VLOOKUP(A80,'Numéro licences'!$H$4:$I$47,2) -> MARIEL Didier | C80: Aller-Retour | K80: 204 | M80: 44 | P80: 18 | AD80: 86 | AJ80: 118 | AK80: 18 | AT80: 44 | BG80: 164 | BI80: 18 | BN80: =SUM(D80:BM80) -> 714 | BO80: Km renseignés | BP80: =SUM(BN80:BN81) -> 1859 | CH80: =SUM(BQ80:CG80) -> 0 | CI80: Km renseignés | CJ80: =SUM(CH80+CH81) -> 0 | CK80: Km renseignés | CL80: =SUM(BP80+CJ80) -> 1859
C81: Ronde | K81: 134 | M81: 160 | P81: 0 | AD81: 0 | AJ81: 160 | AK81: 195 | AT81: 240 | BG81: 130 | BI81: 126 | BN81: =SUM(D81:BM81) -> 1145 | BO81: Km confirmés | BP81: =SUM(D83:BM83) -> 1859 | CH81: =SUM(BQ81:CG81) -> 0 | CI81: Km confirmés | CJ81: =SUM(BQ83:CG83) -> 0 | CK81: Km confirmés | CL81: =SUM(CJ81+BP81) -> 1859
D82: 0 | E82: 0 | F82: 0 | G82: 0 | H82: 0 | I82: 0 | J82: 0 | K82: 1 | L82: 0 | M82: 1 | N82: 0 | O82: 0 | P82: 1 | Q82: 0 | R82: 0 | S82: 0 | T82: 0 | U82: 0 | V82: 0 | W82: 0 | X82: 0 | Y82: 0 | Z82: 0 | AA82: 0 | AB82: 0 | AC82: 0 | AD82: 1 | AE82: 0 | AF82: 0 | AG82: 0 | AH82: 0 | AI82: 0 | AJ82: 1 | AK82: 1 | AL82: 0 | AM82: 0 | AN82: 0 | AO82: 0 | AP82: 0 | AQ82: 0 | AR82: 0 | AS82: 0 | AT82: 1 | AU82: 0 | AV82: 0 | AW82: 0 | AX82: 0 | AY82: 0 | AZ82: 0 | BA82: 0 | BB82: 0 | BC82: 0 | BD82: 0 | BE82: 0 | BF82: 0 | BG82: 1 | BH82: 0 | BI82: 1 | BJ82: 0 | BK82: 0 | BL82: 0 | BM82: 0 | BO82: Rondes confirmées | BP82: =SUM(C82:BM82) -> 9 | BQ82: 0 | BR82: 0 | BS82: 0 | BT82: 0 | BU82: 0 | BV82: 0 | BW82: 0 | BX82: 0 | BY82: 0 | BZ82: 0 | CA82: 0 | CB82: 0 | CC82: 0 | CD82: 0 | CE82: 0 | CF82: 0 | CG82: 0 | CI82: Rondes confirmées | CJ82: =SUM(BQ82:CH82) -> 0 | CK82: Rondes confirmées | CL82: =SUM(CJ82+BP82) -> 9
D83: =SUM((D80+D81)*D82) -> 0 | E83: 0 | F83: 0 | G83: 0 | H83: 0 | I83: 0 | J83: 0 | K83: 338 | L83: 0 | M83: 204 | N83: 0 | O83: 0 | P83: 18 | Q83: 0 | R83: 0 | S83: 0 | T83: 0 | U83: 0 | V83: 0 | W83: 0 | X83: 0 | Y83: 0 | Z83: 0 | AA83: 0 | AB83: 0 | AC83: 0 | AD83: 86 | AE83: 0 | AF83: 0 | AG83: 0 | AH83: 0 | AI83: 0 | AJ83: 278 | AK83: 213 | AL83: 0 | AM83: 0 | AN83: 0 | AO83: 0 | AP83: 0 | AQ83: 0 | AR83: 0 | AS83: 0 | AT83: 284 | AU83: 0 | AV83: 0 | AW83: 0 | AX83: 0 | AY83: 0 | AZ83: 0 | BA83: 0 | BB83: 0 | BC83: 0 | BD83: 0 | BE83: 0 | BF83: 0 | BG83: 294 | BH83: 0 | BI83: 144 | BJ83: =SUM((BJ80+BJ81)*BJ82) -> 0 | BK83: =SUM((BK80+BK81)*BK82) -> 0 | BL83: =SUM((BL80+BL81)*BL82) -> 0 | BM83: =SUM((BM80+BM81)*BM82) -> 0 | BO83: Rondes effectuées | BP83: =COUNTIF(D80:BM80,">0") -> 9 | BQ83: =SUM((BQ80+BQ81)*BQ82) -> 0 | BR83: 0 | BS83: 0 | BT83: 0 | BU83: 0 | BV83: 0 | BW83: 0 | BX83: 0 | BY83: 0 | BZ83: 0 | CA83: 0 | CB83: 0 | CC83: 0 | CD83: 0 | CE83: 0 | CF83: 0 | CG83: 0 | CI83: Rondes Effectuées | CJ83: =COUNTIF(BQ80:CG80,">0") -> 0 | CK83: Rondes effectuées | CL83: =SUM(CJ83+BP83) -> 9
A84: 20 | B84: =VLOOKUP(A84,'Numéro licences'!$H$4:$I$47,2) -> MILET Benoit | C84: Aller-Retour | AA84: 0 | BI84: 18 | BN84: =SUM(D84:BM84) -> 18 | BO84: Km renseignés | BP84: =SUM(BN84:BN85) -> 504 | CH84: =SUM(BQ84:CG84) -> 0 | CI84: Km renseignés | CJ84: =SUM(CH84+CH85) -> 0 | CK84: Km renseignés | CL84: =SUM(BP84+CJ84) -> 504
C85: Ronde | I85: 160 | AA85: 200 | BI85: 126 | BN85: =SUM(D85:BM85) -> 486 | BO85: Km confirmés | BP85: =SUM(D87:BM87) -> 504 | CH85: =SUM(BQ85:CG85) -> 0 | CI85: Km confirmés | CJ85: =SUM(BQ87:CG87) -> 0 | CK85: Km confirmés | CL85: =SUM(CJ85+BP85) -> 504
D86: 0 | E86: 0 | F86: 0 | G86: 0 | H86: 0 | I86: 1 | J86: 0 | K86: 0 | L86: 0 | M86: 0 | N86: 0 | O86: 0 | P86: 0 | Q86: 0 | R86: 0 | S86: 0 | T86: 0 | U86: 0 | V86: 0 | W86: 0 | X86: 0 | Y86: 0 | Z86: 0 | AA86: 1 | AB86: 0 | AC86: 0 | AD86: 0 | AE86: 0 | AF86: 0 | AG86: 0 | AH86: 0 | AI86: 0 | AJ86: 0 | AK86: 0 | AL86: 0 | AM86: 0 | AN86: 0 | AO86: 0 | AP86: 0 | AQ86: 0 | AR86: 0 | AS86: 0 | AT86: 0 | AU86: 0 | AV86: 0 | AW86: 0 | AX86: 0 | AY86: 0 | AZ86: 0 | BA86: 0 | BB86: 0 | BC86: 0 | BD86: 0 | BE86: 0 | BF86: 0 | BG86: 0 | BH86: 0 | BI86: 1 | BJ86: 0 | BK86: 0 | BL86: 0 | BM86: 0 | BO86: Rondes confirmées | BP86: =SUM(C86:BM86) -> 3 | BQ86: 0 | BR86: 0 | BS86: 0 | BT86: 0 | BU86: 0 | BV86: 0 | BW86: 0 | BX86: 0 | BY86: 0 | BZ86: 0 | CA86: 0 | CB86: 0 | CC86: 0 | CD86: 0 | CE86: 0 | CF86: 0 | CG86: 0 | CI86: Rondes confirmées | CJ86: =SUM(BQ86:CH86) -> 0 | CK86: Rondes confirmées | CL86: =SUM(CJ86+BP86) -> 3
D87: =SUM((D84+D85)*D86) -> 0 | E87: 0 | F87: 0 | G87: 0 | H87: 0 | I87: 160 | J87: 0 | K87: 0 | L87: 0 | M87: 0 | N87: 0 | O87: 0 | P87: 0 | Q87: 0 | R87: 0 | S87: 0 | T87: 0 | U87: 0 | V87: 0 | W87: 0 | X87: 0 | Y87: 0 | Z87: 0 | AA87: 200 | AB87: 0 | AC87: 0 | AD87: 0 | AE87: 0 | AF87: 0 | AG87: 0 | AH87: 0 | AI87: 0 | AJ87: 0 | AK87: 0 | AL87: 0 | AM87: 0 | AN87: 0 | AO87: 0 | AP87: 0 | AQ87: 0 | AR87: 0 | AS87: 0 | AT87: 0 | AU87: 0 | AV87: 0 | AW87: 0 | AX87: 0 | AY87: 0 | AZ87: 0 | BA87: 0 | BB87: 0 | BC87: 0 | BD87: 0 | BE87: 0 | BF87: 0 | BG87: 0 | BH87: 0 | BI87: 144 | BJ87: =SUM((BJ84+BJ85)*BJ86) -> 0 | BK87: =SUM((BK84+BK85)*BK86) -> 0 | BL87: =SUM((BL84+BL85)*BL86) -> 0 | BM87: =SUM((BM84+BM85)*BM86) -> 0 | BO87: Rondes effectuées | BP87: =COUNTIF(D84:BM84,">0") -> 1 | BQ87: =SUM((BQ84+BQ85)*BQ86) -> 0 | BR87: 0 | BS87: 0 | BT87: 0 | BU87: 0 | BV87: 0 | BW87: 0 | BX87: 0 | BY87: 0 | BZ87: 0 | CA87: 0 | CB87: 0 | CC87: 0 | CD87: 0 | CE87: 0 | CF87: 0 | CG87: 0 | CI87: Rondes Effectuées | CJ87: =COUNTIF(BQ84:CG84,">0") -> 0 | CK87: Rondes effectuées | CL87: =SUM(CJ87+BP87) -> 1
A88: 21 | B88: =VLOOKUP(A88,'Numéro licences'!$H$4:$I$47,2) -> NIHOUL Dany | C88: Aller-Retour | D88: 394 | L88: 20 | M88: 44 | R88: 156 | U88: 284 | W88: 20 | X88: 164 | Y88: 38 | Z88: 132 | AA88: 0 | AD88: 86 | AG88: 68 | AR88: 210 | AT88: 44 | AV88: 68 | BC88: 210 | BD88: 280 | BI88: 18 | BN88: =SUM(D88:BM88) -> 2236 | BO88: Km renseignés | BP88: =SUM(BN88:BN89) -> 6312 | CH88: =SUM(BQ88:CG88) -> 0 | CI88: Km renseignés | CJ88: =SUM(CH88+CH89) -> 0 | CK88: Km renseignés | CL88: =SUM(BP88+CJ88) -> 6312
C89: Ronde | D89: 130 | I89: 160 | L89: 173 | M89: 160 | R89: 146 | U89: 190 | W89: 200 | X89: 221 | Y89: 803 | Z89: 175 | AA89: 200 | AD89: 216 | AG89: 196 | AR89: 200 | AT89: 240 | AV89: 220 | BC89: 160 | BD89: 160 | BI89: 126 | BN89: =SUM(D89:BM89) -> 4076 | BO89: Km confirmés | BP89: =SUM(D91:BM91) -> 6312 | CH89: =SUM(BQ89:CG89) -> 0 | CI89: Km confirmés | CJ89: =SUM(BQ91:CG91) -> 0 | CK89: Km confirmés | CL89: =SUM(CJ89+BP89) -> 6312
D90: 1 | E90: 0 | F90: 0 | G90: 0 | H90: 0 | I90: 1 | J90: 0 | K90: 0 | L90: 1 | M90: 1 | N90: 0 | O90: 0 | P90: 0 | Q90: 0 | R90: 1 | S90: 0 | T90: 0 | U90: 1 | V90: 0 | W90: 1 | X90: 1 | Y90: 1 | Z90: 1 | AA90: 1 | AB90: 0 | AC90: 0 | AD90: 1 | AE90: 0 | AF90: 0 | AG90: 1 | AH90: 0 | AI90: 0 | AJ90: 0 | AK90: 0 | AL90: 0 | AM90: 0 | AN90: 0 | AO90: 0 | AP90: 0 | AQ90: 0 | AR90: 1 | AS90: 0 | AT90: 1 | AU90: 0 | AV90: 1 | AW90: 0 | AX90: 0 | AY90: 0 | AZ90: 0 | BA90: 0 | BB90: 0 | BC90: 1 | BD90: 1 | BE90: 0 | BF90: 0 | BG90: 0 | BH90: 0 | BI90: 1 | BJ90: 0 | BK90: 0 | BL90: 0 | BM90: 0 | BO90: Rondes confirmées | BP90: =SUM(C90:BM90) -> 19 | BQ90: 0 | BR90: 0 | BS90: 0 | BT90: 0 | BU90: 0 | BV90: 0 | BW90: 0 | BX90: 0 | BY90: 0 | BZ90: 0 | CA90: 0 | CB90: 0 | CC90: 0 | CD90: 0 | CE90: 0 | CF90: 0 | CG90: 0 | CI90: Rondes confirmées | CJ90: =SUM(BQ90:CH90) -> 0 | CK90: Rondes confirmées | CL90: =SUM(CJ90+BP90) -> 19
D91: =SUM((D88+D89)*D90) -> 524 | E91: 0 | F91: 0 | G91: 0 | H91: 0 | I91: 160 | J91: 0 | K91: 0 | L91: 193 | M91: 204 | N91: 0 | O91: 0 | P91: 0 | Q91: 0 | R91: 302 | S91: 0 | T91: 0 | U91: 474 | V91: 0 | W91: 220 | X91: 385 | Y91: 841 | Z91: 307 | AA91: 200 | AB91: 0 | AC91: 0 | AD91: 302 | AE91: 0 | AF91: 0 | AG91: 264 | AH91: 0 | AI91: 0 | AJ91: 0 | AK91: 0 | AL91: 0 | AM91: 0 | AN91: 0 | AO91: 0 | AP91: 0 | AQ91: 0 | AR91: 410 | AS91: 0 | AT91: 284 | AU91: 0 | AV91: 288 | AW91: 0 | AX91: 0 | AY91: 0 | AZ91: 0 | BA91: 0 | BB91: 0 | BC91: 370 | BD91: 440 | BE91: 0 | BF91: 0 | BG91: 0 | BH91: 0 | BI91: 144 | BJ91: =SUM((BJ88+BJ89)*BJ90) -> 0 | BK91: =SUM((BK88+BK89)*BK90) -> 0 | BL91: =SUM((BL88+BL89)*BL90) -> 0 | BM91: =SUM((BM88+BM89)*BM90) -> 0 | BO91: Rondes effectuées | BP91: =COUNTIF(D88:BM88,">0") -> 17 | BQ91: =SUM((BQ88+BQ89)*BQ90) -> 0 | BR91: 0 | BS91: 0 | BT91: 0 | BU91: 0 | BV91: 0 | BW91: 0 | BX91: 0 | BY91: 0 | BZ91: 0 | CA91: 0 | CB91: 0 | CC91: 0 | CD91: 0 | CE91: 0 | CF91: 0 | CG91: 0 | CI91: Rondes Effectuées | CJ91: =COUNTIF(BQ88:CG88,">0") -> 0 | CK91: Rondes effectuées | CL91: =SUM(CJ91+BP91) -> 17
A92: 22 | B92: =VLOOKUP(A92,'Numéro licences'!$H$4:$I$47,2) -> PARMENTIER Dominique | C92: Aller-Retour | X92: 164 | AA92: 0 | AD92: 86 | AJ92: 118 | BN92: =SUM(D92:BM92) -> 368 | BO92: Km renseignés | BP92: =SUM(BN92:BN93) -> 728 | CH92: =SUM(BQ92:CG92) -> 0 | CI92: Km renseignés | CJ92: =SUM(CH92+CH93) -> 0 | CK92: Km renseignés | CL92: =SUM(BP92+CJ92) -> 728
C93: Ronde | I93: 160 | X93: 0 | AA93: 200 | AD93: 0 | AJ93: 0 | BN93: =SUM(D93:BM93) -> 360 | BO93: Km confirmés | BP93: =SUM(D95:BM95) -> 728 | CH93: =SUM(BQ93:CG93) -> 0 | CI93: Km confirmés | CJ93: =SUM(BQ95:CG95) -> 0 | CK93: Km confirmés | CL93: =SUM(CJ93+BP93) -> 728
D94: 0 | E94: 0 | F94: 0 | G94: 0 | H94: 0 | I94: 1 | J94: 0 | K94: 0 | L94: 0 | M94: 0 | N94: 0 | O94: 0 | P94: 0 | Q94: 0 | R94: 0 | S94: 0 | T94: 0 | U94: 0 | V94: 0 | W94: 0 | X94: 1 | Y94: 0 | Z94: 0 | AA94: 1 | AB94: 0 | AC94: 0 | AD94: 1 | AE94: 0 | AF94: 0 | AG94: 0 | AH94: 0 | AI94: 0 | AJ94: 1 | AK94: 0 | AL94: 0 | AM94: 0 | AN94: 0 | AO94: 0 | AP94: 0 | AQ94: 0 | AR94: 0 | AS94: 0 | AT94: 0 | AU94: 0 | AV94: 0 | AW94: 0 | AX94: 0 | AY94: 0 | AZ94: 0 | BA94: 0 | BB94: 0 | BC94: 0 | BD94: 0 | BE94: 0 | BF94: 0 | BG94: 0 | BH94: 0 | BI94: 0 | BJ94: 0 | BK94: 0 | BL94: 0 | BM94: 0 | BO94: Rondes confirmées | BP94: =SUM(C94:BM94) -> 5 | BQ94: 0 | BR94: 0 | BS94: 0 | BT94: 0 | BU94: 0 | BV94: 0 | BW94: 0 | BX94: 0 | BY94: 0 | BZ94: 0 | CA94: 0 | CB94: 0 | CC94: 0 | CD94: 0 | CE94: 0 | CF94: 0 | CG94: 0 | CI94: Rondes confirmées | CJ94: =SUM(BQ94:CH94) -> 0 | CK94: Rondes confirmées | CL94: =SUM(CJ94+BP94) -> 5
D95: =SUM((D92+D93)*D94) -> 0 | E95: 0 | F95: 0 | G95: 0 | H95: 0 | I95: 160 | J95: 0 | K95: 0 | L95: 0 | M95: 0 | N95: 0 | O95: 0 | P95: 0 | Q95: 0 | R95: 0 | S95: 0 | T95: 0 | U95: 0 | V95: 0 | W95: 0 | X95: 164 | Y95: 0 | Z95: 0 | AA95: 200 | AB95: 0 | AC95: 0 | AD95: 86 | AE95: 0 | AF95: 0 | AG95: 0 | AH95: 0 | AI95: 0 | AJ95: 118 | AK95: 0 | AL95: 0 | AM95: 0 | AN95: 0 | AO95: 0 | AP95: 0 | AQ95: 0 | AR95: 0 | AS95: 0 | AT95: 0 | AU95: 0 | AV95: 0 | AW95: 0 | AX95: 0 | AY95: 0 | AZ95: 0 | BA95: 0 | BB95: 0 | BC95: 0 | BD95: 0 | BE95: 0 | BF95: 0 | BG95: 0 | BH95: 0 | BI95: 0 | BJ95: =SUM((BJ92+BJ93)*BJ94) -> 0 | BK95: =SUM((BK92+BK93)*BK94) -> 0 | BL95: =SUM((BL92+BL93)*BL94) -> 0 | BM95: =SUM((BM92+BM93)*BM94) -> 0 | BO95: Rondes effectuées | BP95: =COUNTIF(D92:BM92,">0") -> 3 | BQ95: =SUM((BQ92+BQ93)*BQ94) -> 0 | BR95: 0 | BS95: 0 | BT95: 0 | BU95: 0 | BV95: 0 | BW95: 0 | BX95: 0 | BY95: 0 | BZ95: 0 | CA95: 0 | CB95: 0 | CC95: 0 | CD95: 0 | CE95: 0 | CF95: 0 | CG95: 0 | CI95: Rondes Effectuées | CJ95: =COUNTIF(BQ92:CG92,">0") -> 0 | CK95: Rondes effectuées | CL95: =SUM(CJ95+BP95) -> 3
A96: 23 | B96: =VLOOKUP(A96,'Numéro licences'!$H$4:$I$47,2) -> RAMEAU Didier | C96: Aller-Retour | D96: 394 | E96: 186 | G96: 266 | K96: 204 | M96: 44 | N96: 34 | X96: 164 | AG96: 68 | AJ96: 118 | AK96: 18 | BC96: 210 | BG96: 164 | BN96: =SUM(D96:BM96) -> 1870 | BO96: Km renseignés | BP96: =SUM(BN96:BN97) -> 3956 | CH96: =SUM(BQ96:CG96) -> 0 | CI96: Km renseignés | CJ96: =SUM(CH96+CH97) -> 0 | CK96: Km renseignés | CL96: =SUM(BP96+CJ96) -> 3956
C97: Ronde | D97: 130 | E97: 150 | G97: 130 | I97: 160 | K97: 134 | M97: 160 | N97: 160 | X97: 221 | AG97: 196 | AJ97: 160 | AK97: 195 | BC97: 160 | BG97: 130 | BN97: =SUM(D97:BM97) -> 2086 | BO97: Km confirmés | BP97: =SUM(D99:BM99) -> 3956 | CH97: =SUM(BQ97:CG97) -> 0 | CI97: Km confirmés | CJ97: =SUM(BQ99:CG99) -> 0 | CK97: Km confirmés | CL97: =SUM(CJ97+BP97) -> 3956
D98: 1 | E98: 1 | F98: 0 | G98: 1 | H98: 0 | I98: 1 | J98: 0 | K98: 1 | L98: 0 | M98: 1 | N98: 1 | O98: 0 | P98: 0 | Q98: 0 | R98: 0 | S98: 0 | T98: 0 | U98: 0 | V98: 0 | W98: 0 | X98: 1 | Y98: 0 | Z98: 0 | AA98: 0 | AB98: 0 | AC98: 0 | AD98: 0 | AE98: 0 | AF98: 0 | AG98: 1 | AH98: 0 | AI98: 0 | AJ98: 1 | AK98: 1 | AL98: 0 | AM98: 0 | AN98: 0 | AO98: 0 | AP98: 0 | AQ98: 0 | AR98: 0 | AS98: 0 | AT98: 0 | AU98: 0 | AV98: 0 | AW98: 0 | AX98: 0 | AY98: 0 | AZ98: 0 | BA98: 0 | BB98: 0 | BC98: 1 | BD98: 0 | BE98: 0 | BF98: 0 | BG98: 1 | BH98: 0 | BI98: 0 | BJ98: 0 | BK98: 0 | BL98: 0 | BM98: 0 | BO98: Rondes confirmées | BP98: =SUM(C98:BM98) -> 13 | BQ98: 0 | BR98: 0 | BS98: 0 | BT98: 0 | BU98: 0 | BV98: 0 | BW98: 0 | BX98: 0 | BY98: 0 | BZ98: 0 | CA98: 0 | CB98: 0 | CC98: 0 | CD98: 0 | CE98: 0 | CF98: 0 | CG98: 0 | CI98: Rondes confirmées | CJ98: =SUM(BQ98:CH98) -> 0 | CK98: Rondes confirmées | CL98: =SUM(CJ98+BP98) -> 13
D99: =SUM((D96+D97)*D98) -> 524 | E99: 336 | F99: 0 | G99: 396 | H99: 0 | I99: 160 | J99: 0 | K99: 338 | L99: 0 | M99: 204 | N99: 194 | O99: 0 | P99: 0 | Q99: 0 | R99: 0 | S99: 0 | T99: 0 | U99: 0 | V99: 0 | W99: 0 | X99: 385 | Y99: 0 | Z99: 0 | AA99: 0 | AB99: 0 | AC99: 0 | AD99: 0 | AE99: 0 | AF99: 0 | AG99: 264 | AH99: 0 | AI99: 0 | AJ99: 278 | AK99: 213 | AL99: 0 | AM99: 0 | AN99: 0 | AO99: 0 | AP99: 0 | AQ99: 0 | AR99: 0 | AS99: 0 | AT99: 0 | AU99: 0 | AV99: 0 | AW99: 0 | AX99: 0 | AY99: 0 | AZ99: 0 | BA99: 0 | BB99: 0 | BC99: 370 | BD99: 0 | BE99: 0 | BF99: 0 | BG99: 294 | BH99: 0 | BI99: 0 | BJ99: =SUM((BJ96+BJ97)*BJ98) -> 0 | BK99: =SUM((BK96+BK97)*BK98) -> 0 | BL99: =SUM((BL96+BL97)*BL98) -> 0 | BM99: =SUM((BM96+BM97)*BM98) -> 0 | BO99: Rondes effectuées | BP99: =COUNTIF(D96:BM96,">0") -> 12 | BQ99: =SUM((BQ96+BQ97)*BQ98) -> 0 | BR99: 0 | BS99: 0 | BT99: 0 | BU99: 0 | BV99: 0 | BW99: 0 | BX99: 0 | BY99: 0 | BZ99: 0 | CA99: 0 | CB99: 0 | CC99: 0 | CD99: 0 | CE99: 0 | CF99: 0 | CG99: 0 | CI99: Rondes Effectuées | CJ99: =COUNTIF(BQ96:CG96,">0") -> 0 | CK99: Rondes effectuées | CL99: =SUM(CJ99+BP99) -> 12
A100: 24 | B100: =VLOOKUP(A100,'Numéro licences'!$H$4:$I$47,2) -> SMEETS Carine | C100: Aller-Retour | BN100: =SUM(D100:BM100) -> 0 | BO100: Km renseignés | BP100: =SUM(BN100:BN101) -> 160 | CH100: =SUM(BQ100:CG100) -> 0 | CI100: Km renseignés | CJ100: =SUM(CH100+CH101) -> 0 | CK100: Km renseignés | CL100: =SUM(BP100+CJ100) -> 160
C101: Ronde | I101: 160 | BN101: =SUM(D101:BM101) -> 160 | BO101: Km confirmés | BP101: =SUM(D103:BM103) -> 160 | CH101: =SUM(BQ101:CG101) -> 0 | CI101: Km confirmés | CJ101: =SUM(BQ103:CG103) -> 0 | CK101: Km confirmés | CL101: =SUM(CJ101+BP101) -> 160
D102: 0 | E102: 0 | F102: 0 | G102: 0 | H102: 0 | I102: 1 | J102: 0 | K102: 0 | L102: 0 | M102: 0 | N102: 0 | O102: 0 | P102: 0 | Q102: 0 | R102: 0 | S102: 0 | T102: 0 | U102: 0 | V102: 0 | W102: 0 | X102: 0 | Y102: 0 | Z102: 0 | AA102: 0 | AB102: 0 | AC102: 0 | AD102: 0 | AE102: 0 | AF102: 0 | AG102: 0 | AH102: 0 | AI102: 0 | AJ102: 0 | AK102: 0 | AL102: 0 | AM102: 0 | AN102: 0 | AO102: 0 | AP102: 0 | AQ102: 0 | AR102: 0 | AS102: 0 | AT102: 0 | AU102: 0 | AV102: 0 | AW102: 0 | AX102: 0 | AY102: 0 | AZ102: 0 | BA102: 0 | BB102: 0 | BC102: 0 | BD102: 0 | BE102: 0 | BF102: 0 | BG102: 0 | BH102: 0 | BI102: 0 | BJ102: 0 | BK102: 0 | BL102: 0 | BM102: 0 | BO102: Rondes confirmées | BP102: =SUM(C102:BM102) -> 1 | BQ102: 0 | BR102: 0 | BS102: 0 | BT102: 0 | BU102: 0 | BV102: 0 | BW102: 0 | BX102: 0 | BY102: 0 | BZ102: 0 | CA102: 0 | CB102: 0 | CC102: 0 | CD102: 0 | CE102: 0 | CF102: 0 | CG102: 0 | CI102: Rondes confirmées | CJ102: =SUM(BQ102:CH102) -> 0 | CK102: Rondes confirmées | CL102: =SUM(CJ102+BP102) -> 1
D103: =SUM((D100+D101)*D102) -> 0 | E103: 0 | F103: 0 | G103: 0 | H103: 0 | I103: 160 | J103: 0 | K103: 0 | L103: 0 | M103: 0 | N103: 0 | O103: 0 | P103: 0 | Q103: 0 | R103: 0 | S103: 0 | T103: 0 | U103: 0 | V103: 0 | W103: 0 | X103: 0 | Y103: 0 | Z103: 0 | AA103: 0 | AB103: 0 | AC103: 0 | AD103: 0 | AE103: 0 | AF103: 0 | AG103: 0 | AH103: 0 | AI103: 0 | AJ103: 0 | AK103: 0 | AL103: 0 | AM103: 0 | AN103: 0 | AO103: 0 | AP103: 0 | AQ103: 0 | AR103: 0 | AS103: 0 | AT103: 0 | AU103: 0 | AV103: 0 | AW103: 0 | AX103: 0 | AY103: 0 | AZ103: 0 | BA103: 0 | BB103: 0 | BC103: 0 | BD103: 0 | BE103: 0 | BF103: 0 | BG103: 0 | BH103: 0 | BI103: 0 | BJ103: =SUM((BJ100+BJ101)*BJ102) -> 0 | BK103: =SUM((BK100+BK101)*BK102) -> 0 | BL103: =SUM((BL100+BL101)*BL102) -> 0 | BM103: =SUM((BM100+BM101)*BM102) -> 0 | BO103: Rondes effectuées | BP103: =COUNTIF(D100:BM100,">0") -> 0 | BQ103: =SUM((BQ100+BQ101)*BQ102) -> 0 | BR103: 0 | BS103: 0 | BT103: 0 | BU103: 0 | BV103: 0 | BW103: 0 | BX103: 0 | BY103: 0 | BZ103: 0 | CA103: 0 | CB103: 0 | CC103: 0 | CD103: 0 | CE103: 0 | CF103: 0 | CG103: 0 | CI103: Rondes Effectuées | CJ103: =COUNTIF(BQ100:CG100,">0") -> 0 | CK103: Rondes effectuées | CL103: =SUM(CJ103+BP103) -> 0
A104: 25 | B104: =VLOOKUP(A104,'Numéro licences'!$H$4:$I$47,2) -> STRYPSTEIN Nicolas | C104: Aller-Retour | AA104: 0 | BN104: =SUM(D104:BM104) -> 0 | BO104: Km renseignés | BP104: =SUM(BN104:BN105) -> 200 | CH104: =SUM(BQ104:CG104) -> 0 | CI104: Km renseignés | CJ104: =SUM(CH104+CH105) -> 0 | CK104: Km renseignés | CL104: =SUM(BP104+CJ104) -> 200
C105: Ronde | AA105: 200 | BN105: =SUM(D105:BM105) -> 200 | BO105: Km confirmés | BP105: =SUM(D107:BM107) -> 200 | CH105: =SUM(BQ105:CG105) -> 0 | CI105: Km confirmés | CJ105: =SUM(BQ107:CG107) -> 0 | CK105: Km confirmés | CL105: =SUM(CJ105+BP105) -> 200
D106: 0 | E106: 0 | F106: 0 | G106: 0 | H106: 0 | I106: 0 | J106: 0 | K106: 0 | L106: 0 | M106: 0 | N106: 0 | O106: 0 | P106: 0 | Q106: 0 | R106: 0 | S106: 0 | T106: 0 | U106: 0 | V106: 0 | W106: 0 | X106: 0 | Y106: 0 | Z106: 0 | AA106: 1 | AB106: 0 | AC106: 0 | AD106: 0 | AE106: 0 | AF106: 0 | AG106: 0 | AH106: 0 | AI106: 0 | AJ106: 0 | AK106: 0 | AL106: 0 | AM106: 0 | AN106: 0 | AO106: 0 | AP106: 0 | AQ106: 0 | AR106: 0 | AS106: 0 | AT106: 0 | AU106: 0 | AV106: 0 | AW106: 0 | AX106: 0 | AY106: 0 | AZ106: 0 | BA106: 0 | BB106: 0 | BC106: 0 | BD106: 0 | BE106: 0 | BF106: 0 | BG106: 0 | BH106: 0 | BI106: 0 | BJ106: 0 | BK106: 0 | BL106: 0 | BM106: 0 | BO106: Rondes confirmées | BP106: =SUM(C106:BM106) -> 1 | BQ106: 0 | BR106: 0 | BS106: 0 | BT106: 0 | BU106: 0 | BV106: 0 | BW106: 0 | BX106: 0 | BY106: 0 | BZ106: 0 | CA106: 0 | CB106: 0 | CC106: 0 | CD106: 0 | CE106: 0 | CF106: 0 | CG106: 0 | CI106: Rondes confirmées | CJ106: =SUM(BQ106:CH106) -> 0 | CK106: Rondes confirmées | CL106: =SUM(CJ106+BP106) -> 1
D107: =SUM((D104+D105)*D106) -> 0 | E107: 0 | F107: 0 | G107: 0 | H107: 0 | I107: 0 | J107: 0 | K107: 0 | L107: 0 | M107: 0 | N107: 0 | O107: 0 | P107: 0 | Q107: 0 | R107: 0 | S107: 0 | T107: 0 | U107: 0 | V107: 0 | W107: 0 | X107: 0 | Y107: 0 | Z107: 0 | AA107: 200 | AB107: 0 | AC107: 0 | AD107: 0 | AE107: 0 | AF107: 0 | AG107: 0 | AH107: 0 | AI107: 0 | AJ107: 0 | AK107: 0 | AL107: 0 | AM107: 0 | AN107: 0 | AO107: 0 | AP107: 0 | AQ107: 0 | AR107: 0 | AS107: 0 | AT107: 0 | AU107: 0 | AV107: 0 | AW107: 0 | AX107: 0 | AY107: 0 | AZ107: 0 | BA107: 0 | BB107: 0 | BC107: 0 | BD107: 0 | BE107: 0 | BF107: 0 | BG107: 0 | BH107: 0 | BI107: 0 | BJ107: =SUM((BJ104+BJ105)*BJ106) -> 0 | BK107: =SUM((BK104+BK105)*BK106) -> 0 | BL107: =SUM((BL104+BL105)*BL106) -> 0 | BM107: =SUM((BM104+BM105)*BM106) -> 0 | BO107: Rondes effectuées | BP107: =COUNTIF(D104:BM104,">0") -> 0 | BQ107: =SUM((BQ104+BQ105)*BQ106) -> 0 | BR107: 0 | BS107: 0 | BT107: 0 | BU107: 0 | BV107: 0 | BW107: 0 | BX107: 0 | BY107: 0 | BZ107: 0 | CA107: 0 | CB107: 0 | CC107: 0 | CD107: 0 | CE107: 0 | CF107: 0 | CG107: 0 | CI107: Rondes Effectuées | CJ107: =COUNTIF(BQ104:CG104,">0") -> 0 | CK107: Rondes effectuées | CL107: =SUM(CJ107+BP107) -> 0
A108: 26 | B108: =VLOOKUP(A108,'Numéro licences'!$H$4:$I$47,2) -> URBAIN Philippe | C108: Aller-Retour | BN108: =SUM(D108:BM108) -> 0 | BO108: Km renseignés | BP108: =SUM(BN108:BN109) -> 0 | CH108: =SUM(BQ108:CG108) -> 0 | CI108: Km renseignés | CJ108: =SUM(CH108+CH109) -> 0 | CK108: Km renseignés | CL108: =SUM(BP108+CJ108) -> 0
C109: Ronde | BN109: =SUM(D109:BM109) -> 0 | BO109: Km confirmés | BP109: =SUM(D111:BM111) -> 0 | CH109: =SUM(BQ109:CG109) -> 0 | CI109: Km confirmés | CJ109: =SUM(BQ111:CG111) -> 0 | CK109: Km confirmés | CL109: =SUM(CJ109+BP109) -> 0
D110: 0 | E110: 0 | F110: 0 | G110: 0 | H110: 0 | I110: 0 | J110: 0 | K110: 0 | L110: 0 | M110: 0 | N110: 0 | O110: 0 | P110: 0 | Q110: 0 | R110: 0 | S110: 0 | T110: 0 | U110: 0 | V110: 0 | W110: 0 | X110: 0 | Y110: 0 | Z110: 0 | AA110: 0 | AB110: 0 | AC110: 0 | AD110: 0 | AE110: 0 | AF110: 0 | AG110: 0 | AH110: 0 | AI110: 0 | AJ110: 0 | AK110: 0 | AL110: 0 | AM110: 0 | AN110: 0 | AO110: 0 | AP110: 0 | AQ110: 0 | AR110: 0 | AS110: 0 | AT110: 0 | AU110: 0 | AV110: 0 | AW110: 0 | AX110: 0 | AY110: 0 | AZ110: 0 | BA110: 0 | BB110: 0 | BC110: 0 | BD110: 0 | BE110: 0 | BF110: 0 | BG110: 0 | BH110: 0 | BI110: 0 | BJ110: 0 | BK110: 0 | BL110: 0 | BM110: 0 | BO110: Rondes confirmées | BP110: =SUM(C110:BM110) -> 0 | BQ110: 0 | BR110: 0 | BS110: 0 | BT110: 0 | BU110: 0 | BV110: 0 | BW110: 0 | BX110: 0 | BY110: 0 | BZ110: 0 | CA110: 0 | CB110: 0 | CC110: 0 | CD110: 0 | CE110: 0 | CF110: 0 | CG110: 0 | CI110: Rondes confirmées | CJ110: =SUM(BQ110:CH110) -> 0 | CK110: Rondes confirmées | CL110: =SUM(CJ110+BP110) -> 0
D111: =SUM((D108+D109)*D110) -> 0 | E111: 0 | F111: 0 | G111: 0 | H111: 0 | I111: 0 | J111: 0 | K111: 0 | L111: 0 | M111: 0 | N111: 0 | O111: 0 | P111: 0 | Q111: 0 | R111: 0 | S111: 0 | T111: 0 | U111: 0 | V111: 0 | W111: 0 | X111: 0 | Y111: 0 | Z111: 0 | AA111: 0 | AB111: 0 | AC111: 0 | AD111: 0 | AE111: 0 | AF111: 0 | AG111: 0 | AH111: 0 | AI111: 0 | AJ111: 0 | AK111: 0 | AL111: 0 | AM111: 0 | AN111: 0 | AO111: 0 | AP111: 0 | AQ111: 0 | AR111: 0 | AS111: 0 | AT111: 0 | AU111: 0 | AV111: 0 | AW111: 0 | AX111: 0 | AY111: 0 | AZ111: 0 | BA111: 0 | BB111: 0 | BC111: 0 | BD111: 0 | BE111: 0 | BF111: 0 | BG111: 0 | BH111: 0 | BI111: 0 | BJ111: =SUM((BJ108+BJ109)*BJ110) -> 0 | BK111: =SUM((BK108+BK109)*BK110) -> 0 | BL111: =SUM((BL108+BL109)*BL110) -> 0 | BM111: =SUM((BM108+BM109)*BM110) -> 0 | BO111: Rondes effectuées | BP111: =COUNTIF(D108:BM108,">0") -> 0 | BQ111: =SUM((BQ108+BQ109)*BQ110) -> 0 | BR111: 0 | BS111: 0 | BT111: 0 | BU111: 0 | BV111: 0 | BW111: 0 | BX111: 0 | BY111: 0 | BZ111: 0 | CA111: 0 | CB111: 0 | CC111: 0 | CD111: 0 | CE111: 0 | CF111: 0 | CG111: 0 | CI111: Rondes Effectuées | CJ111: =COUNTIF(BQ108:CG108,">0") -> 0 | CK111: Rondes effectuées | CL111: =SUM(CJ111+BP111) -> 0
A112: 27 | B112: =VLOOKUP(A112,'Numéro licences'!$H$4:$I$47,2) -> VANBELLINGEN Jean-Claude | C112: Aller-Retour | D112: 394 | N112: 34 | P112: 18 | V112: 1545 | Y112: 38 | Z112: 132 | AA112: 0 | AR112: 210 | AV112: 60 | BI112: 18 | BN112: =SUM(D112:BM112) -> 2449 | BO112: Km renseignés | BP112: =SUM(BN112:BN113) -> 4150 | CH112: =SUM(BQ112:CG112) -> 0 | CI112: Km renseignés | CJ112: =SUM(CH112+CH113) -> 0 | CK112: Km renseignés | CL112: =SUM(BP112+CJ112) -> 4150
C113: Ronde | D113: 0 | N113: 160 | P113: 0 | V113: 212 | Y113: 803 | Z113: 0 | AA113: 200 | AR113: 200 | AV113: 0 | BI113: 126 | BN113: =SUM(D113:BM113) -> 1701 | BO113: Km confirmés | BP113: =SUM(D115:BM115) -> 4150 | CH113: =SUM(BQ113:CG113) -> 0 | CI113: Km confirmés | CJ113: =SUM(BQ115:CG115) -> 0 | CK113: Km confirmés | CL113: =SUM(CJ113+BP113) -> 4150
D114: 1 | E114: 0 | F114: 0 | G114: 0 | H114: 0 | I114: 0 | J114: 0 | K114: 0 | L114: 0 | M114: 0 | N114: 1 | O114: 0 | P114: 1 | Q114: 0 | R114: 0 | S114: 0 | T114: 0 | U114: 0 | V114: 1 | W114: 0 | X114: 0 | Y114: 1 | Z114: 1 | AA114: 1 | AB114: 0 | AC114: 0 | AD114: 0 | AE114: 0 | AF114: 0 | AG114: 0 | AH114: 0 | AI114: 0 | AJ114: 0 | AK114: 0 | AL114: 0 | AM114: 0 | AN114: 0 | AO114: 0 | AP114: 0 | AQ114: 0 | AR114: 1 | AS114: 0 | AT114: 0 | AU114: 0 | AV114: 1 | AW114: 0 | AX114: 0 | AY114: 0 | AZ114: 0 | BA114: 0 | BB114: 0 | BC114: 0 | BD114: 0 | BE114: 0 | BF114: 0 | BG114: 0 | BH114: 0 | BI114: 1 | BJ114: 0 | BK114: 0 | BL114: 0 | BM114: 0 | BO114: Rondes confirmées | BP114: =SUM(C114:BM114) -> 10 | BQ114: 0 | BR114: 0 | BS114: 0 | BT114: 0 | BU114: 0 | BV114: 0 | BW114: 0 | BX114: 0 | BY114: 0 | BZ114: 0 | CA114: 0 | CB114: 0 | CC114: 0 | CD114: 0 | CE114: 0 | CF114: 0 | CG114: 0 | CI114: Rondes confirmées | CJ114: =SUM(BQ114:CH114) -> 0 | CK114: Rondes confirmées | CL114: =SUM(CJ114+BP114) -> 10
D115: =SUM((D112+D113)*D114) -> 394 | E115: 0 | F115: 0 | G115: 0 | H115: 0 | I115: 0 | J115: 0 | K115: 0 | L115: 0 | M115: 0 | N115: 194 | O115: 0 | P115: 18 | Q115: 0 | R115: 0 | S115: 0 | T115: 0 | U115: 0 | V115: 1757 | W115: 0 | X115: 0 | Y115: 841 | Z115: 132 | AA115: 200 | AB115: 0 | AC115: 0 | AD115: 0 | AE115: 0 | AF115: 0 | AG115: 0 | AH115: 0 | AI115: 0 | AJ115: 0 | AK115: 0 | AL115: 0 | AM115: 0 | AN115: 0 | AO115: 0 | AP115: 0 | AQ115: 0 | AR115: 410 | AS115: 0 | AT115: 0 | AU115: 0 | AV115: 60 | AW115: 0 | AX115: 0 | AY115: 0 | AZ115: 0 | BA115: 0 | BB115: 0 | BC115: 0 | BD115: 0 | BE115: 0 | BF115: 0 | BG115: 0 | BH115: 0 | BI115: 144 | BJ115: =SUM((BJ112+BJ113)*BJ114) -> 0 | BK115: =SUM((BK112+BK113)*BK114) -> 0 | BL115: =SUM((BL112+BL113)*BL114) -> 0 | BM115: =SUM((BM112+BM113)*BM114) -> 0 | BO115: Rondes effectuées | BP115: =COUNTIF(D112:BM112,">0") -> 9 | BQ115: =SUM((BQ112+BQ113)*BQ114) -> 0 | BR115: 0 | BS115: 0 | BT115: 0 | BU115: 0 | BV115: 0 | BW115: 0 | BX115: 0 | BY115: 0 | BZ115: 0 | CA115: 0 | CB115: 0 | CC115: 0 | CD115: 0 | CE115: 0 | CF115: 0 | CG115: 0 | CI115: Rondes Effectuées | CJ115: =COUNTIF(BQ112:CG112,">0") -> 0 | CK115: Rondes effectuées | CL115: =SUM(CJ115+BP115) -> 9
A116: 28 | B116: =VLOOKUP(A116,'Numéro licences'!$H$4:$I$47,2) -> VAN DER BEETEN Pascal | C116: Aller-Retour | D116: 394 | E116: 186 | F116: 160 | G116: 266 | K116: 204 | L116: 20 | N116: 34 | O116: 174 | P116: 18 | Q116: 268 | S116: 118 | U116: 284 | W116: 20 | X116: 164 | Y116: 38 | Z116: 132 | AD116: 86 | AE116: 160 | AH116: 186 | AJ116: 118 | AL116: 34 | AN116: 266 | AP116: 204 | AR116: 210 | AS116: 394 | BB116: 254 | BC116: 210 | BF116: 160 | BH116: 118 | BI116: 18 | BN116: =SUM(D116:BM116) -> 4898 | BO116: Km renseignés | BP116: =SUM(BN116:BN117) -> 9522 | BR116: 110 | BS116: 154 | CH116: =SUM(BQ116:CG116) -> 264 | CI116: Km renseignés | CJ116: =SUM(CH116+CH117) -> 644 | CK116: Km renseignés | CL116: =SUM(BP116+CJ116) -> 10166
C117: Ronde | D117: 0 | E117: 150 | F117: 140 | G117: 130 | I117: 160 | K117: 134 | L117: 173 | N117: 160 | O117: 175 | P117: 0 | Q117: 179 | S117: 170 | U117: 0 | W117: 200 | X117: 0 | Y117: 349 | Z117: 175 | AD117: 216 | AE117: 175 | AH117: 180 | AJ117: 160 | AL117: 167 | AN117: 0 | AP117: 250 | AR117: 200 | AS117: 220 | BB117: 160 | BC117: 160 | BF117: 160 | BH117: 155 | BI117: 126 | BN117: =SUM(D117:BM117) -> 4624 | BO117: Km confirmés | BP117: =SUM(D119:BM119) -> 9522 | BR117: 200 | BS117: 180 | CH117: =SUM(BQ117:CG117) -> 380 | CI117: Km confirmés | CJ117: =SUM(BQ119:CG119) -> 644 | CK117: Km confirmés | CL117: =SUM(CJ117+BP117) -> 10166
D118: 1 | E118: 1 | F118: 1 | G118: 1 | H118: 0 | I118: 1 | J118: 0 | K118: 1 | L118: 1 | M118: 0 | N118: 1 | O118: 1 | P118: 1 | Q118: 1 | R118: 0 | S118: 1 | T118: 0 | U118: 1 | V118: 0 | W118: 1 | X118: 1 | Y118: 1 | Z118: 1 | AA118: 0 | AB118: 0 | AC118: 0 | AD118: 1 | AE118: 1 | AF118: 0 | AG118: 0 | AH118: 1 | AI118: 0 | AJ118: 1 | AK118: 0 | AL118: 1 | AM118: 0 | AN118: 1 | AO118: 0 | AP118: 1 | AQ118: 0 | AR118: 1 | AS118: 1 | AT118: 0 | AU118: 0 | AV118: 0 | AW118: 0 | AX118: 0 | AY118: 0 | AZ118: 0 | BA118: 0 | BB118: 1 | BC118: 1 | BD118: 0 | BE118: 0 | BF118: 1 | BG118: 0 | BH118: 1 | BI118: 1 | BJ118: 0 | BK118: 0 | BL118: 0 | BM118: 0 | BO118: Rondes confirmées | BP118: =SUM(C118:BM118) -> 31 | BQ118: 0 | BR118: 1 | BS118: 1 | BT118: 0 | BU118: 0 | BV118: 0 | BW118: 0 | BX118: 0 | BY118: 0 | BZ118: 0 | CA118: 0 | CB118: 0 | CC118: 0 | CD118: 0 | CE118: 0 | CF118: 0 | CG118: 0 | CI118: Rondes confirmées | CJ118: =SUM(BQ118:CH118) -> 2 | CK118: Rondes confirmées | CL118: =SUM(CJ118+BP118) -> 33
D119: =SUM((D116+D117)*D118) -> 394 | E119: 336 | F119: 300 | G119: 396 | H119: 0 | I119: 160 | J119: 0 | K119: 338 | L119: 193 | M119: 0 | N119: 194 | O119: 349 | P119: 18 | Q119: 447 | R119: 0 | S119: 288 | T119: 0 | U119: 284 | V119: 0 | W119: 220 | X119: 164 | Y119: 387 | Z119: 307 | AA119: 0 | AB119: 0 | AC119: 0 | AD119: 302 | AE119: 335 | AF119: 0 | AG119: 0 | AH119: 366 | AI119: 0 | AJ119: 278 | AK119: 0 | AL119: 201 | AM119: 0 | AN119: 266 | AO119: 0 | AP119: 454 | AQ119: 0 | AR119: 410 | AS119: 614 | AT119: 0 | AU119: 0 | AV119: 0 | AW119: 0 | AX119: 0 | AY119: 0 | AZ119: 0 | BA119: 0 | BB119: 414 | BC119: 370 | BD119: 0 | BE119: 0 | BF119: 320 | BG119: 0 | BH119: 273 | BI119: 144 | BJ119: =SUM((BJ116+BJ117)*BJ118) -> 0 | BK119: =SUM((BK116+BK117)*BK118) -> 0 | BL119: =SUM((BL116+BL117)*BL118) -> 0 | BM119: =SUM((BM116+BM117)*BM118) -> 0 | BO119: Rondes effectuées | BP119: =COUNTIF(D116:BM116,">0") -> 30 | BQ119: =SUM((BQ116+BQ117)*BQ118) -> 0 | BR119: 310 | BS119: 334 | BT119: 0 | BU119: 0 | BV119: 0 | BW119: 0 | BX119: 0 | BY119: 0 | BZ119: 0 | CA119: 0 | CB119: 0 | CC119: 0 | CD119: 0 | CE119: 0 | CF119: 0 | CG119: 0 | CI119: Rondes Effectuées | CJ119: =COUNTIF(BQ116:CG116,">0") -> 2 | CK119: Rondes effectuées | CL119: =SUM(CJ119+BP119) -> 32
A120: 29 | B120: =VLOOKUP(A120,'Numéro licences'!$H$4:$I$47,2) -> VANSTEYVOORT André | C120: Aller-Retour | K120: 204 | L120: 20 | M120: 44 | N120: 34 | Q120: 268 | R120: 156 | S120: 118 | Y120: 38 | Z120: 132 | AA120: 0 | AC120: 204 | AG120: 68 | AH120: 186 | AI120: 332 | AJ120: 118 | AN120: 266 | AX120: 86 | BN120: =SUM(D120:BM120) -> 2274 | BO120: Km renseignés | BP120: =SUM(BN120:BN121) -> 5598 | CH120: =SUM(BQ120:CG120) -> 0 | CI120: Km renseignés | CJ120: =SUM(CH120+CH121) -> 0 | CK120: Km renseignés | CL120: =SUM(BP120+CJ120) -> 5598
C121: Ronde | K121: 134 | L121: 173 | M121: 160 | N121: 160 | Q121: 179 | R121: 146 | S121: 170 | Y121: 803 | Z121: 175 | AA121: 200 | AC121: 150 | AG121: 196 | AH121: 180 | AI121: 0 | AJ121: 160 | AN121: 150 | AX121: 188 | BN121: =SUM(D121:BM121) -> 3324 | BO121: Km confirmés | BP121: =SUM(D123:BM123) -> 200 | CH121: =SUM(BQ121:CG121) -> 0 | CI121: Km confirmés | CJ121: =SUM(BQ123:CG123) -> 0 | CK121: Km confirmés | CL121: =SUM(CJ121+BP121) -> 200
D122: 0 | E122: 0 | F122: 0 | G122: 0 | H122: 0 | I122: 0 | J122: 0 | K122: 0 | L122: 0 | M122: 0 | N122: 0 | O122: 0 | P122: 0 | Q122: 0 | R122: 0 | S122: 0 | T122: 0 | U122: 0 | V122: 0 | W122: 0 | X122: 0 | Y122: 0 | Z122: 0 | AA122: 1 | AB122: 0 | AC122: 0 | AD122: 0 | AE122: 0 | AF122: 0 | AG122: 0 | AH122: 0 | AI122: 0 | AJ122: 0 | AK122: 0 | AL122: 0 | AM122: 0 | AN122: 0 | AO122: 0 | AP122: 0 | AQ122: 0 | AR122: 0 | AS122: 0 | AT122: 0 | AU122: 0 | AV122: 0 | AW122: 0 | AX122: 0 | AY122: 0 | AZ122: 0 | BA122: 0 | BB122: 0 | BC122: 0 | BD122: 0 | BE122: 0 | BF122: 0 | BG122: 0 | BH122: 0 | BI122: 0 | BJ122: 0 | BK122: 0 | BL122: 0 | BM122: 0 | BO122: Rondes confirmées | BP122: =SUM(C122:BM122) -> 1 | BQ122: 0 | BR122: 0 | BS122: 0 | BT122: 0 | BU122: 0 | BV122: 0 | BW122: 0 | BX122: 0 | BY122: 0 | BZ122: 0 | CA122: 0 | CB122: 0 | CC122: 0 | CD122: 0 | CE122: 0 | CF122: 0 | CG122: 0 | CI122: Rondes confirmées | CJ122: =SUM(BQ122:CH122) -> 0 | CK122: Rondes confirmées | CL122: =SUM(CJ122+BP122) -> 1
D123: =SUM((D120+D121)*D122) -> 0 | E123: 0 | F123: 0 | G123: 0 | H123: 0 | I123: 0 | J123: 0 | K123: 0 | L123: 0 | M123: 0 | N123: 0 | O123: 0 | P123: 0 | Q123: 0 | R123: 0 | S123: 0 | T123: 0 | U123: 0 | V123: 0 | W123: 0 | X123: 0 | Y123: 0 | Z123: 0 | AA123: 200 | AB123: 0 | AC123: 0 | AD123: 0 | AE123: 0 | AF123: 0 | AG123: 0 | AH123: 0 | AI123: 0 | AJ123: 0 | AK123: 0 | AL123: 0 | AM123: 0 | AN123: 0 | AO123: 0 | AP123: 0 | AQ123: 0 | AR123: 0 | AS123: 0 | AT123: 0 | AU123: 0 | AV123: 0 | AW123: 0 | AX123: 0 | AY123: 0 | AZ123: 0 | BA123: 0 | BB123: 0 | BC123: 0 | BD123: 0 | BE123: 0 | BF123: 0 | BG123: 0 | BH123: 0 | BI123: 0 | BJ123: =SUM((BJ120+BJ121)*BJ122) -> 0 | BK123: =SUM((BK120+BK121)*BK122) -> 0 | BL123: =SUM((BL120+BL121)*BL122) -> 0 | BM123: =SUM((BM120+BM121)*BM122) -> 0 | BO123: Rondes effectuées | BP123: =COUNTIF(D120:BM120,">0") -> 16 | BQ123: =SUM((BQ120+BQ121)*BQ122) -> 0 | BR123: 0 | BS123: 0 | BT123: 0 | BU123: 0 | BV123: 0 | BW123: 0 | BX123: 0 | BY123: 0 | BZ123: 0 | CA123: 0 | CB123: 0 | CC123: 0 | CD123: 0 | CE123: 0 | CF123: 0 | CG123: 0 | CI123: Rondes Effectuées | CJ123: =COUNTIF(BQ120:CG120,">0") -> 0 | CK123: Rondes effectuées | CL123: =SUM(CJ123+BP123) -> 16
A124: 30 | B124: =VLOOKUP(A124,'Numéro licences'!$H$4:$I$47,2) -> WOUTERS Olivier | C124: Aller-Retour | D124: 394 | E124: 186 | F124: 160 | G124: 266 | K124: 204 | L124: 20 | N124: 34 | P124: 18 | S124: 118 | U124: 284 | W124: 20 | X124: 164 | Y124: 38 | Z124: 132 | AG124: 68 | AK124: 18 | AP124: 204 | AR124: 210 | AT124: 44 | BB124: 254 | BC124: 210 | BN124: =SUM(D124:BM124) -> 3046 | BO124: Km renseignés | BP124: =SUM(BN124:BN125) -> 7563 | CH124: =SUM(BQ124:CG124) -> 0 | CI124: Km renseignés | CJ124: =SUM(CH124+CH125) -> 0 | CK124: Km renseignés | CL124: =SUM(BP124+CJ124) -> 7563
C125: Ronde | D125: 130 | E125: 150 | F125: 140 | G125: 130 | I125: 160 | K125: 134 | L125: 173 | N125: 160 | P125: 180 | S125: 170 | U125: 190 | W125: 200 | X125: 221 | Y125: 803 | Z125: 175 | AG125: 196 | AK125: 195 | AP125: 250 | AR125: 200 | AT125: 240 | BB125: 160 | BC125: 160 | BN125: =SUM(D125:BM125) -> 4517 | BO125: Km confirmés | BP125: =SUM(D127:BM127) -> 7563 | CH125: =SUM(BQ125:CG125) -> 0 | CI125: Km confirmés | CJ125: =SUM(BQ127:CG127) -> 0 | CK125: Km confirmés | CL125: =SUM(CJ125+BP125) -> 7563
D126: 1 | E126: 1 | F126: 1 | G126: 1 | H126: 0 | I126: 1 | J126: 0 | K126: 1 | L126: 1 | M126: 0 | N126: 1 | O126: 0 | P126: 1 | Q126: 0 | R126: 0 | S126: 1 | T126: 0 | U126: 1 | V126: 0 | W126: 1 | X126: 1 | Y126: 1 | Z126: 1 | AA126: 0 | AB126: 0 | AC126: 0 | AD126: 0 | AE126: 0 | AF126: 0 | AG126: 1 | AH126: 0 | AI126: 0 | AJ126: 0 | AK126: 1 | AL126: 0 | AM126: 0 | AN126: 0 | AO126: 0 | AP126: 1 | AQ126: 0 | AR126: 1 | AS126: 0 | AT126: 1 | AU126: 0 | AV126: 0 | AW126: 0 | AX126: 0 | AY126: 0 | AZ126: 0 | BA126: 0 | BB126: 1 | BC126: 1 | BD126: 0 | BE126: 0 | BF126: 0 | BG126: 0 | BH126: 0 | BI126: 0 | BJ126: 0 | BK126: 0 | BL126: 0 | BM126: 0 | BO126: Rondes confirmées | BP126: =SUM(C126:BM126) -> 22 | BQ126: 0 | BR126: 0 | BS126: 0 | BT126: 0 | BU126: 0 | BV126: 0 | BW126: 0 | BX126: 0 | BY126: 0 | BZ126: 0 | CA126: 0 | CB126: 0 | CC126: 0 | CD126: 0 | CE126: 0 | CF126: 0 | CG126: 0 | CI126: Rondes confirmées | CJ126: =SUM(BQ126:CH126) -> 0 | CK126: Rondes confirmées | CL126: =SUM(CJ126+BP126) -> 22
D127: =SUM((D124+D125)*D126) -> 524 | E127: 336 | F127: 300 | G127: 396 | H127: 0 | I127: 160 | J127: 0 | K127: 338 | L127: 193 | M127: 0 | N127: 194 | O127: 0 | P127: 198 | Q127: 0 | R127: 0 | S127: 288 | T127: 0 | U127: 474 | V127: 0 | W127: 220 | X127: 385 | Y127: 841 | Z127: 307 | AA127: 0 | AB127: 0 | AC127: 0 | AD127: 0 | AE127: 0 | AF127: 0 | AG127: 264 | AH127: 0 | AI127: 0 | AJ127: 0 | AK127: 213 | AL127: 0 | AM127: 0 | AN127: 0 | AO127: 0 | AP127: 454 | AQ127: 0 | AR127: 410 | AS127: 0 | AT127: 284 | AU127: 0 | AV127: 0 | AW127: 0 | AX127: 0 | AY127: 0 | AZ127: 0 | BA127: 0 | BB127: 414 | BC127: 370 | BD127: 0 | BE127: 0 | BF127: 0 | BG127: 0 | BH127: 0 | BI127: 0 | BJ127: =SUM((BJ124+BJ125)*BJ126) -> 0 | BK127: =SUM((BK124+BK125)*BK126) -> 0 | BL127: =SUM((BL124+BL125)*BL126) -> 0 | BM127: =SUM((BM124+BM125)*BM126) -> 0 | BO127: Rondes effectuées | BP127: =COUNTIF(D124:BM124,">0") -> 21 | BQ127: =SUM((BQ124+BQ125)*BQ126) -> 0 | BR127: 0 | BS127: 0 | BT127: 0 | BU127: 0 | BV127: 0 | BW127: 0 | BX127: 0 | BY127: 0 | BZ127: 0 | CA127: 0 | CB127: 0 | CC127: 0 | CD127: 0 | CE127: 0 | CF127: 0 | CG127: 0 | CI127: Rondes Effectuées | CJ127: =COUNTIF(BQ124:CG124,">0") -> 0 | CK127: Rondes effectuées | CL127: =SUM(CJ127+BP127) -> 21
A128: 31 | B128: =VLOOKUP(A128,'Numéro licences'!$H$4:$I$47,2) -> THIRIFAYS Vincent | C128: Aller-Retour | X128: 164 | BN128: =SUM(D128:BM128) -> 164 | BO128: Km renseignés | BP128: =SUM(BN128:BN129) -> 385 | CH128: =SUM(BQ128:CG128) -> 0 | CI128: Km renseignés | CJ128: =SUM(CH128+CH129) -> 0 | CK128: Km renseignés | CL128: =SUM(BP128+CJ128) -> 385
C129: Ronde | X129: 221 | BN129: =SUM(D129:BM129) -> 221 | BO129: Km confirmés | BP129: =SUM(D131:BM131) -> 0 | CH129: =SUM(BQ129:CG129) -> 0 | CI129: Km confirmés | CJ129: =SUM(BQ131:CG131) -> 0 | CK129: Km confirmés | CL129: =SUM(CJ129+BP129) -> 0
D130: 0 | E130: 0 | F130: 0 | G130: 0 | H130: 0 | I130: 0 | J130: 0 | K130: 0 | L130: 0 | M130: 0 | N130: 0 | O130: 0 | P130: 0 | Q130: 0 | R130: 0 | S130: 0 | T130: 0 | U130: 0 | V130: 0 | W130: 0 | X130: 0 | Y130: 0 | Z130: 0 | AA130: 0 | AB130: 0 | AC130: 0 | AD130: 0 | AE130: 0 | AF130: 0 | AG130: 0 | AH130: 0 | AI130: 0 | AJ130: 0 | AK130: 0 | AL130: 0 | AM130: 0 | AN130: 0 | AO130: 0 | AP130: 0 | AQ130: 0 | AR130: 0 | AS130: 0 | AT130: 0 | AU130: 0 | AV130: 0 | AW130: 0 | AX130: 0 | AY130: 0 | AZ130: 0 | BA130: 0 | BB130: 0 | BC130: 0 | BD130: 0 | BE130: 0 | BF130: 0 | BG130: 0 | BH130: 0 | BI130: 0 | BJ130: 0 | BK130: 0 | BL130: 0 | BM130: 0 | BO130: Rondes confirmées | BP130: =SUM(C130:BM130) -> 0 | BQ130: 0 | BR130: 0 | BS130: 0 | BT130: 0 | BU130: 0 | BV130: 0 | BW130: 0 | BX130: 0 | BY130: 0 | BZ130: 0 | CA130: 0 | CB130: 0 | CC130: 0 | CD130: 0 | CE130: 0 | CF130: 0 | CG130: 0 | CI130: Rondes confirmées | CJ130: =SUM(BQ130:CH130) -> 0 | CK130: Rondes confirmées | CL130: =SUM(CJ130+BP130) -> 0
D131: =SUM((D128+D129)*D130) -> 0 | E131: 0 | F131: 0 | G131: 0 | H131: 0 | I131: 0 | J131: 0 | K131: 0 | L131: 0 | M131: 0 | N131: 0 | O131: 0 | P131: 0 | Q131: 0 | R131: 0 | S131: 0 | T131: 0 | U131: 0 | V131: 0 | W131: 0 | X131: 0 | Y131: 0 | Z131: 0 | AA131: 0 | AB131: 0 | AC131: 0 | AD131: 0 | AE131: 0 | AF131: 0 | AG131: 0 | AH131: 0 | AI131: 0 | AJ131: 0 | AK131: 0 | AL131: 0 | AM131: 0 | AN131: 0 | AO131: 0 | AP131: 0 | AQ131: 0 | AR131: 0 | AS131: 0 | AT131: 0 | AU131: 0 | AV131: 0 | AW131: 0 | AX131: 0 | AY131: 0 | AZ131: 0 | BA131: 0 | BB131: 0 | BC131: 0 | BD131: 0 | BE131: 0 | BF131: 0 | BG131: 0 | BH131: 0 | BI131: 0 | BJ131: =SUM((BJ128+BJ129)*BJ130) -> 0 | BK131: =SUM((BK128+BK129)*BK130) -> 0 | BL131: =SUM((BL128+BL129)*BL130) -> 0 | BM131: =SUM((BM128+BM129)*BM130) -> 0 | BO131: Rondes effectuées | BP131: =COUNTIF(D128:BM128,">0") -> 1 | BQ131: =SUM((BQ128+BQ129)*BQ130) -> 0 | BR131: 0 | BS131: 0 | BT131: 0 | BU131: 0 | BV131: 0 | BW131: 0 | BX131: 0 | BY131: 0 | BZ131: 0 | CA131: 0 | CB131: 0 | CC131: 0 | CD131: 0 | CE131: 0 | CF131: 0 | CG131: 0 | CI131: Rondes Effectuées | CJ131: =COUNTIF(BQ128:CG128,">0") -> 0 | CK131: Rondes effectuées | CL131: =SUM(CJ131+BP131) -> 1
A132: 32 | B132: =VLOOKUP(A132,'Numéro licences'!$H$4:$I$47,2) -> VANDY Rudi | C132: Aller-Retour | AD132: 86 | AG132: 68 | AH132: 186 | AL132: 34 | AR132: 210 | AT132: 44 | AU132: 204 | AX132: 86 | AY132: 224 | BB132: 254 | BC132: 210 | BD132: 280 | BF132: 160 | BG132: 164 | BH132: 118 | BI132: 18 | BN132: =SUM(D132:BM132) -> 2346 | BO132: Km renseignés | BP132: =SUM(BN132:BN133) -> 5164 | CH132: =SUM(BQ132:CG132) -> 0 | CI132: Km renseignés | CJ132: =SUM(CH132+CH133) -> 0 | CK132: Km renseignés | CL132: =SUM(BP132+CJ132) -> 5164
C133: Ronde | AD133: 216 | AG133: 196 | AH133: 180 | AL133: 167 | AR133: 200 | AT133: 240 | AU133: 200 | AX133: 188 | AY133: 180 | BB133: 160 | BC133: 160 | BD133: 160 | BF133: 160 | BG133: 130 | BH133: 155 | BI133: 126 | BN133: =SUM(D133:BM133) -> 2818 | BO133: Km confirmés | BP133: =SUM(D135:BM135) -> 5164 | CH133: =SUM(BQ133:CG133) -> 0 | CI133: Km confirmés | CJ133: =SUM(BQ135:CG135) -> 0 | CK133: Km confirmés | CL133: =SUM(CJ133+BP133) -> 5164
D134: 0 | E134: 0 | F134: 0 | G134: 0 | H134: 0 | I134: 0 | J134: 0 | K134: 0 | L134: 0 | M134: 0 | N134: 0 | O134: 0 | P134: 0 | Q134: 0 | R134: 0 | S134: 0 | T134: 0 | U134: 0 | V134: 0 | W134: 0 | X134: 0 | Y134: 0 | Z134: 0 | AA134: 0 | AB134: 0 | AC134: 0 | AD134: 1 | AE134: 0 | AF134: 0 | AG134: 1 | AH134: 1 | AI134: 0 | AJ134: 0 | AK134: 0 | AL134: 1 | AM134: 0 | AN134: 0 | AO134: 0 | AP134: 0 | AQ134: 0 | AR134: 1 | AS134: 0 | AT134: 1 | AU134: 1 | AV134: 0 | AW134: 0 | AX134: 1 | AY134: 1 | AZ134: 0 | BA134: 0 | BB134: 1 | BC134: 1 | BD134: 1 | BE134: 0 | BF134: 1 | BG134: 1 | BH134: 1 | BI134: 1 | BJ134: 0 | BK134: 0 | BL134: 0 | BM134: 0 | BO134: Rondes confirmées | BP134: =SUM(C134:BM134) -> 16 | BQ134: 0 | BR134: 0 | BS134: 0 | BT134: 0 | BU134: 0 | BV134: 0 | BW134: 0 | BX134: 0 | BY134: 0 | BZ134: 0 | CA134: 0 | CB134: 0 | CC134: 0 | CD134: 0 | CE134: 0 | CF134: 0 | CG134: 0 | CI134: Rondes confirmées | CJ134: =SUM(BQ134:CH134) -> 0 | CK134: Rondes confirmées | CL134: =SUM(CJ134+BP134) -> 16
D135: =SUM((D132+D133)*D134) -> 0 | E135: 0 | F135: 0 | G135: 0 | H135: 0 | I135: 0 | J135: 0 | K135: 0 | L135: 0 | M135: 0 | N135: 0 | O135: 0 | P135: 0 | Q135: 0 | R135: 0 | S135: 0 | T135: 0 | U135: 0 | V135: 0 | W135: 0 | X135: 0 | Y135: 0 | Z135: 0 | AA135: 0 | AB135: 0 | AC135: 0 | AD135: 302 | AE135: 0 | AF135: 0 | AG135: 264 | AH135: 366 | AI135: 0 | AJ135: 0 | AK135: 0 | AL135: 201 | AM135: 0 | AN135: 0 | AO135: 0 | AP135: 0 | AQ135: 0 | AR135: 410 | AS135: 0 | AT135: 284 | AU135: 404 | AV135: 0 | AW135: 0 | AX135: 274 | AY135: 404 | AZ135: 0 | BA135: 0 | BB135: 414 | BC135: 370 | BD135: 440 | BE135: 0 | BF135: 320 | BG135: 294 | BH135: 273 | BI135: 144 | BJ135: =SUM((BJ132+BJ133)*BJ134) -> 0 | BK135: =SUM((BK132+BK133)*BK134) -> 0 | BL135: =SUM((BL132+BL133)*BL134) -> 0 | BM135: =SUM((BM132+BM133)*BM134) -> 0 | BO135: Rondes effectuées | BP135: =COUNTIF(D132:BM132,">0") -> 16 | BQ135: =SUM((BQ132+BQ133)*BQ134) -> 0 | BR135: 0 | BS135: 0 | BT135: 0 | BU135: 0 | BV135: 0 | BW135: 0 | BX135: 0 | BY135: 0 | BZ135: 0 | CA135: 0 | CB135: 0 | CC135: 0 | CD135: 0 | CE135: 0 | CF135: 0 | CG135: 0 | CI135: Rondes Effectuées | CJ135: =COUNTIF(BQ132:CG132,">0") -> 0 | CK135: Rondes effectuées | CL135: =SUM(CJ135+BP135) -> 16
A136: 33 | B136: =VLOOKUP(A136,'Numéro licences'!$H$4:$I$47,2) -> LEFRANT Sébastien | C136: Aller-Retour | AG136: 68 | AJ136: 118 | AK136: 18 | AV136: 68 | BB136: 254 | BN136: =SUM(D136:BM136) -> 526 | BO136: Km renseignés | BP136: =SUM(BN136:BN137) -> 1457 | CH136: =SUM(BQ136:CG136) -> 0 | CI136: Km renseignés | CJ136: =SUM(CH136+CH137) -> 0 | CK136: Km renseignés | CL136: =SUM(BP136+CJ136) -> 1457
C137: Ronde | AG137: 196 | AJ137: 160 | AK137: 195 | AV137: 220 | BB137: 160 | BN137: =SUM(D137:BM137) -> 931 | BO137: Km confirmés | BP137: =SUM(D139:BM139) -> 0 | CH137: =SUM(BQ137:CG137) -> 0 | CI137: Km confirmés | CJ137: =SUM(BQ139:CG139) -> 0 | CK137: Km confirmés | CL137: =SUM(CJ137+BP137) -> 0
D138: 0 | E138: 0 | F138: 0 | G138: 0 | H138: 0 | I138: 0 | J138: 0 | K138: 0 | L138: 0 | M138: 0 | N138: 0 | O138: 0 | P138: 0 | Q138: 0 | R138: 0 | S138: 0 | T138: 0 | U138: 0 | V138: 0 | W138: 0 | X138: 0 | Y138: 0 | Z138: 0 | AA138: 0 | AB138: 0 | AC138: 0 | AD138: 0 | AE138: 0 | AF138: 0 | AG138: 0 | AH138: 0 | AI138: 0 | AJ138: 0 | AK138: 0 | AL138: 0 | AM138: 0 | AN138: 0 | AO138: 0 | AP138: 0 | AQ138: 0 | AR138: 0 | AS138: 0 | AT138: 0 | AU138: 0 | AV138: 0 | AW138: 0 | AX138: 0 | AY138: 0 | AZ138: 0 | BA138: 0 | BB138: 0 | BC138: 0 | BD138: 0 | BE138: 0 | BF138: 0 | BG138: 0 | BH138: 0 | BI138: 0 | BJ138: 0 | BK138: 0 | BL138: 0 | BM138: 0 | BO138: Rondes confirmées | BP138: =SUM(C138:BM138) -> 0 | BQ138: 0 | BR138: 0 | BS138: 0 | BT138: 0 | BU138: 0 | BV138: 0 | BW138: 0 | BX138: 0 | BY138: 0 | BZ138: 0 | CA138: 0 | CB138: 0 | CC138: 0 | CD138: 0 | CE138: 0 | CF138: 0 | CG138: 0 | CI138: Rondes confirmées | CJ138: =SUM(BQ138:CH138) -> 0 | CK138: Rondes confirmées | CL138: =SUM(CJ138+BP138) -> 0
D139: =SUM((D136+D137)*D138) -> 0 | E139: 0 | F139: 0 | G139: 0 | H139: 0 | I139: 0 | J139: 0 | K139: 0 | L139: 0 | M139: 0 | N139: 0 | O139: 0 | P139: 0 | Q139: 0 | R139: 0 | S139: 0 | T139: 0 | U139: 0 | V139: 0 | W139: 0 | X139: 0 | Y139: 0 | Z139: 0 | AA139: 0 | AB139: 0 | AC139: 0 | AD139: 0 | AE139: 0 | AF139: 0 | AG139: 0 | AH139: 0 | AI139: 0 | AJ139: 0 | AK139: 0 | AL139: 0 | AM139: 0 | AN139: 0 | AO139: 0 | AP139: 0 | AQ139: 0 | AR139: 0 | AS139: 0 | AT139: 0 | AU139: 0 | AV139: 0 | AW139: 0 | AX139: 0 | AY139: 0 | AZ139: 0 | BA139: 0 | BB139: 0 | BC139: 0 | BD139: 0 | BE139: 0 | BF139: 0 | BG139: 0 | BH139: 0 | BI139: 0 | BJ139: =SUM((BJ136+BJ137)*BJ138) -> 0 | BK139: =SUM((BK136+BK137)*BK138) -> 0 | BL139: =SUM((BL136+BL137)*BL138) -> 0 | BM139: =SUM((BM136+BM137)*BM138) -> 0 | BO139: Rondes effectuées | BP139: =COUNTIF(D136:BM136,">0") -> 5 | BQ139: =SUM((BQ136+BQ137)*BQ138) -> 0 | BR139: 0 | BS139: 0 | BT139: 0 | BU139: 0 | BV139: 0 | BW139: 0 | BX139: 0 | BY139: 0 | BZ139: 0 | CA139: 0 | CB139: 0 | CC139: 0 | CD139: 0 | CE139: 0 | CF139: 0 | CG139: 0 | CI139: Rondes Effectuées | CJ139: =COUNTIF(BQ136:CG136,">0") -> 0 | CK139: Rondes effectuées | CL139: =SUM(CJ139+BP139) -> 5
A140: 34 | B140: =VLOOKUP(A140,'Numéro licences'!$H$4:$I$47,2) -> 0 | C140: Aller-Retour | BN140: =SUM(D140:BM140) -> 0 | BO140: Km renseignés | BP140: =SUM(BN140:BN141) -> 0 | CH140: =SUM(BQ140:CG140) -> 0 | CI140: Km renseignés | CJ140: =SUM(CH140+CH141) -> 0 | CK140: Km renseignés | CL140: =SUM(BP140+CJ140) -> 0
C141: Ronde | BN141: =SUM(D141:BM141) -> 0 | BO141: Km confirmés | BP141: =SUM(D143:BM143) -> 0 | CH141: =SUM(BQ141:CG141) -> 0 | CI141: Km confirmés | CJ141: =SUM(BQ143:CG143) -> 0 | CK141: Km confirmés | CL141: =SUM(CJ141+BP141) -> 0
D142: 0 | E142: 0 | F142: 0 | G142: 0 | H142: 0 | I142: 0 | J142: 0 | K142: 0 | L142: 0 | M142: 0 | N142: 0 | O142: 0 | P142: 0 | Q142: 0 | R142: 0 | S142: 0 | T142: 0 | U142: 0 | V142: 0 | W142: 0 | X142: 0 | Y142: 0 | Z142: 0 | AA142: 0 | AB142: 0 | AC142: 0 | AD142: 0 | AE142: 0 | AF142: 0 | AG142: 0 | AH142: 0 | AI142: 0 | AJ142: 0 | AK142: 0 | AL142: 0 | AM142: 0 | AN142: 0 | AO142: 0 | AP142: 0 | AQ142: 0 | AR142: 0 | AS142: 0 | AT142: 0 | AU142: 0 | AV142: 0 | AW142: 0 | AX142: 0 | AY142: 0 | AZ142: 0 | BA142: 0 | BB142: 0 | BC142: 0 | BD142: 0 | BE142: 0 | BF142: 0 | BG142: 0 | BH142: 0 | BI142: 0 | BJ142: 0 | BK142: 0 | BL142: 0 | BM142: 0 | BO142: Rondes confirmées | BP142: =SUM(C142:BM142) -> 0 | BQ142: 0 | BR142: 0 | BS142: 0 | BT142: 0 | BU142: 0 | BV142: 0 | BW142: 0 | BX142: 0 | BY142: 0 | BZ142: 0 | CA142: 0 | CB142: 0 | CC142: 0 | CD142: 0 | CE142: 0 | CF142: 0 | CG142: 0 | CI142: Rondes confirmées | CJ142: =SUM(BQ142:CH142) -> 0 | CK142: Rondes confirmées | CL142: =SUM(CJ142+BP142) -> 0
D143: =SUM((D140+D141)*D142) -> 0 | E143: 0 | F143: 0 | G143: 0 | H143: 0 | I143: 0 | J143: 0 | K143: 0 | L143: 0 | M143: 0 | N143: 0 | O143: 0 | P143: 0 | Q143: 0 | R143: 0 | S143: 0 | T143: 0 | U143: 0 | V143: 0 | W143: 0 | X143: 0 | Y143: 0 | Z143: 0 | AA143: 0 | AB143: 0 | AC143: 0 | AD143: 0 | AE143: 0 | AF143: 0 | AG143: 0 | AH143: 0 | AI143: 0 | AJ143: 0 | AK143: 0 | AL143: 0 | AM143: 0 | AN143: 0 | AO143: 0 | AP143: 0 | AQ143: 0 | AR143: 0 | AS143: 0 | AT143: 0 | AU143: 0 | AV143: 0 | AW143: 0 | AX143: 0 | AY143: 0 | AZ143: 0 | BA143: 0 | BB143: 0 | BC143: 0 | BD143: 0 | BE143: 0 | BF143: 0 | BG143: 0 | BH143: 0 | BI143: 0 | BJ143: =SUM((BJ140+BJ141)*BJ142) -> 0 | BK143: =SUM((BK140+BK141)*BK142) -> 0 | BL143: =SUM((BL140+BL141)*BL142) -> 0 | BM143: =SUM((BM140+BM141)*BM142) -> 0 | BO143: Rondes effectuées | BP143: =COUNTIF(D140:BM140,">0") -> 0 | BQ143: =SUM((BQ140+BQ141)*BQ142) -> 0 | BR143: 0 | BS143: 0 | BT143: 0 | BU143: 0 | BV143: 0 | BW143: 0 | BX143: 0 | BY143: 0 | BZ143: 0 | CA143: 0 | CB143: 0 | CC143: 0 | CD143: 0 | CE143: 0 | CF143: 0 | CG143: 0 | CI143: Rondes Effectuées | CJ143: =COUNTIF(BQ140:CG140,">0") -> 0 | CK143: Rondes effectuées | CL143: =SUM(CJ143+BP143) -> 0
A144: 35 | B144: =VLOOKUP(A144,'Numéro licences'!$H$4:$I$47,2) -> 0 | C144: Aller-Retour | BN144: =SUM(D144:BM144) -> 0 | BO144: Km renseignés | BP144: =SUM(BN144+BN145) -> 0 | CH144: =SUM(BQ144:CG144) -> 0 | CI144: Km renseignés | CJ144: =SUM(CH144+CH145) -> 0 | CK144: Km renseignés | CL144: =SUM(BP144+CJ144) -> 0
C145: Ronde | BN145: =SUM(D145:BM145) -> 0 | BO145: Km confirmés | BP145: =SUM(D147:BM147) -> 0 | CH145: =SUM(BQ145:CG145) -> 0 | CI145: Km confirmés | CJ145: =SUM(BQ147:CG147) -> 0 | CK145: Km confirmés | CL145: =SUM(CJ145+BP145) -> 0
D146: 0 | E146: 0 | F146: 0 | G146: 0 | H146: 0 | I146: 0 | J146: 0 | K146: 0 | L146: 0 | M146: 0 | N146: 0 | O146: 0 | P146: 0 | Q146: 0 | R146: 0 | S146: 0 | T146: 0 | U146: 0 | V146: 0 | W146: 0 | X146: 0 | Y146: 0 | Z146: 0 | AA146: 0 | AB146: 0 | AC146: 0 | AD146: 0 | AE146: 0 | AF146: 0 | AG146: 0 | AH146: 0 | AI146: 0 | AJ146: 0 | AK146: 0 | AL146: 0 | AM146: 0 | AN146: 0 | AO146: 0 | AP146: 0 | AQ146: 0 | AR146: 0 | AS146: 0 | AT146: 0 | AU146: 0 | AV146: 0 | AW146: 0 | AX146: 0 | AY146: 0 | AZ146: 0 | BA146: 0 | BB146: 0 | BC146: 0 | BD146: 0 | BE146: 0 | BF146: 0 | BG146: 0 | BH146: 0 | BI146: 0 | BJ146: 0 | BK146: 0 | BL146: 0 | BM146: 0 | BO146: Rondes confirmées | BP146: =SUM(C146:BM146) -> 0 | BQ146: 0 | BR146: 0 | BS146: 0 | BT146: 0 | BU146: 0 | BV146: 0 | BW146: 0 | BX146: 0 | BY146: 0 | BZ146: 0 | CA146: 0 | CB146: 0 | CC146: 0 | CD146: 0 | CE146: 0 | CF146: 0 | CG146: 0 | CI146: Rondes confirmées | CJ146: =SUM(BQ146:CH146) -> 0 | CK146: Rondes confirmées | CL146: =SUM(CJ146+BP146) -> 0
D147: =SUM((D144+D145)*D146) -> 0 | E147: 0 | F147: 0 | G147: 0 | H147: 0 | I147: 0 | J147: 0 | K147: 0 | L147: 0 | M147: 0 | N147: 0 | O147: 0 | P147: 0 | Q147: 0 | R147: 0 | S147: 0 | T147: 0 | U147: 0 | V147: 0 | W147: 0 | X147: 0 | Y147: 0 | Z147: 0 | AA147: 0 | AB147: 0 | AC147: 0 | AD147: 0 | AE147: 0 | AF147: 0 | AG147: 0 | AH147: 0 | AI147: 0 | AJ147: 0 | AK147: 0 | AL147: 0 | AM147: 0 | AN147: 0 | AO147: 0 | AP147: 0 | AQ147: 0 | AR147: 0 | AS147: 0 | AT147: 0 | AU147: 0 | AV147: 0 | AW147: 0 | AX147: 0 | AY147: 0 | AZ147: 0 | BA147: 0 | BB147: 0 | BC147: 0 | BD147: 0 | BE147: 0 | BF147: 0 | BG147: 0 | BH147: 0 | BI147: 0 | BJ147: =SUM((BJ144+BJ145)*BJ146) -> 0 | BK147: =SUM((BK144+BK145)*BK146) -> 0 | BL147: =SUM((BL144+BL145)*BL146) -> 0 | BM147: =SUM((BM144+BM145)*BM146) -> 0 | BO147: Rondes effectuées | BP147: =COUNTIF(D144:BM144,">0") -> 0 | BQ147: =SUM((BQ144+BQ145)*BQ146) -> 0 | BR147: 0 | BS147: 0 | BT147: 0 | BU147: 0 | BV147: 0 | BW147: 0 | BX147: 0 | BY147: 0 | BZ147: 0 | CA147: 0 | CB147: 0 | CC147: 0 | CD147: 0 | CE147: 0 | CF147: 0 | CG147: 0 | CI147: Rondes Effectuées | CJ147: =COUNTIF(BQ144:CG144,">0") -> 0 | CK147: Rondes effectuées | CL147: =SUM(CJ147+BP147) -> 0
A148: 36 | B148: =VLOOKUP(A148,'Numéro licences'!$H$4:$I$47,2) -> 0 | C148: Aller-Retour | BN148: =SUM(D148:BM148) -> 0 | BO148: Km renseignés | BP148: =SUM(BN148+BN149) -> 0 | CH148: =SUM(BQ148:CG148) -> 0 | CI148: Km renseignés | CJ148: =SUM(CH148+CH149) -> 0 | CK148: Km renseignés | CL148: =SUM(BP148+CJ148) -> 0
C149: Ronde | BN149: =SUM(D149:BM149) -> 0 | BO149: Km confirmés | BP149: =SUM(D151:BM151) -> 0 | CH149: =SUM(BQ149:CG149) -> 0 | CI149: Km confirmés | CJ149: =SUM(BQ151:CG151) -> 0 | CK149: Km confirmés | CL149: =SUM(CJ149+BP149) -> 0
D150: 0 | E150: 0 | F150: 0 | G150: 0 | H150: 0 | I150: 0 | J150: 0 | K150: 0 | L150: 0 | M150: 0 | N150: 0 | O150: 0 | P150: 0 | Q150: 0 | R150: 0 | S150: 0 | T150: 0 | U150: 0 | V150: 0 | W150: 0 | X150: 0 | Y150: 0 | Z150: 0 | AA150: 0 | AB150: 0 | AC150: 0 | AD150: 0 | AE150: 0 | AF150: 0 | AG150: 0 | AH150: 0 | AI150: 0 | AJ150: 0 | AK150: 0 | AL150: 0 | AM150: 0 | AN150: 0 | AO150: 0 | AP150: 0 | AQ150: 0 | AR150: 0 | AS150: 0 | AT150: 0 | AU150: 0 | AV150: 0 | AW150: 0 | AX150: 0 | AY150: 0 | AZ150: 0 | BA150: 0 | BB150: 0 | BC150: 0 | BD150: 0 | BE150: 0 | BF150: 0 | BG150: 0 | BH150: 0 | BI150: 0 | BJ150: 0 | BK150: 0 | BL150: 0 | BM150: 0 | BO150: Rondes confirmées | BP150: =SUM(C150:BM150) -> 0 | BQ150: 0 | BR150: 0 | BS150: 0 | BT150: 0 | BU150: 0 | BV150: 0 | BW150: 0 | BX150: 0 | BY150: 0 | BZ150: 0 | CA150: 0 | CB150: 0 | CC150: 0 | CD150: 0 | CE150: 0 | CF150: 0 | CG150: 0 | CI150: Rondes confirmées | CJ150: =SUM(BQ150:CH150) -> 0 | CK150: Rondes confirmées | CL150: =SUM(CJ150+BP150) -> 0
D151: =SUM((D148+D149)*D150) -> 0 | E151: 0 | F151: 0 | G151: 0 | H151: 0 | I151: 0 | J151: 0 | K151: 0 | L151: 0 | M151: 0 | N151: 0 | O151: 0 | P151: 0 | Q151: 0 | R151: 0 | S151: 0 | T151: 0 | U151: 0 | V151: 0 | W151: 0 | X151: 0 | Y151: 0 | Z151: 0 | AA151: 0 | AB151: 0 | AC151: 0 | AD151: 0 | AE151: 0 | AF151: 0 | AG151: 0 | AH151: 0 | AI151: 0 | AJ151: 0 | AK151: 0 | AL151: 0 | AM151: 0 | AN151: 0 | AO151: 0 | AP151: 0 | AQ151: 0 | AR151: 0 | AS151: 0 | AT151: 0 | AU151: 0 | AV151: 0 | AW151: 0 | AX151: 0 | AY151: 0 | AZ151: 0 | BA151: 0 | BB151: 0 | BC151: 0 | BD151: 0 | BE151: 0 | BF151: 0 | BG151: 0 | BH151: 0 | BI151: 0 | BJ151: =SUM((BJ148+BJ149)*BJ150) -> 0 | BK151: =SUM((BK148+BK149)*BK150) -> 0 | BL151: =SUM((BL148+BL149)*BL150) -> 0 | BM151: =SUM((BM148+BM149)*BM150) -> 0 | BO151: Rondes effectuées | BP151: =COUNTIF(D148:BM148,">0") -> 0 | BQ151: =SUM((BQ148+BQ149)*BQ150) -> 0 | BR151: 0 | BS151: 0 | BT151: 0 | BU151: 0 | BV151: 0 | BW151: 0 | BX151: 0 | BY151: 0 | BZ151: 0 | CA151: 0 | CB151: 0 | CC151: 0 | CD151: 0 | CE151: 0 | CF151: 0 | CG151: 0 | CI151: Rondes Effectuées | CJ151: =COUNTIF(BQ148:CG148,">0") -> 0 | CK151: Rondes effectuées | CL151: =SUM(CJ151+BP151) -> 0
A152: 37 | B152: =VLOOKUP(A152,'Numéro licences'!$H$4:$I$47,2) -> 0 | C152: Aller-Retour | BN152: =SUM(D152:BM152) -> 0 | BO152: Km renseignés | BP152: =SUM(BN152+BN153) -> 0 | CH152: =SUM(BQ152:CG152) -> 0 | CI152: Km renseignés | CJ152: =SUM(CH152+CH153) -> 0 | CK152: Km renseignés | CL152: =SUM(BP152+CJ152) -> 0
C153: Ronde | BN153: =SUM(D153:BM153) -> 0 | BO153: Km confirmés | BP153: =SUM(D155:BM155) -> 0 | CH153: =SUM(BQ153:CG153) -> 0 | CI153: Km confirmés | CJ153: =SUM(BQ155:CG155) -> 0 | CK153: Km confirmés | CL153: =SUM(CJ153+BP153) -> 0
D154: 0 | E154: 0 | F154: 0 | G154: 0 | H154: 0 | I154: 0 | J154: 0 | K154: 0 | L154: 0 | M154: 0 | N154: 0 | O154: 0 | P154: 0 | Q154: 0 | R154: 0 | S154: 0 | T154: 0 | U154: 0 | V154: 0 | W154: 0 | X154: 0 | Y154: 0 | Z154: 0 | AA154: 0 | AB154: 0 | AC154: 0 | AD154: 0 | AE154: 0 | AF154: 0 | AG154: 0 | AH154: 0 | AI154: 0 | AJ154: 0 | AK154: 0 | AL154: 0 | AM154: 0 | AN154: 0 | AO154: 0 | AP154: 0 | AQ154: 0 | AR154: 0 | AS154: 0 | AT154: 0 | AU154: 0 | AV154: 0 | AW154: 0 | AX154: 0 | AY154: 0 | AZ154: 0 | BA154: 0 | BB154: 0 | BC154: 0 | BD154: 0 | BE154: 0 | BF154: 0 | BG154: 0 | BH154: 0 | BI154: 0 | BJ154: 0 | BK154: 0 | BL154: 0 | BM154: 0 | BO154: Rondes confirmées | BP154: =SUM(C154:BM154) -> 0 | BQ154: 0 | BR154: 0 | BS154: 0 | BT154: 0 | BU154: 0 | BV154: 0 | BW154: 0 | BX154: 0 | BY154: 0 | BZ154: 0 | CA154: 0 | CB154: 0 | CC154: 0 | CD154: 0 | CE154: 0 | CF154: 0 | CG154: 0 | CI154: Rondes confirmées | CJ154: =SUM(BQ154:CH154) -> 0 | CK154: Rondes confirmées | CL154: =SUM(CJ154+BP154) -> 0
D155: =SUM((D152+D153)*D154) -> 0 | E155: 0 | F155: 0 | G155: 0 | H155: 0 | I155: 0 | J155: 0 | K155: 0 | L155: 0 | M155: 0 | N155: 0 | O155: 0 | P155: 0 | Q155: 0 | R155: 0 | S155: 0 | T155: 0 | U155: 0 | V155: 0 | W155: 0 | X155: 0 | Y155: 0 | Z155: 0 | AA155: 0 | AB155: 0 | AC155: 0 | AD155: 0 | AE155: 0 | AF155: 0 | AG155: 0 | AH155: 0 | AI155: 0 | AJ155: 0 | AK155: 0 | AL155: 0 | AM155: 0 | AN155: 0 | AO155: 0 | AP155: 0 | AQ155: 0 | AR155: 0 | AS155: 0 | AT155: 0 | AU155: 0 | AV155: 0 | AW155: 0 | AX155: 0 | AY155: 0 | AZ155: 0 | BA155: 0 | BB155: 0 | BC155: 0 | BD155: 0 | BE155: 0 | BF155: 0 | BG155: 0 | BH155: 0 | BI155: 0 | BJ155: =SUM((BJ152+BJ153)*BJ154) -> 0 | BK155: =SUM((BK152+BK153)*BK154) -> 0 | BL155: =SUM((BL152+BL153)*BL154) -> 0 | BM155: =SUM((BM152+BM153)*BM154) -> 0 | BO155: Rondes effectuées | BP155: =COUNTIF(D152:BM152,">0") -> 0 | BQ155: =SUM((BQ152+BQ153)*BQ154) -> 0 | BR155: 0 | BS155: 0 | BT155: 0 | BU155: 0 | BV155: 0 | BW155: 0 | BX155: 0 | BY155: 0 | BZ155: 0 | CA155: 0 | CB155: 0 | CC155: 0 | CD155: 0 | CE155: 0 | CF155: 0 | CG155: 0 | CI155: Rondes Effectuées | CJ155: =COUNTIF(BQ152:CG152,">0") -> 0 | CK155: Rondes effectuées | CL155: =SUM(CJ155+BP155) -> 0
A156: 38 | B156: =VLOOKUP(A156,'Numéro licences'!$H$4:$I$47,2) -> 0 | C156: Aller-Retour | BN156: =SUM(D156:BM156) -> 0 | BO156: Km renseignés | BP156: =SUM(BN156+BN157) -> 0 | CH156: =SUM(BQ156:CG156) -> 0 | CI156: Km renseignés | CJ156: =SUM(CH156+CH157) -> 0 | CK156: Km renseignés | CL156: =SUM(BP156+CJ156) -> 0
C157: Ronde | BN157: =SUM(D157:BM157) -> 0 | BO157: Km confirmés | BP157: =SUM(D159:BM159) -> 0 | CH157: =SUM(BQ157:CG157) -> 0 | CI157: Km confirmés | CJ157: =SUM(BQ159:CG159) -> 0 | CK157: Km confirmés | CL157: =SUM(CJ157+BP157) -> 0
D158: 0 | E158: 0 | F158: 0 | G158: 0 | H158: 0 | I158: 0 | J158: 0 | K158: 0 | L158: 0 | M158: 0 | N158: 0 | O158: 0 | P158: 0 | Q158: 0 | R158: 0 | S158: 0 | T158: 0 | U158: 0 | V158: 0 | W158: 0 | X158: 0 | Y158: 0 | Z158: 0 | AA158: 0 | AB158: 0 | AC158: 0 | AD158: 0 | AE158: 0 | AF158: 0 | AG158: 0 | AH158: 0 | AI158: 0 | AJ158: 0 | AK158: 0 | AL158: 0 | AM158: 0 | AN158: 0 | AO158: 0 | AP158: 0 | AQ158: 0 | AR158: 0 | AS158: 0 | AT158: 0 | AU158: 0 | AV158: 0 | AW158: 0 | AX158: 0 | AY158: 0 | AZ158: 0 | BA158: 0 | BB158: 0 | BC158: 0 | BD158: 0 | BE158: 0 | BF158: 0 | BG158: 0 | BH158: 0 | BI158: 0 | BJ158: 0 | BK158: 0 | BL158: 0 | BM158: 0 | BO158: Rondes confirmées | BP158: =SUM(C158:BM158) -> 0 | BQ158: 0 | BR158: 0 | BS158: 0 | BT158: 0 | BU158: 0 | BV158: 0 | BW158: 0 | BX158: 0 | BY158: 0 | BZ158: 0 | CA158: 0 | CB158: 0 | CC158: 0 | CD158: 0 | CE158: 0 | CF158: 0 | CG158: 0 | CI158: Rondes confirmées | CJ158: =SUM(BQ158:CH158) -> 0 | CK158: Rondes confirmées | CL158: =SUM(CJ158+BP158) -> 0
D159: =SUM((D156+D157)*D158) -> 0 | E159: 0 | F159: 0 | G159: 0 | H159: 0 | I159: 0 | J159: 0 | K159: 0 | L159: 0 | M159: 0 | N159: 0 | O159: 0 | P159: 0 | Q159: 0 | R159: 0 | S159: 0 | T159: 0 | U159: 0 | V159: 0 | W159: 0 | X159: 0 | Y159: 0 | Z159: 0 | AA159: 0 | AB159: 0 | AC159: 0 | AD159: 0 | AE159: 0 | AF159: 0 | AG159: 0 | AH159: 0 | AI159: 0 | AJ159: 0 | AK159: 0 | AL159: 0 | AM159: 0 | AN159: 0 | AO159: 0 | AP159: 0 | AQ159: 0 | AR159: 0 | AS159: 0 | AT159: 0 | AU159: 0 | AV159: 0 | AW159: 0 | AX159: 0 | AY159: 0 | AZ159: 0 | BA159: 0 | BB159: 0 | BC159: 0 | BD159: 0 | BE159: 0 | BF159: 0 | BG159: 0 | BH159: 0 | BI159: 0 | BJ159: =SUM((BJ156+BJ157)*BJ158) -> 0 | BK159: =SUM((BK156+BK157)*BK158) -> 0 | BL159: =SUM((BL156+BL157)*BL158) -> 0 | BM159: =SUM((BM156+BM157)*BM158) -> 0 | BO159: Rondes effectuées | BP159: =COUNTIF(D156:BM156,">0") -> 0 | BQ159: =SUM((BQ156+BQ157)*BQ158) -> 0 | BR159: 0 | BS159: 0 | BT159: 0 | BU159: 0 | BV159: 0 | BW159: 0 | BX159: 0 | BY159: 0 | BZ159: 0 | CA159: 0 | CB159: 0 | CC159: 0 | CD159: 0 | CE159: 0 | CF159: 0 | CG159: 0 | CI159: Rondes Effectuées | CJ159: =COUNTIF(BQ156:CG156,">0") -> 0 | CK159: Rondes effectuées | CL159: =SUM(CJ159+BP159) -> 0
A160: 39 | B160: =VLOOKUP(A160,'Numéro licences'!$H$4:$I$47,2) -> 0 | C160: Aller-Retour | BN160: =SUM(D160:BM160) -> 0 | BO160: Km renseignés | BP160: =SUM(BN160+BN161) -> 0 | CH160: =SUM(BQ160:CG160) -> 0 | CI160: Km renseignés | CJ160: =SUM(CH160+CH161) -> 0 | CK160: Km renseignés | CL160: =SUM(BP160+CJ160) -> 0
C161: Ronde | BN161: =SUM(D161:BM161) -> 0 | BO161: Km confirmés | BP161: =SUM(D163:BM163) -> 0 | CH161: =SUM(BQ161:CG161) -> 0 | CI161: Km confirmés | CJ161: =SUM(BQ163:CG163) -> 0 | CK161: Km confirmés | CL161: =SUM(CJ161+BP161) -> 0
D162: 0 | E162: 0 | F162: 0 | G162: 0 | H162: 0 | I162: 0 | J162: 0 | K162: 0 | L162: 0 | M162: 0 | N162: 0 | O162: 0 | P162: 0 | Q162: 0 | R162: 0 | S162: 0 | T162: 0 | U162: 0 | V162: 0 | W162: 0 | X162: 0 | Y162: 0 | Z162: 0 | AA162: 0 | AB162: 0 | AC162: 0 | AD162: 0 | AE162: 0 | AF162: 0 | AG162: 0 | AH162: 0 | AI162: 0 | AJ162: 0 | AK162: 0 | AL162: 0 | AM162: 0 | AN162: 0 | AO162: 0 | AP162: 0 | AQ162: 0 | AR162: 0 | AS162: 0 | AT162: 0 | AU162: 0 | AV162: 0 | AW162: 0 | AX162: 0 | AY162: 0 | AZ162: 0 | BA162: 0 | BB162: 0 | BC162: 0 | BD162: 0 | BE162: 0 | BF162: 0 | BG162: 0 | BH162: 0 | BI162: 0 | BJ162: 0 | BK162: 0 | BL162: 0 | BM162: 0 | BO162: Rondes confirmées | BP162: =SUM(C162:BM162) -> 0 | BQ162: 0 | BR162: 0 | BS162: 0 | BT162: 0 | BU162: 0 | BV162: 0 | BW162: 0 | BX162: 0 | BY162: 0 | BZ162: 0 | CA162: 0 | CB162: 0 | CC162: 0 | CD162: 0 | CE162: 0 | CF162: 0 | CG162: 0 | CI162: Rondes confirmées | CJ162: =SUM(BQ162:CH162) -> 0 | CK162: Rondes confirmées | CL162: =SUM(CJ162+BP162) -> 0
D163: =SUM((D160+D161)*D162) -> 0 | E163: 0 | F163: 0 | G163: 0 | H163: 0 | I163: 0 | J163: 0 | K163: 0 | L163: 0 | M163: 0 | N163: 0 | O163: 0 | P163: 0 | Q163: 0 | R163: 0 | S163: 0 | T163: 0 | U163: 0 | V163: 0 | W163: 0 | X163: 0 | Y163: 0 | Z163: 0 | AA163: 0 | AB163: 0 | AC163: 0 | AD163: 0 | AE163: 0 | AF163: 0 | AG163: 0 | AH163: 0 | AI163: 0 | AJ163: 0 | AK163: 0 | AL163: 0 | AM163: 0 | AN163: 0 | AO163: 0 | AP163: 0 | AQ163: 0 | AR163: 0 | AS163: 0 | AT163: 0 | AU163: 0 | AV163: 0 | AW163: 0 | AX163: 0 | AY163: 0 | AZ163: 0 | BA163: 0 | BB163: 0 | BC163: 0 | BD163: 0 | BE163: 0 | BF163: 0 | BG163: 0 | BH163: 0 | BI163: 0 | BJ163: =SUM((BJ160+BJ161)*BJ162) -> 0 | BK163: =SUM((BK160+BK161)*BK162) -> 0 | BL163: =SUM((BL160+BL161)*BL162) -> 0 | BM163: =SUM((BM160+BM161)*BM162) -> 0 | BO163: Rondes effectuées | BP163: =COUNTIF(D160:BM160,">0") -> 0 | BQ163: =SUM((BQ160+BQ161)*BQ162) -> 0 | BR163: 0 | BS163: 0 | BT163: 0 | BU163: 0 | BV163: 0 | BW163: 0 | BX163: 0 | BY163: 0 | BZ163: 0 | CA163: 0 | CB163: 0 | CC163: 0 | CD163: 0 | CE163: 0 | CF163: 0 | CG163: 0 | CI163: Rondes Effectuées | CJ163: =COUNTIF(BQ160:CG160,">0") -> 0 | CK163: Rondes effectuées | CL163: =SUM(CJ163+BP163) -> 0
A164: 40 | B164: =VLOOKUP(A164,'Numéro licences'!$H$4:$I$47,2) -> 0 | C164: Aller-Retour | BN164: =SUM(D164:BM164) -> 0 | BO164: Km renseignés | BP164: =SUM(BN164+BN165) -> 0 | CH164: =SUM(BQ164:CG164) -> 0 | CI164: Km renseignés | CJ164: =SUM(CH164+CH165) -> 0 | CK164: Km renseignés | CL164: =SUM(BP164+CJ164) -> 0
C165: Ronde | BN165: =SUM(D165:BM165) -> 0 | BO165: Km confirmés | BP165: =SUM(D167:BM167) -> 0 | CH165: =SUM(BQ165:CG165) -> 0 | CI165: Km confirmés | CJ165: =SUM(BQ167:CG167) -> 0 | CK165: Km confirmés | CL165: =SUM(CJ165+BP165) -> 0
D166: 0 | E166: 0 | F166: 0 | G166: 0 | H166: 0 | I166: 0 | J166: 0 | K166: 0 | L166: 0 | M166: 0 | N166: 0 | O166: 0 | P166: 0 | Q166: 0 | R166: 0 | S166: 0 | T166: 0 | U166: 0 | V166: 0 | W166: 0 | X166: 0 | Y166: 0 | Z166: 0 | AA166: 0 | AB166: 0 | AC166: 0 | AD166: 0 | AE166: 0 | AF166: 0 | AG166: 0 | AH166: 0 | AI166: 0 | AJ166: 0 | AK166: 0 | AL166: 0 | AM166: 0 | AN166: 0 | AO166: 0 | AP166: 0 | AQ166: 0 | AR166: 0 | AS166: 0 | AT166: 0 | AU166: 0 | AV166: 0 | AW166: 0 | AX166: 0 | AY166: 0 | AZ166: 0 | BA166: 0 | BB166: 0 | BC166: 0 | BD166: 0 | BE166: 0 | BF166: 0 | BG166: 0 | BH166: 0 | BI166: 0 | BJ166: 0 | BK166: 0 | BL166: 0 | BM166: 0 | BO166: Rondes confirmées | BP166: =SUM(C166:BM166) -> 0 | BQ166: 0 | BR166: 0 | BS166: 0 | BT166: 0 | BU166: 0 | BV166: 0 | BW166: 0 | BX166: 0 | BY166: 0 | BZ166: 0 | CA166: 0 | CB166: 0 | CC166: 0 | CD166: 0 | CE166: 0 | CF166: 0 | CG166: 0 | CI166: Rondes confirmées | CJ166: =SUM(BQ166:CH166) -> 0 | CK166: Rondes confirmées | CL166: =SUM(CJ166+BP166) -> 0
D167: =SUM((D164+D165)*D166) -> 0 | E167: 0 | F167: 0 | G167: 0 | H167: 0 | I167: 0 | J167: 0 | K167: 0 | L167: 0 | M167: 0 | N167: 0 | O167: 0 | P167: 0 | Q167: 0 | R167: 0 | S167: 0 | T167: 0 | U167: 0 | V167: 0 | W167: 0 | X167: 0 | Y167: 0 | Z167: 0 | AA167: 0 | AB167: 0 | AC167: 0 | AD167: 0 | AE167: 0 | AF167: 0 | AG167: 0 | AH167: 0 | AI167: 0 | AJ167: 0 | AK167: 0 | AL167: 0 | AM167: 0 | AN167: 0 | AO167: 0 | AP167: 0 | AQ167: 0 | AR167: 0 | AS167: 0 | AT167: 0 | AU167: 0 | AV167: 0 | AW167: 0 | AX167: 0 | AY167: 0 | AZ167: 0 | BA167: 0 | BB167: 0 | BC167: 0 | BD167: 0 | BE167: 0 | BF167: 0 | BG167: 0 | BH167: 0 | BI167: 0 | BJ167: =SUM((BJ164+BJ165)*BJ166) -> 0 | BK167: =SUM((BK164+BK165)*BK166) -> 0 | BL167: =SUM((BL164+BL165)*BL166) -> 0 | BM167: =SUM((BM164+BM165)*BM166) -> 0 | BO167: Rondes effectuées | BP167: =COUNTIF(D164:BM164,">0") -> 0 | BQ167: =SUM((BQ164+BQ165)*BQ166) -> 0 | BR167: 0 | BS167: 0 | BT167: 0 | BU167: 0 | BV167: 0 | BW167: 0 | BX167: 0 | BY167: 0 | BZ167: 0 | CA167: 0 | CB167: 0 | CC167: 0 | CD167: 0 | CE167: 0 | CF167: 0 | CG167: 0 | CI167: Rondes Effectuées | CJ167: =COUNTIF(BQ164:CG164,">0") -> 0 | CK167: Rondes effectuées | CL167: =SUM(CJ167+BP167) -> 0
A168: 41 | B168: =VLOOKUP(A168,'Numéro licences'!$H$4:$I$47,2) -> 0 | C168: Aller-Retour | BN168: =SUM(D168:BM168) -> 0 | BO168: Km renseignés | BP168: =SUM(BN168+BN169) -> 0 | CH168: =SUM(BQ168:CG168) -> 0 | CI168: Km renseignés | CJ168: =SUM(CH168+CH169) -> 0 | CK168: Km renseignés | CL168: =SUM(BP168+CJ168) -> 0
C169: Ronde | BN169: =SUM(D169:BM169) -> 0 | BO169: Km confirmés | BP169: =SUM(D171:BM171) -> 0 | CH169: =SUM(BQ169:CG169) -> 0 | CI169: Km confirmés | CJ169: =SUM(BQ171:CG171) -> 0 | CK169: Km confirmés | CL169: =SUM(CJ169+BP169) -> 0
D170: 0 | E170: 0 | F170: 0 | G170: 0 | H170: 0 | I170: 0 | J170: 0 | K170: 0 | L170: 0 | M170: 0 | N170: 0 | O170: 0 | P170: 0 | Q170: 0 | R170: 0 | S170: 0 | T170: 0 | U170: 0 | V170: 0 | W170: 0 | X170: 0 | Y170: 0 | Z170: 0 | AA170: 0 | AB170: 0 | AC170: 0 | AD170: 0 | AE170: 0 | AF170: 0 | AG170: 0 | AH170: 0 | AI170: 0 | AJ170: 0 | AK170: 0 | AL170: 0 | AM170: 0 | AN170: 0 | AO170: 0 | AP170: 0 | AQ170: 0 | AR170: 0 | AS170: 0 | AT170: 0 | AU170: 0 | AV170: 0 | AW170: 0 | AX170: 0 | AY170: 0 | AZ170: 0 | BA170: 0 | BB170: 0 | BC170: 0 | BD170: 0 | BE170: 0 | BF170: 0 | BG170: 0 | BH170: 0 | BI170: 0 | BJ170: 0 | BK170: 0 | BL170: 0 | BM170: 0 | BO170: Rondes confirmées | BP170: =SUM(C170:BM170) -> 0 | BQ170: 0 | BR170: 0 | BS170: 0 | BT170: 0 | BU170: 0 | BV170: 0 | BW170: 0 | BX170: 0 | BY170: 0 | BZ170: 0 | CA170: 0 | CB170: 0 | CC170: 0 | CD170: 0 | CE170: 0 | CF170: 0 | CG170: 0 | CI170: Rondes confirmées | CJ170: =SUM(BQ170:CH170) -> 0 | CK170: Rondes confirmées | CL170: =SUM(CJ170+BP170) -> 0
D171: =SUM((D168+D169)*D170) -> 0 | E171: 0 | F171: 0 | G171: 0 | H171: 0 | I171: 0 | J171: 0 | K171: 0 | L171: 0 | M171: 0 | N171: 0 | O171: 0 | P171: 0 | Q171: 0 | R171: 0 | S171: 0 | T171: 0 | U171: 0 | V171: 0 | W171: 0 | X171: 0 | Y171: 0 | Z171: 0 | AA171: 0 | AB171: 0 | AC171: 0 | AD171: 0 | AE171: 0 | AF171: 0 | AG171: 0 | AH171: 0 | AI171: 0 | AJ171: 0 | AK171: 0 | AL171: 0 | AM171: 0 | AN171: 0 | AO171: 0 | AP171: 0 | AQ171: 0 | AR171: 0 | AS171: 0 | AT171: 0 | AU171: 0 | AV171: 0 | AW171: 0 | AX171: 0 | AY171: 0 | AZ171: 0 | BA171: 0 | BB171: 0 | BC171: 0 | BD171: 0 | BE171: 0 | BF171: 0 | BG171: 0 | BH171: 0 | BI171: 0 | BJ171: =SUM((BJ168+BJ169)*BJ170) -> 0 | BK171: =SUM((BK168+BK169)*BK170) -> 0 | BL171: =SUM((BL168+BL169)*BL170) -> 0 | BM171: =SUM((BM168+BM169)*BM170) -> 0 | BO171: Rondes effectuées | BP171: =COUNTIF(D168:BM168,">0") -> 0 | BQ171: =SUM((BQ168+BQ169)*BQ170) -> 0 | BR171: 0 | BS171: 0 | BT171: 0 | BU171: 0 | BV171: 0 | BW171: 0 | BX171: 0 | BY171: 0 | BZ171: 0 | CA171: 0 | CB171: 0 | CC171: 0 | CD171: 0 | CE171: 0 | CF171: 0 | CG171: 0 | CI171: Rondes Effectuées | CJ171: =COUNTIF(BQ168:CG168,">0") -> 0 | CK171: Rondes effectuées | CL171: =SUM(CJ171+BP171) -> 0
A172: 42 | B172: =VLOOKUP(A172,'Numéro licences'!$H$4:$I$47,2) -> 0 | C172: Aller-Retour | BN172: =SUM(D172:BM172) -> 0 | BO172: Km renseignés | BP172: =SUM(BN172+BN173) -> 0 | CH172: =SUM(BQ172:CG172) -> 0 | CI172: Km renseignés | CJ172: =SUM(CH172+CH173) -> 0 | CK172: Km renseignés | CL172: =SUM(BP172+CJ172) -> 0
C173: Ronde | BN173: =SUM(D173:BM173) -> 0 | BO173: Km confirmés | BP173: =SUM(D175:BM175) -> 0 | CH173: =SUM(BQ173:CG173) -> 0 | CI173: Km confirmés | CJ173: =SUM(BQ175:CG175) -> 0 | CK173: Km confirmés | CL173: =SUM(CJ173+BP173) -> 0
D174: 0 | E174: 0 | F174: 0 | G174: 0 | H174: 0 | I174: 0 | J174: 0 | K174: 0 | L174: 0 | M174: 0 | N174: 0 | O174: 0 | P174: 0 | Q174: 0 | R174: 0 | S174: 0 | T174: 0 | U174: 0 | V174: 0 | W174: 0 | X174: 0 | Y174: 0 | Z174: 0 | AA174: 0 | AB174: 0 | AC174: 0 | AD174: 0 | AE174: 0 | AF174: 0 | AG174: 0 | AH174: 0 | AI174: 0 | AJ174: 0 | AK174: 0 | AL174: 0 | AM174: 0 | AN174: 0 | AO174: 0 | AP174: 0 | AQ174: 0 | AR174: 0 | AS174: 0 | AT174: 0 | AU174: 0 | AV174: 0 | AW174: 0 | AX174: 0 | AY174: 0 | AZ174: 0 | BA174: 0 | BB174: 0 | BC174: 0 | BD174: 0 | BE174: 0 | BF174: 0 | BG174: 0 | BH174: 0 | BI174: 0 | BJ174: 0 | BK174: 0 | BL174: 0 | BM174: 0 | BO174: Rondes confirmées | BP174: =SUM(C174:BM174) -> 0 | BQ174: 0 | BR174: 0 | BS174: 0 | BT174: 0 | BU174: 0 | BV174: 0 | BW174: 0 | BX174: 0 | BY174: 0 | BZ174: 0 | CA174: 0 | CB174: 0 | CC174: 0 | CD174: 0 | CE174: 0 | CF174: 0 | CG174: 0 | CI174: Rondes confirmées | CJ174: =SUM(BQ174:CH174) -> 0 | CK174: Rondes confirmées | CL174: =SUM(CJ174+BP174) -> 0
D175: =SUM((D172+D173)*D174) -> 0 | E175: 0 | F175: 0 | G175: 0 | H175: 0 | I175: 0 | J175: 0 | K175: 0 | L175: 0 | M175: 0 | N175: 0 | O175: 0 | P175: 0 | Q175: 0 | R175: 0 | S175: 0 | T175: 0 | U175: 0 | V175: 0 | W175: 0 | X175: 0 | Y175: 0 | Z175: 0 | AA175: 0 | AB175: 0 | AC175: 0 | AD175: 0 | AE175: 0 | AF175: 0 | AG175: 0 | AH175: 0 | AI175: 0 | AJ175: 0 | AK175: 0 | AL175: 0 | AM175: 0 | AN175: 0 | AO175: 0 | AP175: 0 | AQ175: 0 | AR175: 0 | AS175: 0 | AT175: 0 | AU175: 0 | AV175: 0 | AW175: 0 | AX175: 0 | AY175: 0 | AZ175: 0 | BA175: 0 | BB175: 0 | BC175: 0 | BD175: 0 | BE175: 0 | BF175: 0 | BG175: 0 | BH175: 0 | BI175: 0 | BJ175: =SUM((BJ172+BJ173)*BJ174) -> 0 | BK175: =SUM((BK172+BK173)*BK174) -> 0 | BL175: 0 | BM175: 0 | BO175: Rondes effectuées | BP175: =COUNTIF(D172:BM172,">0") -> 0 | BQ175: =SUM((BQ172+BQ173)*BQ174) -> 0 | BR175: 0 | BS175: 0 | BT175: 0 | BU175: 0 | BV175: 0 | BW175: 0 | BX175: 0 | BY175: 0 | BZ175: 0 | CA175: 0 | CB175: 0 | CC175: 0 | CD175: 0 | CE175: 0 | CF175: 0 | CG175: 0 | CI175: Rondes Effectuées | CJ175: =COUNTIF(BQ172:CG172,">0") -> 0 | CK175: Rondes effectuées | CL175: =SUM(CJ175+BP175) -> 0
A176: 43 | B176: =VLOOKUP(A176,'Numéro licences'!$H$4:$I$47,2) -> 0 | C176: Aller-Retour | BN176: =SUM(D176:BM176) -> 0 | BO176: Km renseignés | BP176: =SUM(BN176+BN177) -> 0 | CH176: =SUM(BQ176:CG176) -> 0 | CI176: Km renseignés | CJ176: =SUM(CH176+CH177) -> 0 | CK176: Km renseignés | CL176: =SUM(BP176+CJ176) -> 0
C177: Ronde | BN177: =SUM(D177:BM177) -> 0 | BO177: Km confirmés | BP177: =SUM(D179:BM179) -> 0 | CH177: =SUM(BQ177:CG177) -> 0 | CI177: Km confirmés | CJ177: =SUM(BQ179:CG179) -> 0 | CK177: Km confirmés | CL177: =SUM(CJ177+BP177) -> 0
D178: 0 | E178: 0 | F178: 0 | G178: 0 | H178: 0 | I178: 0 | J178: 0 | K178: 0 | L178: 0 | M178: 0 | N178: 0 | O178: 0 | P178: 0 | Q178: 0 | R178: 0 | S178: 0 | T178: 0 | U178: 0 | V178: 0 | W178: 0 | X178: 0 | Y178: 0 | Z178: 0 | AA178: 0 | AB178: 0 | AC178: 0 | AD178: 0 | AE178: 0 | AF178: 0 | AG178: 0 | AH178: 0 | AI178: 0 | AJ178: 0 | AK178: 0 | AL178: 0 | AM178: 0 | AN178: 0 | AO178: 0 | AP178: 0 | AQ178: 0 | AR178: 0 | AS178: 0 | AT178: 0 | AU178: 0 | AV178: 0 | AW178: 0 | AX178: 0 | AY178: 0 | AZ178: 0 | BA178: 0 | BB178: 0 | BC178: 0 | BD178: 0 | BE178: 0 | BF178: 0 | BG178: 0 | BH178: 0 | BI178: 0 | BJ178: 0 | BK178: 0 | BL178: 0 | BM178: 0 | BO178: Rondes confirmées | BP178: =SUM(C178:BM178) -> 0 | BQ178: 0 | BR178: 0 | BS178: 0 | BT178: 0 | BU178: 0 | BV178: 0 | BW178: 0 | BX178: 0 | BY178: 0 | BZ178: 0 | CA178: 0 | CB178: 0 | CC178: 0 | CD178: 0 | CE178: 0 | CF178: 0 | CG178: 0 | CI178: Rondes confirmées | CJ178: =SUM(BQ178:CH178) -> 0 | CK178: Rondes confirmées | CL178: =SUM(CJ178+BP178) -> 0
D179: =SUM((D176+D177)*D178) -> 0 | E179: 0 | F179: 0 | G179: 0 | H179: 0 | I179: 0 | J179: 0 | K179: 0 | L179: 0 | M179: 0 | N179: 0 | O179: 0 | P179: 0 | Q179: 0 | R179: 0 | S179: 0 | T179: 0 | U179: 0 | V179: 0 | W179: 0 | X179: 0 | Y179: 0 | Z179: 0 | AA179: 0 | AB179: 0 | AC179: 0 | AD179: 0 | AE179: 0 | AF179: 0 | AG179: 0 | AH179: 0 | AI179: 0 | AJ179: 0 | AK179: 0 | AL179: 0 | AM179: 0 | AN179: 0 | AO179: 0 | AP179: 0 | AQ179: 0 | AR179: 0 | AS179: 0 | AT179: 0 | AU179: 0 | AV179: 0 | AW179: 0 | AX179: 0 | AY179: 0 | AZ179: 0 | BA179: 0 | BB179: 0 | BC179: 0 | BD179: 0 | BE179: 0 | BF179: 0 | BG179: 0 | BH179: 0 | BI179: 0 | BJ179: =SUM((BJ176+BJ177)*BJ178) -> 0 | BK179: =SUM((BK176+BK177)*BK178) -> 0 | BL179: 0 | BM179: 0 | BO179: Rondes effectuées | BP179: =COUNTIF(D176:BM176,">0") -> 0 | BQ179: =SUM((BQ176+BQ177)*BQ178) -> 0 | BR179: 0 | BS179: 0 | BT179: 0 | BU179: 0 | BV179: 0 | BW179: 0 | BX179: 0 | BY179: 0 | BZ179: 0 | CA179: 0 | CB179: 0 | CC179: 0 | CD179: 0 | CE179: 0 | CF179: 0 | CG179: 0 | CI179: Rondes Effectuées | CJ179: =COUNTIF(BQ176:CG176,">0") -> 0 | CK179: Rondes effectuées | CL179: =SUM(CJ179+BP179) -> 0
A180: 44 | B180: =VLOOKUP(A180,'Numéro licences'!$H$4:$I$47,2) -> 0 | C180: Aller-Retour | BN180: =SUM(D180:BM180) -> 0 | BO180: Km renseignés | BP180: =SUM(BN180+BN181) -> 0 | CH180: =SUM(BQ180:CG180) -> 0 | CI180: Km renseignés | CJ180: =SUM(CH180+CH181) -> 0 | CK180: Km renseignés | CL180: =SUM(BP180+CJ180) -> 0
C181: Ronde | BN181: =SUM(D181:BM181) -> 0 | BO181: Km confirmés | BP181: =SUM(D183:BM183) -> 0 | CH181: =SUM(BQ181:CG181) -> 0 | CI181: Km confirmés | CJ181: =SUM(BQ183:CG183) -> 0 | CK181: Km confirmés | CL181: =SUM(CJ181+BP181) -> 0
D182: 0 | E182: 0 | F182: 0 | G182: 0 | H182: 0 | I182: 0 | J182: 0 | K182: 0 | L182: 0 | M182: 0 | N182: 0 | O182: 0 | P182: 0 | Q182: 0 | R182: 0 | S182: 0 | T182: 0 | U182: 0 | V182: 0 | W182: 0 | X182: 0 | Y182: 0 | Z182: 0 | AA182: 0 | AB182: 0 | AC182: 0 | AD182: 0 | AE182: 0 | AF182: 0 | AG182: 0 | AH182: 0 | AI182: 0 | AJ182: 0 | AK182: 0 | AL182: 0 | AM182: 0 | AN182: 0 | AO182: 0 | AP182: 0 | AQ182: 0 | AR182: 0 | AS182: 0 | AT182: 0 | AU182: 0 | AV182: 0 | AW182: 0 | AX182: 0 | AY182: 0 | AZ182: 0 | BA182: 0 | BB182: 0 | BC182: 0 | BD182: 0 | BE182: 0 | BF182: 0 | BG182: 0 | BH182: 0 | BI182: 0 | BJ182: 0 | BK182: 0 | BL182: 0 | BM182: 0 | BO182: Rondes confirmées | BP182: =SUM(C182:BM182) -> 0 | BQ182: 0 | BR182: 0 | BS182: 0 | BT182: 0 | BU182: 0 | BV182: 0 | BW182: 0 | BX182: 0 | BY182: 0 | BZ182: 0 | CA182: 0 | CB182: 0 | CC182: 0 | CD182: 0 | CE182: 0 | CF182: 0 | CG182: 0 | CI182: Rondes confirmées | CJ182: =SUM(BQ182:CH182) -> 0 | CK182: Rondes confirmées | CL182: =SUM(CJ182+BP182) -> 0
D183: =SUM((D180+D181)*D182) -> 0 | E183: 0 | F183: 0 | G183: 0 | H183: 0 | I183: 0 | J183: 0 | K183: 0 | L183: 0 | M183: 0 | N183: 0 | O183: 0 | P183: 0 | Q183: 0 | R183: 0 | S183: 0 | T183: 0 | U183: 0 | V183: 0 | W183: 0 | X183: 0 | Y183: 0 | Z183: 0 | AA183: 0 | AB183: 0 | AC183: 0 | AD183: 0 | AE183: 0 | AF183: 0 | AG183: 0 | AH183: 0 | AI183: 0 | AJ183: 0 | AK183: 0 | AL183: 0 | AM183: 0 | AN183: 0 | AO183: 0 | AP183: 0 | AQ183: 0 | AR183: 0 | AS183: 0 | AT183: 0 | AU183: 0 | AV183: 0 | AW183: 0 | AX183: 0 | AY183: 0 | AZ183: 0 | BA183: 0 | BB183: 0 | BC183: 0 | BD183: 0 | BE183: 0 | BF183: 0 | BG183: 0 | BH183: 0 | BI183: 0 | BJ183: =SUM((BJ180+BJ181)*BJ182) -> 0 | BK183: =SUM((BK180+BK181)*BK182) -> 0 | BL183: 0 | BM183: 0 | BO183: Rondes effectuées | BP183: =COUNTIF(D180:BM180,">0") -> 0 | BQ183: =SUM((BQ180+BQ181)*BQ182) -> 0 | BR183: 0 | BS183: 0 | BT183: 0 | BU183: 0 | BV183: 0 | BW183: 0 | BX183: 0 | BY183: 0 | BZ183: 0 | CA183: 0 | CB183: 0 | CC183: 0 | CD183: 0 | CE183: 0 | CF183: 0 | CG183: 0 | CI183: Rondes Effectuées | CJ183: =COUNTIF(BQ180:CG180,">0") -> 0 | CK183: Rondes effectuées | CL183: =SUM(CJ183+BP183) -> 0
A184: 45 | B184: =VLOOKUP(A184,'Numéro licences'!$H$4:$I$47,2) -> 0 | C184: Aller-Retour | BN184: =SUM(D184:BM184) -> 0 | BO184: Km renseignés | BP184: =SUM(BN184+BN185) -> 0 | CH184: =SUM(BQ184:CG184) -> 0 | CI184: Km renseignés | CJ184: =SUM(CH184+CH185) -> 0 | CK184: Km renseignés | CL184: =SUM(BP184+CJ184) -> 0
C185: Ronde | BN185: =SUM(D185:BM185) -> 0 | BO185: Km confirmés | BP185: =SUM(D187:BM187) -> 0 | CH185: =SUM(BQ185:CG185) -> 0 | CI185: Km confirmés | CJ185: =SUM(BQ187:CG187) -> 0 | CK185: Km confirmés | CL185: =SUM(CJ185+BP185) -> 0
D186: 0 | E186: 0 | F186: 0 | G186: 0 | H186: 0 | I186: 0 | J186: 0 | K186: 0 | L186: 0 | M186: 0 | N186: 0 | O186: 0 | P186: 0 | Q186: 0 | R186: 0 | S186: 0 | T186: 0 | U186: 0 | V186: 0 | W186: 0 | X186: 0 | Y186: 0 | Z186: 0 | AA186: 0 | AB186: 0 | AC186: 0 | AD186: 0 | AE186: 0 | AF186: 0 | AG186: 0 | AH186: 0 | AI186: 0 | AJ186: 0 | AK186: 0 | AL186: 0 | AM186: 0 | AN186: 0 | AO186: 0 | AP186: 0 | AQ186: 0 | AR186: 0 | AS186: 0 | AT186: 0 | AU186: 0 | AV186: 0 | AW186: 0 | AX186: 0 | AY186: 0 | AZ186: 0 | BA186: 0 | BB186: 0 | BC186: 0 | BD186: 0 | BE186: 0 | BF186: 0 | BG186: 0 | BH186: 0 | BI186: 0 | BJ186: 0 | BK186: 0 | BL186: 0 | BM186: 0 | BO186: Rondes confirmées | BP186: =SUM(C186:BM186) -> 0 | BQ186: 0 | BR186: 0 | BS186: 0 | BT186: 0 | BU186: 0 | BV186: 0 | BW186: 0 | BX186: 0 | BY186: 0 | BZ186: 0 | CA186: 0 | CB186: 0 | CC186: 0 | CD186: 0 | CE186: 0 | CF186: 0 | CG186: 0 | CI186: Rondes confirmées | CJ186: =SUM(BQ186:CH186) -> 0 | CK186: Rondes confirmées | CL186: =SUM(CJ186+BP186) -> 0
D187: =SUM((D184+D185)*D186) -> 0 | E187: 0 | F187: 0 | G187: 0 | H187: 0 | I187: 0 | J187: 0 | K187: 0 | L187: 0 | M187: 0 | N187: 0 | O187: 0 | P187: 0 | Q187: 0 | R187: 0 | S187: 0 | T187: 0 | U187: 0 | V187: 0 | W187: 0 | X187: 0 | Y187: 0 | Z187: 0 | AA187: 0 | AB187: 0 | AC187: 0 | AD187: 0 | AE187: 0 | AF187: 0 | AG187: 0 | AH187: 0 | AI187: 0 | AJ187: 0 | AK187: 0 | AL187: 0 | AM187: 0 | AN187: 0 | AO187: 0 | AP187: 0 | AQ187: 0 | AR187: 0 | AS187: 0 | AT187: 0 | AU187: 0 | AV187: 0 | AW187: 0 | AX187: 0 | AY187: 0 | AZ187: 0 | BA187: 0 | BB187: 0 | BC187: 0 | BD187: 0 | BE187: 0 | BF187: 0 | BG187: 0 | BH187: 0 | BI187: 0 | BJ187: =SUM((BJ184+BJ185)*BJ186) -> 0 | BK187: =SUM((BK184+BK185)*BK186) -> 0 | BL187: 0 | BM187: 0 | BO187: Rondes effectuées | BP187: =COUNTIF(D184:BM184,">0") -> 0 | BQ187: =SUM((BQ184+BQ185)*BQ186) -> 0 | BR187: 0 | BS187: 0 | BT187: 0 | BU187: 0 | BV187: 0 | BW187: 0 | BX187: 0 | BY187: 0 | BZ187: 0 | CA187: 0 | CB187: 0 | CC187: 0 | CD187: 0 | CE187: 0 | CF187: 0 | CG187: 0 | CI187: Rondes Effectuées | CJ187: =COUNTIF(BQ184:CG184,">0") -> 0 | CK187: Rondes effectuées | CL187: =SUM(CJ187+BP187) -> 0
A188: 46 | B188: =VLOOKUP(A188,'Numéro licences'!$H$4:$I$47,2) -> 0 | C188: Aller-Retour | BN188: =SUM(D188:BM188) -> 0 | BO188: Km renseignés | BP188: =SUM(BN188+BN189) -> 0 | CH188: =SUM(BQ188:CG188) -> 0 | CI188: Km renseignés | CJ188: =SUM(CH188+CH189) -> 0 | CK188: Km renseignés | CL188: =SUM(BP188+CJ188) -> 0
C189: Ronde | BN189: =SUM(D189:BM189) -> 0 | BO189: Km confirmés | BP189: =SUM(D191:BM191) -> 0 | CH189: =SUM(BQ189:CG189) -> 0 | CI189: Km confirmés | CJ189: =SUM(BQ191:CG191) -> 0 | CK189: Km confirmés | CL189: =SUM(CJ189+BP189) -> 0
D190: 0 | E190: 0 | F190: 0 | G190: 0 | H190: 0 | I190: 0 | J190: 0 | K190: 0 | L190: 0 | M190: 0 | N190: 0 | O190: 0 | P190: 0 | Q190: 0 | R190: 0 | S190: 0 | T190: 0 | U190: 0 | V190: 0 | W190: 0 | X190: 0 | Y190: 0 | Z190: 0 | AA190: 0 | AB190: 0 | AC190: 0 | AD190: 0 | AE190: 0 | AF190: 0 | AG190: 0 | AH190: 0 | AI190: 0 | AJ190: 0 | AK190: 0 | AL190: 0 | AM190: 0 | AN190: 0 | AO190: 0 | AP190: 0 | AQ190: 0 | AR190: 0 | AS190: 0 | AT190: 0 | AU190: 0 | AV190: 0 | AW190: 0 | AX190: 0 | AY190: 0 | AZ190: 0 | BA190: 0 | BB190: 0 | BC190: 0 | BD190: 0 | BE190: 0 | BF190: 0 | BG190: 0 | BH190: 0 | BI190: 0 | BJ190: 0 | BK190: 0 | BL190: 0 | BM190: 0 | BO190: Rondes confirmées | BP190: =SUM(C190:BM190) -> 0 | BQ190: 0 | BR190: 0 | BS190: 0 | BT190: 0 | BU190: 0 | BV190: 0 | BW190: 0 | BX190: 0 | BY190: 0 | BZ190: 0 | CA190: 0 | CB190: 0 | CC190: 0 | CD190: 0 | CE190: 0 | CF190: 0 | CG190: 0 | CI190: Rondes confirmées | CJ190: =SUM(BQ190:CH190) -> 0 | CK190: Rondes confirmées | CL190: =SUM(CJ190+BP190) -> 0
D191: =SUM((D188+D189)*D190) -> 0 | E191: 0 | F191: 0 | G191: 0 | H191: 0 | I191: 0 | J191: 0 | K191: 0 | L191: 0 | M191: 0 | N191: 0 | O191: 0 | P191: 0 | Q191: 0 | R191: 0 | S191: 0 | T191: 0 | U191: 0 | V191: 0 | W191: 0 | X191: 0 | Y191: 0 | Z191: 0 | AA191: 0 | AB191: 0 | AC191: 0 | AD191: 0 | AE191: 0 | AF191: 0 | AG191: 0 | AH191: 0 | AI191: 0 | AJ191: 0 | AK191: 0 | AL191: 0 | AM191: 0 | AN191: 0 | AO191: 0 | AP191: 0 | AQ191: 0 | AR191: 0 | AS191: 0 | AT191: 0 | AU191: 0 | AV191: 0 | AW191: 0 | AX191: 0 | AY191: 0 | AZ191: 0 | BA191: 0 | BB191: 0 | BC191: 0 | BD191: 0 | BE191: 0 | BF191: 0 | BG191: 0 | BH191: 0 | BI191: 0 | BJ191: =SUM((BJ188+BJ189)*BJ190) -> 0 | BK191: =SUM((BK188+BK189)*BK190) -> 0 | BL191: 0 | BM191: 0 | BO191: Rondes effectuées | BP191: =COUNTIF(D188:BM188,">0") -> 0 | BQ191: =SUM((BQ188+BQ189)*BQ190) -> 0 | BR191: 0 | BS191: 0 | BT191: 0 | BU191: 0 | BV191: 0 | BW191: 0 | BX191: 0 | BY191: 0 | BZ191: 0 | CA191: 0 | CB191: 0 | CC191: 0 | CD191: 0 | CE191: 0 | CF191: 0 | CG191: 0 | CI191: Rondes Effectuées | CJ191: =COUNTIF(BQ188:CG188,">0") -> 0 | CK191: Rondes effectuées | CL191: =SUM(CJ191+BP191) -> 0
C192: Nat.Pirates-Hors/FMB
C193: Inconnu ou non-confirmé
C195: Concentres | D195: =COUNTIF(D8:D191,D5) -> 10 | E195: =COUNTIF(E8:E191,E5) -> 6 | F195: =COUNTIF(F8:F191,F5) -> 6 | G195: 7 | H195: 2 | I195: 58 | J195: 3 | K195: 11 | L195: 13 | M195: 12 | N195: 11 | O195: 6 | P195: 12 | Q195: 7 | R195: 7 | S195: 6 | T195: 3 | U195: 10 | V195: 0 | W195: 10 | X195: 16 | Y195: 9 | Z195: 12 | AA195: 75 | AB195: 2 | AC195: 3 | AD195: 16 | AE195: 2 | AF195: 2 | AG195: 12 | AH195: 7 | AI195: 2 | AJ195: 15 | AK195: 9 | AL195: 5 | AM195: 1 | AN195: 5 | AO195: 2 | AP195: 4 | AQ195: 92 | AR195: 14 | AS195: 2 | AT195: 8 | AU195: 6 | AV195: 9 | AW195: 1 | AX195: 5 | AY195: 3 | AZ195: 3 | BA195: 3 | BB195: 6 | BC195: 11 | BD195: 7 | BE195: 92 | BF195: 0 | BG195: 6 | BH195: 6 | BI195: =COUNTIF(BI8:BI191,BI5) -> 14 | BJ195: 92 | BK195: =COUNTIF(BK8:BK191,BK5) -> 92 | BL195: 92 | BM195: 92 | BN195: =SUM(D195:BM195) -> 1055 | BO195: Concentres | BQ195: 1 | BR195: 2 | BS195: 1 | BT195: 92 | BU195: =COUNTIF(BU8:BU191,BU5) -> 92 | BV195: 92 | BW195: 0 | BX195: 0 | BY195: 0 | BZ195: 0 | CA195: 0 | CB195: 0 | CC195: 0 | CD195: 0 | CE195: 0 | CF195: 0 | CG195: 0 | CH195: =SUM(BQ195:CG195) -> 280 | CI195: Concentres | CK195: Concentres | CL195: =SUM(CH195+BN195) -> 1335
C196: Rondes | D196: =COUNTIF(D9:D192,D6) -> 6 | E196: =COUNTIF(E9:E192,E6) -> 6 | F196: =COUNTIF(F9:F192,F6) -> 6 | G196: 7 | H196: 0 | I196: 34 | J196: 3 | K196: 11 | L196: 11 | M196: 12 | N196: 11 | O196: 6 | P196: 4 | Q196: 7 | R196: 7 | S196: 6 | T196: 1 | U196: 8 | V196: 2 | W196: 8 | X196: 12 | Y196: 7 | Z196: 10 | AA196: 34 | AB196: 0 | AC196: 3 | AD196: 7 | AE196: 2 | AF196: 0 | AG196: 12 | AH196: 7 | AI196: 1 | AJ196: 13 | AK196: 9 | AL196: 5 | AM196: 1 | AN196: 3 | AO196: 0 | AP196: 4 | AQ196: 92 | AR196: 12 | AS196: 2 | AT196: 6 | AU196: 6 | AV196: 9 | AW196: 1 | AX196: 5 | AY196: 3 | AZ196: 1 | BA196: 3 | BB196: 6 | BC196: 11 | BD196: 7 | BE196: 92 | BF196: 12 | BG196: 6 | BH196: 6 | BI196: 14 | BJ196: 92 | BK196: =COUNTIF(BK9:BK192,BK6) -> 92 | BL196: 92 | BM196: 92 | BN196: =SUM(D196:BM196) -> 948 | BO196: Rondes | BQ196: 1 | BR196: 2 | BS196: 1 | BT196: 92 | BU196: =COUNTIF(BU9:BU192,BU6) -> 92 | BV196: 92 | BW196: 0 | BX196: 0 | BY196: 0 | BZ196: 0 | CA196: 0 | CB196: 0 | CC196: 0 | CD196: 0 | CE196: 0 | CF196: 0 | CG196: 0 | CH196: =SUM(BQ196:CG196) -> 280 | CI196: Rondes | CK196: Rondes | CL196: =SUM(CH196+BN196) -> 1228
B201: Colonne1
A202: 1 | B202: BALLION Pierre
A203: =SUM(A202+1) -> 2 | B203: BERDOYES Yannick
A204: =SUM(A203+1) -> 3 | B204: CLAISSE Jean-Luc
A205: 4 | B205: DAVIN Philippe
... 42 more rows

Sheet Passagers Nat
D1: 1 | E1: =SUM(D1+1) -> 2 | F1: =SUM(E1+1) -> 3 | G1: 4 | H1: 5 | I1: 6 | J1: 7 | K1: 8 | L1: 9 | M1: 10 | N1: 11 | O1: 12 | P1: 13 | Q1: 14 | R1: 15 | S1: 16 | T1: 17 | U1: 18 | V1: 19 | W1: 20 | X1: 21 | Y1: 22 | Z1: 23 | AA1: 24 | AB1: 25 | AC1: 26 | AD1: 27 | AE1: 28 | AF1: 29 | AG1: 30 | AH1: 31 | AI1: 32 | AJ1: 33 | AK1: 34 | AL1: 35 | AM1: 36 | AN1: 37 | AO1: 38 | AP1: 39 | AQ1: 40 | AR1: 41 | AS1: 42 | AT1: 43 | AU1: 44 | AV1: 45 | AW1: 46 | AX1: 47 | AY1: 48 | AZ1: 49 | BA1: 50 | BB1: 51 | BC1: 52 | BD1: 53 | BE1: 54 | BF1: 55 | BG1: 56 | BH1: 57 | BI1: 58 | BJ1: 59 | BK1: =SUM(BJ1+1) -> 60 | BL1: =SUM(BK1+1) -> 61 | BM1: =SUM(BL1+1) -> 62
D2: 902 | E2: 531 | F2: 516 | G2: 103 | H2: 904 | I2: 713 | J2: 912 | K2: 426 | L2: 721 | M2: 730 | N2: 726 | O2: 614 | P2: 716 | Q2: 533 | R2: 549 | S2: 427 | T2: 126 | U2: 419 | V2: 516 | W2: 721 | X2: 729 | Y2: 0 | Z2: 312 | AA2: 713 | AB2: 508 | AC2: 137 | AD2: 705 | AE2: 516 | AF2: 818 | AG2: 703 | AH2: 531 | AI2: 903 | AJ2: 427 | AK2: 710 | AL2: 726 | AM2: 921 | AN2: 103 | AO2: 549 | AP2: 818 | AQ2: 1000 | AR2: 406 | AS2: 902 | AT2: 730 | AU2: 426 | AV2: 703 | AW2: 908 | AX2: 705 | AY2: 136 | AZ2: 531 | BA2: 912 | BB2: 126 | BC2: 406 | BD2: 622 | BE2: 1000 | BF2: 332 | BG2: 508 | BH2: 332 | BI2: 710 | BJ2: 1000 | BK2: 1000 | BL2: 1000 | BM2: 1000
D3: 2023-02-12 | E3: 2023-02-26 | F3: 2023-03-05 | G3: 2023-03-12 | H3: 2023-03-18 | I3: 2023-03-19 | J3: 2023-03-26 | K3: 2023-04-02 | L3: 2023-04-09 | M3: 2023-04-10 | N3: 2023-04-16 | O3: 2023-04-22 | P3: 2023-04-23 | Q3: 2023-04-30 | R3: 2023-05-01 | S3: 2023-05-07 | T3: 2023-05-07 | U3: 2023-05-13 | V3: 2023-05-17 | W3: 2023-05-28 | X3: 2023-05-29 | Z3: 2023-06-10 | AA3: 2023-06-18 | AB3: 2023-06-18 | AC3: 2023-06-24 | AD3: 2023-06-25 | AE3: 2023-07-01 | AF3: 2023-07-01 | AG3: 2023-07-02 | AH3: 2023-07-08 | AI3: 2023-07-15 | AJ3: 2023-07-16 | AK3: 2023-07-21 | AL3: 2023-07-23 | AM3: 2023-07-29 | AN3: 2023-08-06 | AO3: 2023-08-06 | AP3: 2023-08-12 | AR3: 2023-08-20 | AS3: 2023-08-26 | AT3: 2023-08-27 | AU3: 2023-09-02 | AV3: 2023-09-03 | AW3: 2023-09-09 | AX3: 2023-09-10 | AY3: 2023-09-16 | AZ3: 2023-09-24 | BA3: 2023-09-24 | BB3: 2023-09-30 | BC3: 2023-10-08 | BD3: 2023-10-14 | BF3: 2023-10-29 | BG3: 2023-11-01 | BH3: 2023-11-05 | BI3: 2023-11-11 | BQ3: 2023-03-26 | BR3: 2023-03-25
D4: =VLOOKUP(D2,'Kilomètre AR'!$A$1:$B$56,2) -> AMC GIJVERINKHOVE | E4: =VLOOKUP(E2,'Kilomètre AR'!$A$1:$B$56,2) -> MC HOESELT | F4: =VLOOKUP(F2,'Kilomètre AR'!$A$1:$B$56,2) -> MC LOTUS | G4: =VLOOKUP(G2,'Kilomètre AR'!$A$1:$B$56,2) -> KAMC HERENTALS | H4: =VLOOKUP(H2,'Kilomètre AR'!$A$1:$B$56,2) -> KAMC MENEN | I4: =VLOOKUP(I2,'Kilomètre AR'!$A$1:$B$56,2) -> MC ST SERVAIS | J4: =VLOOKUP(J2,'Kilomètre AR'!$A$1:$B$56,2) -> MTC ZEDELGEM | K4: =VLOOKUP(K2,'Kilomètre AR'!$A$1:$B$56,2) -> MTC WELKENRAEDT | L4: =VLOOKUP(L2,'Kilomètre AR'!$A$1:$B$56,2) -> MC LES PETITS GRIS Warisoulx | M4: =VLOOKUP(M2,'Kilomètre AR'!$A$1:$B$56,2) -> MC LES 4 & CO Assesse | N4: =VLOOKUP(N2,'Kilomètre AR'!$A$1:$B$56,2) -> MC BIKE AND TRIKE BELGIUM Dhuy | O4: =VLOOKUP(O2,'Kilomètre AR'!$A$1:$B$56,2) -> MC CHEVY RACING Libramont-Chevigny | P4: =VLOOKUP(P2,'Kilomètre AR'!$A$1:$B$56,2) -> AMC FLOREFFE | Q4: =VLOOKUP(Q2,'Kilomètre AR'!$A$1:$B$56,2) -> MTC 13 Leopoldsburg | R4: =VLOOKUP(R2,'Kilomètre AR'!$A$1:$B$56,2) -> MTC WELLEN | S4: =VLOOKUP(S2,'Kilomètre AR'!$A$1:$B$56,2) -> MC ZEBUS | T4: =VLOOKUP(T2,'Kilomètre AR'!$A$1:$B$56,2) -> MTC TOERVRIENDEN Berendrecht | U4: =VLOOKUP(U2,'Kilomètre AR'!$A$1:$B$56,2) -> AMC ST VITH | V4: =VLOOKUP(V2,'Kilomètre AR'!$A$1:$B$56,2) -> MC LOTUS | W4: =VLOOKUP(W2,'Kilomètre AR'!$A$1:$B$56,2) -> MC LES PETITS GRIS Warisoulx | X4: =VLOOKUP(X2,'Kilomètre AR'!$A$1:$B$56,2) -> VIROINVAL MOTOR SPORT Dourbes | Y4: =VLOOKUP(Y2,'Kilomètre AR'!$A$1:$B$56,2) -> RONDE FMB | Z4: =VLOOKUP(Z2,'Kilomètre AR'!$A$1:$B$56,2) -> MC RESSAIX | AA4: =VLOOKUP(AA2,'Kilomètre AR'!$A$1:$B$56,2) -> MC ST SERVAIS | AB4: =VLOOKUP(AB2,'Kilomètre AR'!$A$1:$B$56,2) -> AMC KOERSEL | AC4: =VLOOKUP(AC2,'Kilomètre AR'!$A$1:$B$56,2) -> MTC YELLS ARMY Berchem | AD4: =VLOOKUP(AD2,'Kilomètre AR'!$A$1:$B$56,2) -> MC DINANT | AE4: =VLOOKUP(AE2,'Kilomètre AR'!$A$1:$B$56,2) -> MC LOTUS | AF4: =VLOOKUP(AF2,'Kilomètre AR'!$A$1:$B$56,2) -> MOTORSPORT Aalst | AG4: =VLOOKUP(AG2,'Kilomètre AR'!$A$1:$B$56,2) -> R CINEY MC | AH4: =VLOOKUP(AH2,'Kilomètre AR'!$A$1:$B$56,2) -> MC HOESELT | AI4: =VLOOKUP(AI2,'Kilomètre AR'!$A$1:$B$56,2) -> AMSC LEIELAND Wervik | AJ4: =VLOOKUP(AJ2,'Kilomètre AR'!$A$1:$B$56,2) -> MC ZEBUS | AK4: =VLOOKUP(AK2,'Kilomètre AR'!$A$1:$B$56,2) -> MC MOLIGNARD | AL4: =VLOOKUP(AL2,'Kilomètre AR'!$A$1:$B$56,2) -> MC BIKE AND TRIKE BELGIUM Dhuy | AM4: =VLOOKUP(AM2,'Kilomètre AR'!$A$1:$B$56,2) -> MTC VRIJBOS Houthulst | AN4: =VLOOKUP(AN2,'Kilomètre AR'!$A$1:$B$56,2) -> KAMC HERENTALS | AO4: =VLOOKUP(AO2,'Kilomètre AR'!$A$1:$B$56,2) -> MTC WELLEN | AP4: =VLOOKUP(AP2,'Kilomètre AR'!$A$1:$B$56,2) -> MOTORSPORT Aalst | AQ4: =VLOOKUP(AQ2,'Kilomètre AR'!$A$1:$B$56,2) -> FREE | AR4: =VLOOKUP(AR2,'Kilomètre AR'!$A$1:$B$56,2) -> RAMC EUPEN | AS4: =VLOOKUP(AS2,'Kilomètre AR'!$A$1:$B$56,2) -> AMC GIJVERINKHOVE | AT4: =VLOOKUP(AT2,'Kilomètre AR'!$A$1:$B$56,2) -> MC LES 4 & CO Assesse | AU4: =VLOOKUP(AU2,'Kilomètre AR'!$A$1:$B$56,2) -> MTC WELKENRAEDT | AV4: =VLOOKUP(AV2,'Kilomètre AR'!$A$1:$B$56,2) -> R CINEY MC | AW4: =VLOOKUP(AW2,'Kilomètre AR'!$A$1:$B$56,2) -> AMC POPERINGE | AX4: =VLOOKUP(AX2,'Kilomètre AR'!$A$1:$B$56,2) -> MC DINANT | AY4: =VLOOKUP(AY2,'Kilomètre AR'!$A$1:$B$56,2) -> MTC AMIGO'S Schoten | AZ4: =VLOOKUP(AZ2,'Kilomètre AR'!$A$1:$B$56,2) -> MC HOESELT | BA4: =VLOOKUP(BA2,'Kilomètre AR'!$A$1:$B$56,2) -> MTC ZEDELGEM | BB4: =VLOOKUP(BB2,'Kilomètre AR'!$A$1:$B$56,2) -> MTC TOERVRIENDEN Berendrecht | BC4: =VLOOKUP(BC2,'Kilomètre AR'!$A$1:$B$56,2) -> RAMC EUPEN | BD4: =VLOOKUP(BD2,'Kilomètre AR'!$A$1:$B$56,2) -> MC DÜREN | BE4: =VLOOKUP(BE2,'Kilomètre AR'!$A$1:$B$56,2) -> FREE | BF4: =VLOOKUP(BF2,'Kilomètre AR'!$A$1:$B$56,2) -> MC BUTZ BIKERS 95 Ecaussinnes | BG4: =VLOOKUP(BG2,'Kilomètre AR'!$A$1:$B$56,2) -> AMC KOERSEL | BH4: =VLOOKUP(BH2,'Kilomètre AR'!$A$1:$B$56,2) -> MC BUTZ BIKERS 95 Ecaussinnes | BI4: =VLOOKUP(BI2,'Kilomètre AR'!$A$1:$B$56,2) -> MC MOLIGNARD | BJ4: =VLOOKUP(BJ2,'Kilomètre AR'!$A$1:$B$56,2) -> FREE | BK4: =VLOOKUP(BK2,'Kilomètre AR'!$A$1:$B$56,2) -> FREE | BL4: =VLOOKUP(BL2,'Kilomètre AR'!$A$1:$B$56,2) -> FREE | BM4: =VLOOKUP(BM2,'Kilomètre AR'!$A$1:$B$56,2) -> FREE | BQ4: Offrez-moi la lune | BR4: MTC WALLONIE
B5: Aller-Retour | D5: =VLOOKUP(D2,'Kilomètre AR'!$A$1:$D$56,4) -> 394 | E5: =VLOOKUP(E2,'Kilomètre AR'!$A$1:$D$56,4) -> 186 | F5: =VLOOKUP(F2,'Kilomètre AR'!$A$1:$D$56,4) -> 160 | G5: =VLOOKUP(G2,'Kilomètre AR'!$A$1:$D$56,4) -> 266 | H5: =VLOOKUP(H2,'Kilomètre AR'!$A$1:$D$56,4) -> 310 | I5: =VLOOKUP(I2,'Kilomètre AR'!$A$1:$D$56,4) -> 0 | J5: =VLOOKUP(J2,'Kilomètre AR'!$A$1:$D$56,4) -> 338 | K5: =VLOOKUP(K2,'Kilomètre AR'!$A$1:$D$56,4) -> 204 | L5: =VLOOKUP(L2,'Kilomètre AR'!$A$1:$D$56,4) -> 20 | M5: =VLOOKUP(M2,'Kilomètre AR'!$A$1:$D$56,4) -> 44 | N5: =VLOOKUP(N2,'Kilomètre AR'!$A$1:$D$56,4) -> 34 | O5: =VLOOKUP(O2,'Kilomètre AR'!$A$1:$D$56,4) -> 174 | P5: =VLOOKUP(P2,'Kilomètre AR'!$A$1:$D$56,4) -> 18 | Q5: =VLOOKUP(Q2,'Kilomètre AR'!$A$1:$D$56,4) -> 268 | R5: =VLOOKUP(R2,'Kilomètre AR'!$A$1:$D$56,4) -> 156 | S5: =VLOOKUP(S2,'Kilomètre AR'!$A$1:$D$56,4) -> 118 | T5: =VLOOKUP(T2,'Kilomètre AR'!$A$1:$D$56,4) -> 254 | U5: =VLOOKUP(U2,'Kilomètre AR'!$A$1:$D$56,4) -> 284 | V5: 1462 | W5: =VLOOKUP(W2,'Kilomètre AR'!$A$1:$D$56,4) -> 20 | X5: =VLOOKUP(X2,'Kilomètre AR'!$A$1:$D$56,4) -> 164 | Y5: =VLOOKUP(Y2,'Kilomètre AR'!$A$1:$D$56,4) -> 0 | Z5: =VLOOKUP(Z2,'Kilomètre AR'!$A$1:$D$56,4) -> 132 | AA5: =VLOOKUP(AA2,'Kilomètre AR'!$A$1:$D$56,4) -> 0 | AB5: =VLOOKUP(AB2,'Kilomètre AR'!$A$1:$D$56,4) -> 260 | AC5: =VLOOKUP(AC2,'Kilomètre AR'!$A$1:$D$56,4) -> 204 | AD5: =VLOOKUP(AD2,'Kilomètre AR'!$A$1:$D$56,4) -> 86 | AE5: =VLOOKUP(AE2,'Kilomètre AR'!$A$1:$D$56,4) -> 160 | AF5: =VLOOKUP(AF2,'Kilomètre AR'!$A$1:$D$56,4) -> 204 | AG5: =VLOOKUP(AG2,'Kilomètre AR'!$A$1:$D$56,4) -> 68 | AH5: =VLOOKUP(AH2,'Kilomètre AR'!$A$1:$D$56,4) -> 186 | AI5: =VLOOKUP(AI2,'Kilomètre AR'!$A$1:$D$56,4) -> 332 | AJ5: =VLOOKUP(AJ2,'Kilomètre AR'!$A$1:$D$56,4) -> 118 | AK5: =VLOOKUP(AK2,'Kilomètre AR'!$A$1:$D$56,4) -> 18 | AL5: =VLOOKUP(AL2,'Kilomètre AR'!$A$1:$D$56,4) -> 34 | AM5: =VLOOKUP(AM2,'Kilomètre AR'!$A$1:$D$56,4) -> 374 | AN5: =VLOOKUP(AN2,'Kilomètre AR'!$A$1:$D$56,4) -> 266 | AO5: =VLOOKUP(AO2,'Kilomètre AR'!$A$1:$D$56,4) -> 156 | AP5: =VLOOKUP(AP2,'Kilomètre AR'!$A$1:$D$56,4) -> 204 | AQ5: =VLOOKUP(AQ2,'Kilomètre AR'!$A$1:$D$56,4) -> 0 | AR5: =VLOOKUP(AR2,'Kilomètre AR'!$A$1:$D$56,4) -> 210 | AS5: =VLOOKUP(AS2,'Kilomètre AR'!$A$1:$D$56,4) -> 394 | AT5: =VLOOKUP(AT2,'Kilomètre AR'!$A$1:$D$56,4) -> 44 | AU5: =VLOOKUP(AU2,'Kilomètre AR'!$A$1:$D$56,4) -> 204 | AV5: =VLOOKUP(AV2,'Kilomètre AR'!$A$1:$D$56,4) -> 68 | AW5: =VLOOKUP(AW2,'Kilomètre AR'!$A$1:$D$56,4) -> 376 | AX5: =VLOOKUP(AX2,'Kilomètre AR'!$A$1:$D$56,4) -> 86 | AY5: =VLOOKUP(AY2,'Kilomètre AR'!$A$1:$D$56,4) -> 224 | AZ5: =VLOOKUP(AZ2,'Kilomètre AR'!$A$1:$D$56,4) -> 186 | BA5: =VLOOKUP(BA2,'Kilomètre AR'!$A$1:$D$56,4) -> 338 | BB5: =VLOOKUP(BB2,'Kilomètre AR'!$A$1:$D$56,4) -> 254 | BC5: =VLOOKUP(BC2,'Kilomètre AR'!$A$1:$D$56,4) -> 210 | BD5: =VLOOKUP(BD2,'Kilomètre AR'!$A$1:$D$56,4) -> 280 | BE5: =VLOOKUP(BE2,'Kilomètre AR'!$A$1:$D$56,4) -> 0 | BF5: =VLOOKUP(BF2,'Kilomètre AR'!$A$1:$D$56,4) -> 118 | BG5: 164 | BH5: =VLOOKUP(BH2,'Kilomètre AR'!$A$1:$D$56,4) -> 118 | BI5: =VLOOKUP(BI2,'Kilomètre AR'!$A$1:$D$56,4) -> 18 | BJ5: =VLOOKUP(BJ2,'Kilomètre AR'!$A$1:$D$56,4) -> 0 | BK5: =VLOOKUP(BK2,'Kilomètre AR'!$A$1:$D$56,4) -> 0 | BL5: =VLOOKUP(BL2,'Kilomètre AR'!$A$1:$D$56,4) -> 0 | BM5: =VLOOKUP(BM2,'Kilomètre AR'!$A$1:$D$56,4) -> 0 | BQ5: 35 | BR5: 110 | BV5: -1 | BW5: -1 | BX5: -1 | BY5: -1 | BZ5: -1 | CA5: -1 | CB5: -1 | CC5: -1 | CD5: -1 | CE5: -1 | CF5: -1 | CG5: -1 | CN5: NATIONAL
B6: Ronde | D6: 130 | E6: 150 | F6: 140 | G6: 130 | H6: 120 | I6: 160 | J6: 150 | K6: 134 | L6: 173 | M6: 160 | N6: 160 | O6: 175 | P6: 180 | Q6: 179 | R6: 146 | S6: 170 | T6: 270 | U6: 190 | V6: 212 | W6: 200 | X6: 221 | Z6: 175 | AA6: 200 | AB6: 160 | AC6: 150 | AD6: 216 | AE6: 175 | AF6: 285 | AG6: 196 | AH6: 180 | AI6: 160 | AJ6: 160 | AK6: 195 | AL6: 167 | AM6: 300 | AN6: 150 | AO6: 185 | AP6: 250 | AR6: 200 | AS6: 220 | AT6: 240 | AU6: 200 | AV6: 220 | AW6: 153 | AX6: 188 | AY6: 180 | AZ6: 150 | BA6: 130 | BB6: 160 | BC6: 160 | BD6: 160 | BF6: 160 | BG6: 130 | BH6: 155 | BI6: 126 | BQ6: 270 | BR6: 200 | BV6: -1 | BW6: -1 | BX6: -1 | BY6: -1 | BZ6: -1 | CA6: -1 | CB6: -1 | CC6: -1 | CD6: -1 | CE6: -1 | CF6: -1 | CG6: -1
S7: Hors Championnat | V7: Randonnée de l'amitié Holzgau / AU | BF7: 160 km au lieu de 118 km Départ de Villerot | BN7: Sous-Total FMB | BP7: Total FMB | CH7: Sous-Totaux Pirates | CJ7: Total Pirates | CL7: TOTAL | CP7: FMB | CQ7: Hors FMB | CR7: Total
A8: 1 | B8: =VLOOKUP(A8,'Numéro licences'!$A$4:$B$32,2) -> BRIATTE Joëlle | C8: Aller-Retour | BN8: =SUM(D8:BM8) -> 0 | BO8: Km renseignés | BP8: =SUM(BN8+BN9) -> 0 | CH8: =SUM(BQ8:CG8) -> 0 | CI8: Km renseignés | CJ8: =SUM(CH8+CH9) -> 0 | CK8: Km renseignés | CL8: =SUM(BP8+CJ8) -> 0 | CN8: 1 | CO8: =VLOOKUP(CN8,A8:B188,2) -> BRIATTE Joëlle | CP8: =SUM(BP8) -> 0 | CQ8: =SUM(CJ8) -> 0 | CR8: =SUM(CP8+CQ8) -> 0
C9: Ronde | BN9: =SUM(D9:BM9) -> 0 | BO9: Km confirmés | BP9: =SUM(D11:BM11) -> 0 | CH9: =SUM(BQ9:CG9) -> 0 | CI9: Km confirmés | CJ9: =SUM(BQ11:CG11) -> 0 | CK9: Km confirmés | CL9: =SUM(CJ9+BP9) -> 0 | CN9: 2 | CO9: =VLOOKUP(CN9,A8:B188,2) -> DEFAUX Michèle | CP9: =SUM(BP12) -> 884 | CQ9: =SUM(CJ12) -> 0 | CR9: =SUM(CP9+CQ9) -> 884
D10: 0 | E10: 0 | F10: 0 | G10: 0 | H10: 0 | I10: 0 | J10: 0 | K10: 0 | L10: 0 | M10: 0 | N10: 0 | O10: 0 | P10: 0 | Q10: 0 | R10: 0 | S10: 0 | T10: 0 | U10: 0 | V10: 0 | W10: 0 | X10: 0 | Y10: 0 | Z10: 0 | AA10: 0 | AB10: 0 | AC10: 0 | AD10: 0 | AE10: 0 | AF10: 0 | AG10: 0 | AH10: 0 | AI10: 0 | AJ10: 0 | AK10: 0 | AL10: 0 | AM10: 0 | AN10: 0 | AO10: 0 | AP10: 0 | AQ10: 0 | AR10: 0 | AS10: 0 | AT10: 0 | AU10: 0 | AV10: 0 | AW10: 0 | AX10: 0 | AY10: 0 | AZ10: 0 | BA10: 0 | BB10: 0 | BC10: 0 | BD10: 0 | BE10: 0 | BF10: 0 | BG10: 0 | BH10: 0 | BI10: 0 | BJ10: 0 | BK10: 0 | BL10: 0 | BM10: 0 | BO10: Rondes confirmées | BP10: =SUM(C10:BM10) -> 0 | BQ10: 0 | BR10: 0 | BS10: 0 | BT10: 0 | BU10: 0 | BV10: 0 | BW10: 0 | BX10: 0 | BY10: 0 | BZ10: 0 | CA10: 0 | CB10: 0 | CC10: 0 | CD10: 0 | CE10: 0 | CF10: 0 | CG10: 0 | CI10: Rondes confirmées | CJ10: =SUM(BQ10:CH10) -> 0 | CK10: Rondes confirmées | CL10: =SUM(CJ10+BP10) -> 0 | CN10: 3 | CO10: =VLOOKUP(CN10,A8:B188,2) -> DEL FABBRO Laurence | CP10: =SUM(BP16) -> 200 | CQ10: =SUM(CJ16) -> 0 | CR10: =SUM(CP10+CQ10) -> 200
D11: =SUM((D8+D9)*D10) -> 0 | E11: 0 | F11: 0 | G11: 0 | H11: 0 | I11: 0 | J11: 0 | K11: 0 | L11: 0 | M11: 0 | N11: 0 | O11: 0 | P11: 0 | Q11: 0 | R11: 0 | S11: 0 | T11: 0 | U11: 0 | V11: 0 | W11: 0 | X11: 0 | Y11: 0 | Z11: 0 | AA11: 0 | AB11: 0 | AC11: 0 | AD11: 0 | AE11: 0 | AF11: 0 | AG11: 0 | AH11: 0 | AI11: 0 | AJ11: 0 | AK11: 0 | AL11: 0 | AM11: 0 | AN11: 0 | AO11: 0 | AP11: 0 | AQ11: 0 | AR11: 0 | AS11: 0 | AT11: 0 | AU11: 0 | AV11: 0 | AW11: 0 | AX11: 0 | AY11: 0 | AZ11: 0 | BA11: 0 | BB11: 0 | BC11: 0 | BD11: 0 | BE11: 0 | BF11: 0 | BG11: 0 | BH11: 0 | BI11: 0 | BJ11: 0 | BK11: =SUM((BK8+BK9)*BK10) -> 0 | BL11: 0 | BM11: 0 | BO11: Rondes effectuées | BP11: =COUNTIF(D8:BM8,">0") -> 0 | BQ11: =SUM((BQ8+BQ9)*BQ10) -> 0 | BR11: 0 | BS11: 0 | BT11: 0 | BU11: 0 | BV11: 0 | BW11: 0 | BX11: 0 | BY11: 0 | BZ11: 0 | CA11: 0 | CB11: 0 | CC11: 0 | CD11: 0 | CE11: 0 | CF11: 0 | CG11: 0 | CI11: Rondes Effectuées | CJ11: =COUNTIF(BQ8:CG8,">0") -> 0 | CK11: Rondes effectuées | CL11: =SUM(CJ11+BP11) -> 0 | CN11: 4 | CO11: =VLOOKUP(CN11,A8:B188,2) -> FIEVET Nathalie | CP11: =SUM(BP20) -> 0 | CQ11: =SUM(CJ20) -> 0 | CR11: 0
A12: 2 | B12: =VLOOKUP(A12,'Numéro licences'!$A$4:$B$32,2) -> DEFAUX Michèle | C12: Aller-Retour | L12: 20 | M12: 44 | AK12: 18 | AX12: 86 | BN12: =SUM(D12:BM12) -> 168 | BO12: Km renseignés | BP12: =SUM(BN12+BN13) -> 884 | CH12: =SUM(BQ12:CG12) -> 0 | CI12: Km renseignés | CJ12: =SUM(CH12+CH13) -> 0 | CK12: Km renseignés | CL12: =SUM(BP12+CJ12) -> 884 | CN12: 5 | CO12: =VLOOKUP(CN12,A8:B188,2) -> GOFFIN Guillaume | CP12: =SUM(BP24) -> 0 | CQ12: =SUM(CJ24) -> 0 | CR12: 0
C13: Ronde | L13: 173 | M13: 160 | AK13: 195 | AX13: 188 | BN13: =SUM(D13:BM13) -> 716 | BO13: Km confirmés | BP13: =SUM(D15:BM15) -> 884 | CH13: =SUM(BQ13:CG13) -> 0 | CI13: Km confirmés | CJ13: =SUM(BQ15:CG15) -> 0 | CK13: Km confirmés | CL13: =SUM(CJ13+BP13) -> 884 | CN13: 6 | CO13: =VLOOKUP(CN13,A8:B188,2) -> GOUGEUL Sophie | CP13: =SUM(BP28) -> 7173 | CQ13: =SUM(CJ28) -> 310 | CR13: 7483
D14: 0 | E14: 0 | F14: 0 | G14: 0 | H14: 0 | I14: 0 | J14: 0 | K14: 0 | L14: 1 | M14: 1 | N14: 0 | O14: 0 | P14: 0 | Q14: 0 | R14: 0 | S14: 0 | T14: 0 | U14: 0 | V14: 0 | W14: 0 | X14: 0 | Y14: 0 | Z14: 0 | AA14: 0 | AB14: 0 | AC14: 0 | AD14: 0 | AE14: 0 | AF14: 0 | AG14: 0 | AH14: 0 | AI14: 0 | AJ14: 0 | AK14: 1 | AL14: 0 | AM14: 0 | AN14: 0 | AO14: 0 | AP14: 0 | AQ14: 0 | AR14: 0 | AS14: 0 | AT14: 0 | AU14: 0 | AV14: 0 | AW14: 0 | AX14: 1 | AY14: 0 | AZ14: 0 | BA14: 0 | BB14: 0 | BC14: 0 | BD14: 0 | BE14: 0 | BF14: 0 | BG14: 0 | BH14: 0 | BI14: 0 | BJ14: 0 | BK14: 0 | BL14: 0 | BM14: 0 | BO14: Rondes confirmées | BP14: =SUM(C14:BM14) -> 4 | BQ14: 0 | BR14: 0 | BS14: 0 | BT14: 0 | BU14: 0 | BV14: 0 | BW14: 0 | BX14: 0 | BY14: 0 | BZ14: 0 | CA14: 0 | CB14: 0 | CC14: 0 | CD14: 0 | CE14: 0 | CF14: 0 | CG14: 0 | CI14: Rondes confirmées | CJ14: =SUM(BQ14:CH14) -> 0 | CK14: Rondes confirmées | CL14: =SUM(CJ14+BP14) -> 4 | CN14: 7 | CO14: =VLOOKUP(CN14,A8:B188,2) -> GREGORICS Kathy | CP14: =SUM(BP32) -> 360 | CQ14: =SUM(CJ32) -> 0 | CR14: 360
D15: =SUM((D12+D13)*D14) -> 0 | E15: 0 | F15: 0 | G15: 0 | H15: 0 | I15: 0 | J15: 0 | K15: 0 | L15: 193 | M15: 204 | N15: 0 | O15: 0 | P15: 0 | Q15: 0 | R15: 0 | S15: 0 | T15: 0 | U15: 0 | V15: 0 | W15: 0 | X15: 0 | Y15: 0 | Z15: 0 | AA15: 0 | AB15: =SUM((AB12+AB13)*AB14) -> 0 | AC15: =SUM((AC12+AC13)*AC14) -> 0 | AD15: =SUM((AD12+AD13)*AD14) -> 0 | AE15: =SUM((AE12+AE13)*AE14) -> 0 | AF15: 0 | AG15: 0 | AH15: 0 | AI15: 0 | AJ15: 0 | AK15: 213 | AL15: 0 | AM15: 0 | AN15: 0 | AO15: 0 | AP15: 0 | AQ15: 0 | AR15: 0 | AS15: 0 | AT15: 0 | AU15: 0 | AV15: 0 | AW15: 0 | AX15: 274 | AY15: 0 | AZ15: 0 | BA15: 0 | BB15: 0 | BC15: 0 | BD15: 0 | BE15: 0 | BF15: 0 | BG15: 0 | BH15: 0 | BI15: 0 | BJ15: 0 | BK15: =SUM((BK12+BK13)*BK14) -> 0 | BL15: =SUM((BL12+BL13)*BL14) -> 0 | BM15: =SUM((BM12+BM13)*BM14) -> 0 | BO15: Rondes effectuées | BP15: =COUNTIF(D12:BM12,">0") -> 4 | BQ15: =SUM((BQ12+BQ13)*BQ14) -> 0 | BR15: 0 | BS15: 0 | BT15: 0 | BU15: 0 | BV15: 0 | BW15: 0 | BX15: 0 | BY15: 0 | BZ15: 0 | CA15: 0 | CB15: 0 | CC15: 0 | CD15: 0 | CE15: 0 | CF15: 0 | CG15: 0 | CI15: Rondes Effectuées | CJ15: =COUNTIF(BQ12:CG12,">0") -> 0 | CK15: Rondes effectuées | CL15: =SUM(CJ15+BP15) -> 4 | CN15: 8 | CO15: =VLOOKUP(CN15,A8:B188,2) -> LAMBILLON Anne | CP15: =SUM(BP36) -> 360 | CQ15: =SUM(CJ36) -> 0 | CR15: 360
A16: 3 | B16: =VLOOKUP(A16,'Numéro licences'!$A$4:$B$32,2) -> DEL FABBRO Laurence | C16: Aller-Retour | AA16: 0 | BN16: =SUM(D16:BM16) -> 0 | BO16: Km renseignés | BP16: =SUM(BN16+BN17) -> 200 | CH16: =SUM(BQ16:CG16) -> 0 | CI16: Km renseignés | CJ16: =SUM(CH16+CH17) -> 0 | CK16: Km renseignés | CL16: =SUM(BP16+CJ16) -> 200 | CN16: 9 | CO16: =VLOOKUP(CN16,A8:B188,2) -> LAMIROY Anne | CP16: =SUM(BP40) -> 0 | CQ16: =SUM(CJ40) -> 0 | CR16: 0
C17: Ronde | AA17: 200 | BN17: =SUM(D17:BM17) -> 200 | BO17: Km confirmés | BP17: =SUM(D19:BM19) -> 200 | CH17: =SUM(BQ17:CG17) -> 0 | CI17: Km confirmés | CJ17: =SUM(BQ19:CG19) -> 0 | CK17: Km confirmés | CL17: =SUM(CJ17+BP17) -> 200 | CN17: 10 | CO17: =VLOOKUP(CN17,A8:B188,2) -> LEROY Laure | CP17: =SUM(BP44) -> 3321 | CQ17: =SUM(CJ44) -> 0 | CR17: 3321
D18: 0 | E18: 0 | F18: 0 | G18: 0 | H18: 0 | I18: 0 | J18: 0 | K18: 0 | L18: 0 | M18: 0 | N18: 0 | O18: 0 | P18: 0 | Q18: 0 | R18: 0 | S18: 0 | T18: 0 | U18: 0 | V18: 0 | W18: 0 | X18: 0 | Y18: 0 | Z18: 0 | AA18: 1 | AB18: 0 | AC18: 0 | AD18: 0 | AE18: 0 | AF18: 0 | AG18: 0 | AH18: 0 | AI18: 0 | AJ18: 0 | AK18: 0 | AL18: 0 | AM18: 0 | AN18: 0 | AO18: 0 | AP18: 0 | AQ18: 0 | AR18: 0 | AS18: 0 | AT18: 0 | AU18: 0 | AV18: 0 | AW18: 0 | AX18: 0 | AY18: 0 | AZ18: 0 | BA18: 0 | BB18: 0 | BC18: 0 | BD18: 0 | BE18: 0 | BF18: 0 | BG18: 0 | BH18: 0 | BI18: 0 | BJ18: 0 | BK18: 0 | BL18: 0 | BM18: 0 | BO18: Rondes confirmées | BP18: =SUM(C18:BM18) -> 1 | BQ18: 0 | BR18: 0 | BS18: 0 | BT18: 0 | BU18: 0 | BV18: 0 | BW18: 0 | BX18: 0 | BY18: 0 | BZ18: 0 | CA18: 0 | CB18: 0 | CC18: 0 | CD18: 0 | CE18: 0 | CF18: 0 | CG18: 0 | CI18: Rondes confirmées | CJ18: =SUM(BQ18:CH18) -> 0 | CK18: Rondes confirmées | CL18: =SUM(CJ18+BP18) -> 1 | CN18: 11 | CO18: =VLOOKUP(CN18,A8:B188,2) -> MALLIEN Emelyne | CP18: =SUM(BP48) -> 0 | CQ18: =SUM(CJ48) -> 0 | CR18: 0
D19: =SUM((D16+D17)*D18) -> 0 | E19: 0 | F19: 0 | G19: 0 | H19: 0 | I19: 0 | J19: 0 | K19: 0 | L19: 0 | M19: 0 | N19: 0 | O19: 0 | P19: 0 | Q19: 0 | R19: 0 | S19: 0 | T19: 0 | U19: 0 | V19: 0 | W19: 0 | X19: 0 | Y19: 0 | Z19: 0 | AA19: 200 | AB19: =SUM((AB16+AB17)*AB18) -> 0 | AC19: =SUM((AC16+AC17)*AC18) -> 0 | AD19: =SUM((AD16+AD17)*AD18) -> 0 | AE19: =SUM((AE16+AE17)*AE18) -> 0 | AF19: 0 | AG19: 0 | AH19: 0 | AI19: 0 | AJ19: 0 | AK19: 0 | AL19: 0 | AM19: 0 | AN19: 0 | AO19: 0 | AP19: 0 | AQ19: 0 | AR19: 0 | AS19: 0 | AT19: 0 | AU19: 0 | AV19: 0 | AW19: 0 | AX19: 0 | AY19: 0 | AZ19: 0 | BA19: 0 | BB19: 0 | BC19: 0 | BD19: 0 | BE19: 0 | BF19: 0 | BG19: 0 | BH19: 0 | BI19: 0 | BJ19: 0 | BK19: =SUM((BK16+BK17)*BK18) -> 0 | BL19: =SUM((BL16+BL17)*BL18) -> 0 | BM19: =SUM((BM16+BM17)*BM18) -> 0 | BO19: Rondes effectuées | BP19: =COUNTIF(D16:BM16,">0") -> 0 | BQ19: =SUM((BQ16+BQ17)*BQ18) -> 0 | BR19: 0 | BS19: 0 | BT19: 0 | BU19: 0 | BV19: 0 | BW19: 0 | BX19: 0 | BY19: 0 | BZ19: 0 | CA19: 0 | CB19: 0 | CC19: 0 | CD19: 0 | CE19: 0 | CF19: 0 | CG19: 0 | CI19: Rondes Effectuées | CJ19: =COUNTIF(BQ16:CG16,">0") -> 0 | CK19: Rondes effectuées | CL19: =SUM(CJ19+BP19) -> 0 | CN19: 12 | CO19: =VLOOKUP(CN19,A8:B188,2) -> PIERARD Anne-Sophie | CP19: =SUM(BP52) -> 0 | CQ19: =SUM(CJ52) -> 0 | CR19: 0
A20: 4 | B20: =VLOOKUP(A20,'Numéro licences'!$A$4:$B$32,2) -> FIEVET Nathalie | C20: Aller-Retour | BN20: =SUM(D20:BM20) -> 0 | BO20: Km renseignés | BP20: =SUM(BN20+BN21) -> 0 | CH20: =SUM(BQ20:CG20) -> 0 | CI20: Km renseignés | CJ20: =SUM(CH20+CH21) -> 0 | CK20: Km renseignés | CL20: =SUM(BP20+CJ20) -> 0 | CN20: 13 | CO20: =VLOOKUP(CN20,A8:B188,2) -> PONT Patricia | CP20: =SUM(BP56) -> 10021 | CQ20: =SUM(CJ56) -> 0 | CR20: 10021
C21: Ronde | BN21: =SUM(D21:BM21) -> 0 | BO21: Km confirmés | BP21: =SUM(D23:BM23) -> 0 | CH21: =SUM(BQ21:CG21) -> 0 | CI21: Km confirmés | CJ21: =SUM(BQ23:CG23) -> 0 | CK21: Km confirmés | CL21: =SUM(CJ21+BP21) -> 0 | CN21: 14 | CO21: =VLOOKUP(CN21,A8:B188,2) -> MISEUR Carine | CP21: =SUM(BP60) -> 5164 | CQ21: =SUM(CJ60) -> 0 | CR21: 5164
D22: 0 | E22: 0 | F22: 0 | G22: 0 | H22: 0 | I22: 0 | J22: 0 | K22: 0 | L22: 0 | M22: 0 | N22: 0 | O22: 0 | P22: 0 | Q22: 0 | R22: 0 | S22: 0 | T22: 0 | U22: 0 | V22: 0 | W22: 0 | X22: 0 | Y22: 0 | Z22: 0 | AA22: 0 | AB22: 0 | AC22: 0 | AD22: 0 | AE22: 0 | AF22: 0 | AG22: 0 | AH22: 0 | AI22: 0 | AJ22: 0 | AK22: 0 | AL22: 0 | AM22: 0 | AN22: 0 | AO22: 0 | AP22: 0 | AQ22: 0 | AR22: 0 | AS22: 0 | AT22: 0 | AU22: 0 | AV22: 0 | AW22: 0 | AX22: 0 | AY22: 0 | AZ22: 0 | BA22: 0 | BB22: 0 | BC22: 0 | BD22: 0 | BE22: 0 | BF22: 0 | BG22: 0 | BH22: 0 | BI22: 0 | BJ22: 0 | BK22: 0 | BL22: 0 | BM22: 0 | BO22: Rondes confirmées | BP22: =SUM(C22:BM22) -> 0 | BQ22: 0 | BR22: 0 | BS22: 0 | BT22: 0 | BU22: 0 | BV22: 0 | BW22: 0 | BX22: 0 | BY22: 0 | BZ22: 0 | CA22: 0 | CB22: 0 | CC22: 0 | CD22: 0 | CE22: 0 | CF22: 0 | CG22: 0 | CI22: Rondes confirmées | CJ22: =SUM(BQ22:CH22) -> 0 | CK22: Rondes confirmées | CL22: =SUM(CJ22+BP22) -> 0 | CN22: 15 | CO22: =VLOOKUP(CN22,A8:B188,2) -> ARENZANA Jennifer | CP22: =SUM(BP64) -> 779 | CQ22: =SUM(CJ64) -> 0 | CR22: 779
D23: =SUM((D20+D21)*D22) -> 0 | E23: 0 | F23: 0 | G23: 0 | H23: 0 | I23: 0 | J23: 0 | K23: 0 | L23: 0 | M23: 0 | N23: 0 | O23: 0 | P23: 0 | Q23: 0 | R23: 0 | S23: 0 | T23: 0 | U23: 0 | V23: 0 | W23: 0 | X23: 0 | Y23: 0 | Z23: 0 | AA23: 0 | AB23: =SUM((AB20+AB21)*AB22) -> 0 | AC23: =SUM((AC20+AC21)*AC22) -> 0 | AD23: =SUM((AD20+AD21)*AD22) -> 0 | AE23: =SUM((AE20+AE21)*AE22) -> 0 | AF23: 0 | AG23: 0 | AH23: 0 | AI23: 0 | AJ23: 0 | AK23: 0 | AL23: 0 | AM23: 0 | AN23: 0 | AO23: 0 | AP23: 0 | AQ23: 0 | AR23: 0 | AS23: 0 | AT23: 0 | AU23: 0 | AV23: 0 | AW23: 0 | AX23: 0 | AY23: 0 | AZ23: 0 | BA23: 0 | BB23: 0 | BC23: 0 | BD23: 0 | BE23: 0 | BF23: 0 | BG23: 0 | BH23: 0 | BI23: 0 | BJ23: 0 | BK23: =SUM((BK20+BK21)*BK22) -> 0 | BL23: =SUM((BL20+BL21)*BL22) -> 0 | BM23: =SUM((BM20+BM21)*BM22) -> 0 | BO23: Rondes effectuées | BP23: =COUNTIF(D20:BM20,">0") -> 0 | BQ23: =SUM((BQ20+BQ21)*BQ22) -> 0 | BR23: 0 | BS23: 0 | BT23: 0 | BU23: 0 | BV23: 0 | BW23: 0 | BX23: 0 | BY23: 0 | BZ23: 0 | CA23: 0 | CB23: 0 | CC23: 0 | CD23: 0 | CE23: 0 | CF23: 0 | CG23: 0 | CI23: Rondes Effectuées | CJ23: =COUNTIF(BQ20:CG20,">0") -> 0 | CK23: Rondes effectuées | CL23: =SUM(CJ23+BP23) -> 0 | CN23: 16 | CO23: =VLOOKUP(CN23,A8:B188,2) -> 0 | CP23: =SUM(BP68) -> 0 | CQ23: =SUM(CJ68) -> 0 | CR23: 0
A24: 5 | B24: =VLOOKUP(A24,'Numéro licences'!$A$4:$B$32,2) -> GOFFIN Guillaume | C24: Aller-Retour | BN24: =SUM(D24:BM24) -> 0 | BO24: Km renseignés | BP24: =SUM(BN24+BN25) -> 0 | CH24: =SUM(BQ24:CG24) -> 0 | CI24: Km renseignés | CJ24: =SUM(CH24+CH25) -> 0 | CK24: Km renseignés | CL24: =SUM(BP24+CJ24) -> 0 | CN24: 17 | CO24: =VLOOKUP(CN24,A8:B188,2) -> 0 | CP24: =SUM(BP72) -> 0 | CQ24: =SUM(CJ72) -> 0 | CR24: 0
C25: Ronde | BN25: =SUM(D25:BM25) -> 0 | BO25: Km confirmés | BP25: =SUM(D27:BM27) -> 0 | CH25: =SUM(BQ25:CG25) -> 0 | CI25: Km confirmés | CJ25: =SUM(BQ27:CG27) -> 0 | CK25: Km confirmés | CL25: =SUM(CJ25+BP25) -> 0 | CN25: 18 | CO25: =VLOOKUP(CN25,A8:B188,2) -> 0 | CP25: =SUM(BP76) -> 0 | CQ25: =SUM(CJ76) -> 0 | CR25: 0
D26: 0 | E26: 0 | F26: 0 | G26: 0 | H26: 0 | I26: 0 | J26: 0 | K26: 0 | L26: 0 | M26: 0 | N26: 0 | O26: 0 | P26: 0 | Q26: 0 | R26: 0 | S26: 0 | T26: 0 | U26: 0 | V26: 0 | W26: 0 | X26: 0 | Y26: 0 | Z26: 0 | AA26: 0 | AB26: 0 | AC26: 0 | AD26: 0 | AE26: 0 | AF26: 0 | AG26: 0 | AH26: 0 | AI26: 0 | AJ26: 0 | AK26: 0 | AL26: 0 | AM26: 0 | AN26: 0 | AO26: 0 | AP26: 0 | AQ26: 0 | AR26: 0 | AS26: 0 | AT26: 0 | AU26: 0 | AV26: 0 | AW26: 0 | AX26: 0 | AY26: 0 | AZ26: 0 | BA26: 0 | BB26: 0 | BC26: 0 | BD26: 0 | BE26: 0 | BF26: 0 | BG26: 0 | BH26: 0 | BI26: 0 | BJ26: 0 | BK26: 0 | BL26: 0 | BM26: 0 | BO26: Rondes confirmées | BP26: =SUM(C26:BM26) -> 0 | BQ26: 0 | BR26: 0 | BS26: 0 | BT26: 0 | BU26: 0 | BV26: 0 | BW26: 0 | BX26: 0 | BY26: 0 | BZ26: 0 | CA26: 0 | CB26: 0 | CC26: 0 | CD26: 0 | CE26: 0 | CF26: 0 | CG26: 0 | CI26: Rondes confirmées | CJ26: =SUM(BQ26:CH26) -> 0 | CK26: Rondes confirmées | CL26: =SUM(CJ26+BP26) -> 0 | CN26: 19 | CO26: =VLOOKUP(CN26,A8:B188,2) -> 0 | CP26: =SUM(BP80) -> 0 | CQ26: =SUM(CJ80) -> 0 | CR26: 0
D27: =SUM((D24+D25)*D26) -> 0 | E27: 0 | F27: 0 | G27: 0 | H27: 0 | I27: 0 | J27: 0 | K27: 0 | L27: 0 | M27: 0 | N27: 0 | O27: 0 | P27: 0 | Q27: 0 | R27: 0 | S27: 0 | T27: 0 | U27: 0 | V27: 0 | W27: 0 | X27: 0 | Y27: 0 | Z27: 0 | AA27: 0 | AB27: =SUM((AB24+AB25)*AB26) -> 0 | AC27: =SUM((AC24+AC25)*AC26) -> 0 | AD27: =SUM((AD24+AD25)*AD26) -> 0 | AE27: =SUM((AE24+AE25)*AE26) -> 0 | AF27: 0 | AG27: 0 | AH27: 0 | AI27: 0 | AJ27: 0 | AK27: 0 | AL27: 0 | AM27: 0 | AN27: 0 | AO27: 0 | AP27: 0 | AQ27: 0 | AR27: 0 | AS27: 0 | AT27: 0 | AU27: 0 | AV27: 0 | AW27: 0 | AX27: 0 | AY27: 0 | AZ27: 0 | BA27: 0 | BB27: 0 | BC27: 0 | BD27: 0 | BE27: 0 | BF27: 0 | BG27: 0 | BH27: 0 | BI27: 0 | BJ27: 0 | BK27: =SUM((BK24+BK25)*BK26) -> 0 | BL27: =SUM((BL24+BL25)*BL26) -> 0 | BM27: =SUM((BM24+BM25)*BM26) -> 0 | BO27: Rondes effectuées | BP27: =COUNTIF(D24:BM24,">0") -> 0 | BQ27: =SUM((BQ24+BQ25)*BQ26) -> 0 | BR27: 0 | BS27: 0 | BT27: 0 | BU27: 0 | BV27: 0 | BW27: 0 | BX27: 0 | BY27: 0 | BZ27: 0 | CA27: 0 | CB27: 0 | CC27: 0 | CD27: 0 | CE27: 0 | CF27: 0 | CG27: 0 | CI27: Rondes Effectuées | CJ27: =COUNTIF(BQ24:CG24,">0") -> 0 | CK27: Rondes effectuées | CL27: =SUM(CJ27+BP27) -> 0 | CN27: 20 | CO27: =VLOOKUP(CN27,A8:B188,2) -> 0 | CP27: =SUM(BP84) -> 0 | CQ27: =SUM(CJ84) -> 0 | CR27: 0
A28: 6 | B28: =VLOOKUP(A28,'Numéro licences'!$A$4:$B$32,2) -> GOUGEUL Sophie | C28: Aller-Retour | D28: 394 | E28: 186 | F28: 160 | G28: 266 | K28: 204 | L28: 20 | M28: 44 | N28: 34 | R28: 156 | T28: 254 | U28: 284 | X28: 164 | Z28: 132 | AA28: 0 | AH28: 186 | AJ28: 118 | AK28: 18 | AU28: 204 | AV28: 68 | BC28: 210 | BH28: 118 | BI28: 18 | BN28: =SUM(D28:BM28) -> 3238 | BO28: Km renseignés | BP28: =SUM(BN28+BN29) -> 7173 | BR28: 110 | CH28: =SUM(BQ28:CG28) -> 110 | CI28: Km renseignés | CJ28: =SUM(CH28+CH29) -> 310 | CK28: Km renseignés | CL28: =SUM(BP28+CJ28) -> 7483 | CN28: 21 | CO28: =VLOOKUP(CN28,A8:B188,2) -> 0 | CP28: =SUM(BP88) -> 0 | CQ28: =SUM(CJ88) -> 0 | CR28: 0
C29: Ronde | D29: 130 | E29: 150 | F29: 140 | G29: 130 | I29: 160 | K29: 134 | L29: 173 | M29: 160 | N29: 160 | R29: 146 | T29: 270 | U29: 190 | X29: 221 | Z29: 175 | AA29: 200 | AH29: 180 | AJ29: 160 | AK29: 195 | AU29: 200 | AV29: 220 | BC29: 160 | BH29: 155 | BI29: 126 | BN29: =SUM(D29:BM29) -> 3935 | BO29: Km confirmés | BP29: =SUM(D31:BM31) -> 7173 | BR29: 200 | CH29: =SUM(BQ29:CG29) -> 200 | CI29: Km confirmés | CJ29: =SUM(BQ31:CG31) -> 310 | CK29: Km confirmés | CL29: =SUM(CJ29+BP29) -> 7483 | CN29: 22 | CO29: =VLOOKUP(CN29,A8:B188,2) -> 0 | CP29: =SUM(BP92) -> 0 | CQ29: =SUM(CJ92) -> 0 | CR29: 0
D30: 1 | E30: 1 | F30: 1 | G30: 1 | H30: 0 | I30: 1 | J30: 0 | K30: 1 | L30: 1 | M30: 1 | N30: 1 | O30: 0 | P30: 0 | Q30: 0 | R30: 1 | S30: 0 | T30: 1 | U30: 1 | V30: 0 | W30: 0 | X30: 1 | Y30: 0 | Z30: 1 | AA30: 1 | AB30: 0 | AC30: 0 | AD30: 0 | AE30: 0 | AF30: 0 | AG30: 0 | AH30: 1 | AI30: 0 | AJ30: 1 | AK30: 1 | AL30: 0 | AM30: 0 | AN30: 0 | AO30: 0 | AP30: 0 | AQ30: 0 | AR30: 0 | AS30: 0 | AT30: 0 | AU30: 1 | AV30: 1 | AW30: 0 | AX30: 0 | AY30: 0 | AZ30: 0 | BA30: 0 | BB30: 0 | BC30: 1 | BD30: 0 | BE30: 0 | BF30: 0 | BG30: 0 | BH30: 1 | BI30: 1 | BJ30: 0 | BK30: 0 | BL30: 0 | BM30: 0 | BO30: Rondes confirmées | BP30: =SUM(C30:BM30) -> 23 | BQ30: 0 | BR30: 1 | BS30: 0 | BT30: 0 | BU30: 0 | BV30: 0 | BW30: 0 | BX30: 0 | BY30: 0 | BZ30: 0 | CA30: 0 | CB30: 0 | CC30: 0 | CD30: 0 | CE30: 0 | CF30: 0 | CG30: 0 | CI30: Rondes confirmées | CJ30: =SUM(BQ30:CH30) -> 1 | CK30: Rondes confirmées | CL30: =SUM(CJ30+BP30) -> 24 | CN30: 23 | CO30: =VLOOKUP(CN30,A8:B188,2) -> 0 | CP30: =SUM(BP96) -> 0 | CQ30: =SUM(CJ96) -> 0 | CR30: 0
D31: =SUM((D28+D29)*D30) -> 524 | E31: 336 | F31: 300 | G31: 396 | H31: 0 | I31: 160 | J31: 0 | K31: 338 | L31: 193 | M31: 204 | N31: 194 | O31: 0 | P31: 0 | Q31: 0 | R31: 302 | S31: 0 | T31: 524 | U31: 474 | V31: 0 | W31: 0 | X31: 385 | Y31: 0 | Z31: 307 | AA31: 200 | AB31: =SUM((AB28+AB29)*AB30) -> 0 | AC31: =SUM((AC28+AC29)*AC30) -> 0 | AD31: =SUM((AD28+AD29)*AD30) -> 0 | AE31: =SUM((AE28+AE29)*AE30) -> 0 | AF31: 0 | AG31: 0 | AH31: 366 | AI31: 0 | AJ31: 278 | AK31: 213 | AL31: 0 | AM31: 0 | AN31: 0 | AO31: 0 | AP31: 0 | AQ31: 0 | AR31: 0 | AS31: 0 | AT31: 0 | AU31: 404 | AV31: 288 | AW31: 0 | AX31: 0 | AY31: 0 | AZ31: 0 | BA31: 0 | BB31: 0 | BC31: 370 | BD31: 0 | BE31: 0 | BF31: 0 | BG31: 0 | BH31: 273 | BI31: 144 | BJ31: 0 | BK31: =SUM((BK28+BK29)*BK30) -> 0 | BL31: =SUM((BL28+BL29)*BL30) -> 0 | BM31: =SUM((BM28+BM29)*BM30) -> 0 | BO31: Rondes effectuées | BP31: =COUNTIF(D28:BM28,">0") -> 21 | BQ31: =SUM((BQ28+BQ29)*BQ30) -> 0 | BR31: 310 | BS31: 0 | BT31: 0 | BU31: 0 | BV31: 0 | BW31: 0 | BX31: 0 | BY31: 0 | BZ31: 0 | CA31: 0 | CB31: 0 | CC31: 0 | CD31: 0 | CE31: 0 | CF31: 0 | CG31: 0 | CI31: Rondes Effectuées | CJ31: =COUNTIF(BQ28:CG28,">0") -> 1 | CK31: Rondes effectuées | CL31: =SUM(CJ31+BP31) -> 22 | CN31: 24 | CO31: =VLOOKUP(CN31,A8:B188,2) -> 0 | CP31: =SUM(BP100) -> 0 | CQ31: =SUM(CJ100) -> 0 | CR31: 0
A32: 7 | B32: =VLOOKUP(A32,'Numéro licences'!$A$4:$B$32,2) -> GREGORICS Kathy | C32: Aller-Retour | AA32: 0 | BN32: =SUM(D32:BM32) -> 0 | BO32: Km renseignés | BP32: =SUM(BN32+BN33) -> 360 | CH32: =SUM(BQ32:CG32) -> 0 | CI32: Km renseignés | CJ32: =SUM(CH32+CH33) -> 0 | CK32: Km renseignés | CL32: =SUM(BP32+CJ32) -> 360 | CN32: 25 | CO32: =VLOOKUP(CN32,A8:B188,2) -> 0 | CP32: =SUM(BP104) -> 0 | CQ32: =SUM(CJ104) -> 0 | CR32: 0
C33: Ronde | I33: 160 | AA33: 200 | BN33: =SUM(D33:BM33) -> 360 | BO33: Km confirmés | BP33: =SUM(D35:BM35) -> 0 | CH33: =SUM(BQ33:CG33) -> 0 | CI33: Km confirmés | CJ33: =SUM(BQ35:CG35) -> 0 | CK33: Km confirmés | CL33: =SUM(CJ33+BP33) -> 0 | CN33: 26 | CO33: =VLOOKUP(CN33,A8:B188,2) -> 0 | CP33: =SUM(BP108) -> 0 | CQ33: =SUM(CJ108) -> 0 | CR33: 0
D34: 0 | E34: 0 | F34: 0 | G34: 0 | H34: 0 | I34: 0 | J34: 0 | K34: 0 | L34: 0 | M34: 0 | N34: 0 | O34: 0 | P34: 0 | Q34: 0 | R34: 0 | S34: 0 | T34: 0 | U34: 0 | V34: 0 | W34: 0 | X34: 0 | Y34: 0 | Z34: 0 | AA34: 0 | AB34: 0 | AC34: 0 | AD34: 0 | AE34: 0 | AF34: 0 | AG34: 0 | AH34: 0 | AI34: 0 | AJ34: 0 | AK34: 0 | AL34: 0 | AM34: 0 | AN34: 0 | AO34: 0 | AP34: 0 | AQ34: 0 | AR34: 0 | AS34: 0 | AT34: 0 | AU34: 0 | AV34: 0 | AW34: 0 | AX34: 0 | AY34: 0 | AZ34: 0 | BA34: 0 | BB34: 0 | BC34: 0 | BD34: 0 | BE34: 0 | BF34: 0 | BG34: 0 | BH34: 0 | BI34: 0 | BJ34: 0 | BK34: 0 | BL34: 0 | BM34: 0 | BO34: Rondes confirmées | BP34: =SUM(C34:BM34) -> 0 | BQ34: 0 | BR34: 0 | BS34: 0 | BT34: 0 | BU34: 0 | BV34: 0 | BW34: 0 | BX34: 0 | BY34: 0 | BZ34: 0 | CA34: 0 | CB34: 0 | CC34: 0 | CD34: 0 | CE34: 0 | CF34: 0 | CG34: 0 | CI34: Rondes confirmées | CJ34: =SUM(BQ34:CH34) -> 0 | CK34: Rondes confirmées | CL34: =SUM(CJ34+BP34) -> 0 | CN34: 27 | CO34: =VLOOKUP(CN34,A8:B188,2) -> 0 | CP34: =SUM(BP112) -> 0 | CQ34: =SUM(CJ112) -> 0 | CR34: 0
D35: =SUM((D32+D33)*D34) -> 0 | E35: 0 | F35: 0 | G35: 0 | H35: 0 | I35: 0 | J35: 0 | K35: 0 | L35: 0 | M35: 0 | N35: 0 | O35: 0 | P35: 0 | Q35: 0 | R35: 0 | S35: 0 | T35: 0 | U35: 0 | V35: 0 | W35: 0 | X35: 0 | Y35: 0 | Z35: 0 | AA35: 0 | AB35: =SUM((AB32+AB33)*AB34) -> 0 | AC35: =SUM((AC32+AC33)*AC34) -> 0 | AD35: =SUM((AD32+AD33)*AD34) -> 0 | AE35: =SUM((AE32+AE33)*AE34) -> 0 | AF35: 0 | AG35: 0 | AH35: 0 | AI35: 0 | AJ35: 0 | AK35: 0 | AL35: 0 | AM35: 0 | AN35: 0 | AO35: 0 | AP35: 0 | AQ35: 0 | AR35: 0 | AS35: 0 | AT35: 0 | AU35: 0 | AV35: 0 | AW35: 0 | AX35: 0 | AY35: 0 | AZ35: 0 | BA35: 0 | BB35: 0 | BC35: 0 | BD35: 0 | BE35: 0 | BF35: 0 | BG35: 0 | BH35: 0 | BI35: 0 | BJ35: 0 | BK35: =SUM((BK32+BK33)*BK34) -> 0 | BL35: =SUM((BL32+BL33)*BL34) -> 0 | BM35: =SUM((BM32+BM33)*BM34) -> 0 | BO35: Rondes effectuées | BP35: =COUNTIF(D32:BM32,">0") -> 0 | BQ35: =SUM((BQ32+BQ33)*BQ34) -> 0 | BR35: 0 | BS35: 0 | BT35: 0 | BU35: 0 | BV35: 0 | BW35: 0 | BX35: 0 | BY35: 0 | BZ35: 0 | CA35: 0 | CB35: 0 | CC35: 0 | CD35: 0 | CE35: 0 | CF35: 0 | CG35: 0 | CI35: Rondes Effectuées | CJ35: =COUNTIF(BQ32:CG32,">0") -> 0 | CK35: Rondes effectuées | CL35: =SUM(CJ35+BP35) -> 0 | CN35: 28 | CO35: =VLOOKUP(CN35,A8:B188,2) -> 0 | CP35: =SUM(BP116) -> 0 | CQ35: =SUM(CJ116) -> 0 | CR35: 0
A36: 8 | B36: =VLOOKUP(A36,'Numéro licences'!$A$4:$B$32,2) -> LAMBILLON Anne | C36: Aller-Retour | AA36: 0 | BN36: =SUM(D36:BM36) -> 0 | BO36: Km renseignés | BP36: =SUM(BN36+BN37) -> 360 | CH36: =SUM(BQ36:CG36) -> 0 | CI36: Km renseignés | CJ36: =SUM(CH36+CH37) -> 0 | CK36: Km renseignés | CL36: =SUM(BP36+CJ36) -> 360 | CN36: 29 | CO36: =VLOOKUP(CN36,A8:B188,2) -> 0 | CP36: =SUM(BP120) -> 0 | CQ36: =SUM(CJ120) -> 0 | CR36: 0
C37: Ronde | I37: 160 | AA37: 200 | BN37: =SUM(D37:BM37) -> 360 | BO37: Km confirmés | BP37: =SUM(D39:BM39) -> 360 | CH37: =SUM(BQ37:CG37) -> 0 | CI37: Km confirmés | CJ37: =SUM(BQ39:CG39) -> 0 | CK37: Km confirmés | CL37: =SUM(CJ37+BP37) -> 360
D38: 0 | E38: 0 | F38: 0 | G38: 0 | H38: 0 | I38: 1 | J38: 0 | K38: 0 | L38: 0 | M38: 0 | N38: 0 | O38: 0 | P38: 0 | Q38: 0 | R38: 0 | S38: 0 | T38: 0 | U38: 0 | V38: 0 | W38: 0 | X38: 0 | Y38: 0 | Z38: 0 | AA38: 1 | AB38: 0 | AC38: 0 | AD38: 0 | AE38: 0 | AF38: 0 | AG38: 0 | AH38: 0 | AI38: 0 | AJ38: 0 | AK38: 0 | AL38: 0 | AM38: 0 | AN38: 0 | AO38: 0 | AP38: 0 | AQ38: 0 | AR38: 0 | AS38: 0 | AT38: 0 | AU38: 0 | AV38: 0 | AW38: 0 | AX38: 0 | AY38: 0 | AZ38: 0 | BA38: 0 | BB38: 0 | BC38: 0 | BD38: 0 | BE38: 0 | BF38: 0 | BG38: 0 | BH38: 0 | BI38: 0 | BJ38: 0 | BK38: 0 | BL38: 0 | BM38: 0 | BO38: Rondes confirmées | BP38: =SUM(C38:BM38) -> 2 | BQ38: 0 | BR38: 0 | BS38: 0 | BT38: 0 | BU38: 0 | BV38: 0 | BW38: 0 | BX38: 0 | BY38: 0 | BZ38: 0 | CA38: 0 | CB38: 0 | CC38: 0 | CD38: 0 | CE38: 0 | CF38: 0 | CG38: 0 | CI38: Rondes confirmées | CJ38: =SUM(BQ38:CH38) -> 0 | CK38: Rondes confirmées | CL38: =SUM(CJ38+BP38) -> 2
D39: =SUM((D36+D37)*D38) -> 0 | E39: 0 | F39: 0 | G39: 0 | H39: 0 | I39: 160 | J39: 0 | K39: 0 | L39: 0 | M39: 0 | N39: 0 | O39: 0 | P39: 0 | Q39: 0 | R39: 0 | S39: 0 | T39: 0 | U39: 0 | V39: 0 | W39: 0 | X39: 0 | Y39: 0 | Z39: 0 | AA39: 200 | AB39: =SUM((AB36+AB37)*AB38) -> 0 | AC39: =SUM((AC36+AC37)*AC38) -> 0 | AD39: =SUM((AD36+AD37)*AD38) -> 0 | AE39: =SUM((AE36+AE37)*AE38) -> 0 | AF39: 0 | AG39: 0 | AH39: 0 | AI39: 0 | AJ39: 0 | AK39: 0 | AL39: 0 | AM39: 0 | AN39: 0 | AO39: 0 | AP39: 0 | AQ39: 0 | AR39: 0 | AS39: 0 | AT39: 0 | AU39: 0 | AV39: 0 | AW39: 0 | AX39: 0 | AY39: 0 | AZ39: 0 | BA39: 0 | BB39: 0 | BC39: 0 | BD39: 0 | BE39: 0 | BF39: 0 | BG39: 0 | BH39: 0 | BI39: 0 | BJ39: 0 | BK39: =SUM((BK36+BK37)*BK38) -> 0 | BL39: =SUM((BL36+BL37)*BL38) -> 0 | BM39: =SUM((BM36+BM37)*BM38) -> 0 | BO39: Rondes effectuées | BP39: =COUNTIF(D36:BM36,">0") -> 0 | BQ39: =SUM((BQ36+BQ37)*BQ38) -> 0 | BR39: 0 | BS39: 0 | BT39: 0 | BU39: 0 | BV39: 0 | BW39: 0 | BX39: 0 | BY39: 0 | BZ39: 0 | CA39: 0 | CB39: 0 | CC39: 0 | CD39: 0 | CE39: 0 | CF39: 0 | CG39: 0 | CI39: Rondes Effectuées | CJ39: =COUNTIF(BQ36:CG36,">0") -> 0 | CK39: Rondes effectuées | CL39: =SUM(CJ39+BP39) -> 0
A40: 9 | B40: =VLOOKUP(A40,'Numéro licences'!$A$4:$B$32,2) -> LAMIROY Anne | C40: Aller-Retour | BN40: =SUM(D40:BM40) -> 0 | BO40: Km renseignés | BP40: =SUM(BN40+BN41) -> 0 | CH40: =SUM(BQ40:CG40) -> 0 | CI40: Km renseignés | CJ40: =SUM(CH40+CH41) -> 0 | CK40: Km renseignés | CL40: =SUM(BP40+CJ40) -> 0
C41: Ronde | BN41: =SUM(D41:BM41) -> 0 | BO41: Km confirmés | BP41: =SUM(D43:BM43) -> 0 | CH41: =SUM(BQ41:CG41) -> 0 | CI41: Km confirmés | CJ41: =SUM(BQ43:CG43) -> 0 | CK41: Km confirmés | CL41: =SUM(CJ41+BP41) -> 0
D42: 0 | E42: 0 | F42: 0 | G42: 0 | H42: 0 | I42: 0 | J42: 0 | K42: 0 | L42: 0 | M42: 0 | N42: 0 | O42: 0 | P42: 0 | Q42: 0 | R42: 0 | S42: 0 | T42: 0 | U42: 0 | V42: 0 | W42: 0 | X42: 0 | Y42: 0 | Z42: 0 | AA42: 0 | AB42: 0 | AC42: 0 | AD42: 0 | AE42: 0 | AF42: 0 | AG42: 0 | AH42: 0 | AI42: 0 | AJ42: 0 | AK42: 0 | AL42: 0 | AM42: 0 | AN42: 0 | AO42: 0 | AP42: 0 | AQ42: 0 | AR42: 0 | AS42: 0 | AT42: 0 | AU42: 0 | AV42: 0 | AW42: 0 | AX42: 0 | AY42: 0 | AZ42: 0 | BA42: 0 | BB42: 0 | BC42: 0 | BD42: 0 | BE42: 0 | BF42: 0 | BG42: 0 | BH42: 0 | BI42: 0 | BJ42: 0 | BK42: 0 | BL42: 0 | BM42: 0 | BO42: Rondes confirmées | BP42: =SUM(C42:BM42) -> 0 | BQ42: 0 | BR42: 0 | BS42: 0 | BT42: 0 | BU42: 0 | BV42: 0 | BW42: 0 | BX42: 0 | BY42: 0 | BZ42: 0 | CA42: 0 | CB42: 0 | CC42: 0 | CD42: 0 | CE42: 0 | CF42: 0 | CG42: 0 | CI42: Rondes confirmées | CJ42: =SUM(BQ42:CH42) -> 0 | CK42: Rondes confirmées | CL42: =SUM(CJ42+BP42) -> 0 | CP42: =SUM(CP9:CP36) -> 28262 | CQ42: =SUM(CQ9:CQ36) -> 310 | CR42: =SUM(CR8:CR36) -> 28572
D43: =SUM((D40+D41)*D42) -> 0 | E43: 0 | F43: 0 | G43: 0 | H43: 0 | I43: 0 | J43: 0 | K43: 0 | L43: 0 | M43: 0 | N43: 0 | O43: 0 | P43: 0 | Q43: 0 | R43: 0 | S43: 0 | T43: 0 | U43: 0 | V43: 0 | W43: 0 | X43: 0 | Y43: 0 | Z43: 0 | AA43: 0 | AB43: =SUM((AB40+AB41)*AB42) -> 0 | AC43: =SUM((AC40+AC41)*AC42) -> 0 | AD43: =SUM((AD40+AD41)*AD42) -> 0 | AE43: =SUM((AE40+AE41)*AE42) -> 0 | AF43: 0 | AG43: 0 | AH43: 0 | AI43: 0 | AJ43: 0 | AK43: 0 | AL43: 0 | AM43: 0 | AN43: 0 | AO43: 0 | AP43: 0 | AQ43: 0 | AR43: 0 | AS43: 0 | AT43: 0 | AU43: 0 | AV43: 0 | AW43: 0 | AX43: 0 | AY43: 0 | AZ43: 0 | BA43: 0 | BB43: 0 | BC43: 0 | BD43: 0 | BE43: 0 | BF43: 0 | BG43: 0 | BH43: 0 | BI43: 0 | BJ43: 0 | BK43: =SUM((BK40+BK41)*BK42) -> 0 | BL43: =SUM((BL40+BL41)*BL42) -> 0 | BM43: =SUM((BM40+BM41)*BM42) -> 0 | BO43: Rondes effectuées | BP43: =COUNTIF(D40:BM40,">0") -> 0 | BQ43: =SUM((BQ40+BQ41)*BQ42) -> 0 | BR43: 0 | BS43: 0 | BT43: 0 | BU43: 0 | BV43: 0 | BW43: 0 | BX43: 0 | BY43: 0 | BZ43: 0 | CA43: 0 | CB43: 0 | CC43: 0 | CD43: 0 | CE43: 0 | CF43: 0 | CG43: 0 | CI43: Rondes Effectuées | CJ43: =COUNTIF(BQ40:CG40,">0") -> 0 | CK43: Rondes effectuées | CL43: =SUM(CJ43+BP43) -> 0 | CP43: =SUM(CP42/CR42) -> 0.989150217 | CQ43: =SUM(CQ42/CR42) -> 0.010849783
A44: 10 | B44: =VLOOKUP(A44,'Numéro licences'!$A$4:$B$32,2) -> LEROY Laure | C44: Aller-Retour | D44: 394 | N44: 34 | P44: 18 | V44: 1545 | Z44: 132 | AA44: 0 | AR44: 210 | AV44: 68 | BI44: 18 | BN44: =SUM(D44:BM44) -> 2419 | BO44: Km renseignés | BP44: =SUM(BN44+BN45) -> 3321 | CH44: =SUM(BQ44:CG44) -> 0 | CI44: Km renseignés | CJ44: =SUM(CH44+CH45) -> 0 | CK44: Km renseignés | CL44: =SUM(BP44+CJ44) -> 3321 | CP44: FMB | CQ44: Hors FMB
C45: Ronde | D45: 0 | N45: 164 | P45: 0 | V45: 212 | Z45: 0 | AA45: 200 | AR45: 200 | AV45: 0 | BI45: 126 | BN45: =SUM(D45:BM45) -> 902 | BO45: Km confirmés | BP45: =SUM(D47:BM47) -> 3321 | CH45: =SUM(BQ45:CG45) -> 0 | CI45: Km confirmés | CJ45: =SUM(BQ47:CG47) -> 0 | CK45: Km confirmés | CL45: =SUM(CJ45+BP45) -> 3321
D46: 1 | E46: 0 | F46: 0 | G46: 0 | H46: 0 | I46: 0 | J46: 0 | K46: 0 | L46: 0 | M46: 0 | N46: 1 | O46: 0 | P46: 1 | Q46: 0 | R46: 0 | S46: 0 | T46: 0 | U46: 0 | V46: 1 | W46: 0 | X46: 0 | Y46: 0 | Z46: 1 | AA46: 1 | AB46: 0 | AC46: 0 | AD46: 0 | AE46: 0 | AF46: 0 | AG46: 0 | AH46: 0 | AI46: 0 | AJ46: 0 | AK46: 0 | AL46: 0 | AM46: 0 | AN46: 0 | AO46: 0 | AP46: 0 | AQ46: 0 | AR46: 1 | AS46: 0 | AT46: 0 | AU46: 0 | AV46: 1 | AW46: 0 | AX46: 0 | AY46: 0 | AZ46: 0 | BA46: 0 | BB46: 0 | BC46: 0 | BD46: 0 | BE46: 0 | BF46: 0 | BG46: 0 | BH46: 0 | BI46: 1 | BJ46: 0 | BK46: 0 | BL46: 0 | BM46: 0 | BO46: Rondes confirmées | BP46: =SUM(C46:BM46) -> 9 | BQ46: 0 | BR46: 0 | BS46: 0 | BT46: 0 | BU46: 0 | BV46: 0 | BW46: 0 | BX46: 0 | BY46: 0 | BZ46: 0 | CA46: 0 | CB46: 0 | CC46: 0 | CD46: 0 | CE46: 0 | CF46: 0 | CG46: 0 | CI46: Rondes confirmées | CJ46: =SUM(BQ46:CH46) -> 0 | CK46: Rondes confirmées | CL46: =SUM(CJ46+BP46) -> 9
D47: =SUM((D44+D45)*D46) -> 394 | E47: 0 | F47: 0 | G47: 0 | H47: 0 | I47: 0 | J47: 0 | K47: 0 | L47: 0 | M47: 0 | N47: 198 | O47: 0 | P47: 18 | Q47: 0 | R47: 0 | S47: 0 | T47: 0 | U47: 0 | V47: 1757 | W47: 0 | X47: 0 | Y47: 0 | Z47: 132 | AA47: 200 | AB47: =SUM((AB44+AB45)*AB46) -> 0 | AC47: =SUM((AC44+AC45)*AC46) -> 0 | AD47: =SUM((AD44+AD45)*AD46) -> 0 | AE47: =SUM((AE44+AE45)*AE46) -> 0 | AF47: 0 | AG47: 0 | AH47: 0 | AI47: 0 | AJ47: 0 | AK47: 0 | AL47: 0 | AM47: 0 | AN47: 0 | AO47: 0 | AP47: 0 | AQ47: 0 | AR47: 410 | AS47: 0 | AT47: 0 | AU47: 0 | AV47: 68 | AW47: 0 | AX47: 0 | AY47: 0 | AZ47: 0 | BA47: 0 | BB47: 0 | BC47: 0 | BD47: 0 | BE47: 0 | BF47: 0 | BG47: 0 | BH47: 0 | BI47: 144 | BJ47: 0 | BK47: =SUM((BK44+BK45)*BK46) -> 0 | BL47: =SUM((BL44+BL45)*BL46) -> 0 | BM47: =SUM((BM44+BM45)*BM46) -> 0 | BO47: Rondes effectuées | BP47: =COUNTIF(D44:BM44,">0") -> 8 | BQ47: =SUM((BQ44+BQ45)*BQ46) -> 0 | BR47: 0 | BS47: 0 | BT47: 0 | BU47: 0 | BV47: 0 | BW47: 0 | BX47: 0 | BY47: 0 | BZ47: 0 | CA47: 0 | CB47: 0 | CC47: 0 | CD47: 0 | CE47: 0 | CF47: 0 | CG47: 0 | CI47: Rondes Effectuées | CJ47: =COUNTIF(BQ44:CG44,">0") -> 0 | CK47: Rondes effectuées | CL47: =SUM(CJ47+BP47) -> 8
A48: 11 | B48: =VLOOKUP(A48,'Numéro licences'!$A$4:$B$32,2) -> MALLIEN Emelyne | C48: Aller-Retour | BN48: =SUM(D48:BM48) -> 0 | BO48: Km renseignés | BP48: =SUM(BN48+BN49) -> 0 | CH48: =SUM(BQ48:CG48) -> 0 | CI48: Km renseignés | CJ48: =SUM(CH48+CH49) -> 0 | CK48: Km renseignés | CL48: =SUM(BP48+CJ48) -> 0
C49: Ronde | BN49: =SUM(D49:BM49) -> 0 | BO49: Km confirmés | BP49: =SUM(D51:BM51) -> 0 | CH49: =SUM(BQ49:CG49) -> 0 | CI49: Km confirmés | CJ49: =SUM(BQ51:CG51) -> 0 | CK49: Km confirmés | CL49: =SUM(CJ49+BP49) -> 0
D50: 0 | E50: 0 | F50: 0 | G50: 0 | H50: 0 | I50: 0 | J50: 0 | K50: 0 | L50: 0 | M50: 0 | N50: 0 | O50: 0 | P50: 0 | Q50: 0 | R50: 0 | S50: 0 | T50: 0 | U50: 0 | V50: 0 | W50: 0 | X50: 0 | Y50: 0 | Z50: 0 | AA50: 0 | AB50: 0 | AC50: 0 | AD50: 0 | AE50: 0 | AF50: 0 | AG50: 0 | AH50: 0 | AI50: 0 | AJ50: 0 | AK50: 0 | AL50: 0 | AM50: 0 | AN50: 0 | AO50: 0 | AP50: 0 | AQ50: 0 | AR50: 0 | AS50: 0 | AT50: 0 | AU50: 0 | AV50: 0 | AW50: 0 | AX50: 0 | AY50: 0 | AZ50: 0 | BA50: 0 | BB50: 0 | BC50: 0 | BD50: 0 | BE50: 0 | BF50: 0 | BG50: 0 | BH50: 0 | BI50: 0 | BJ50: 0 | BK50: 0 | BL50: 0 | BM50: 0 | BO50: Rondes confirmées | BP50: =SUM(C50:BM50) -> 0 | BQ50: 0 | BR50: 0 | BS50: 0 | BT50: 0 | BU50: 0 | BV50: 0 | BW50: 0 | BX50: 0 | BY50: 0 | BZ50: 0 | CA50: 0 | CB50: 0 | CC50: 0 | CD50: 0 | CE50: 0 | CF50: 0 | CG50: 0 | CI50: Rondes confirmées | CJ50: =SUM(BQ50:CH50) -> 0 | CK50: Rondes confirmées | CL50: =SUM(CJ50+BP50) -> 0
D51: =SUM((D48+D49)*D50) -> 0 | E51: 0 | F51: 0 | G51: 0 | H51: 0 | I51: 0 | J51: 0 | K51: 0 | L51: 0 | M51: 0 | N51: 0 | O51: 0 | P51: 0 | Q51: 0 | R51: 0 | S51: 0 | T51: 0 | U51: 0 | V51: 0 | W51: 0 | X51: 0 | Y51: 0 | Z51: 0 | AA51: 0 | AB51: =SUM((AB48+AB49)*AB50) -> 0 | AC51: =SUM((AC48+AC49)*AC50) -> 0 | AD51: =SUM((AD48+AD49)*AD50) -> 0 | AE51: =SUM((AE48+AE49)*AE50) -> 0 | AF51: 0 | AG51: 0 | AH51: 0 | AI51: 0 | AJ51: 0 | AK51: 0 | AL51: 0 | AM51: 0 | AN51: 0 | AO51: 0 | AP51: 0 | AQ51: 0 | AR51: 0 | AS51: 0 | AT51: 0 | AU51: 0 | AV51: 0 | AW51: 0 | AX51: 0 | AY51: 0 | AZ51: 0 | BA51: 0 | BB51: 0 | BC51: 0 | BD51: 0 | BE51: 0 | BF51: 0 | BG51: 0 | BH51: 0 | BI51: 0 | BJ51: 0 | BK51: =SUM((BK48+BK49)*BK50) -> 0 | BL51: =SUM((BL48+BL49)*BL50) -> 0 | BM51: =SUM((BM48+BM49)*BM50) -> 0 | BO51: Rondes effectuées | BP51: =COUNTIF(D48:BM48,">0") -> 0 | BQ51: =SUM((BQ48+BQ49)*BQ50) -> 0 | BR51: 0 | BS51: 0 | BT51: 0 | BU51: 0 | BV51: 0 | BW51: 0 | BX51: 0 | BY51: 0 | BZ51: 0 | CA51: 0 | CB51: 0 | CC51: 0 | CD51: 0 | CE51: 0 | CF51: 0 | CG51: 0 | CI51: Rondes Effectuées | CJ51: =COUNTIF(BQ48:CG48,">0") -> 0 | CK51: Rondes effectuées | CL51: =SUM(CJ51+BP51) -> 0
A52: 12 | B52: =VLOOKUP(A52,'Numéro licences'!$A$4:$B$32,2) -> PIERARD Anne-Sophie | C52: Aller-Retour | BN52: =SUM(D52:BM52) -> 0 | BO52: Km renseignés | BP52: =SUM(BN52+BN53) -> 0 | CH52: =SUM(BQ52:CG52) -> 0 | CI52: Km renseignés | CJ52: =SUM(CH52+CH53) -> 0 | CK52: Km renseignés | CL52: =SUM(BP52+CJ52) -> 0
C53: Ronde | BN53: =SUM(D53:BM53) -> 0 | BO53: Km confirmés | BP53: =SUM(D55:BM55) -> 0 | CH53: =SUM(BQ53:CG53) -> 0 | CI53: Km confirmés | CJ53: =SUM(BQ55:CG55) -> 0 | CK53: Km confirmés | CL53: =SUM(CJ53+BP53) -> 0
D54: 0 | E54: 0 | F54: 0 | G54: 0 | H54: 0 | I54: 0 | J54: 0 | K54: 0 | L54: 0 | M54: 0 | N54: 0 | O54: 0 | P54: 0 | Q54: 0 | R54: 0 | S54: 0 | T54: 0 | U54: 0 | V54: 0 | W54: 0 | X54: 0 | Y54: 0 | Z54: 0 | AA54: 0 | AB54: 0 | AC54: 0 | AD54: 0 | AE54: 0 | AF54: 0 | AG54: 0 | AH54: 0 | AI54: 0 | AJ54: 0 | AK54: 0 | AL54: 0 | AM54: 0 | AN54: 0 | AO54: 0 | AP54: 0 | AQ54: 0 | AR54: 0 | AS54: 0 | AT54: 0 | AU54: 0 | AV54: 0 | AW54: 0 | AX54: 0 | AY54: 0 | AZ54: 0 | BA54: 0 | BB54: 0 | BC54: 0 | BD54: 0 | BE54: 0 | BF54: 0 | BG54: 0 | BH54: 0 | BI54: 0 | BJ54: 0 | BK54: 0 | BL54: 0 | BM54: 0 | BO54: Rondes confirmées | BP54: 0 | BQ54: 0 | BR54: 0 | BS54: 0 | BT54: 0 | BU54: 0 | BV54: 0 | BW54: 0 | BX54: 0 | BY54: 0 | BZ54: 0 | CA54: 0 | CB54: 0 | CC54: 0 | CD54: 0 | CE54: 0 | CF54: 0 | CG54: 0 | CI54: Rondes confirmées | CJ54: =SUM(BQ54:CH54) -> 0 | CK54: Rondes confirmées | CL54: =SUM(CJ54+BP54) -> 0
D55: =SUM((D52+D53)*D54) -> 0 | E55: 0 | F55: 0 | G55: 0 | H55: 0 | I55: 0 | J55: 0 | K55: 0 | L55: 0 | M55: 0 | N55: 0 | O55: 0 | P55: 0 | Q55: 0 | R55: 0 | S55: 0 | T55: 0 | U55: 0 | V55: 0 | W55: 0 | X55: 0 | Y55: 0 | Z55: 0 | AA55: 0 | AB55: =SUM((AB52+AB53)*AB54) -> 0 | AC55: =SUM((AC52+AC53)*AC54) -> 0 | AD55: =SUM((AD52+AD53)*AD54) -> 0 | AE55: =SUM((AE52+AE53)*AE54) -> 0 | AF55: 0 | AG55: 0 | AH55: 0 | AI55: 0 | AJ55: 0 | AK55: 0 | AL55: 0 | AM55: 0 | AN55: 0 | AO55: 0 | AP55: 0 | AQ55: 0 | AR55: 0 | AS55: 0 | AT55: 0 | AU55: 0 | AV55: 0 | AW55: 0 | AX55: 0 | AY55: 0 | AZ55: 0 | BA55: 0 | BB55: 0 | BC55: 0 | BD55: 0 | BE55: 0 | BF55: 0 | BG55: 0 | BH55: 0 | BI55: 0 | BJ55: 0 | BK55: =SUM((BK52+BK53)*BK54) -> 0 | BL55: =SUM((BL52+BL53)*BL54) -> 0 | BM55: =SUM((BM52+BM53)*BM54) -> 0 | BO55: Rondes effectuées | BP55: =COUNTIF(D52:BM52,">0") -> 0 | BQ55: =SUM((BQ52+BQ53)*BQ54) -> 0 | BR55: 0 | BS55: 0 | BT55: 0 | BU55: 0 | BV55: 0 | BW55: 0 | BX55: 0 | BY55: 0 | BZ55: 0 | CA55: 0 | CB55: 0 | CC55: 0 | CD55: 0 | CE55: 0 | CF55: 0 | CG55: 0 | CI55: Rondes Effectuées | CJ55: =COUNTIF(BQ52:CG52,">0") -> 0 | CK55: Rondes effectuées | CL55: =SUM(CJ55+BP55) -> 0
A56: 13 | B56: =VLOOKUP(A56,'Numéro licences'!$A$4:$B$32,2) -> PONT Patricia | C56: Aller-Retour | G56: 266 | J56: 338 | K56: 204 | L56: 20 | M56: 44 | N56: 34 | P56: 18 | Q56: 268 | R56: 156 | S56: 118 | U56: 284 | W56: 20 | X56: 164 | Z56: 132 | AA56: 0 | AD56: 86 | AG56: 68 | AJ56: 118 | AK56: 18 | AL56: 34 | AR56: 210 | AT56: 44 | AU56: 204 | AV56: 68 | AX56: 86 | BA56: 338 | BC56: 210 | BD56: 280 | BF56: 160 | BG56: 164 | BH56: 118 | BI56: 18 | BN56: =SUM(D56:BM56) -> 4290 | BO56: Km renseignés | BP56: =SUM(BN56+BN57) -> 10021 | CH56: =SUM(BQ56:CG56) -> 0 | CI56: Km renseignés | CJ56: =SUM(CH56+CH57) -> 0 | CK56: Km renseignés | CL56: =SUM(BP56+CJ56) -> 10021
C57: Ronde | G57: 130 | I57: 160 | J57: 150 | K57: 134 | L57: 173 | M57: 160 | N57: 160 | P57: 180 | Q57: 179 | R57: 146 | S57: 170 | U57: 190 | W57: 200 | X57: 221 | Z57: 175 | AA57: 200 | AD57: 216 | AG57: 196 | AJ57: 160 | AK57: 195 | AL57: 167 | AR57: 200 | AT57: 240 | AU57: 200 | AV57: 220 | AX57: 188 | BA57: 130 | BC57: 160 | BD57: 160 | BF57: 160 | BG57: 130 | BH57: 155 | BI57: 126 | BN57: =SUM(D57:BM57) -> 5731 | BO57: Km confirmés | BP57: =SUM(D59:BM59) -> 10021 | CH57: =SUM(BQ57:CG57) -> 0 | CI57: Km confirmés | CJ57: =SUM(BQ59:CG59) -> 0 | CK57: Km confirmés | CL57: =SUM(CJ57+BP57) -> 10021
D58: 0 | E58: 0 | F58: 0 | G58: 1 | H58: 0 | I58: 1 | J58: 1 | K58: 1 | L58: 1 | M58: 1 | N58: 1 | O58: 0 | P58: 1 | Q58: 1 | R58: 1 | S58: 1 | T58: 0 | U58: 1 | V58: 0 | W58: 1 | X58: 1 | Y58: 0 | Z58: 1 | AA58: 1 | AB58: 0 | AC58: 0 | AD58: 1 | AE58: 0 | AF58: 0 | AG58: 1 | AH58: 0 | AI58: 0 | AJ58: 1 | AK58: 1 | AL58: 1 | AM58: 0 | AN58: 0 | AO58: 0 | AP58: 0 | AQ58: 0 | AR58: 1 | AS58: 0 | AT58: 1 | AU58: 1 | AV58: 1 | AW58: 0 | AX58: 1 | AY58: 0 | AZ58: 0 | BA58: 1 | BB58: 0 | BC58: 1 | BD58: 1 | BE58: 0 | BF58: 1 | BG58: 1 | BH58: 1 | BI58: 1 | BJ58: 0 | BK58: 0 | BL58: 0 | BM58: 0 | BO58: Rondes confirmées | BP58: =SUM(C58:BM58) -> 33 | BQ58: 0 | BR58: 0 | BS58: 0 | BT58: 0 | BU58: 0 | BV58: 0 | BW58: 0 | BX58: 0 | BY58: 0 | BZ58: 0 | CA58: 0 | CB58: 0 | CC58: 0 | CD58: 0 | CE58: 0 | CF58: 0 | CG58: 0 | CI58: Rondes confirmées | CJ58: =SUM(BQ58:CH58) -> 0 | CK58: Rondes confirmées | CL58: =SUM(CJ58+BP58) -> 33
D59: =SUM((D56+D57)*D58) -> 0 | E59: 0 | F59: 0 | G59: 396 | H59: 0 | I59: 160 | J59: 488 | K59: 338 | L59: 193 | M59: 204 | N59: 194 | O59: 0 | P59: 198 | Q59: 447 | R59: 302 | S59: 288 | T59: 0 | U59: 474 | V59: 0 | W59: 220 | X59: 385 | Y59: 0 | Z59: 307 | AA59: 200 | AB59: =SUM((AB56+AB57)*AB58) -> 0 | AC59: =SUM((AC56+AC57)*AC58) -> 0 | AD59: =SUM((AD56+AD57)*AD58) -> 302 | AE59: =SUM((AE56+AE57)*AE58) -> 0 | AF59: 0 | AG59: 264 | AH59: 0 | AI59: 0 | AJ59: 278 | AK59: 213 | AL59: 201 | AM59: 0 | AN59: 0 | AO59: 0 | AP59: 0 | AQ59: 0 | AR59: 410 | AS59: 0 | AT59: 284 | AU59: 404 | AV59: 288 | AW59: 0 | AX59: 274 | AY59: 0 | AZ59: 0 | BA59: 468 | BB59: 0 | BC59: 370 | BD59: 440 | BE59: 0 | BF59: 320 | BG59: 294 | BH59: 273 | BI59: 144 | BJ59: =SUM((BJ56+BJ57)*BJ58) -> 0 | BK59: =SUM((BK56+BK57)*BK58) -> 0 | BL59: =SUM((BL56+BL57)*BL58) -> 0 | BM59: =SUM((BM56+BM57)*BM58) -> 0 | BO59: Rondes effectuées | BP59: =COUNTIF(D56:BM56,">0") -> 31 | BQ59: =SUM((BQ56+BQ57)*BQ58) -> 0 | BR59: 0 | BS59: 0 | BT59: 0 | BU59: 0 | BV59: 0 | BW59: 0 | BX59: 0 | BY59: 0 | BZ59: 0 | CA59: 0 | CB59: 0 | CC59: 0 | CD59: 0 | CE59: 0 | CF59: 0 | CG59: 0 | CI59: Rondes Effectuées | CJ59: =COUNTIF(BQ56:CG56,">0") -> 0 | CK59: Rondes effectuées | CL59: =SUM(CJ59+BP59) -> 31
A60: 14 | B60: =VLOOKUP(A60,'Numéro licences'!$A$4:$B$32,2) -> MISEUR Carine | C60: Aller-Retour | AD60: 86 | AG60: 68 | AH60: 186 | AL60: 34 | AR60: 210 | AT60: 44 | AU60: 204 | AX60: 86 | AY60: 224 | BB60: 254 | BC60: 210 | BD60: 280 | BF60: 160 | BG60: 164 | BH60: 118 | BI60: 18 | BN60: =SUM(D60:BM60) -> 2346 | BO60: Km renseignés | BP60: =SUM(BN60+BN61) -> 5164 | CH60: =SUM(BQ60:CG60) -> 0 | CI60: Km renseignés | CJ60: =SUM(CH60+CH61) -> 0 | CK60: Km renseignés | CL60: =SUM(BP60+CJ60) -> 5164
C61: Ronde | AD61: 216 | AG61: 196 | AH61: 180 | AL61: 167 | AR61: 200 | AT61: 240 | AU61: 200 | AX61: 188 | AY61: 180 | BB61: 160 | BC61: 160 | BD61: 160 | BF61: 160 | BG61: 130 | BH61: 155 | BI61: 126 | BN61: =SUM(D61:BM61) -> 2818 | BO61: Km confirmés | BP61: =SUM(D63:BM63) -> 5164 | CH61: =SUM(BQ61:CG61) -> 0 | CI61: Km confirmés | CJ61: =SUM(BQ63:CG63) -> 0 | CK61: Km confirmés | CL61: =SUM(CJ61+BP61) -> 5164
D62: 0 | E62: 0 | F62: 0 | G62: 0 | H62: 0 | I62: 0 | J62: 0 | K62: 0 | L62: 0 | M62: 0 | N62: 0 | O62: 0 | P62: 0 | Q62: 0 | R62: 0 | S62: 0 | T62: 0 | U62: 0 | V62: 0 | W62: 0 | X62: 0 | Y62: 0 | Z62: 0 | AA62: 0 | AB62: 0 | AC62: 0 | AD62: 1 | AE62: 0 | AF62: 0 | AG62: 1 | AH62: 1 | AI62: 0 | AJ62: 0 | AK62: 0 | AL62: 1 | AM62: 0 | AN62: 0 | AO62: 0 | AP62: 0 | AQ62: 0 | AR62: 1 | AS62: 0 | AT62: 1 | AU62: 1 | AV62: 0 | AW62: 0 | AX62: 1 | AY62: 1 | AZ62: 0 | BA62: 0 | BB62: 1 | BC62: 1 | BD62: 1 | BE62: 0 | BF62: 1 | BG62: 1 | BH62: 1 | BI62: 1 | BJ62: 0 | BK62: 0 | BL62: 0 | BM62: 0 | BO62: Rondes confirmées | BP62: =SUM(C62:BM62) -> 16 | BQ62: 0 | BR62: 0 | BS62: 0 | BT62: 0 | BU62: 0 | BV62: 0 | BW62: 0 | BX62: 0 | BY62: 0 | BZ62: 0 | CA62: 0 | CB62: 0 | CC62: 0 | CD62: 0 | CE62: 0 | CF62: 0 | CG62: 0 | CI62: Rondes confirmées | CJ62: =SUM(BQ62:CH62) -> 0 | CK62: Rondes confirmées | CL62: =SUM(CJ62+BP62) -> 16
D63: =SUM((D60+D61)*D62) -> 0 | E63: 0 | F63: 0 | G63: 0 | H63: 0 | I63: 0 | J63: 0 | K63: 0 | L63: 0 | M63: 0 | N63: 0 | O63: 0 | P63: 0 | Q63: 0 | R63: 0 | S63: 0 | T63: 0 | U63: 0 | V63: 0 | W63: 0 | X63: 0 | Y63: 0 | Z63: 0 | AA63: 0 | AB63: =SUM((AB60+AB61)*AB62) -> 0 | AC63: =SUM((AC60+AC61)*AC62) -> 0 | AD63: =SUM((AD60+AD61)*AD62) -> 302 | AE63: =SUM((AE60+AE61)*AE62) -> 0 | AF63: 0 | AG63: 264 | AH63: 366 | AI63: 0 | AJ63: 0 | AK63: 0 | AL63: 201 | AM63: 0 | AN63: 0 | AO63: 0 | AP63: 0 | AQ63: 0 | AR63: 410 | AS63: 0 | AT63: 284 | AU63: 404 | AV63: 0 | AW63: 0 | AX63: 274 | AY63: 404 | AZ63: 0 | BA63: 0 | BB63: 414 | BC63: 370 | BD63: 440 | BE63: 0 | BF63: 320 | BG63: 294 | BH63: 273 | BI63: 144 | BJ63: 0 | BK63: =SUM((BK60+BK61)*BK62) -> 0 | BL63: =SUM((BL60+BL61)*BL62) -> 0 | BM63: =SUM((BM60+BM61)*BM62) -> 0 | BO63: Rondes effectuées | BP63: =COUNTIF(D60:BM60,">0") -> 16 | BQ63: =SUM((BQ60+BQ61)*BQ62) -> 0 | BR63: 0 | BS63: 0 | BT63: 0 | BU63: 0 | BV63: 0 | BW63: 0 | BX63: 0 | BY63: 0 | BZ63: 0 | CA63: 0 | CB63: 0 | CC63: 0 | CD63: 0 | CE63: 0 | CF63: 0 | CG63: 0 | CI63: Rondes Effectuées | CJ63: =COUNTIF(BQ60:CG60,">0") -> 0 | CK63: Rondes effectuées | CL63: =SUM(CJ63+BP63) -> 16
A64: 15 | B64: =VLOOKUP(A64,'Numéro licences'!$A$4:$B$32,2) -> ARENZANA Jennifer | C64: Aller-Retour | AJ64: 118 | AK64: 18 | AV64: 68 | BN64: =SUM(D64:BM64) -> 204 | BO64: Km renseignés | BP64: =SUM(BN64+BN65) -> 779 | CH64: =SUM(BQ64:CG64) -> 0 | CI64: Km renseignés | CJ64: =SUM(CH64+CH65) -> 0 | CK64: Km renseignés | CL64: =SUM(BP64+CJ64) -> 779
C65: Ronde | AJ65: 160 | AK65: 195 | AV65: 220 | BN65: =SUM(D65:BM65) -> 575 | BO65: Km confirmés | BP65: =SUM(D67:BM67) -> 0 | CH65: =SUM(BQ65:CG65) -> 0 | CI65: Km confirmés | CJ65: =SUM(BQ67:CG67) -> 0 | CK65: Km confirmés | CL65: =SUM(CJ65+BP65) -> 0
D66: 0 | E66: 0 | F66: 0 | G66: 0 | H66: 0 | I66: 0 | J66: 0 | K66: 0 | L66: 0 | M66: 0 | N66: 0 | O66: 0 | P66: 0 | Q66: 0 | R66: 0 | S66: 0 | T66: 0 | U66: 0 | V66: 0 | W66: 0 | X66: 0 | Y66: 0 | Z66: 0 | AA66: 0 | AB66: 0 | AC66: 0 | AD66: 0 | AE66: 0 | AF66: 0 | AG66: 0 | AH66: 0 | AI66: 0 | AJ66: 0 | AK66: 0 | AL66: 0 | AM66: 0 | AN66: 0 | AO66: 0 | AP66: 0 | AQ66: 0 | AR66: 0 | AS66: 0 | AT66: 0 | AU66: 0 | AV66: 0 | AW66: 0 | AX66: 0 | AY66: 0 | AZ66: 0 | BA66: 0 | BB66: 0 | BC66: 0 | BD66: 0 | BE66: 0 | BF66: 0 | BG66: 0 | BH66: 0 | BI66: 0 | BJ66: 0 | BK66: 0 | BL66: 0 | BM66: 0 | BO66: Rondes confirmées | BP66: =SUM(C66:BM66) -> 0 | BQ66: 0 | BR66: 0 | BS66: 0 | BT66: 0 | BU66: 0 | BV66: 0 | BW66: 0 | BX66: 0 | BY66: 0 | BZ66: 0 | CA66: 0 | CB66: 0 | CC66: 0 | CD66: 0 | CE66: 0 | CF66: 0 | CG66: 0 | CI66: Rondes confirmées | CJ66: =SUM(BQ66:CH66) -> 0 | CK66: Rondes confirmées | CL66: =SUM(CJ66+BP66) -> 0
D67: =SUM((D64+D65)*D66) -> 0 | E67: 0 | F67: 0 | G67: 0 | H67: 0 | I67: 0 | J67: 0 | K67: 0 | L67: 0 | M67: 0 | N67: 0 | O67: 0 | P67: 0 | Q67: 0 | R67: 0 | S67: 0 | T67: 0 | U67: 0 | V67: 0 | W67: 0 | X67: 0 | Y67: 0 | Z67: 0 | AA67: 0 | AB67: =SUM((AB64+AB65)*AB66) -> 0 | AC67: =SUM((AC64+AC65)*AC66) -> 0 | AD67: =SUM((AD64+AD65)*AD66) -> 0 | AE67: =SUM((AE64+AE65)*AE66) -> 0 | AF67: 0 | AG67: 0 | AH67: 0 | AI67: 0 | AJ67: 0 | AK67: 0 | AL67: 0 | AM67: 0 | AN67: 0 | AO67: 0 | AP67: 0 | AQ67: 0 | AR67: 0 | AS67: 0 | AT67: 0 | AU67: 0 | AV67: 0 | AW67: 0 | AX67: 0 | AY67: 0 | AZ67: 0 | BA67: 0 | BB67: 0 | BC67: 0 | BD67: 0 | BE67: 0 | BF67: 0 | BG67: 0 | BH67: 0 | BI67: 0 | BJ67: 0 | BK67: =SUM((BK64+BK65)*BK66) -> 0 | BL67: 0 | BM67: 0 | BO67: Rondes effectuées | BP67: =COUNTIF(D64:BM64,">0") -> 3 | BQ67: =SUM((BQ64+BQ65)*BQ66) -> 0 | BR67: 0 | BS67: 0 | BT67: 0 | BU67: 0 | BV67: 0 | BW67: 0 | BX67: 0 | BY67: 0 | BZ67: 0 | CA67: 0 | CB67: 0 | CC67: 0 | CD67: 0 | CE67: 0 | CF67: 0 | CG67: 0 | CI67: Rondes Effectuées | CJ67: =COUNTIF(BQ64:CG64,">0") -> 0 | CK67: Rondes effectuées | CL67: =SUM(CJ67+BP67) -> 3
A68: 16 | B68: =VLOOKUP(A68,'Numéro licences'!$A$4:$B$32,2) -> 0 | C68: Aller-Retour | BN68: =SUM(D68:BM68) -> 0 | BO68: Km renseignés | BP68: =SUM(BN68+BN69) -> 0 | CH68: =SUM(BQ68:CG68) -> 0 | CI68: Km renseignés | CJ68: =SUM(CH68+CH69) -> 0 | CK68: Km renseignés | CL68: =SUM(BP68+CJ68) -> 0
C69: Ronde | BN69: =SUM(D69:BM69) -> 0 | BO69: Km confirmés | BP69: =SUM(D71:BM71) -> 0 | CH69: =SUM(BQ69:CG69) -> 0 | CI69: Km confirmés | CJ69: =SUM(BQ71:CG71) -> 0 | CK69: Km confirmés | CL69: =SUM(CJ69+BP69) -> 0
D70: 0 | E70: 0 | F70: 0 | G70: 0 | H70: 0 | I70: 0 | J70: 0 | K70: 0 | L70: 0 | M70: 0 | N70: 0 | O70: 0 | P70: 0 | Q70: 0 | R70: 0 | S70: 0 | T70: 0 | U70: 0 | V70: 0 | W70: 0 | X70: 0 | Y70: 0 | Z70: 0 | AA70: 0 | AB70: 0 | AC70: 0 | AD70: 0 | AE70: 0 | AF70: 0 | AG70: 0 | AH70: 0 | AI70: 0 | AJ70: 0 | AK70: 0 | AL70: 0 | AM70: 0 | AN70: 0 | AO70: 0 | AP70: 0 | AQ70: 0 | AR70: 0 | AS70: 0 | AT70: 0 | AU70: 0 | AV70: 0 | AW70: 0 | AX70: 0 | AY70: 0 | AZ70: 0 | BA70: 0 | BB70: 0 | BC70: 0 | BD70: 0 | BE70: 0 | BF70: 0 | BG70: 0 | BH70: 0 | BI70: 0 | BJ70: 0 | BK70: 0 | BL70: 0 | BM70: 0 | BO70: Rondes confirmées | BP70: =SUM(C70:BM70) -> 0 | BQ70: 0 | BR70: 0 | BS70: 0 | BT70: 0 | BU70: 0 | BV70: 0 | BW70: 0 | BX70: 0 | BY70: 0 | BZ70: 0 | CA70: 0 | CB70: 0 | CC70: 0 | CD70: 0 | CE70: 0 | CF70: 0 | CG70: 0 | CI70: Rondes confirmées | CJ70: =SUM(BQ70:CH70) -> 0 | CK70: Rondes confirmées | CL70: =SUM(CJ70+BP70) -> 0
